Workbook

Sheet Info

Sheet Trial (hidden)

Sheet Instructions (hidden)
A1: Excel Skills | Job Costing Template
A2: Instructions
A3: www.excel-skills.com
A5: This template enables users to compile job costings for all manufactured products by comparing actual costs to standard costs and measuring the total production variance as well as the usage & price variances on an individual job and total basis. The standard costs are based on the individual standard prices that are specified for all bought-in stock items and the bills of material (“recipes”) that are compiled for each manufactured product. The actual costs are based on the components that are issued to each manufacturing job and the actual prices of all bought-in products. The template also includes a unique production variance summary report which can be used to analyse stock variances per individual stock item over any user defined period and a production forecast report which can be used for materials requirements planning (MRP) purposes.
A7: The following sheets are included in the template:
A8: StockCode - create unique stock codes for all bought-in and manufactured stock items and enter the stock description, unit of measure, standard cost and issue level for each stock item. The columns with light blue column headings contain formulas which include calculations of the actual job cost, job variances against standard cost (usage & price) and actual inventory cost for all stock items based on any user defined date range.
A9: BOM - link each manufactured product to the stock components on this sheet. All the standard costs of manufactured products are calculated based on the components that have been linked to the appropriate manufactured product code on this sheet.
A10: JSetup - create individual jobs on this sheet by entering a job number, date, stock code and required quantity in the columns with yellow column headings. The columns with light blue column headings contain formulas which calculate the actual & standard cost of each job as well as a total variance, usage variance & price variance per job.
A11: JDetails - all job receipt and issue transactions should be entered on this sheet. Receipt transactions are used to calculate a standard value for the manufactured products that are produced and issue transactions are used to calculate the actual cost of a job. The standard cost of bought-in products can be replaced by an actual cost and multi-level bills of material can be linked to sub component jobs.
A12: JReview - the job costing calculations on this sheet enable users to view a detailed standard & actual job costing for any job that has been created on the JSetup sheet. The sheet requires no user input – all the job cost components are automatically included based on the job number that is entered in cell D1. The sheet can accommodate a maximum of three manufactured stock items per job and includes standard & actual cost totals, a total job variance and usage & price variance calculations.
A13: ReqPlan - the requirements planning forecast can be used to determine the stock component quantities that are required in order to produce the manufactured stock quantities that are specified on this sheet. Simply enter the appropriate manufactured product codes in column A and the required quantities in column E in order to calculate the component stock quantities in columns I to N.
A15: Stock Codes
A17: The first step in customizing the template for your business is to create a unique stock code for each stock component and finished (manufactured) product on the StockCode sheet. Stock components can only be linked to a manufactured product if a stock code has been created for the appropriate stock item.
A19: Note: The contents of the StockCode sheet have been included in an Excel table. You can add a new stock code to the sheet by entering the stock code in the first empty cell in column A - the table will be extended automatically to include the new stock code. All the columns on the StockCode sheet with a yellow column heading require user input. The columns with light blue column headings contain formulas that are automatically copied for all new stock codes that are added to the Excel table.
A21: A stock code convention that makes sense in the context of your business should be used and the stock code convention should make it easy to identify stock items based on the stock code that is assigned to each stock item. The template can accommodate any stock code convention but we suggest using a combination of letters and numbers. In our example, we have used a combination of four numbers and three letters for finished products and a combination of two letters and two numbers for bought-in and intermediate stock items.
A23: Note: The two letters that are used in the bought-in and intermediate products assists users in identifying the type of stock - for example, RM refers to raw materials, LB refers to labour and SD refers to intermediate products. Note that even though labour is not actually a stock item, we also assign a stock code to labour cost in order to include this type of direct cost in the job costings. The same principle can be applied in order to include other direct costs like overheads or even distribution costs in the job costings.
A25: Once you have decided on a stock code convention, you can create a unique stock code for each stock item that should be included in the job costings. The StockCode sheet includes the following user input columns (columns with yellow column headings):
A27: Stock Code
A29: Enter a unique stock code in accordance with the stock code convention that is suitable for your type of business.
A31: Description
A33: Enter a description of the stock item. This description should enable users to easily distinguish between stock items.
A35: Unit of Measure (UOM)
A37: The unit of measure (UOM) refers to the stock measurement that is used when ordering, manufacturing and counting stock. Note that stock components are also included in the job costings based on this unit of measure. For example, if the recipe of a manufactured product stipulates that a specified quantity in kilogram of a raw material stock component should be added during manufacturing, it will be easier to cost the product based on a unit of measure of kilogram even though the raw material component may be ordered from a supplier in bags. For the purpose of this template, recipe (and therefore costing) units of measure carry more weight than the units of measure that is used when ordering products from suppliers.
A39: STD Unit Price
A41: The most important aspect of the standard unit price is that it should be in the same unit of measure as the unit of measure that is specified in the UOM column. If a stock component is ordered from a supplier in another unit of measure, the standard unit price should be converted to the unit of measure that is specified in the UOM column. Standard unit prices should be entered excluding sales tax if the sales tax amounts can be claimed back from the appropriate tax authorities.
A43: The standard unit price is multiplied by the input quantity which is entered on the BOM sheet in order to calculate the standard cost of the appropriate manufactured item.
A45: Note: Standard unit prices should not be entered for manufactured products because the standard product costings of these stock items are determined based on the standard unit prices of the components that have been linked to the manufactured products on the BOM sheet. If you enter a standard unit price for a manufactured stock item, the input will have no effect on the standard costs that are calculated.
A47: STD Issue Level
A49: A standard issue level needs to be selected for each manufactured stock item. An issue level of either "All" or "First" can be selected from the list box. If no issue level is selected for a manufactured stock item, the issue level is assumed to be "All". Selecting an issue level for a bought-in stock item has no effect on the template calculations.
A51: When the "All" level is selected, the template assumes that there are no jobs that will be created for intermediate products and the standard issue quantities will therefore be calculated only for the bought-in stock items which have been linked to the appropriate manufactured product on the BOM sheet regardless of how many levels of bills of material are used. This means that intermediate products will never form part of the standard issues that are calculated for a manufacturing job. Intermediate products should therefore also not be issued to a job when the "All" level has been selected for a particular product.
A53: When the "First" level is selected, the template will assume that intermediate products will be issued to the jobs that relate to this particular product and the standard issues should therefore also be calculated based on the use of intermediate products. This means that where the product has multiple levels in its bill of material, the sub components that form part of the first level will be included in the standard issues that are calculated for all the jobs that are created for the particular product.
A55: Example: Let's assume that we are building a garden shed and the windows have been added as an intermediate product with its own bought-in stock components of wooden frames, glass and nails. If we select the "First" level, the intermediate product of windows will be issued as part of the standard issue calculations. In order to analyse the job on a per product basis, we would therefore need to manufacture windows separately and issue the intermediate product of windows on the JDetails sheet when recording transactions against the job
A57: Example: If we select the "All" level for the garden shed manufactured product, the bought-in components of the windows (wooden frames, glass and nails) will be issued as part of the standard issue calculations. In order to analyse the job on a per product basis, the manufacturing of windows will therefore form part of the same job as the manufacturing of the entire garden shed and the individual bought-in products must be recorded as issues on the JDetails sheet in order to analyse the variances on a per product basis.
A59: Note: The "First" level should therefore be selected for all manufactured products where the intermediate components form part of a separate manufacturing process for which separate jobs are going to be created.
A61: Note: If the bill of material for a product contains no intermediate products, we recommend that the "All" level is selected for the appropriate product.
A63: The standard issue level is assigned on an individual stock code basis which means that the template can be used to analyse jobs on an "All" level as well as a "First" level for manufactured products. Some products can be designated as "First" level manufactured products (thereby using intermediate level manufacturing processes) while others can still be assigned an "All" level manufacturing process. The template does not cater for the same product being manufactured on both standard issue levels.
A65: Note: All the columns on the StockCode sheet with a yellow column heading require user input. The columns with light blue column headings contain formulas that are automatically copied when you add a new stock code in the first empty cell in column A. The following columns contain formulas:
A67: Error Code
A69: The formulas in this column display an error code if there is a problem with the data that has been entered in any of the user input columns. This column should therefore not contain any error codes if all user input has been entered correctly. If any error codes are reflected in this column, the errors should be investigated and rectified in order to ensure that all template calculations remain accurate. Refer to the Error Codes section of these instructions for guidance on how to correct the appropriate user input errors.
A71: Product Type
A73: This column indicates whether a stock code relates to a stock item that is bought-in from a supplier or to a product that is manufactured. A product costing should be compiled for all manufactured products by linking the manufactured product and its components on the BOM sheet. The formula that has been entered in this column therefore checks whether the stock code is included in column A on the BOM sheet and if so, identifies the product as a manufactured product. Alternatively, the product is deemed to be a bought-in product.
A75: Note: Manufactured products will only be deemed to be manufactured if they are included on the BOM sheet. If a product which is supposed to be a manufactured product is indicated as a bought-in product, you have probably not added the product to the BOM sheet.
A77: BOM Type
A79: This column indicates which type of bill of material has been added for a product. If the product is a manufactured product and it is not included as a component in any other bills of material on the BOM sheet, the BOM type will be a finished goods product type (FG). If the product is a manufactured product and it is included as a component in another bill of material on the BOM sheet, the BOM type will be an intermediate product type (IM). If the product is a bought-in product, the BOM type will be "None".
A81: Product Cost
A83: This column contains the product cost of each stock code. If a product is classified as a bought-in stock item, the product cost equals the standard unit price specified in column D. If the product is classified as a manufactured product, the product cost is calculated based on the components linked to the product on the BOM sheet and the appropriate standard unit prices, input quantities and yields of the linked components. The Product Cost column therefore contains the standard costs of all stock items.
A85: Job Qty Required
A87: This column contains the component quantity which is required in order to produce the job number which has been selected in cell D1 on the JReview sheet. The values in this column are used in the compilation of the JReview sheet.
A89: Job Std Issued
A91: This column contains the component quantity which needs to be issued based on the job receipts which have been recorded on the JDetails sheet and the job number which has been selected in cell D1 on the JReview sheet. The values in this column are used in the compilation of the JReview sheet.
A93: Job Qty Issued
A95: This column contains the component quantities which have been issued by recording stock issue transactions on the JDetails sheet against the job number which has been selected in cell D1 on the JReview sheet. The values in this column are used in the compilation of the JReview sheet.
A97: Job Review Status
A99: This column indicates which components need to be included on the JReview sheet and the status is only used in the compilation of the JReview sheet.
A101: Req Plan Qty
A103: This column contains the component quantities which are required in order to produce the products which have been included on the ReqPlan sheet. The values in this column are only used in the compilation of the ReqPlan sheet.
A105: Req Plan Status
A107: This column indicates which components need to be included on the ReqPlan sheet and the status is only used in the compilation of the ReqPlan sheet.
A109: All of the following columns contain formulas which affect the calculations that are included in our unique production variance report which is included on the StockCode sheet from columns P to AB. The production report is based on the From and To dates that are specified in cells P2 and R2 respectively.
A111: Received Qty
A113: The values in this column indicate the total quantity that has been received for a particular stock code by entering job receipt transactions on the JDetails sheet.
A115: Issued STD Qty
A117: This column indicates the total component quantities which needed to be issued in order to produce the total quantities which have been received as per column P. This is the standard quantities which needed to be issued based on the bills of material which are included on the BOM sheet and are based on the input quantities and yields which have been specified for each manufactured product.
A119: Issued Actual Qty
A121: This column indicates the total quantity which has actually been issued to a manufacturing job during the applicable date range. Actual job issues are recorded by entering a job issue transaction on the JDetails sheet.
A123: Usage Var Qty
A125: This is the difference between the standard and actual issue quantities and represents the total usage variance quantities for all jobs that fall within the specified date range.
A127: RecValue @STD
A129: The values in this column represent the total standard cost value of all stock receipt transactions which have been entered on the JDetails sheet for the appropriate manufactured stock item.
A131: Note: The value of transactions that relate to intermediate stock items will be excluded to the extent that the intermediate products were manufactured (receipt transactions) and issued to other manufacturing jobs (issue transactions) during the same review period. This adjustment is necessary in order for production values not to be duplicated and therefore overstated.
A133: IssueValue @STD
A135: The values in this column represent the total standard cost value of all stock component issues which are required in order to produce the receipted quantities in column P. These values are based on the input quantities and yields which have been specified on the BOM sheet. The total of this column will always be the same as the RecValue @STD column (although the value will be negative in this column).
A137: Note: The value of transactions that relate to intermediate stock items will be excluded to the extent that the intermediate products were manufactured (receipt transactions) and issued to other manufacturing jobs (issue transactions) during the same review period. This adjustment is necessary in order for production values not to be duplicated and therefore overstated.
A139: RecValue @Actual
A141: The values in this column represent the total actual cost value of all stock receipt transactions which have been entered on the JDetails sheet for the appropriate manufactured stock item. For intermediate products, the value in this column will be the difference between the total receipted actual value and the total issued actual value.
A143: Note: The value of transactions that relate to intermediate stock items will be excluded to the extent that the intermediate products were manufactured (receipt transactions) and issued to other manufacturing jobs (issue transactions) during the same review period. This adjustment is necessary in order for production values not to be duplicated and therefore overstated.
A145: Note: If multiple manufactured products are linked to the same job, the values in this column will be nil. This is because it is impossible to determine what the actual cost of multiple manufactured products are if these multiple manufactured products are linked to the same job.
A147: IssueValue @Actual
A149: The values in this column represent the total actual cost value of all stock component issue transactions recorded on the JDetails sheet. The total of this column will be the same as the RecValue @Actual column (although the value will be negative in this column) but not if multiple manufactured products are linked to the same job or when the job link feature on the JDetails sheet is used to link a component to a job cost which is not equal to the average actual cost of the component for the period under review.
A151: Note: The value of transactions that relate to intermediate stock items will be excluded to the extent that the intermediate products were manufactured (receipt transactions) and issued to other manufacturing jobs (issue transactions) during the same review period. This adjustment is necessary in order for production values not to be duplicated and therefore overstated.
A153: Total Var Value
A155: The values in this column represent the difference between the standard issue values and the actual issue values. If a value is positive, it means that the actual component cost is lower than the standard component cost and if the value is negative, it means that the actual component cost is higher than the standard component cost.
A157: Usage Var Value
A159: The values in this column indicate the total usage variance value for each component. Positive values represent positive variances (actual usage lower than the standard) and vice versa.
A161: Price Var Value
A163: The values in this column indicate the total price variance value for each component. Positive values represent positive variances (actual usage lower than the standard) and vice versa. Actual prices are determined by the cost per unit which is specified in column E on the JDetails sheet when recording job issue transactions.
A165: Actual Unit Cost
A167: The values in this column indicate what the average actual cost of each component is for the period under review. If only one manufactured product is linked to a job, the actual costs are calculated based on the issue transactions which have been entered on the JDetails sheet.
A169: For bought-in products, the average actual cost will be the average cost which has been issued for the component on the JDetails sheet. For manufactured products, the average actual cost will be the total value of all components which have been issued to jobs that relate to the manufacturing of the appropriate item divided by the quantity that has been received.
A171: If more than one manufactured product has been linked to a single job, the actual prices entered on the JDetails sheet for bought-in stock items are multiplied by the standard input quantities & yields to calculate an average actual cost which is only representative of actual price variances. Usage variances are ignored for the purpose of this calculation because it is impossible to calculate the usage variances for individual manufactured products when multiple products have been linked to the same job.
A173: Note: All actual average cost calculations are based on a date range which includes the first transaction date which has been included on the JDetails sheet and the To date which has been entered on the StockCode sheet. If no To date has been specified, the date range will end on the last day of the current calendar month (based on the system date of your computer).
A175: Unit Cost % Variance
A177: The percentages in this column represent the difference between the standard unit costs in column I and the average actual unit costs in column AA. Positive values represent positive variances (actual cost is lower than the standard) and vice versa.
A179: The following section covers some important points that users should take note of regarding the production variance report.
A181: Reporting Dates
A183: The production, quantities, values and variances on the StockCode sheet (columns P to Z) are all based on the From and To dates which are specified in cells P2 and R2. The calculations in these columns will therefore change when new From and To dates are entered in these cells.
A185: If no From date is specified (cell P2 is blank), the From date will default to the first date which has been entered on the JDetails sheet and the report will therefore include all jobs. If no To date is specified (cell R2 is blank), the report will default to the last day of the current calendar month (based on your computer's date settings).
A187: Note: The To date which is specified in cell R2 must always be after the From date which is specified in cell P2. If this is not the case, an error message will be displayed.
A189: The date functionality enables users to run the production variance report for any user defined date range which can include single or multiple jobs based on the job receipt and issue transactions which have been entered on the JDetails sheet.
A191: Note: The From date plays no role in the average actual cost calculations in column AA. Only the To date which is specified in cell R2 is included in these calculations. This means that the average actual cost will always be calculated based on all the jobs that precede the To date.
A193: Standard Cost & Average Actual Cost Values
A195: When you amend the standard unit prices of bought-in products on the StockCode sheet or the input quantities and yields on the BOM sheet, you are effectively revaluing your standard costs for the affected manufactured products. The standard costs are used in order to compare actual job costs to standard job costs and amendments to these standard values will therefore also affect all job comparisons to date.
A197: We therefore recommend that you save a new version of the template before any significant change in the standard cost values. This will ensure that all jobs that have been completed up to that date remains compared to the standard values which were in effect at the time.
A199: We recommend that new versions of the template are created regularly by adjusting standard cost values based on previous actual cost comparisons. The frequency of these updates does however depend on the costing methodology that is applied and the significance of fluctuations in component pricing.
A201: The average actual cost which is calculated in this template is based on all the jobs included on the JSetup sheet. It therefore makes sense to "refresh" these average costs from time to time by saving a new version, amending the standard cost basis, clearing the contents of the JSetup and JDetails sheets (user input columns only) and recording new jobs on these sheets.
A203: Note: Do not delete any of the formulas in the columns with light blue column headings because this would result in inaccuracies in the template calculations. You can delete rows that are not required but you should always retain at least two rows in these columns.
A205: General Info
A207: The totals above the column headings have been calculated by using a SUBTOTAL function. This means that if you filter the StockCode sheet, only the cells that are visible on the sheet will be included in these calculations.
A209: As we've mentioned before, the value of transactions that relate to intermediate stock items will be excluded from the report to the extent that the intermediate products were manufactured (receipt transactions) and issued to other manufacturing jobs (issue transactions) during the same review period. This adjustment is necessary in order for production values not to be duplicated and therefore overstated.
A211: Note: Components are listed on the job costing review (JReview sheet) in the same order in which they appear on the StockCode sheet. If all stock components are therefore sorted in an ascending order by the stock code, the components will also be displayed in this order on the JReview sheet.
A213: Bills of Material
A215: The purpose of the BOM sheet is to create a link between stock components and manufactured products. This is accomplished by entering the appropriate stock code of the manufactured product in column A and entering the stock code of the appropriate component in column B. Multiple stock components can be added to a single manufactured product in order to create a product costing which consists of multiple stock components.
A217: Note: Columns A and B both contain list boxes that include all the stock codes that have been created on the StockCode sheet. You therefore need to create a stock code for each manufactured or component product before you will be able to select the appropriate stock code from the list boxes in these columns.
A219: Note: The contents of the BOM sheet have been included in an Excel table. You can add a new stock component to the sheet by simply selecting the appropriate product code from the list box in the first empty cell in column A - the table will be extended automatically to include the new product code. All the columns on the BOM sheet with a yellow column heading require user input. The columns with light blue column headings contain formulas that are automatically copied for all new stock components that are added to the Excel table.
A221: The BOM sheet includes the following user input columns (columns with yellow column headings):
A223: Product Stock Code
A225: The stock code of the manufactured product to which the stock component should be added needs to be selected from the list box in this column. The list box includes all the stock codes that have been created on the StockCode sheet. The product stock code should be repeated for all the components that are used in the manufacturing process. For example, if 10 components are required in order to produce a particular manufactured product, you need to add 10 different component stock codes in column B in 10 separate rows and repeat the product stock code in column A in each of these rows. All 10 component stock codes will then be linked to the same manufactured product and will be included in the same product costing.
A227: Note: Product stock codes and components do not need to be grouped together on the BOM sheet (by the product stock code) when entering data but we recommend this approach because it will make it easier to identify components which have been duplicated. You can also sort the BOM sheet first by the product code in column A and then by the component code in order to reflect your standard costing records in this order.
A229: Component Stock Code
A231: A component stock code needs to be selected from the list box in column B for each component that is used in manufacturing the product which has been selected in column A. The standard cost of a manufactured product for job costing purposes is calculated based on the costs of all the components that have been linked to a manufactured product on the BOM sheet.
A233: Note: A very efficient method of adding components to a manufactured product is by copying the components from a similar product, selecting the appropriate new product code from the list box in column A and editing the input quantities and yields of all the components. This method will however only be efficient if components have previously been added to a similar manufactured product on the BOM sheet.
A235: Input Quantity
A237: The input quantity of the stock component that is used in the manufacturing process should be entered in column C. This quantity should be entered in the same unit of measure that is specified for the particular stock code on the StockCode sheet (the component UOM is listed in column J).
A239: Note: The unit of measure (UOM) of the manufactured product is listed in column G. If the unit of measure of the manufactured product is "Units", the input quantity of the component should be sufficient in order to produce 1 unit of the manufactured product but if the unit of measure of the manufactured product is for example "Dozen", the input quantity that is entered should be sufficient in order to produce 12 units of the manufactured product.
A241: Note: The yield basis should also be taken into account when determining the appropriate component input quantity. If the yield that is entered in column D is based on an Input basis, the component quantity that is added at the beginning of the manufacturing process should be entered in column C. If however the yield is based on an Output basis, the component quantity that remains at the end of the manufacturing process should be entered in column C. This is because the input quantity is divided by the yield as part of the component cost calculation.
A243: Note: You may also want to consider entering a calculation in the input quantity column because this approach may make it easier to determine how the input quantity has been calculated (if a calculation has been necessary). For example: if the component unit of measure is dozen and only one unit is used in the manufactured product, the component quantity is calculated by dividing 1 dozen by twelve. You therefore have the option of entering 0.083333 as the input quantity or you can enter the formula "=1/12" in the input quantity column.
A245: Yield
A247: The component yield should be entered in column D as a percentage. The input quantity that is entered in column C is divided by the yield in column D in order to determine the component quantity that is required in order to produce the manufactured product. Yields can be determined on an Input or an Output basis - the difference between the two bases is best explained by a definition and a few examples.
A249: Definition: The inherent nature of a manufacturing process may result in the component quantity at the end of the manufacturing process being less than the component quantity introduced at the start of the manufacturing process. The quantity difference can be described as a yield loss. The Input basis refers to the component quantity introduced at the start of the manufacturing process, while the Output basis refers to the component quantity which remains after the manufacturing process has been completed.
A251: Note: If there is a significant yield loss during the manufacturing process and the incorrect yield basis is used to determine the yield that is entered in column D, the product costing of the manufactured product may be inaccurate. As we've mentioned before, the yield basis also affects the input quantity that needs to be entered. It is therefore important to take the yield basis into account when determining the component input quantity that needs to be entered in column C.
A253: Example: If we use minced meat in the manufacturing of a beef burger, we have to decide on a yield basis before we can determine the appropriate input quantity that should be specified. If our aim is to produce a 400g burger at the end of the manufacturing process, the quantity is based on the output after manufacturing. We may know that on average 500g of minced meat is required in order to produce a 400g burger at the end of the manufacturing process - the 500g is therefore the Input based quantity. The manufacturing yield can therefore be calculated as 400g divided by 500g which is 80%. If we include a yield of 80% in the product costing, we need to include the output weight (400g) as the input quantity in the costing. The meat component cost is therefore calculated by dividing the 400g by 80% thereby effectively including 500g of meat in our beef burger product costing. If we use the Input basis in our product costing, an input quantity of 500g and yield of 100% should be entered (assuming that there is no meat yield loss prior to the start of the manufacturing process).
A255: Example: Our example beef burger includes one slice of onions. With this component, we are not really concerned about the output weight because we have already decided that only one slice of onions will be included on our beef burger. The unit of measure of the onions component is kilogram and we therefore need to calculate the input quantity of this component based on how many slices are included in a kilogram of onions. The quantity that represents one slice then needs to be entered in the Input Quantity column. In principle, we are calculating the input quantity based on the Input yield basis and the yield therefore needs to be entered as 100%. We do however know that after the slicing process is completed, 5% of the onions that we purchased do not end up as sliced onions and is therefore lost before the start of the manufacturing process. We also need to take this yield loss into account in order to compile an accurate beef burger product costing. A yield of 95% is therefore entered even though we used the Input basis in determining the appropriate component input quantity.
A257: Note: All the columns on the BOM sheet with a yellow column heading require user input. The columns with light blue column headings contain formulas that are automatically copied when you add a new stock code in the first empty cell in column A. The following columns contain formulas:
A259: Error Code
A261: The formulas in this column display an error code if there is a problem with the data that has been entered in any of the user input columns. This column should therefore not contain any error codes if all user input has been entered correctly. If any error codes are reflected in this column, the errors should be investigated and rectified in order to ensure that all template calculations remain accurate. Refer to the Error Codes section of these instructions for guidance on how to correct the appropriate user input errors.
A263: Product Description , Product UOM
A265: These two columns are included on the BOM sheet to enable users to view the description of the product stock codes that are selected in column A and to ensure that the correct unit of measure is used when entering component input quantities.
A267: Product Level
A269: This column indicates the bill of material level which has been assigned on the StockCode sheet for the product stock code that has been selected in column A. The bill of material level determines whether intermediate products are issued on a job for standard costing purposes and should be aligned to the way in which actual components will be included in a manufacturing job.
A271: Note: If a BOM level of all is assigned to a product, it means that the product is produced in a single manufacturing process and that only bought-in items will be issued to the job. If a first level is selected for the product, it means that the intermediate products that form part of the product's bill of material will be produced through separate manufacturing processes (and therefore jobs) and that the intermediate products will be issued to the job.
A273: Component Description , Component UOM
A275: These columns are included to enable users to view the description of the component codes that are selected in column B and to ensure that the correct unit of measure is used when entering component input quantities.
A277: Component Type
A279: This column reflects the type of component that has been selected in column B. If the component type is "Bought-in", it means that the component is purchased from a supplier. If the component type is "Manufactured", it means that the component is an intermediate product which needs to be manufactured.
A281: Comp Incl Status
A283: This column contains the status of a component based on the product level that has been selected and is only used for report calculation purposes.
A285: Bought-In Price
A287: If the component is a bought-in stock item, the standard unit price of the component which is specified on the StockCode sheet will be included in this column. If the component is a manufactured stock item, the bought-in price will be nil and the component cost will be based on the calculations in the intermediate columns.
A289: Bought-In Cost
A291: The bought-in cost of components is calculated by multiplying the bought-in price of the component by the input quantity in column C and dividing the result by the yield in column D.
A293: Intermed Comp Cost
A295: If the component that has been selected in column B is a manufactured product, the component cost in this column is determined based on the product cost of the intermediate product which is calculated in column Q. Note that the component cost is calculated as the sum of all the product costs of components that are linked to the intermediate product on the BOM sheet. If the component is a bought-in product, the intermediate component cost of the product will be nil.
A297: Intermed Prod Cost
A299: The intermediate product costs of components are calculated by multiplying the intermediate component cost of the component by the input quantity in column C and dividing the result by the yield in column D.
A301: Product Cost
A303: If the component is a bought-in product, the component product cost will be equal to the component bought-in cost. If the component is an intermediate product, the component cost will be equal to the intermediate product cost. Note that the product cost of the manufactured product that has been selected in column A will be equal to the sum of all the component product costs that are calculated for the particular product in this column.
A305: Actual UnitCost
A307: If the component is a bought-in stock item, the actual unit cost of the component which is calculated in column AA on the StockCode sheet will be included in this column. If the component is a manufactured stock item, the actual unit cost will be nil and the component actual cost will be based on the calculations in the intermediate columns.
A309: Actual Comp Cost
A311: The actual component cost in this column is calculated by multiplying the actual unit cost of the component by the input quantity in column C and dividing the result by the yield in column D.
A313: Intermed Actual Cost
A315: If the component that has been selected in column B is a manufactured product, the actual intermediate component cost in this column is determined based on the actual cost of the intermediate product which is calculated in column V. Note that the actual component cost is calculated as the sum of all the actual costs of components that are linked to the intermediate product on the BOM sheet. If the component is a bought-in product, the actual intermediate component cost of the product will be nil.
A317: Intermed Total Cost
A319: The actual intermediate costs of components are calculated by multiplying the actual intermediate component cost in the previous column by the input quantity in column C and dividing the result by the yield in column D.
A321: Actual Prod Cost
A323: If the component is a bought-in product, the component actual cost will be equal to the component actual unit cost. If the component is an intermediate product, the component actual cost will be equal to the intermediate actual cost. Note that the actual cost of the manufactured product that has been selected in column A will equal the sum of all the component actual costs that are calculated for the particular product in this column.
A325: Note: The actual cost calculations on the BOM sheet are only used when multiple products have been assigned to a manufacturing job. If only one manufactured product is assigned to each job, the actual unit costs are calculated purely based on the job issue transactions which are entered on the JDetails sheet.
A327: Level1 TotIssued to Level6 TotIssued
A329: These columns are used to calculate the standard issues of all bought-in and intermediate products based on the received quantities of all manufactured products that have been entered on the JDetails sheet. The total standard quantities issued in column Q on the StockCode sheet are based on the calculations in these columns.
A331: Level1 JobRequire to Level6 JobRequire
A333: These columns are used to calculate the standard issues of all bought-in and intermediate products based on the required quantities on the job that is currently selected on the JReview sheet. The total standard quantities issued in column D on the JReview sheet are based on the calculations in these columns.
A335: Level1 JobReceipt to Level6 JobReceipt
A337: These columns are used to calculate the standard issues of all bought-in and intermediate products based on the received quantities of the job that is currently selected on the JReview sheet. The total standard quantities issued in column E on the JReview sheet are based on the calculations in these columns.
A339: Level1 ReqPlan to Level6 ReqPlan
A341: These columns are used to calculate the standard issues of all bought-in and intermediate products based on the production forecast quantities of all manufactured products that have been entered in columns A to G on the ReqPlan sheet. The total component quantities required in columns I to N on the ReqPlan sheet are based on the calculations in these columns.
A343: The following section covers some important points that users should take note of regarding the bills of material on the BOM sheet.
A345: Labour & Direct Overheads
A347: For the purpose of compiling product costings, stock codes also need to be created for all labour, direct overheads and even distribution costs that need to be included in the product costings. These stock codes should be seen as cost centre codes instead of stock codes which are represented by physical stock on hand.
A349: The appropriate labour pay rates or overhead allocation rates should be entered in the standard unit price column on the StockCode sheet and the appropriate production times should be entered in the input quantity column on the BOM sheet. A 100% yield should be entered for all labour and overhead costs.
A351: Example: A beef burger is manufactured in a kitchen that consists of 3 staff members. The labour rate is $10.00 per hour and a total of 400 beef burgers are produced during a shift of 8 hours. In order to add the labour component to the beef burger product costing, we need to create a stock code for labour on the StockCode sheet (in our example data, all labour related stock codes start with an "LB"), enter a UOM of hours for the stock code, enter the $10 per hour as the standard unit price of the stock code, add the labour component code to the beef burger bill of material on the BOM sheet, calculate the production time (3 staff members multiplied by 8 hours in a shift and divided by the 400 beef burgers that are produced), enter the production time as the input quantity of the labour component on the BOM sheet and enter a yield of 100% on the BOM sheet.
A353: You can create multiple labour stock codes on the StockCode sheet if there are different labour rates for different staff members. All the applicable labour stock codes then need to be added separately on the BOM sheet. Additional stock codes do not need to be created if only the production time (input quantity) differs between products because different production times can be accommodated by entering different input quantities for each product on the BOM sheet. It is only when the labour pay rates differ that separate stock codes are required.
A355: Example: Direct overheads or distribution costs can also be added to the product costings by creating a stock code for each type of overhead. We suggest that you compile a monthly forecast of all the appropriate costs, determine the average number of units that are produced on a monthly basis, calculate the overhead rate by dividing the forecasted monthly amount by the number of units, create a stock code for the appropriate type of direct overhead cost on the StockCode sheet, enter a UOM of "Units", enter the overhead rate as the standard unit price, add the overhead stock code as a component on the BOM sheet for all the applicable products and enter an input quantity of 1 and a yield of 100% on the BOM sheet.
A357: Job Set-up
A359: All manufacturing jobs need to be set up on the JSetup sheet by assigning a unique job number to the job, entering a date, selecting the appropriate stock code(s) for the manufactured items that need to be produced and entering a required quantity for the manufactured stock item.
A361: The template accommodates any job numbering convention and the format that is supplied in our examples does not need to be used. It is only important that each manufacturing job is assigned a unique job number.
A363: We recommend that you only include one manufactured product per job number. If this approach is followed, the actual cost of each job can be calculated with 100% accuracy but the template does accommodate a maximum of three manufactured products which can be added to a single job (this limitation only applies to the layout of the JReview sheet and can easily be customized to include more manufactured products).
A365: If multiple manufactured products are assigned to the same job number, it will not be possible to calculate an actual cost for each of the manufactured products because the components that are issued to the job are not linked to a particular manufactured product. The actual job cost can therefore be calculated accurately (based on the components which have been issued to the job on the JDetails sheet) but the actual cost per manufactured product cannot be calculated with 100% accuracy.
A367: Note: If any one job is linked to multiple manufactured products, the template calculations will switch to the Multiple mode and the actual product costs of manufactured products will be estimated instead of being calculated with 100% accuracy. The template mode is reflected in cell U1 on the JSetup sheet.
A369: Assigning multiple manufactured products to the same job will only really be necessary if more than one manufactured product is produced in the same production process. This may be the case if multiple product variations are produced simultaneously or if one or more by-product is produced as part of the manufacturing process of a main product. Under these circumstances, switching the template to the Multiple mode is unavoidable.
A371: We believe that there would still be some value that can be derived from calculating an estimated actual cost for all manufactured products when in the Multiple mode even though this estimated value cannot be a 100% accurate actual cost. The most practical approach in estimating an actual cost in the Multiple mode would be to use the average actual costs of bought-in products and to include these prices in the existing bills of material in order to calculate an estimated actual cost which is based on actual prices and standard usages.
A373: When the template is therefore switched to the Multiple mode, the estimated average costs of manufactured and intermediate products will be reflected in column AA on the StockCode sheet. The JReview sheet will not however include an actual cost because the calculations are performed for an entire date range and not based on a single job. The total actual cost of the job on the JReview sheet will however not be based on an estimated calculation and will therefore be 100% accurate.
A375: Note: The contents of the JSetup sheet have been included in an Excel table. You can add a new job to the sheet by simply entering the appropriate job number in the first empty cell in column A - the table will be extended automatically to include the new job. All the columns on the JSetup sheet with a yellow column heading require user input. The columns with light blue column headings contain formulas that are automatically copied for all new jobs that are added to the Excel table.
A377: Note: The totals above the column headings have been calculated by using a SUBTOTAL function. This means that if you filter the JSetup sheet, only the cells that are visible on the sheet will be included in these calculations.
A379: The JSetup sheet includes the following user input columns (columns with yellow column headings):
A381: Job No
A383: Enter a unique job number in this column. The job number needs to be repeated in this column if multiple manufactured products are being linked to the same job number. You can use any job numbering convention.
A385: Date
A387: Enter the date on which the job is completed in this column and repeat the date if multiple manufactured products are linked to the same job.
A389: Stock Code
A391: Select the stock code of the product that is being manufactured in this column. All stock codes need to be added to the StockCode sheet before being available for selection on this sheet.
... 134 more rows

Sheet StockCode (hidden)
A1: Stock Codes | P1: =IF(ISBLANK(P2)=TRUE,IF(MIN(JSDate)=0,DATE(YEAR($R$1),MONTH($R$1),1),DATE(YEAR(MIN(JSDate)),MONTH(MIN(JSDate)),1)),P2) -> 2020-07-01 | R1: =IF(ISBLANK(R2)=TRUE,DATE(YEAR(TODAY()),MONTH(TODAY())+1,0),R2) -> 2020-07-31
A2: Set-up | O2: From | Q2: To | R2: 2020-07-31 | S2: =IF(R1<P1,"Error! To Date cannot be before the From Date!","") -> 
A3: © www.excel-skills.com | T3: =SUBTOTAL(109,StockCode[[#Data],[RecValue @STD]]) -> 4916763.153 | U3: =SUBTOTAL(109,StockCode[[#Data],[IssueValue @STD]]) -> -4916763.153 | V3: =SUBTOTAL(109,StockCode[[#Data],[RecValue @Actual]]) -> 4921339.942 | W3: =SUBTOTAL(109,StockCode[[#Data],[IssueValue @Actual]]) -> -4921339.942 | X3: =SUBTOTAL(109,StockCode[[#Data],[Total Var Value]]) -> -4576.788786 | Y3: =SUBTOTAL(109,StockCode[[#Data],[Usage Var Value]]) -> 75634.90712 | Z3: =SUBTOTAL(109,StockCode[[#Data],[Price Var Value]]) -> -80211.69591
A4: Stock Code | B4: Description | C4: UOM | D4: STD Unit Price | E4: STD Issue Level | F4: Error Code | G4: Product Type | H4: BOM Type | I4: Product Cost | J4: Job Qty Required | K4: Job Std Issued | L4: Job Qty Issued | M4: Job Review Status | N4: Req Plan Qty | O4: Req Plan Status | P4: Received Qty | Q4: Issued STD Qty | R4: Issued Actual Qty | S4: Usage Var Qty | T4: RecValue @STD | U4: IssueValue @STD | V4: RecValue @Actual | W4: IssueValue @Actual | X4: Total Var Value | Y4: Usage Var Value | Z4: Price Var Value | AA4: Actual Unit Cost | AB4: Unit Cost % Variance
A5: 1212GHG | B5: Garden Shed | C5: Units | E5: All | F5: =IF(COUNTIF(StockCodes,A5)>1,"E1",IF(OR(AND(G5="Bought-In",ISBLANK(D5)=TRUE)=TRUE,AND(G5="Manufactured",ISBLANK(D5)=FALSE)=TRUE)=TRUE,"E2","-")) -> - | G5: =IF(ISNA(VLOOKUP($A5,BOMParents,COLUMN(BOM!$A$4),0))=TRUE,"Bought-In","Manufactured") -> Manufactured | H5: =IF(ISNA(VLOOKUP(A5,BOMParents,1,0))=TRUE,"None",IF(ISNA(VLOOKUP(A5,BOMComp,1,0))=TRUE,"FG","IM")) -> FG | I5: =IF(G5="Bought-In",$D5,SUMIFS(BOMCost,BOMParents,$A5)) -> 4164.719298 | J5: =SUMIFS(JLevel1,BOMComp,$A5,BOMCompStatus,"Y")+SUMIFS(JLevel2,BOMComp,$A5,BOMCompStatus,"Y")+SUMIFS(JLevel3,BOMComp,$A5,BOMCompStatus,"Y")+SUMIFS(JLevel4,BOMComp,$A5,BOMCompStatus,"Y")+SUMIFS(JLevel5,BOMComp,$A5,BOMCompStatus,"Y")+SUMIFS(JLevel6,BOMComp,$A5,BOMCompStatus,"Y") -> 0 | K5: =SUMIFS(JRLevel1,BOMComp,$A5,BOMCompStatus,"Y")+SUMIFS(JRLevel2,BOMComp,$A5,BOMCompStatus,"Y")+SUMIFS(JRLevel3,BOMComp,$A5,BOMCompStatus,"Y")+SUMIFS(JRLevel4,BOMComp,$A5,BOMCompStatus,"Y")+SUMIFS(JRLevel5,BOMComp,$A5,BOMCompStatus,"Y")+SUMIFS(JRLevel6,BOMComp,$A5,BOMCompStatus,"Y") -> 0 | L5: =-SUMIFS(JTQty,JTJob,JReview!$D$1,JTStockCode,A5,JTType,"Issue") -> 0 | M5: =IF(OR(J5<>0,L5<>0),"Y","N") -> N | N5: =SUMIFS(RLevel1,BOMComp,$A5,BOMCompStatus,"Y")+SUMIFS(RLevel2,BOMComp,$A5,BOMCompStatus,"Y")+SUMIFS(RLevel3,BOMComp,$A5,BOMCompStatus,"Y")+SUMIFS(RLevel4,BOMComp,$A5,BOMCompStatus,"Y")+SUMIFS(RLevel5,BOMComp,$A5,BOMCompStatus,"Y")+SUMIFS(RLevel6,BOMComp,$A5,BOMCompStatus,"Y") -> 0 | O5: =IF(N5<>0,"Y","N") -> N | P5: =SUMIFS(JTQty,JTDate,">="&$P$1,JTDate,"<="&$R$1,JTStockCode,$A5,JTType,"Receipt") -> 1010 | Q5: =-(SUMIFS(TLevel1,BOMComp,$A5,BOMCompStatus,"Y")+SUMIFS(TLevel2,BOMComp,$A5,BOMCompStatus,"Y")+SUMIFS(TLevel3,BOMComp,$A5,BOMCompStatus,"Y")+SUMIFS(TLevel4,BOMComp,$A5,BOMCompStatus,"Y")+SUMIFS(TLevel5,BOMComp,$A5,BOMCompStatus,"Y")+SUMIFS(TLevel6,BOMComp,$A5,BOMCompStatus,"Y")) -> 0 | R5: =SUMIFS(JTQty,JTDate,">="&$P$1,JTDate,"<="&$R$1,JTStockCode,$A5,JTType,"Issue") -> 0 | S5: =R5-Q5 -> 0 | T5: =IF(H5="FG",P5*I5,IF(H5="IM",IF(P5+Q5<=0,0,(P5+Q5)*I5),0)) -> 4206366.491 | U5: =IF(H5="IM",IF(P5+Q5>=0,0,(P5+Q5)*I5),Q5*I5) -> 0 | V5: =IF(JSetup!$U$1="Multiple",0,IF(P5>0,IF(P5+R5<=0,0,-SUMIFS(JTValue,JTDate,">="&$P$1,JTDate,"<="&$R$1,JTFGCode,$A5,JTType,"Issue")+SUMIFS(JTValue,JTDate,">="&$P$1,JTDate,"<="&$R$1,JTStockCode,$A5,JTType,"Issue")),0)) -> 4249199.942 | W5: =IF(H5="IM",IF(P5=0,SUMIFS(JTValue,JTDate,">="&$P$1,JTDate,"<="&$R$1,JTStockCode,$A5,JTType,"Issue"),IF(R5=0,0,IF(P5+R5>0,0,SUMIFS(JTValue,JTDate,">="&$P$1,JTDate,"<="&$R$1,JTStockCode,$A5,JTType,"Issue")/R5*(P5+R5)))),SUMIFS(JTValue,JTDate,">="&$P$1,JTDate,"<="&$R$1,JTStockCode,$A5,JTType,"Issue")) -> 0 | X5: =W5-U5 -> 0 | Y5: =IF(AND(P5<>0,P5+R5>=0,P5+Q5>=0),0,IF(AND(P5<>0,P5+R5>=0,P5+Q5<=0),-(P5+Q5)*I5,IF(AND(P5<>0,P5+R5<=0,P5+Q5>=0),(P5+R5)*I5,S5*I5))) -> 0 | Z5: =IF(H5="IM",IF(P5=0,SUMIFS(JTPrice,JTDate,">="&$P$1,JTDate,"<="&$R$1,JTStockCode,$A5,JTType,"Issue"),IF(R5=0,0,IF(P5+R5>0,0,SUMIFS(JTPrice,JTDate,">="&$P$1,JTDate,"<="&$R$1,JTStockCode,$A5,JTType,"Issue")/R5*(P5+R5)))),SUMIFS(JTPrice,JTDate,">="&$P$1,JTDate,"<="&$R$1,JTStockCode,$A5,JTType,"Issue")) -> 0 | AA5: =IF(JSetup!$U$1="Single",IF(G5="Bought-In",IF(R5=0,I5,W5/R5),IF(SUMIFS(JTQty,JTDate,"<="&$R$1,JTStockCode,$A5,JTType,"Receipt")=0,I5,-SUMIFS(JTValue,JTDate,"<="&$R$1,JTFGCode,$A5,JTType,"Issue")/SUMIFS(JTQty,JTDate,"<="&$R$1,JTStockCode,$A5,JTType,"Receipt"))),IF(G5="Bought-In",IF(R5=0,I5,W5/R5),SUMIFS(BOMActualCost,BOMParents,$A5))) -> 4207.128655 | AB5: =IF(AND(JSetup!$U$1="Single",P5=0,G5="Manufactured"),0,IF(I5=0,0,(I5-AA5)/I5)) -> -0.01018300483
A6: 1212PHP | B6: Painted Garden Shed | C6: Units | E6: All | F6: =IF(COUNTIF(StockCodes,A6)>1,"E1",IF(OR(AND(G6="Bought-In",ISBLANK(D6)=TRUE)=TRUE,AND(G6="Manufactured",ISBLANK(D6)=FALSE)=TRUE)=TRUE,"E2","-")) -> - | G6: =IF(ISNA(VLOOKUP($A6,BOMParents,COLUMN(BOM!$A$4),0))=TRUE,"Bought-In","Manufactured") -> Manufactured | H6: FG | I6: =IF(G6="Bought-In",$D6,SUMIFS(BOMCost,BOMParents,$A6)) -> 4956.393189 | J6: 0 | K6: 0 | L6: =-SUMIFS(JTQty,JTJob,JReview!$D$1,JTStockCode,A6,JTType,"Issue") -> 0 | M6: N | N6: 0 | O6: N | P6: 52 | Q6: 0 | R6: 0 | S6: 0 | T6: 257732.4458 | U6: 0 | V6: =IF(JSetup!$U$1="Multiple",0,IF(P6>0,IF(P6+R6<=0,0,-SUMIFS(JTValue,JTDate,">="&$P$1,JTDate,"<="&$R$1,JTFGCode,$A6,JTType,"Issue")+SUMIFS(JTValue,JTDate,">="&$P$1,JTDate,"<="&$R$1,JTStockCode,$A6,JTType,"Issue")),0)) -> 254980 | W6: =IF(H6="IM",IF(P6=0,SUMIFS(JTValue,JTDate,">="&$P$1,JTDate,"<="&$R$1,JTStockCode,$A6,JTType,"Issue"),IF(R6=0,0,IF(P6+R6>0,0,SUMIFS(JTValue,JTDate,">="&$P$1,JTDate,"<="&$R$1,JTStockCode,$A6,JTType,"Issue")/R6*(P6+R6)))),SUMIFS(JTValue,JTDate,">="&$P$1,JTDate,"<="&$R$1,JTStockCode,$A6,JTType,"Issue")) -> 0 | X6: 0 | Y6: 0 | Z6: =IF(H6="IM",IF(P6=0,SUMIFS(JTPrice,JTDate,">="&$P$1,JTDate,"<="&$R$1,JTStockCode,$A6,JTType,"Issue"),IF(R6=0,0,IF(P6+R6>0,0,SUMIFS(JTPrice,JTDate,">="&$P$1,JTDate,"<="&$R$1,JTStockCode,$A6,JTType,"Issue")/R6*(P6+R6)))),SUMIFS(JTPrice,JTDate,">="&$P$1,JTDate,"<="&$R$1,JTStockCode,$A6,JTType,"Issue")) -> 0 | AA6: =IF(JSetup!$U$1="Single",IF(G6="Bought-In",IF(R6=0,I6,W6/R6),IF(SUMIFS(JTQty,JTDate,"<="&$R$1,JTStockCode,$A6,JTType,"Receipt")=0,I6,-SUMIFS(JTValue,JTDate,"<="&$R$1,JTFGCode,$A6,JTType,"Issue")/SUMIFS(JTQty,JTDate,"<="&$R$1,JTStockCode,$A6,JTType,"Receipt"))),IF(G6="Bought-In",IF(R6=0,I6,W6/R6),SUMIFS(BOMActualCost,BOMParents,$A6))) -> 4903.461538 | AB6: =IF(AND(JSetup!$U$1="Single",P6=0,G6="Manufactured"),0,IF(I6=0,0,(I6-AA6)/I6)) -> 0.0106794696
A7: 1212THT | B7: Tools Shed | C7: Units | E7: All | F7: =IF(COUNTIF(StockCodes,A7)>1,"E1",IF(OR(AND(G7="Bought-In",ISBLANK(D7)=TRUE)=TRUE,AND(G7="Manufactured",ISBLANK(D7)=FALSE)=TRUE)=TRUE,"E2","-")) -> - | G7: =IF(ISNA(VLOOKUP($A7,BOMParents,COLUMN(BOM!$A$4),0))=TRUE,"Bought-In","Manufactured") -> Manufactured | H7: FG | I7: =IF(G7="Bought-In",$D7,SUMIFS(BOMCost,BOMParents,$A7)) -> 3621.313725 | J7: 0 | K7: 0 | L7: =-SUMIFS(JTQty,JTJob,JReview!$D$1,JTStockCode,A7,JTType,"Issue") -> 0 | M7: N | N7: 0 | O7: N | P7: 125 | Q7: 0 | R7: 0 | S7: 0 | T7: 452664.2157 | U7: 0 | V7: =IF(JSetup!$U$1="Multiple",0,IF(P7>0,IF(P7+R7<=0,0,-SUMIFS(JTValue,JTDate,">="&$P$1,JTDate,"<="&$R$1,JTFGCode,$A7,JTType,"Issue")+SUMIFS(JTValue,JTDate,">="&$P$1,JTDate,"<="&$R$1,JTStockCode,$A7,JTType,"Issue")),0)) -> 417160 | W7: =IF(H7="IM",IF(P7=0,SUMIFS(JTValue,JTDate,">="&$P$1,JTDate,"<="&$R$1,JTStockCode,$A7,JTType,"Issue"),IF(R7=0,0,IF(P7+R7>0,0,SUMIFS(JTValue,JTDate,">="&$P$1,JTDate,"<="&$R$1,JTStockCode,$A7,JTType,"Issue")/R7*(P7+R7)))),SUMIFS(JTValue,JTDate,">="&$P$1,JTDate,"<="&$R$1,JTStockCode,$A7,JTType,"Issue")) -> 0 | X7: 0 | Y7: 0 | Z7: =IF(H7="IM",IF(P7=0,SUMIFS(JTPrice,JTDate,">="&$P$1,JTDate,"<="&$R$1,JTStockCode,$A7,JTType,"Issue"),IF(R7=0,0,IF(P7+R7>0,0,SUMIFS(JTPrice,JTDate,">="&$P$1,JTDate,"<="&$R$1,JTStockCode,$A7,JTType,"Issue")/R7*(P7+R7)))),SUMIFS(JTPrice,JTDate,">="&$P$1,JTDate,"<="&$R$1,JTStockCode,$A7,JTType,"Issue")) -> 0 | AA7: =IF(JSetup!$U$1="Single",IF(G7="Bought-In",IF(R7=0,I7,W7/R7),IF(SUMIFS(JTQty,JTDate,"<="&$R$1,JTStockCode,$A7,JTType,"Receipt")=0,I7,-SUMIFS(JTValue,JTDate,"<="&$R$1,JTFGCode,$A7,JTType,"Issue")/SUMIFS(JTQty,JTDate,"<="&$R$1,JTStockCode,$A7,JTType,"Receipt"))),IF(G7="Bought-In",IF(R7=0,I7,W7/R7),SUMIFS(BOMActualCost,BOMParents,$A7))) -> 3337.28 | AB7: =IF(AND(JSetup!$U$1="Single",P7=0,G7="Manufactured"),0,IF(I7=0,0,(I7-AA7)/I7)) -> 0.07843389085
A8: RM10 | B8: Steel Plates | C8: M2 | D8: 140 | F8: =IF(COUNTIF(StockCodes,A8)>1,"E1",IF(OR(AND(G8="Bought-In",ISBLANK(D8)=TRUE)=TRUE,AND(G8="Manufactured",ISBLANK(D8)=FALSE)=TRUE)=TRUE,"E2","-")) -> - | G8: =IF(ISNA(VLOOKUP($A8,BOMParents,COLUMN(BOM!$A$4),0))=TRUE,"Bought-In","Manufactured") -> Bought-In | H8: None | I8: =IF(G8="Bought-In",$D8,SUMIFS(BOMCost,BOMParents,$A8)) -> 140 | J8: 1111.111111 | K8: 1166.666667 | L8: =-SUMIFS(JTQty,JTJob,JReview!$D$1,JTStockCode,A8,JTType,"Issue") -> 1200 | M8: Y | N8: 6111.111111 | O8: Y | P8: 0 | Q8: -13188.88889 | R8: -13061.11111 | S8: 127.7777778 | T8: 0 | U8: -1846444.444 | V8: =IF(JSetup!$U$1="Multiple",0,IF(P8>0,IF(P8+R8<=0,0,-SUMIFS(JTValue,JTDate,">="&$P$1,JTDate,"<="&$R$1,JTFGCode,$A8,JTType,"Issue")+SUMIFS(JTValue,JTDate,">="&$P$1,JTDate,"<="&$R$1,JTStockCode,$A8,JTType,"Issue")),0)) -> 0 | W8: =IF(H8="IM",IF(P8=0,SUMIFS(JTValue,JTDate,">="&$P$1,JTDate,"<="&$R$1,JTStockCode,$A8,JTType,"Issue"),IF(R8=0,0,IF(P8+R8>0,0,SUMIFS(JTValue,JTDate,">="&$P$1,JTDate,"<="&$R$1,JTStockCode,$A8,JTType,"Issue")/R8*(P8+R8)))),SUMIFS(JTValue,JTDate,">="&$P$1,JTDate,"<="&$R$1,JTStockCode,$A8,JTType,"Issue")) -> -1828555.556 | X8: 17888.88889 | Y8: 17888.88889 | Z8: =IF(H8="IM",IF(P8=0,SUMIFS(JTPrice,JTDate,">="&$P$1,JTDate,"<="&$R$1,JTStockCode,$A8,JTType,"Issue"),IF(R8=0,0,IF(P8+R8>0,0,SUMIFS(JTPrice,JTDate,">="&$P$1,JTDate,"<="&$R$1,JTStockCode,$A8,JTType,"Issue")/R8*(P8+R8)))),SUMIFS(JTPrice,JTDate,">="&$P$1,JTDate,"<="&$R$1,JTStockCode,$A8,JTType,"Issue")) -> 0 | AA8: =IF(JSetup!$U$1="Single",IF(G8="Bought-In",IF(R8=0,I8,W8/R8),IF(SUMIFS(JTQty,JTDate,"<="&$R$1,JTStockCode,$A8,JTType,"Receipt")=0,I8,-SUMIFS(JTValue,JTDate,"<="&$R$1,JTFGCode,$A8,JTType,"Issue")/SUMIFS(JTQty,JTDate,"<="&$R$1,JTStockCode,$A8,JTType,"Receipt"))),IF(G8="Bought-In",IF(R8=0,I8,W8/R8),SUMIFS(BOMActualCost,BOMParents,$A8))) -> 140 | AB8: =IF(AND(JSetup!$U$1="Single",P8=0,G8="Manufactured"),0,IF(I8=0,0,(I8-AA8)/I8)) -> 0
A9: RM25 | B9: Door Handle | C9: Units | D9: 150 | F9: =IF(COUNTIF(StockCodes,A9)>1,"E1",IF(OR(AND(G9="Bought-In",ISBLANK(D9)=TRUE)=TRUE,AND(G9="Manufactured",ISBLANK(D9)=FALSE)=TRUE)=TRUE,"E2","-")) -> - | G9: =IF(ISNA(VLOOKUP($A9,BOMParents,COLUMN(BOM!$A$4),0))=TRUE,"Bought-In","Manufactured") -> Bought-In | H9: None | I9: =IF(G9="Bought-In",$D9,SUMIFS(BOMCost,BOMParents,$A9)) -> 150 | J9: 100 | K9: 105 | L9: =-SUMIFS(JTQty,JTJob,JReview!$D$1,JTStockCode,A9,JTType,"Issue") -> 107 | M9: Y | N9: 550 | O9: Y | P9: 0 | Q9: -1187 | R9: -1162 | S9: 25 | T9: 0 | U9: -178050 | V9: =IF(JSetup!$U$1="Multiple",0,IF(P9>0,IF(P9+R9<=0,0,-SUMIFS(JTValue,JTDate,">="&$P$1,JTDate,"<="&$R$1,JTFGCode,$A9,JTType,"Issue")+SUMIFS(JTValue,JTDate,">="&$P$1,JTDate,"<="&$R$1,JTStockCode,$A9,JTType,"Issue")),0)) -> 0 | W9: =IF(H9="IM",IF(P9=0,SUMIFS(JTValue,JTDate,">="&$P$1,JTDate,"<="&$R$1,JTStockCode,$A9,JTType,"Issue"),IF(R9=0,0,IF(P9+R9>0,0,SUMIFS(JTValue,JTDate,">="&$P$1,JTDate,"<="&$R$1,JTStockCode,$A9,JTType,"Issue")/R9*(P9+R9)))),SUMIFS(JTValue,JTDate,">="&$P$1,JTDate,"<="&$R$1,JTStockCode,$A9,JTType,"Issue")) -> -174300 | X9: 3750 | Y9: 3750 | Z9: =IF(H9="IM",IF(P9=0,SUMIFS(JTPrice,JTDate,">="&$P$1,JTDate,"<="&$R$1,JTStockCode,$A9,JTType,"Issue"),IF(R9=0,0,IF(P9+R9>0,0,SUMIFS(JTPrice,JTDate,">="&$P$1,JTDate,"<="&$R$1,JTStockCode,$A9,JTType,"Issue")/R9*(P9+R9)))),SUMIFS(JTPrice,JTDate,">="&$P$1,JTDate,"<="&$R$1,JTStockCode,$A9,JTType,"Issue")) -> 0 | AA9: =IF(JSetup!$U$1="Single",IF(G9="Bought-In",IF(R9=0,I9,W9/R9),IF(SUMIFS(JTQty,JTDate,"<="&$R$1,JTStockCode,$A9,JTType,"Receipt")=0,I9,-SUMIFS(JTValue,JTDate,"<="&$R$1,JTFGCode,$A9,JTType,"Issue")/SUMIFS(JTQty,JTDate,"<="&$R$1,JTStockCode,$A9,JTType,"Receipt"))),IF(G9="Bought-In",IF(R9=0,I9,W9/R9),SUMIFS(BOMActualCost,BOMParents,$A9))) -> 150 | AB9: =IF(AND(JSetup!$U$1="Single",P9=0,G9="Manufactured"),0,IF(I9=0,0,(I9-AA9)/I9)) -> 0
A10: RM30 | B10: Wood | C10: M2 | D10: 120 | F10: =IF(COUNTIF(StockCodes,A10)>1,"E1",IF(OR(AND(G10="Bought-In",ISBLANK(D10)=TRUE)=TRUE,AND(G10="Manufactured",ISBLANK(D10)=FALSE)=TRUE)=TRUE,"E2","-")) -> - | G10: =IF(ISNA(VLOOKUP($A10,BOMParents,COLUMN(BOM!$A$4),0))=TRUE,"Bought-In","Manufactured") -> Bought-In | H10: None | I10: =IF(G10="Bought-In",$D10,SUMIFS(BOMCost,BOMParents,$A10)) -> 120 | J10: 1485.380117 | K10: 1559.649123 | L10: =-SUMIFS(JTQty,JTJob,JReview!$D$1,JTStockCode,A10,JTType,"Issue") -> 1500 | M10: Y | N10: 8093.567251 | O10: Y | P10: 0 | Q10: -17434.5614 | R10: -17151.16959 | S10: 283.3918129 | T10: 0 | U10: -2092147.368 | V10: =IF(JSetup!$U$1="Multiple",0,IF(P10>0,IF(P10+R10<=0,0,-SUMIFS(JTValue,JTDate,">="&$P$1,JTDate,"<="&$R$1,JTFGCode,$A10,JTType,"Issue")+SUMIFS(JTValue,JTDate,">="&$P$1,JTDate,"<="&$R$1,JTStockCode,$A10,JTType,"Issue")),0)) -> 0 | W10: =IF(H10="IM",IF(P10=0,SUMIFS(JTValue,JTDate,">="&$P$1,JTDate,"<="&$R$1,JTStockCode,$A10,JTType,"Issue"),IF(R10=0,0,IF(P10+R10>0,0,SUMIFS(JTValue,JTDate,">="&$P$1,JTDate,"<="&$R$1,JTStockCode,$A10,JTType,"Issue")/R10*(P10+R10)))),SUMIFS(JTValue,JTDate,">="&$P$1,JTDate,"<="&$R$1,JTStockCode,$A10,JTType,"Issue")) -> -2130402.047 | X10: -38254.67836 | Y10: 34007.01754 | Z10: =IF(H10="IM",IF(P10=0,SUMIFS(JTPrice,JTDate,">="&$P$1,JTDate,"<="&$R$1,JTStockCode,$A10,JTType,"Issue"),IF(R10=0,0,IF(P10+R10>0,0,SUMIFS(JTPrice,JTDate,">="&$P$1,JTDate,"<="&$R$1,JTStockCode,$A10,JTType,"Issue")/R10*(P10+R10)))),SUMIFS(JTPrice,JTDate,">="&$P$1,JTDate,"<="&$R$1,JTStockCode,$A10,JTType,"Issue")) -> -72261.69591 | AA10: =IF(JSetup!$U$1="Single",IF(G10="Bought-In",IF(R10=0,I10,W10/R10),IF(SUMIFS(JTQty,JTDate,"<="&$R$1,JTStockCode,$A10,JTType,"Receipt")=0,I10,-SUMIFS(JTValue,JTDate,"<="&$R$1,JTFGCode,$A10,JTType,"Issue")/SUMIFS(JTQty,JTDate,"<="&$R$1,JTStockCode,$A10,JTType,"Receipt"))),IF(G10="Bought-In",IF(R10=0,I10,W10/R10),SUMIFS(BOMActualCost,BOMParents,$A10))) -> 124.2132226 | AB10: =IF(AND(JSetup!$U$1="Single",P10=0,G10="Manufactured"),0,IF(I10=0,0,(I10-AA10)/I10)) -> -0.03511018861
A11: RM50 | B11: 1 Inch Screws | C11: Bag | D11: 30 | F11: =IF(COUNTIF(StockCodes,A11)>1,"E1",IF(OR(AND(G11="Bought-In",ISBLANK(D11)=TRUE)=TRUE,AND(G11="Manufactured",ISBLANK(D11)=FALSE)=TRUE)=TRUE,"E2","-")) -> - | G11: =IF(ISNA(VLOOKUP($A11,BOMParents,COLUMN(BOM!$A$4),0))=TRUE,"Bought-In","Manufactured") -> Bought-In | H11: None | I11: =IF(G11="Bought-In",$D11,SUMIFS(BOMCost,BOMParents,$A11)) -> 30 | J11: 11.11111111 | K11: 11.66666667 | L11: =-SUMIFS(JTQty,JTJob,JReview!$D$1,JTStockCode,A11,JTType,"Issue") -> 12 | M11: Y | N11: 61.11111111 | O11: Y | P11: 0 | Q11: -131.8888889 | R11: -138.1111111 | S11: -6.222222222 | T11: 0 | U11: -3956.666667 | V11: =IF(JSetup!$U$1="Multiple",0,IF(P11>0,IF(P11+R11<=0,0,-SUMIFS(JTValue,JTDate,">="&$P$1,JTDate,"<="&$R$1,JTFGCode,$A11,JTType,"Issue")+SUMIFS(JTValue,JTDate,">="&$P$1,JTDate,"<="&$R$1,JTStockCode,$A11,JTType,"Issue")),0)) -> 0 | W11: =IF(H11="IM",IF(P11=0,SUMIFS(JTValue,JTDate,">="&$P$1,JTDate,"<="&$R$1,JTStockCode,$A11,JTType,"Issue"),IF(R11=0,0,IF(P11+R11>0,0,SUMIFS(JTValue,JTDate,">="&$P$1,JTDate,"<="&$R$1,JTStockCode,$A11,JTType,"Issue")/R11*(P11+R11)))),SUMIFS(JTValue,JTDate,">="&$P$1,JTDate,"<="&$R$1,JTStockCode,$A11,JTType,"Issue")) -> -4143.333333 | X11: -186.6666667 | Y11: -186.6666667 | Z11: =IF(H11="IM",IF(P11=0,SUMIFS(JTPrice,JTDate,">="&$P$1,JTDate,"<="&$R$1,JTStockCode,$A11,JTType,"Issue"),IF(R11=0,0,IF(P11+R11>0,0,SUMIFS(JTPrice,JTDate,">="&$P$1,JTDate,"<="&$R$1,JTStockCode,$A11,JTType,"Issue")/R11*(P11+R11)))),SUMIFS(JTPrice,JTDate,">="&$P$1,JTDate,"<="&$R$1,JTStockCode,$A11,JTType,"Issue")) -> 0 | AA11: =IF(JSetup!$U$1="Single",IF(G11="Bought-In",IF(R11=0,I11,W11/R11),IF(SUMIFS(JTQty,JTDate,"<="&$R$1,JTStockCode,$A11,JTType,"Receipt")=0,I11,-SUMIFS(JTValue,JTDate,"<="&$R$1,JTFGCode,$A11,JTType,"Issue")/SUMIFS(JTQty,JTDate,"<="&$R$1,JTStockCode,$A11,JTType,"Receipt"))),IF(G11="Bought-In",IF(R11=0,I11,W11/R11),SUMIFS(BOMActualCost,BOMParents,$A11))) -> 30 | AB11: =IF(AND(JSetup!$U$1="Single",P11=0,G11="Manufactured"),0,IF(I11=0,0,(I11-AA11)/I11)) -> -1.184237893e-16
A12: RM55 | B12: 2 Inch Screws | C12: Bag | D12: 50 | F12: =IF(COUNTIF(StockCodes,A12)>1,"E1",IF(OR(AND(G12="Bought-In",ISBLANK(D12)=TRUE)=TRUE,AND(G12="Manufactured",ISBLANK(D12)=FALSE)=TRUE)=TRUE,"E2","-")) -> - | G12: =IF(ISNA(VLOOKUP($A12,BOMParents,COLUMN(BOM!$A$4),0))=TRUE,"Bought-In","Manufactured") -> Bought-In | H12: None | I12: =IF(G12="Bought-In",$D12,SUMIFS(BOMCost,BOMParents,$A12)) -> 50 | J12: 346.4052288 | K12: 363.7254902 | L12: =-SUMIFS(JTQty,JTJob,JReview!$D$1,JTStockCode,A12,JTType,"Issue") -> 350 | M12: Y | N12: 1905.228758 | O12: Y | P12: 0 | Q12: -4111.830065 | R12: -3979.346405 | S12: 132.4836601 | T12: 0 | U12: -205591.5033 | V12: =IF(JSetup!$U$1="Multiple",0,IF(P12>0,IF(P12+R12<=0,0,-SUMIFS(JTValue,JTDate,">="&$P$1,JTDate,"<="&$R$1,JTFGCode,$A12,JTType,"Issue")+SUMIFS(JTValue,JTDate,">="&$P$1,JTDate,"<="&$R$1,JTStockCode,$A12,JTType,"Issue")),0)) -> 0 | W12: =IF(H12="IM",IF(P12=0,SUMIFS(JTValue,JTDate,">="&$P$1,JTDate,"<="&$R$1,JTStockCode,$A12,JTType,"Issue"),IF(R12=0,0,IF(P12+R12>0,0,SUMIFS(JTValue,JTDate,">="&$P$1,JTDate,"<="&$R$1,JTStockCode,$A12,JTType,"Issue")/R12*(P12+R12)))),SUMIFS(JTValue,JTDate,">="&$P$1,JTDate,"<="&$R$1,JTStockCode,$A12,JTType,"Issue")) -> -193967.3203 | X12: 11624.18301 | Y12: 6624.183007 | Z12: =IF(H12="IM",IF(P12=0,SUMIFS(JTPrice,JTDate,">="&$P$1,JTDate,"<="&$R$1,JTStockCode,$A12,JTType,"Issue"),IF(R12=0,0,IF(P12+R12>0,0,SUMIFS(JTPrice,JTDate,">="&$P$1,JTDate,"<="&$R$1,JTStockCode,$A12,JTType,"Issue")/R12*(P12+R12)))),SUMIFS(JTPrice,JTDate,">="&$P$1,JTDate,"<="&$R$1,JTStockCode,$A12,JTType,"Issue")) -> 5000 | AA12: =IF(JSetup!$U$1="Single",IF(G12="Bought-In",IF(R12=0,I12,W12/R12),IF(SUMIFS(JTQty,JTDate,"<="&$R$1,JTStockCode,$A12,JTType,"Receipt")=0,I12,-SUMIFS(JTValue,JTDate,"<="&$R$1,JTFGCode,$A12,JTType,"Issue")/SUMIFS(JTQty,JTDate,"<="&$R$1,JTStockCode,$A12,JTType,"Receipt"))),IF(G12="Bought-In",IF(R12=0,I12,W12/R12),SUMIFS(BOMActualCost,BOMParents,$A12))) -> 48.74351225 | AB12: =IF(AND(JSetup!$U$1="Single",P12=0,G12="Manufactured"),0,IF(I12=0,0,(I12-AA12)/I12)) -> 0.02512975494
A13: RM60 | B13: Glass | C13: M2 | D13: 80 | F13: =IF(COUNTIF(StockCodes,A13)>1,"E1",IF(OR(AND(G13="Bought-In",ISBLANK(D13)=TRUE)=TRUE,AND(G13="Manufactured",ISBLANK(D13)=FALSE)=TRUE)=TRUE,"E2","-")) -> - | G13: =IF(ISNA(VLOOKUP($A13,BOMParents,COLUMN(BOM!$A$4),0))=TRUE,"Bought-In","Manufactured") -> Bought-In | H13: None | I13: =IF(G13="Bought-In",$D13,SUMIFS(BOMCost,BOMParents,$A13)) -> 80 | J13: 247.6780186 | K13: 260.0619195 | L13: =-SUMIFS(JTQty,JTJob,JReview!$D$1,JTStockCode,A13,JTType,"Issue") -> 250 | M13: Y | N13: 1238.390093 | O13: Y | P13: 0 | Q13: -2623.900929 | R13: -2670.773994 | S13: -46.87306502 | T13: 0 | U13: -209912.0743 | V13: =IF(JSetup!$U$1="Multiple",0,IF(P13>0,IF(P13+R13<=0,0,-SUMIFS(JTValue,JTDate,">="&$P$1,JTDate,"<="&$R$1,JTFGCode,$A13,JTType,"Issue")+SUMIFS(JTValue,JTDate,">="&$P$1,JTDate,"<="&$R$1,JTStockCode,$A13,JTType,"Issue")),0)) -> 0 | W13: =IF(H13="IM",IF(P13=0,SUMIFS(JTValue,JTDate,">="&$P$1,JTDate,"<="&$R$1,JTStockCode,$A13,JTType,"Issue"),IF(R13=0,0,IF(P13+R13>0,0,SUMIFS(JTValue,JTDate,">="&$P$1,JTDate,"<="&$R$1,JTStockCode,$A13,JTType,"Issue")/R13*(P13+R13)))),SUMIFS(JTValue,JTDate,">="&$P$1,JTDate,"<="&$R$1,JTStockCode,$A13,JTType,"Issue")) -> -218661.9195 | X13: -8749.845201 | Y13: -3749.845201 | Z13: =IF(H13="IM",IF(P13=0,SUMIFS(JTPrice,JTDate,">="&$P$1,JTDate,"<="&$R$1,JTStockCode,$A13,JTType,"Issue"),IF(R13=0,0,IF(P13+R13>0,0,SUMIFS(JTPrice,JTDate,">="&$P$1,JTDate,"<="&$R$1,JTStockCode,$A13,JTType,"Issue")/R13*(P13+R13)))),SUMIFS(JTPrice,JTDate,">="&$P$1,JTDate,"<="&$R$1,JTStockCode,$A13,JTType,"Issue")) -> -5000 | AA13: =IF(JSetup!$U$1="Single",IF(G13="Bought-In",IF(R13=0,I13,W13/R13),IF(SUMIFS(JTQty,JTDate,"<="&$R$1,JTStockCode,$A13,JTType,"Receipt")=0,I13,-SUMIFS(JTValue,JTDate,"<="&$R$1,JTFGCode,$A13,JTType,"Issue")/SUMIFS(JTQty,JTDate,"<="&$R$1,JTStockCode,$A13,JTType,"Receipt"))),IF(G13="Bought-In",IF(R13=0,I13,W13/R13),SUMIFS(BOMActualCost,BOMParents,$A13))) -> 81.87211648 | AB13: =IF(AND(JSetup!$U$1="Single",P13=0,G13="Manufactured"),0,IF(I13=0,0,(I13-AA13)/I13)) -> -0.02340145596
A14: RM70 | B14: Filler | C14: Bag | D14: 60 | F14: =IF(COUNTIF(StockCodes,A14)>1,"E1",IF(OR(AND(G14="Bought-In",ISBLANK(D14)=TRUE)=TRUE,AND(G14="Manufactured",ISBLANK(D14)=FALSE)=TRUE)=TRUE,"E2","-")) -> - | G14: =IF(ISNA(VLOOKUP($A14,BOMParents,COLUMN(BOM!$A$4),0))=TRUE,"Bought-In","Manufactured") -> Bought-In | H14: None | I14: =IF(G14="Bought-In",$D14,SUMIFS(BOMCost,BOMParents,$A14)) -> 60 | J14: 116.9590643 | K14: 122.8070175 | L14: =-SUMIFS(JTQty,JTJob,JReview!$D$1,JTStockCode,A14,JTType,"Issue") -> 120 | M14: Y | N14: 584.7953216 | O14: Y | P14: 0 | Q14: -1239.064327 | R14: -1210.643275 | S14: 28.42105263 | T14: 0 | U14: -74343.85965 | V14: =IF(JSetup!$U$1="Multiple",0,IF(P14>0,IF(P14+R14<=0,0,-SUMIFS(JTValue,JTDate,">="&$P$1,JTDate,"<="&$R$1,JTFGCode,$A14,JTType,"Issue")+SUMIFS(JTValue,JTDate,">="&$P$1,JTDate,"<="&$R$1,JTStockCode,$A14,JTType,"Issue")),0)) -> 0 | W14: =IF(H14="IM",IF(P14=0,SUMIFS(JTValue,JTDate,">="&$P$1,JTDate,"<="&$R$1,JTStockCode,$A14,JTType,"Issue"),IF(R14=0,0,IF(P14+R14>0,0,SUMIFS(JTValue,JTDate,">="&$P$1,JTDate,"<="&$R$1,JTStockCode,$A14,JTType,"Issue")/R14*(P14+R14)))),SUMIFS(JTValue,JTDate,">="&$P$1,JTDate,"<="&$R$1,JTStockCode,$A14,JTType,"Issue")) -> -72638.59649 | X14: 1705.263158 | Y14: 1705.263158 | Z14: =IF(H14="IM",IF(P14=0,SUMIFS(JTPrice,JTDate,">="&$P$1,JTDate,"<="&$R$1,JTStockCode,$A14,JTType,"Issue"),IF(R14=0,0,IF(P14+R14>0,0,SUMIFS(JTPrice,JTDate,">="&$P$1,JTDate,"<="&$R$1,JTStockCode,$A14,JTType,"Issue")/R14*(P14+R14)))),SUMIFS(JTPrice,JTDate,">="&$P$1,JTDate,"<="&$R$1,JTStockCode,$A14,JTType,"Issue")) -> 0 | AA14: =IF(JSetup!$U$1="Single",IF(G14="Bought-In",IF(R14=0,I14,W14/R14),IF(SUMIFS(JTQty,JTDate,"<="&$R$1,JTStockCode,$A14,JTType,"Receipt")=0,I14,-SUMIFS(JTValue,JTDate,"<="&$R$1,JTFGCode,$A14,JTType,"Issue")/SUMIFS(JTQty,JTDate,"<="&$R$1,JTStockCode,$A14,JTType,"Receipt"))),IF(G14="Bought-In",IF(R14=0,I14,W14/R14),SUMIFS(BOMActualCost,BOMParents,$A14))) -> 60 | AB14: =IF(AND(JSetup!$U$1="Single",P14=0,G14="Manufactured"),0,IF(I14=0,0,(I14-AA14)/I14)) -> -1.184237893e-16
A15: RM75 | B15: Swivel | C15: Units | D15: 3.5 | F15: =IF(COUNTIF(StockCodes,A15)>1,"E1",IF(OR(AND(G15="Bought-In",ISBLANK(D15)=TRUE)=TRUE,AND(G15="Manufactured",ISBLANK(D15)=FALSE)=TRUE)=TRUE,"E2","-")) -> - | G15: =IF(ISNA(VLOOKUP($A15,BOMParents,COLUMN(BOM!$A$4),0))=TRUE,"Bought-In","Manufactured") -> Bought-In | H15: None | I15: =IF(G15="Bought-In",$D15,SUMIFS(BOMCost,BOMParents,$A15)) -> 3.5 | J15: 200 | K15: 210 | L15: =-SUMIFS(JTQty,JTJob,JReview!$D$1,JTStockCode,A15,JTType,"Issue") -> 200 | M15: Y | N15: 1100 | O15: Y | P15: 0 | Q15: -2374 | R15: -2380 | S15: -6 | T15: 0 | U15: -8309 | V15: =IF(JSetup!$U$1="Multiple",0,IF(P15>0,IF(P15+R15<=0,0,-SUMIFS(JTValue,JTDate,">="&$P$1,JTDate,"<="&$R$1,JTFGCode,$A15,JTType,"Issue")+SUMIFS(JTValue,JTDate,">="&$P$1,JTDate,"<="&$R$1,JTStockCode,$A15,JTType,"Issue")),0)) -> 0 | W15: =IF(H15="IM",IF(P15=0,SUMIFS(JTValue,JTDate,">="&$P$1,JTDate,"<="&$R$1,JTStockCode,$A15,JTType,"Issue"),IF(R15=0,0,IF(P15+R15>0,0,SUMIFS(JTValue,JTDate,">="&$P$1,JTDate,"<="&$R$1,JTStockCode,$A15,JTType,"Issue")/R15*(P15+R15)))),SUMIFS(JTValue,JTDate,">="&$P$1,JTDate,"<="&$R$1,JTStockCode,$A15,JTType,"Issue")) -> -8330 | X15: -21 | Y15: -21 | Z15: =IF(H15="IM",IF(P15=0,SUMIFS(JTPrice,JTDate,">="&$P$1,JTDate,"<="&$R$1,JTStockCode,$A15,JTType,"Issue"),IF(R15=0,0,IF(P15+R15>0,0,SUMIFS(JTPrice,JTDate,">="&$P$1,JTDate,"<="&$R$1,JTStockCode,$A15,JTType,"Issue")/R15*(P15+R15)))),SUMIFS(JTPrice,JTDate,">="&$P$1,JTDate,"<="&$R$1,JTStockCode,$A15,JTType,"Issue")) -> 0 | AA15: =IF(JSetup!$U$1="Single",IF(G15="Bought-In",IF(R15=0,I15,W15/R15),IF(SUMIFS(JTQty,JTDate,"<="&$R$1,JTStockCode,$A15,JTType,"Receipt")=0,I15,-SUMIFS(JTValue,JTDate,"<="&$R$1,JTFGCode,$A15,JTType,"Issue")/SUMIFS(JTQty,JTDate,"<="&$R$1,JTStockCode,$A15,JTType,"Receipt"))),IF(G15="Bought-In",IF(R15=0,I15,W15/R15),SUMIFS(BOMActualCost,BOMParents,$A15))) -> 3.5 | AB15: =IF(AND(JSetup!$U$1="Single",P15=0,G15="Manufactured"),0,IF(I15=0,0,(I15-AA15)/I15)) -> 0
A16: RM80 | B16: Paint - White | C16: Drum | D16: 220 | F16: =IF(COUNTIF(StockCodes,A16)>1,"E1",IF(OR(AND(G16="Bought-In",ISBLANK(D16)=TRUE)=TRUE,AND(G16="Manufactured",ISBLANK(D16)=FALSE)=TRUE)=TRUE,"E2","-")) -> - | G16: =IF(ISNA(VLOOKUP($A16,BOMParents,COLUMN(BOM!$A$4),0))=TRUE,"Bought-In","Manufactured") -> Bought-In | H16: None | I16: =IF(G16="Bought-In",$D16,SUMIFS(BOMCost,BOMParents,$A16)) -> 220 | J16: 0 | K16: 0 | L16: =-SUMIFS(JTQty,JTJob,JReview!$D$1,JTStockCode,A16,JTType,"Issue") -> 0 | M16: N | N16: 0 | O16: N | P16: 0 | Q16: -109.4736842 | R16: -110 | S16: -0.5263157895 | T16: 0 | U16: -24084.21053 | V16: =IF(JSetup!$U$1="Multiple",0,IF(P16>0,IF(P16+R16<=0,0,-SUMIFS(JTValue,JTDate,">="&$P$1,JTDate,"<="&$R$1,JTFGCode,$A16,JTType,"Issue")+SUMIFS(JTValue,JTDate,">="&$P$1,JTDate,"<="&$R$1,JTStockCode,$A16,JTType,"Issue")),0)) -> 0 | W16: =IF(H16="IM",IF(P16=0,SUMIFS(JTValue,JTDate,">="&$P$1,JTDate,"<="&$R$1,JTStockCode,$A16,JTType,"Issue"),IF(R16=0,0,IF(P16+R16>0,0,SUMIFS(JTValue,JTDate,">="&$P$1,JTDate,"<="&$R$1,JTStockCode,$A16,JTType,"Issue")/R16*(P16+R16)))),SUMIFS(JTValue,JTDate,">="&$P$1,JTDate,"<="&$R$1,JTStockCode,$A16,JTType,"Issue")) -> -27500 | X16: -3415.789474 | Y16: -115.7894737 | Z16: =IF(H16="IM",IF(P16=0,SUMIFS(JTPrice,JTDate,">="&$P$1,JTDate,"<="&$R$1,JTStockCode,$A16,JTType,"Issue"),IF(R16=0,0,IF(P16+R16>0,0,SUMIFS(JTPrice,JTDate,">="&$P$1,JTDate,"<="&$R$1,JTStockCode,$A16,JTType,"Issue")/R16*(P16+R16)))),SUMIFS(JTPrice,JTDate,">="&$P$1,JTDate,"<="&$R$1,JTStockCode,$A16,JTType,"Issue")) -> -3300 | AA16: =IF(JSetup!$U$1="Single",IF(G16="Bought-In",IF(R16=0,I16,W16/R16),IF(SUMIFS(JTQty,JTDate,"<="&$R$1,JTStockCode,$A16,JTType,"Receipt")=0,I16,-SUMIFS(JTValue,JTDate,"<="&$R$1,JTFGCode,$A16,JTType,"Issue")/SUMIFS(JTQty,JTDate,"<="&$R$1,JTStockCode,$A16,JTType,"Receipt"))),IF(G16="Bought-In",IF(R16=0,I16,W16/R16),SUMIFS(BOMActualCost,BOMParents,$A16))) -> 250 | AB16: =IF(AND(JSetup!$U$1="Single",P16=0,G16="Manufactured"),0,IF(I16=0,0,(I16-AA16)/I16)) -> -0.1363636364
A17: RM85 | B17: Paint - Green | C17: Drum | D17: 240 | F17: =IF(COUNTIF(StockCodes,A17)>1,"E1",IF(OR(AND(G17="Bought-In",ISBLANK(D17)=TRUE)=TRUE,AND(G17="Manufactured",ISBLANK(D17)=FALSE)=TRUE)=TRUE,"E2","-")) -> - | G17: =IF(ISNA(VLOOKUP($A17,BOMParents,COLUMN(BOM!$A$4),0))=TRUE,"Bought-In","Manufactured") -> Bought-In | H17: None | I17: =IF(G17="Bought-In",$D17,SUMIFS(BOMCost,BOMParents,$A17)) -> 240 | J17: 0 | K17: 0 | L17: =-SUMIFS(JTQty,JTJob,JReview!$D$1,JTStockCode,A17,JTType,"Issue") -> 0 | M17: N | N17: 0 | O17: N | P17: 0 | Q17: -61.17647059 | R17: -60 | S17: 1.176470588 | T17: 0 | U17: -14682.35294 | V17: =IF(JSetup!$U$1="Multiple",0,IF(P17>0,IF(P17+R17<=0,0,-SUMIFS(JTValue,JTDate,">="&$P$1,JTDate,"<="&$R$1,JTFGCode,$A17,JTType,"Issue")+SUMIFS(JTValue,JTDate,">="&$P$1,JTDate,"<="&$R$1,JTStockCode,$A17,JTType,"Issue")),0)) -> 0 | W17: =IF(H17="IM",IF(P17=0,SUMIFS(JTValue,JTDate,">="&$P$1,JTDate,"<="&$R$1,JTStockCode,$A17,JTType,"Issue"),IF(R17=0,0,IF(P17+R17>0,0,SUMIFS(JTValue,JTDate,">="&$P$1,JTDate,"<="&$R$1,JTStockCode,$A17,JTType,"Issue")/R17*(P17+R17)))),SUMIFS(JTValue,JTDate,">="&$P$1,JTDate,"<="&$R$1,JTStockCode,$A17,JTType,"Issue")) -> -15600 | X17: -917.6470588 | Y17: 282.3529412 | Z17: =IF(H17="IM",IF(P17=0,SUMIFS(JTPrice,JTDate,">="&$P$1,JTDate,"<="&$R$1,JTStockCode,$A17,JTType,"Issue"),IF(R17=0,0,IF(P17+R17>0,0,SUMIFS(JTPrice,JTDate,">="&$P$1,JTDate,"<="&$R$1,JTStockCode,$A17,JTType,"Issue")/R17*(P17+R17)))),SUMIFS(JTPrice,JTDate,">="&$P$1,JTDate,"<="&$R$1,JTStockCode,$A17,JTType,"Issue")) -> -1200 | AA17: =IF(JSetup!$U$1="Single",IF(G17="Bought-In",IF(R17=0,I17,W17/R17),IF(SUMIFS(JTQty,JTDate,"<="&$R$1,JTStockCode,$A17,JTType,"Receipt")=0,I17,-SUMIFS(JTValue,JTDate,"<="&$R$1,JTFGCode,$A17,JTType,"Issue")/SUMIFS(JTQty,JTDate,"<="&$R$1,JTStockCode,$A17,JTType,"Receipt"))),IF(G17="Bought-In",IF(R17=0,I17,W17/R17),SUMIFS(BOMActualCost,BOMParents,$A17))) -> 260 | AB17: =IF(AND(JSetup!$U$1="Single",P17=0,G17="Manufactured"),0,IF(I17=0,0,(I17-AA17)/I17)) -> -0.08333333333
A18: SD18 | B18: Door | C18: Units | E18: All | F18: =IF(COUNTIF(StockCodes,A18)>1,"E1",IF(OR(AND(G18="Bought-In",ISBLANK(D18)=TRUE)=TRUE,AND(G18="Manufactured",ISBLANK(D18)=FALSE)=TRUE)=TRUE,"E2","-")) -> - | G18: =IF(ISNA(VLOOKUP($A18,BOMParents,COLUMN(BOM!$A$4),0))=TRUE,"Bought-In","Manufactured") -> Manufactured | H18: IM | I18: =IF(G18="Bought-In",$D18,SUMIFS(BOMCost,BOMParents,$A18)) -> 313.6666667 | J18: 0 | K18: 0 | L18: =-SUMIFS(JTQty,JTJob,JReview!$D$1,JTStockCode,A18,JTType,"Issue") -> 0 | M18: N | N18: 0 | O18: N | P18: 0 | Q18: 0 | R18: 0 | S18: 0 | T18: 0 | U18: 0 | V18: =IF(JSetup!$U$1="Multiple",0,IF(P18>0,IF(P18+R18<=0,0,-SUMIFS(JTValue,JTDate,">="&$P$1,JTDate,"<="&$R$1,JTFGCode,$A18,JTType,"Issue")+SUMIFS(JTValue,JTDate,">="&$P$1,JTDate,"<="&$R$1,JTStockCode,$A18,JTType,"Issue")),0)) -> 0 | W18: =IF(H18="IM",IF(P18=0,SUMIFS(JTValue,JTDate,">="&$P$1,JTDate,"<="&$R$1,JTStockCode,$A18,JTType,"Issue"),IF(R18=0,0,IF(P18+R18>0,0,SUMIFS(JTValue,JTDate,">="&$P$1,JTDate,"<="&$R$1,JTStockCode,$A18,JTType,"Issue")/R18*(P18+R18)))),SUMIFS(JTValue,JTDate,">="&$P$1,JTDate,"<="&$R$1,JTStockCode,$A18,JTType,"Issue")) -> 0 | X18: 0 | Y18: 0 | Z18: =IF(H18="IM",IF(P18=0,SUMIFS(JTPrice,JTDate,">="&$P$1,JTDate,"<="&$R$1,JTStockCode,$A18,JTType,"Issue"),IF(R18=0,0,IF(P18+R18>0,0,SUMIFS(JTPrice,JTDate,">="&$P$1,JTDate,"<="&$R$1,JTStockCode,$A18,JTType,"Issue")/R18*(P18+R18)))),SUMIFS(JTPrice,JTDate,">="&$P$1,JTDate,"<="&$R$1,JTStockCode,$A18,JTType,"Issue")) -> 0 | AA18: =IF(JSetup!$U$1="Single",IF(G18="Bought-In",IF(R18=0,I18,W18/R18),IF(SUMIFS(JTQty,JTDate,"<="&$R$1,JTStockCode,$A18,JTType,"Receipt")=0,I18,-SUMIFS(JTValue,JTDate,"<="&$R$1,JTFGCode,$A18,JTType,"Issue")/SUMIFS(JTQty,JTDate,"<="&$R$1,JTStockCode,$A18,JTType,"Receipt"))),IF(G18="Bought-In",IF(R18=0,I18,W18/R18),SUMIFS(BOMActualCost,BOMParents,$A18))) -> 313.6666667 | AB18: =IF(AND(JSetup!$U$1="Single",P18=0,G18="Manufactured"),0,IF(I18=0,0,(I18-AA18)/I18)) -> 0
A19: SD20 | B19: Window | C19: Units | E19: All | F19: =IF(COUNTIF(StockCodes,A19)>1,"E1",IF(OR(AND(G19="Bought-In",ISBLANK(D19)=TRUE)=TRUE,AND(G19="Manufactured",ISBLANK(D19)=FALSE)=TRUE)=TRUE,"E2","-")) -> - | G19: =IF(ISNA(VLOOKUP($A19,BOMParents,COLUMN(BOM!$A$4),0))=TRUE,"Bought-In","Manufactured") -> Manufactured | H19: IM | I19: =IF(G19="Bought-In",$D19,SUMIFS(BOMCost,BOMParents,$A19)) -> 29.52941176 | J19: 0 | K19: 0 | L19: =-SUMIFS(JTQty,JTJob,JReview!$D$1,JTStockCode,A19,JTType,"Issue") -> 0 | M19: N | N19: 0 | O19: N | P19: 0 | Q19: 0 | R19: 0 | S19: 0 | T19: 0 | U19: 0 | V19: =IF(JSetup!$U$1="Multiple",0,IF(P19>0,IF(P19+R19<=0,0,-SUMIFS(JTValue,JTDate,">="&$P$1,JTDate,"<="&$R$1,JTFGCode,$A19,JTType,"Issue")+SUMIFS(JTValue,JTDate,">="&$P$1,JTDate,"<="&$R$1,JTStockCode,$A19,JTType,"Issue")),0)) -> 0 | W19: =IF(H19="IM",IF(P19=0,SUMIFS(JTValue,JTDate,">="&$P$1,JTDate,"<="&$R$1,JTStockCode,$A19,JTType,"Issue"),IF(R19=0,0,IF(P19+R19>0,0,SUMIFS(JTValue,JTDate,">="&$P$1,JTDate,"<="&$R$1,JTStockCode,$A19,JTType,"Issue")/R19*(P19+R19)))),SUMIFS(JTValue,JTDate,">="&$P$1,JTDate,"<="&$R$1,JTStockCode,$A19,JTType,"Issue")) -> 0 | X19: 0 | Y19: 0 | Z19: =IF(H19="IM",IF(P19=0,SUMIFS(JTPrice,JTDate,">="&$P$1,JTDate,"<="&$R$1,JTStockCode,$A19,JTType,"Issue"),IF(R19=0,0,IF(P19+R19>0,0,SUMIFS(JTPrice,JTDate,">="&$P$1,JTDate,"<="&$R$1,JTStockCode,$A19,JTType,"Issue")/R19*(P19+R19)))),SUMIFS(JTPrice,JTDate,">="&$P$1,JTDate,"<="&$R$1,JTStockCode,$A19,JTType,"Issue")) -> 0 | AA19: =IF(JSetup!$U$1="Single",IF(G19="Bought-In",IF(R19=0,I19,W19/R19),IF(SUMIFS(JTQty,JTDate,"<="&$R$1,JTStockCode,$A19,JTType,"Receipt")=0,I19,-SUMIFS(JTValue,JTDate,"<="&$R$1,JTFGCode,$A19,JTType,"Issue")/SUMIFS(JTQty,JTDate,"<="&$R$1,JTStockCode,$A19,JTType,"Receipt"))),IF(G19="Bought-In",IF(R19=0,I19,W19/R19),SUMIFS(BOMActualCost,BOMParents,$A19))) -> 29.52941176 | AB19: =IF(AND(JSetup!$U$1="Single",P19=0,G19="Manufactured"),0,IF(I19=0,0,(I19-AA19)/I19)) -> 0
A20: SD25 | B20: Roof | C20: Units | E20: All | F20: =IF(COUNTIF(StockCodes,A20)>1,"E1",IF(OR(AND(G20="Bought-In",ISBLANK(D20)=TRUE)=TRUE,AND(G20="Manufactured",ISBLANK(D20)=FALSE)=TRUE)=TRUE,"E2","-")) -> - | G20: =IF(ISNA(VLOOKUP($A20,BOMParents,COLUMN(BOM!$A$4),0))=TRUE,"Bought-In","Manufactured") -> Manufactured | H20: IM | I20: =IF(G20="Bought-In",$D20,SUMIFS(BOMCost,BOMParents,$A20)) -> 1766.666667 | J20: 0 | K20: 0 | L20: =-SUMIFS(JTQty,JTJob,JReview!$D$1,JTStockCode,A20,JTType,"Issue") -> 0 | M20: N | N20: 0 | O20: N | P20: 0 | Q20: 0 | R20: 0 | S20: 0 | T20: 0 | U20: 0 | V20: =IF(JSetup!$U$1="Multiple",0,IF(P20>0,IF(P20+R20<=0,0,-SUMIFS(JTValue,JTDate,">="&$P$1,JTDate,"<="&$R$1,JTFGCode,$A20,JTType,"Issue")+SUMIFS(JTValue,JTDate,">="&$P$1,JTDate,"<="&$R$1,JTStockCode,$A20,JTType,"Issue")),0)) -> 0 | W20: =IF(H20="IM",IF(P20=0,SUMIFS(JTValue,JTDate,">="&$P$1,JTDate,"<="&$R$1,JTStockCode,$A20,JTType,"Issue"),IF(R20=0,0,IF(P20+R20>0,0,SUMIFS(JTValue,JTDate,">="&$P$1,JTDate,"<="&$R$1,JTStockCode,$A20,JTType,"Issue")/R20*(P20+R20)))),SUMIFS(JTValue,JTDate,">="&$P$1,JTDate,"<="&$R$1,JTStockCode,$A20,JTType,"Issue")) -> 0 | X20: 0 | Y20: 0 | Z20: =IF(H20="IM",IF(P20=0,SUMIFS(JTPrice,JTDate,">="&$P$1,JTDate,"<="&$R$1,JTStockCode,$A20,JTType,"Issue"),IF(R20=0,0,IF(P20+R20>0,0,SUMIFS(JTPrice,JTDate,">="&$P$1,JTDate,"<="&$R$1,JTStockCode,$A20,JTType,"Issue")/R20*(P20+R20)))),SUMIFS(JTPrice,JTDate,">="&$P$1,JTDate,"<="&$R$1,JTStockCode,$A20,JTType,"Issue")) -> 0 | AA20: =IF(JSetup!$U$1="Single",IF(G20="Bought-In",IF(R20=0,I20,W20/R20),IF(SUMIFS(JTQty,JTDate,"<="&$R$1,JTStockCode,$A20,JTType,"Receipt")=0,I20,-SUMIFS(JTValue,JTDate,"<="&$R$1,JTFGCode,$A20,JTType,"Issue")/SUMIFS(JTQty,JTDate,"<="&$R$1,JTStockCode,$A20,JTType,"Receipt"))),IF(G20="Bought-In",IF(R20=0,I20,W20/R20),SUMIFS(BOMActualCost,BOMParents,$A20))) -> 1766.666667 | AB20: =IF(AND(JSetup!$U$1="Single",P20=0,G20="Manufactured"),0,IF(I20=0,0,(I20-AA20)/I20)) -> 0
A21: SD30 | B21: Window Frame | C21: Units | E21: All | F21: =IF(COUNTIF(StockCodes,A21)>1,"E1",IF(OR(AND(G21="Bought-In",ISBLANK(D21)=TRUE)=TRUE,AND(G21="Manufactured",ISBLANK(D21)=FALSE)=TRUE)=TRUE,"E2","-")) -> - | G21: =IF(ISNA(VLOOKUP($A21,BOMParents,COLUMN(BOM!$A$4),0))=TRUE,"Bought-In","Manufactured") -> Manufactured | H21: IM | I21: =IF(G21="Bought-In",$D21,SUMIFS(BOMCost,BOMParents,$A21)) -> 321.4509804 | J21: 0 | K21: 0 | L21: =-SUMIFS(JTQty,JTJob,JReview!$D$1,JTStockCode,A21,JTType,"Issue") -> 0 | M21: N | N21: 0 | O21: N | P21: 0 | Q21: 0 | R21: 0 | S21: 0 | T21: 0 | U21: 0 | V21: =IF(JSetup!$U$1="Multiple",0,IF(P21>0,IF(P21+R21<=0,0,-SUMIFS(JTValue,JTDate,">="&$P$1,JTDate,"<="&$R$1,JTFGCode,$A21,JTType,"Issue")+SUMIFS(JTValue,JTDate,">="&$P$1,JTDate,"<="&$R$1,JTStockCode,$A21,JTType,"Issue")),0)) -> 0 | W21: =IF(H21="IM",IF(P21=0,SUMIFS(JTValue,JTDate,">="&$P$1,JTDate,"<="&$R$1,JTStockCode,$A21,JTType,"Issue"),IF(R21=0,0,IF(P21+R21>0,0,SUMIFS(JTValue,JTDate,">="&$P$1,JTDate,"<="&$R$1,JTStockCode,$A21,JTType,"Issue")/R21*(P21+R21)))),SUMIFS(JTValue,JTDate,">="&$P$1,JTDate,"<="&$R$1,JTStockCode,$A21,JTType,"Issue")) -> 0 | X21: 0 | Y21: 0 | Z21: =IF(H21="IM",IF(P21=0,SUMIFS(JTPrice,JTDate,">="&$P$1,JTDate,"<="&$R$1,JTStockCode,$A21,JTType,"Issue"),IF(R21=0,0,IF(P21+R21>0,0,SUMIFS(JTPrice,JTDate,">="&$P$1,JTDate,"<="&$R$1,JTStockCode,$A21,JTType,"Issue")/R21*(P21+R21)))),SUMIFS(JTPrice,JTDate,">="&$P$1,JTDate,"<="&$R$1,JTStockCode,$A21,JTType,"Issue")) -> 0 | AA21: =IF(JSetup!$U$1="Single",IF(G21="Bought-In",IF(R21=0,I21,W21/R21),IF(SUMIFS(JTQty,JTDate,"<="&$R$1,JTStockCode,$A21,JTType,"Receipt")=0,I21,-SUMIFS(JTValue,JTDate,"<="&$R$1,JTFGCode,$A21,JTType,"Issue")/SUMIFS(JTQty,JTDate,"<="&$R$1,JTStockCode,$A21,JTType,"Receipt"))),IF(G21="Bought-In",IF(R21=0,I21,W21/R21),SUMIFS(BOMActualCost,BOMParents,$A21))) -> 321.4509804 | AB21: =IF(AND(JSetup!$U$1="Single",P21=0,G21="Manufactured"),0,IF(I21=0,0,(I21-AA21)/I21)) -> 0
A22: SD35 | B22: Glazed Window | C22: Units | E22: All | F22: =IF(COUNTIF(StockCodes,A22)>1,"E1",IF(OR(AND(G22="Bought-In",ISBLANK(D22)=TRUE)=TRUE,AND(G22="Manufactured",ISBLANK(D22)=FALSE)=TRUE)=TRUE,"E2","-")) -> - | G22: =IF(ISNA(VLOOKUP($A22,BOMParents,COLUMN(BOM!$A$4),0))=TRUE,"Bought-In","Manufactured") -> Manufactured | H22: IM | I22: =IF(G22="Bought-In",$D22,SUMIFS(BOMCost,BOMParents,$A22)) -> 39.52941176 | J22: 0 | K22: 0 | L22: =-SUMIFS(JTQty,JTJob,JReview!$D$1,JTStockCode,A22,JTType,"Issue") -> 0 | M22: N | N22: 0 | O22: N | P22: 0 | Q22: 0 | R22: 0 | S22: 0 | T22: 0 | U22: 0 | V22: =IF(JSetup!$U$1="Multiple",0,IF(P22>0,IF(P22+R22<=0,0,-SUMIFS(JTValue,JTDate,">="&$P$1,JTDate,"<="&$R$1,JTFGCode,$A22,JTType,"Issue")+SUMIFS(JTValue,JTDate,">="&$P$1,JTDate,"<="&$R$1,JTStockCode,$A22,JTType,"Issue")),0)) -> 0 | W22: =IF(H22="IM",IF(P22=0,SUMIFS(JTValue,JTDate,">="&$P$1,JTDate,"<="&$R$1,JTStockCode,$A22,JTType,"Issue"),IF(R22=0,0,IF(P22+R22>0,0,SUMIFS(JTValue,JTDate,">="&$P$1,JTDate,"<="&$R$1,JTStockCode,$A22,JTType,"Issue")/R22*(P22+R22)))),SUMIFS(JTValue,JTDate,">="&$P$1,JTDate,"<="&$R$1,JTStockCode,$A22,JTType,"Issue")) -> 0 | X22: 0 | Y22: 0 | Z22: =IF(H22="IM",IF(P22=0,SUMIFS(JTPrice,JTDate,">="&$P$1,JTDate,"<="&$R$1,JTStockCode,$A22,JTType,"Issue"),IF(R22=0,0,IF(P22+R22>0,0,SUMIFS(JTPrice,JTDate,">="&$P$1,JTDate,"<="&$R$1,JTStockCode,$A22,JTType,"Issue")/R22*(P22+R22)))),SUMIFS(JTPrice,JTDate,">="&$P$1,JTDate,"<="&$R$1,JTStockCode,$A22,JTType,"Issue")) -> 0 | AA22: =IF(JSetup!$U$1="Single",IF(G22="Bought-In",IF(R22=0,I22,W22/R22),IF(SUMIFS(JTQty,JTDate,"<="&$R$1,JTStockCode,$A22,JTType,"Receipt")=0,I22,-SUMIFS(JTValue,JTDate,"<="&$R$1,JTFGCode,$A22,JTType,"Issue")/SUMIFS(JTQty,JTDate,"<="&$R$1,JTStockCode,$A22,JTType,"Receipt"))),IF(G22="Bought-In",IF(R22=0,I22,W22/R22),SUMIFS(BOMActualCost,BOMParents,$A22))) -> 39.52941176 | AB22: =IF(AND(JSetup!$U$1="Single",P22=0,G22="Manufactured"),0,IF(I22=0,0,(I22-AA22)/I22)) -> 0
A23: SD40 | B23: Glazed Window Frame | C23: Units | E23: All | F23: =IF(COUNTIF(StockCodes,A23)>1,"E1",IF(OR(AND(G23="Bought-In",ISBLANK(D23)=TRUE)=TRUE,AND(G23="Manufactured",ISBLANK(D23)=FALSE)=TRUE)=TRUE,"E2","-")) -> - | G23: =IF(ISNA(VLOOKUP($A23,BOMParents,COLUMN(BOM!$A$4),0))=TRUE,"Bought-In","Manufactured") -> Manufactured | H23: IM | I23: =IF(G23="Bought-In",$D23,SUMIFS(BOMCost,BOMParents,$A23)) -> 361.4509804 | J23: 0 | K23: 0 | L23: =-SUMIFS(JTQty,JTJob,JReview!$D$1,JTStockCode,A23,JTType,"Issue") -> 0 | M23: N | N23: 0 | O23: N | P23: 0 | Q23: 0 | R23: 0 | S23: 0 | T23: 0 | U23: 0 | V23: =IF(JSetup!$U$1="Multiple",0,IF(P23>0,IF(P23+R23<=0,0,-SUMIFS(JTValue,JTDate,">="&$P$1,JTDate,"<="&$R$1,JTFGCode,$A23,JTType,"Issue")+SUMIFS(JTValue,JTDate,">="&$P$1,JTDate,"<="&$R$1,JTStockCode,$A23,JTType,"Issue")),0)) -> 0 | W23: =IF(H23="IM",IF(P23=0,SUMIFS(JTValue,JTDate,">="&$P$1,JTDate,"<="&$R$1,JTStockCode,$A23,JTType,"Issue"),IF(R23=0,0,IF(P23+R23>0,0,SUMIFS(JTValue,JTDate,">="&$P$1,JTDate,"<="&$R$1,JTStockCode,$A23,JTType,"Issue")/R23*(P23+R23)))),SUMIFS(JTValue,JTDate,">="&$P$1,JTDate,"<="&$R$1,JTStockCode,$A23,JTType,"Issue")) -> 0 | X23: 0 | Y23: 0 | Z23: =IF(H23="IM",IF(P23=0,SUMIFS(JTPrice,JTDate,">="&$P$1,JTDate,"<="&$R$1,JTStockCode,$A23,JTType,"Issue"),IF(R23=0,0,IF(P23+R23>0,0,SUMIFS(JTPrice,JTDate,">="&$P$1,JTDate,"<="&$R$1,JTStockCode,$A23,JTType,"Issue")/R23*(P23+R23)))),SUMIFS(JTPrice,JTDate,">="&$P$1,JTDate,"<="&$R$1,JTStockCode,$A23,JTType,"Issue")) -> 0 | AA23: =IF(JSetup!$U$1="Single",IF(G23="Bought-In",IF(R23=0,I23,W23/R23),IF(SUMIFS(JTQty,JTDate,"<="&$R$1,JTStockCode,$A23,JTType,"Receipt")=0,I23,-SUMIFS(JTValue,JTDate,"<="&$R$1,JTFGCode,$A23,JTType,"Issue")/SUMIFS(JTQty,JTDate,"<="&$R$1,JTStockCode,$A23,JTType,"Receipt"))),IF(G23="Bought-In",IF(R23=0,I23,W23/R23),SUMIFS(BOMActualCost,BOMParents,$A23))) -> 361.4509804 | AB23: =IF(AND(JSetup!$U$1="Single",P23=0,G23="Manufactured"),0,IF(I23=0,0,(I23-AA23)/I23)) -> 0
A24: LB10 | B24: Labour - Grade 1 | C24: Hours | D24: 20 | F24: =IF(COUNTIF(StockCodes,A24)>1,"E1",IF(OR(AND(G24="Bought-In",ISBLANK(D24)=TRUE)=TRUE,AND(G24="Manufactured",ISBLANK(D24)=FALSE)=TRUE)=TRUE,"E2","-")) -> - | G24: =IF(ISNA(VLOOKUP($A24,BOMParents,COLUMN(BOM!$A$4),0))=TRUE,"Bought-In","Manufactured") -> Bought-In | H24: None | I24: =IF(G24="Bought-In",$D24,SUMIFS(BOMCost,BOMParents,$A24)) -> 20 | J24: 974.2690058 | K24: 1022.982456 | L24: =-SUMIFS(JTQty,JTJob,JReview!$D$1,JTStockCode,A24,JTType,"Issue") -> 300 | M24: Y | N24: 5126.900585 | O24: Y | P24: 0 | Q24: -11181.58363 | R24: -10430.05848 | S24: 751.5251462 | T24: 0 | U24: -223631.6725 | V24: =IF(JSetup!$U$1="Multiple",0,IF(P24>0,IF(P24+R24<=0,0,-SUMIFS(JTValue,JTDate,">="&$P$1,JTDate,"<="&$R$1,JTFGCode,$A24,JTType,"Issue")+SUMIFS(JTValue,JTDate,">="&$P$1,JTDate,"<="&$R$1,JTStockCode,$A24,JTType,"Issue")),0)) -> 0 | W24: =IF(H24="IM",IF(P24=0,SUMIFS(JTValue,JTDate,">="&$P$1,JTDate,"<="&$R$1,JTStockCode,$A24,JTType,"Issue"),IF(R24=0,0,IF(P24+R24>0,0,SUMIFS(JTValue,JTDate,">="&$P$1,JTDate,"<="&$R$1,JTStockCode,$A24,JTType,"Issue")/R24*(P24+R24)))),SUMIFS(JTValue,JTDate,">="&$P$1,JTDate,"<="&$R$1,JTStockCode,$A24,JTType,"Issue")) -> -212051.1696 | X24: 11580.50292 | Y24: 15030.50292 | Z24: =IF(H24="IM",IF(P24=0,SUMIFS(JTPrice,JTDate,">="&$P$1,JTDate,"<="&$R$1,JTStockCode,$A24,JTType,"Issue"),IF(R24=0,0,IF(P24+R24>0,0,SUMIFS(JTPrice,JTDate,">="&$P$1,JTDate,"<="&$R$1,JTStockCode,$A24,JTType,"Issue")/R24*(P24+R24)))),SUMIFS(JTPrice,JTDate,">="&$P$1,JTDate,"<="&$R$1,JTStockCode,$A24,JTType,"Issue")) -> -3450 | AA24: =IF(JSetup!$U$1="Single",IF(G24="Bought-In",IF(R24=0,I24,W24/R24),IF(SUMIFS(JTQty,JTDate,"<="&$R$1,JTStockCode,$A24,JTType,"Receipt")=0,I24,-SUMIFS(JTValue,JTDate,"<="&$R$1,JTFGCode,$A24,JTType,"Issue")/SUMIFS(JTQty,JTDate,"<="&$R$1,JTStockCode,$A24,JTType,"Receipt"))),IF(G24="Bought-In",IF(R24=0,I24,W24/R24),SUMIFS(BOMActualCost,BOMParents,$A24))) -> 20.33077475 | AB24: =IF(AND(JSetup!$U$1="Single",P24=0,G24="Manufactured"),0,IF(I24=0,0,(I24-AA24)/I24)) -> -0.01653873757
A25: LB15 | B25: Labour - Grade 2 | C25: Hours | D25: 30 | F25: =IF(COUNTIF(StockCodes,A25)>1,"E1",IF(OR(AND(G25="Bought-In",ISBLANK(D25)=TRUE)=TRUE,AND(G25="Manufactured",ISBLANK(D25)=FALSE)=TRUE)=TRUE,"E2","-")) -> - | G25: =IF(ISNA(VLOOKUP($A25,BOMParents,COLUMN(BOM!$A$4),0))=TRUE,"Bought-In","Manufactured") -> Bought-In | H25: None | I25: =IF(G25="Bought-In",$D25,SUMIFS(BOMCost,BOMParents,$A25)) -> 30 | J25: 100 | K25: 105 | L25: =-SUMIFS(JTQty,JTJob,JReview!$D$1,JTStockCode,A25,JTType,"Issue") -> 90 | M25: Y | N25: 550 | O25: Y | P25: 0 | Q25: -1187 | R25: -1173 | S25: 14 | T25: 0 | U25: -35610 | V25: =IF(JSetup!$U$1="Multiple",0,IF(P25>0,IF(P25+R25<=0,0,-SUMIFS(JTValue,JTDate,">="&$P$1,JTDate,"<="&$R$1,JTFGCode,$A25,JTType,"Issue")+SUMIFS(JTValue,JTDate,">="&$P$1,JTDate,"<="&$R$1,JTStockCode,$A25,JTType,"Issue")),0)) -> 0 | W25: =IF(H25="IM",IF(P25=0,SUMIFS(JTValue,JTDate,">="&$P$1,JTDate,"<="&$R$1,JTStockCode,$A25,JTType,"Issue"),IF(R25=0,0,IF(P25+R25>0,0,SUMIFS(JTValue,JTDate,">="&$P$1,JTDate,"<="&$R$1,JTStockCode,$A25,JTType,"Issue")/R25*(P25+R25)))),SUMIFS(JTValue,JTDate,">="&$P$1,JTDate,"<="&$R$1,JTStockCode,$A25,JTType,"Issue")) -> -35190 | X25: 420 | Y25: 420 | Z25: =IF(H25="IM",IF(P25=0,SUMIFS(JTPrice,JTDate,">="&$P$1,JTDate,"<="&$R$1,JTStockCode,$A25,JTType,"Issue"),IF(R25=0,0,IF(P25+R25>0,0,SUMIFS(JTPrice,JTDate,">="&$P$1,JTDate,"<="&$R$1,JTStockCode,$A25,JTType,"Issue")/R25*(P25+R25)))),SUMIFS(JTPrice,JTDate,">="&$P$1,JTDate,"<="&$R$1,JTStockCode,$A25,JTType,"Issue")) -> 0 | AA25: =IF(JSetup!$U$1="Single",IF(G25="Bought-In",IF(R25=0,I25,W25/R25),IF(SUMIFS(JTQty,JTDate,"<="&$R$1,JTStockCode,$A25,JTType,"Receipt")=0,I25,-SUMIFS(JTValue,JTDate,"<="&$R$1,JTFGCode,$A25,JTType,"Issue")/SUMIFS(JTQty,JTDate,"<="&$R$1,JTStockCode,$A25,JTType,"Receipt"))),IF(G25="Bought-In",IF(R25=0,I25,W25/R25),SUMIFS(BOMActualCost,BOMParents,$A25))) -> 30 | AB25: =IF(AND(JSetup!$U$1="Single",P25=0,G25="Manufactured"),0,IF(I25=0,0,(I25-AA25)/I25)) -> 0

Sheet BOM (hidden)
A1: Bills of Material
A2: Costing Components Set-up
A3: © www.excel-skills.com
A4: Product Stock Code | B4: Component Stock Code | C4: Input Quantity | D4: Yield | E4: Error Code | F4: Product Description | G4: Product UOM | H4: Product Level | I4: Component Description | J4: Component UOM | K4: Component Type | L4: Comp Incl Status | M4: Bought-In Price | N4: Bought-In Cost | O4: Intermed Comp Cost | P4: Intermed Prod Cost | Q4: Product Cost | R4: Actual UnitCost | S4: Actual Comp Cost | T4: Intermed Actual Cost | U4: Intermed Total Cost | V4: Actual Prod Cost | W4: Level1 TotIssued | X4: Level2 TotIssued | Y4: Level3 TotIssued | Z4: Level4 TotIssued | AA4: Level5 TotIssued | AB4: Level6 TotIssued | AC4: Level1 JobRequire | AD4: Level2 JobRequire | AE4: Level3 JobRequire | AF4: Level4 JobRequire | AG4: Level5 JobRequire | AH4: Level6 JobRequire | AI4: Level1 JobReceipt | AJ4: Level2 JobReceipt | AK4: Level3 JobReceipt | AL4: Level4 JobReceipt | AM4: Level5 JobReceipt | AN4: Level6 JobReceipt | AO4: Level1 ReqPlan | AP4: Level2 ReqPlan | AQ4: Level3 ReqPlan | AR4: Level4 ReqPlan | AS4: Level5 ReqPlan | AT4: Level6 ReqPlan
A5: SD18 | B5: RM30 | C5: 1 | D5: 0.9 | E5: =IF(AND(ISBLANK(A5)=FALSE,ISNA(MATCH(A5,StockCodes,0))=TRUE)=TRUE,"E3",IF(AND(ISBLANK(B5)=FALSE,ISNA(MATCH(B5,StockCodes,0))=TRUE)=TRUE,"E4",IF(SUMPRODUCT((BOMParents=A5)*(BOMComp=B5))>1,"E5","-"))) -> - | F5: =IF(ISNA(VLOOKUP($A5,StockMaster,COLUMN(StockCode!$B$4),0))=TRUE,"does not exist",VLOOKUP($A5,StockMaster,COLUMN(StockCode!$B$4),0)) -> Door | G5: =IF(ISNA(VLOOKUP($A5,StockMaster,COLUMN(StockCode!$C$4),0))=TRUE,"error",VLOOKUP($A5,StockMaster,COLUMN(StockCode!$C$4),0)) -> Units | H5: =IF(ISNA(VLOOKUP($A5,StockMaster,COLUMN(StockCode!$E$4),0))=TRUE,"All",VLOOKUP($A5,StockMaster,COLUMN(StockCode!$E$4),0)) -> All | I5: =IF(ISNA(VLOOKUP($B5,StockMaster,COLUMN(StockCode!$B$4),0))=TRUE,"does not exist",VLOOKUP($B5,StockMaster,COLUMN(StockCode!$B$4),0)) -> Wood | J5: =IF(ISNA(VLOOKUP($B5,StockMaster,COLUMN(StockCode!$C$4),0))=TRUE,"error",VLOOKUP($B5,StockMaster,COLUMN(StockCode!$C$4),0)) -> M2 | K5: =IF(ISNA(VLOOKUP($B5,StockMaster,COLUMN(StockCode!$G$4),0))=TRUE,0,VLOOKUP($B5,StockMaster,COLUMN(StockCode!$G$4),0)) -> Bought-In | L5: =IF(AND(K5="Manufactured",H5="All"),"N","Y") -> Y | M5: =IF($K5="Manufactured",0,IF(ISNA(VLOOKUP($B5,StockMaster,COLUMN(StockCode!$D$4),0))=TRUE,0,VLOOKUP($B5,StockMaster,COLUMN(StockCode!$D$4),0))) -> 120 | N5: =IF($D5=0,0,$C5/$D5*$M5) -> 133.3333333 | O5: =SUMIFS(BOMCost,BOMParents,B5) -> 0 | P5: =IF($D5=0,0,$C5/$D5*$O5) -> 0 | Q5: =SUM(N5,P5) -> 133.3333333 | R5: =IF($K5="Manufactured",0,IF(ISNA(VLOOKUP($B5,StockMaster,COLUMN(StockCode!$AA$4),0))=TRUE,0,VLOOKUP($B5,StockMaster,COLUMN(StockCode!$AA$4),0))) -> 124.2132226 | S5: =IF($D5=0,0,$C5/$D5*$R5) -> 138.0146918 | T5: =SUMIFS(BOMActualCost,BOMParents,B5) -> 0 | U5: =IF($D5=0,0,$C5/$D5*$T5) -> 0 | V5: =SUM(S5,U5) -> 138.0146918 | W5: =IF(ISNA(VLOOKUP($A5,StockMaster,COLUMN(StockCode!$P$4),0))=TRUE,0,IF($D5=0,0,(VLOOKUP($A5,StockMaster,COLUMN(StockCode!$P$4),0)*$C5/$D5))) -> 0 | X5: =IF($D5=0,0,SUMIFS(TLevel1,BOMComp,$A5,BOMLevel,"<>First")*$C5/$D5) -> 1318.888889 | Y5: =IF($D5=0,0,SUMIFS(TLevel2,BOMComp,$A5,BOMLevel,"<>First")*$C5/$D5) -> 0 | Z5: =IF($D5=0,0,SUMIFS(TLevel3,BOMComp,$A5,BOMLevel,"<>First")*$C5/$D5) -> 0 | AA5: =IF($D5=0,0,SUMIFS(TLevel4,BOMComp,$A5,BOMLevel,"<>First")*$C5/$D5) -> 0 | AB5: =IF($D5=0,0,SUMIFS(TLevel5,BOMComp,$A5,BOMLevel,"<>First")*$C5/$D5) -> 0 | AC5: =IF(ISNA(VLOOKUP($A5,JRCode,COLUMN(JReview!$D$4),0))=TRUE,0,IF($D5=0,0,VLOOKUP($A5,JRCode,COLUMN(JReview!$D$4),0)*$C5/$D5)) -> 0 | AD5: =IF($D5=0,0,SUMIFS(JLevel1,BOMComp,$A5,BOMLevel,"<>First")*$C5/$D5) -> 111.1111111 | AE5: =IF($D5=0,0,SUMIFS(JLevel2,BOMComp,$A5,BOMLevel,"<>First")*$C5/$D5) -> 0 | AF5: =IF($D5=0,0,SUMIFS(JLevel3,BOMComp,$A5,BOMLevel,"<>First")*$C5/$D5) -> 0 | AG5: =IF($D5=0,0,SUMIFS(JLevel4,BOMComp,$A5,BOMLevel,"<>First")*$C5/$D5) -> 0 | AH5: =IF($D5=0,0,SUMIFS(JLevel5,BOMComp,$A5,BOMLevel,"<>First")*$C5/$D5) -> 0 | AI5: =IF(ISNA(VLOOKUP($A5,JRCode,COLUMN(JReview!$E$4),0))=TRUE,0,IF($D5=0,0,VLOOKUP($A5,JRCode,COLUMN(JReview!$E$4),0)*$C5/$D5)) -> 0 | AJ5: =IF($D5=0,0,SUMIFS(JRLevel1,BOMComp,$A5,BOMLevel,"<>First")*$C5/$D5) -> 116.6666667 | AK5: =IF($D5=0,0,SUMIFS(JRLevel2,BOMComp,$A5,BOMLevel,"<>First")*$C5/$D5) -> 0 | AL5: =IF($D5=0,0,SUMIFS(JRLevel3,BOMComp,$A5,BOMLevel,"<>First")*$C5/$D5) -> 0 | AM5: =IF($D5=0,0,SUMIFS(JRLevel4,BOMComp,$A5,BOMLevel,"<>First")*$C5/$D5) -> 0 | AN5: =IF($D5=0,0,SUMIFS(JRLevel5,BOMComp,$A5,BOMLevel,"<>First")*$C5/$D5) -> 0 | AO5: =IF(ISNA(VLOOKUP($A5,Require,COLUMN(ReqPlan!$E$6),0))=TRUE,0,IF($D5=0,0,VLOOKUP($A5,Require,COLUMN(ReqPlan!$E$6),0)*$C5/$D5)) -> 0 | AP5: =IF($D5=0,0,SUMIFS(RLevel1,BOMComp,$A5,BOMLevel,"<>First")*$C5/$D5) -> 611.1111111 | AQ5: =IF($D5=0,0,SUMIFS(RLevel2,BOMComp,$A5,BOMLevel,"<>First")*$C5/$D5) -> 0 | AR5: =IF($D5=0,0,SUMIFS(RLevel3,BOMComp,$A5,BOMLevel,"<>First")*$C5/$D5) -> 0 | AS5: =IF($D5=0,0,SUMIFS(RLevel4,BOMComp,$A5,BOMLevel,"<>First")*$C5/$D5) -> 0 | AT5: =IF($D5=0,0,SUMIFS(RLevel5,BOMComp,$A5,BOMLevel,"<>First")*$C5/$D5) -> 0
A6: SD18 | B6: RM25 | C6: 1 | D6: 1 | E6: - | F6: =IF(ISNA(VLOOKUP($A6,StockMaster,COLUMN(StockCode!$B$4),0))=TRUE,"does not exist",VLOOKUP($A6,StockMaster,COLUMN(StockCode!$B$4),0)) -> Door | G6: =IF(ISNA(VLOOKUP($A6,StockMaster,COLUMN(StockCode!$C$4),0))=TRUE,"error",VLOOKUP($A6,StockMaster,COLUMN(StockCode!$C$4),0)) -> Units | H6: =IF(ISNA(VLOOKUP($A6,StockMaster,COLUMN(StockCode!$E$4),0))=TRUE,"All",VLOOKUP($A6,StockMaster,COLUMN(StockCode!$E$4),0)) -> All | I6: =IF(ISNA(VLOOKUP($B6,StockMaster,COLUMN(StockCode!$B$4),0))=TRUE,"does not exist",VLOOKUP($B6,StockMaster,COLUMN(StockCode!$B$4),0)) -> Door Handle | J6: =IF(ISNA(VLOOKUP($B6,StockMaster,COLUMN(StockCode!$C$4),0))=TRUE,"error",VLOOKUP($B6,StockMaster,COLUMN(StockCode!$C$4),0)) -> Units | K6: =IF(ISNA(VLOOKUP($B6,StockMaster,COLUMN(StockCode!$G$4),0))=TRUE,0,VLOOKUP($B6,StockMaster,COLUMN(StockCode!$G$4),0)) -> Bought-In | L6: Y | M6: =IF($K6="Manufactured",0,IF(ISNA(VLOOKUP($B6,StockMaster,COLUMN(StockCode!$D$4),0))=TRUE,0,VLOOKUP($B6,StockMaster,COLUMN(StockCode!$D$4),0))) -> 150 | N6: 150 | O6: 0 | P6: 0 | Q6: 150 | R6: =IF($K6="Manufactured",0,IF(ISNA(VLOOKUP($B6,StockMaster,COLUMN(StockCode!$AA$4),0))=TRUE,0,VLOOKUP($B6,StockMaster,COLUMN(StockCode!$AA$4),0))) -> 150 | S6: 150 | T6: 0 | U6: 0 | V6: 150 | W6: =IF(ISNA(VLOOKUP($A6,StockMaster,COLUMN(StockCode!$P$4),0))=TRUE,0,IF($D6=0,0,(VLOOKUP($A6,StockMaster,COLUMN(StockCode!$P$4),0)*$C6/$D6))) -> 0 | X6: =IF($D6=0,0,SUMIFS(TLevel1,BOMComp,$A6,BOMLevel,"<>First")*$C6/$D6) -> 1187 | Y6: =IF($D6=0,0,SUMIFS(TLevel2,BOMComp,$A6,BOMLevel,"<>First")*$C6/$D6) -> 0 | Z6: =IF($D6=0,0,SUMIFS(TLevel3,BOMComp,$A6,BOMLevel,"<>First")*$C6/$D6) -> 0 | AA6: =IF($D6=0,0,SUMIFS(TLevel4,BOMComp,$A6,BOMLevel,"<>First")*$C6/$D6) -> 0 | AB6: =IF($D6=0,0,SUMIFS(TLevel5,BOMComp,$A6,BOMLevel,"<>First")*$C6/$D6) -> 0 | AC6: =IF(ISNA(VLOOKUP($A6,JRCode,COLUMN(JReview!$D$4),0))=TRUE,0,IF($D6=0,0,VLOOKUP($A6,JRCode,COLUMN(JReview!$D$4),0)*$C6/$D6)) -> 0 | AD6: =IF($D6=0,0,SUMIFS(JLevel1,BOMComp,$A6,BOMLevel,"<>First")*$C6/$D6) -> 100 | AE6: =IF($D6=0,0,SUMIFS(JLevel2,BOMComp,$A6,BOMLevel,"<>First")*$C6/$D6) -> 0 | AF6: =IF($D6=0,0,SUMIFS(JLevel3,BOMComp,$A6,BOMLevel,"<>First")*$C6/$D6) -> 0 | AG6: =IF($D6=0,0,SUMIFS(JLevel4,BOMComp,$A6,BOMLevel,"<>First")*$C6/$D6) -> 0 | AH6: =IF($D6=0,0,SUMIFS(JLevel5,BOMComp,$A6,BOMLevel,"<>First")*$C6/$D6) -> 0 | AI6: =IF(ISNA(VLOOKUP($A6,JRCode,COLUMN(JReview!$E$4),0))=TRUE,0,IF($D6=0,0,VLOOKUP($A6,JRCode,COLUMN(JReview!$E$4),0)*$C6/$D6)) -> 0 | AJ6: =IF($D6=0,0,SUMIFS(JRLevel1,BOMComp,$A6,BOMLevel,"<>First")*$C6/$D6) -> 105 | AK6: =IF($D6=0,0,SUMIFS(JRLevel2,BOMComp,$A6,BOMLevel,"<>First")*$C6/$D6) -> 0 | AL6: =IF($D6=0,0,SUMIFS(JRLevel3,BOMComp,$A6,BOMLevel,"<>First")*$C6/$D6) -> 0 | AM6: =IF($D6=0,0,SUMIFS(JRLevel4,BOMComp,$A6,BOMLevel,"<>First")*$C6/$D6) -> 0 | AN6: =IF($D6=0,0,SUMIFS(JRLevel5,BOMComp,$A6,BOMLevel,"<>First")*$C6/$D6) -> 0 | AO6: =IF(ISNA(VLOOKUP($A6,Require,COLUMN(ReqPlan!$E$6),0))=TRUE,0,IF($D6=0,0,VLOOKUP($A6,Require,COLUMN(ReqPlan!$E$6),0)*$C6/$D6)) -> 0 | AP6: =IF($D6=0,0,SUMIFS(RLevel1,BOMComp,$A6,BOMLevel,"<>First")*$C6/$D6) -> 550 | AQ6: =IF($D6=0,0,SUMIFS(RLevel2,BOMComp,$A6,BOMLevel,"<>First")*$C6/$D6) -> 0 | AR6: =IF($D6=0,0,SUMIFS(RLevel3,BOMComp,$A6,BOMLevel,"<>First")*$C6/$D6) -> 0 | AS6: =IF($D6=0,0,SUMIFS(RLevel4,BOMComp,$A6,BOMLevel,"<>First")*$C6/$D6) -> 0 | AT6: =IF($D6=0,0,SUMIFS(RLevel5,BOMComp,$A6,BOMLevel,"<>First")*$C6/$D6) -> 0
A7: SD18 | B7: RM50 | C7: 0.1 | D7: 0.9 | E7: - | F7: =IF(ISNA(VLOOKUP($A7,StockMaster,COLUMN(StockCode!$B$4),0))=TRUE,"does not exist",VLOOKUP($A7,StockMaster,COLUMN(StockCode!$B$4),0)) -> Door | G7: =IF(ISNA(VLOOKUP($A7,StockMaster,COLUMN(StockCode!$C$4),0))=TRUE,"error",VLOOKUP($A7,StockMaster,COLUMN(StockCode!$C$4),0)) -> Units | H7: =IF(ISNA(VLOOKUP($A7,StockMaster,COLUMN(StockCode!$E$4),0))=TRUE,"All",VLOOKUP($A7,StockMaster,COLUMN(StockCode!$E$4),0)) -> All | I7: =IF(ISNA(VLOOKUP($B7,StockMaster,COLUMN(StockCode!$B$4),0))=TRUE,"does not exist",VLOOKUP($B7,StockMaster,COLUMN(StockCode!$B$4),0)) -> 1 Inch Screws | J7: =IF(ISNA(VLOOKUP($B7,StockMaster,COLUMN(StockCode!$C$4),0))=TRUE,"error",VLOOKUP($B7,StockMaster,COLUMN(StockCode!$C$4),0)) -> Bag | K7: =IF(ISNA(VLOOKUP($B7,StockMaster,COLUMN(StockCode!$G$4),0))=TRUE,0,VLOOKUP($B7,StockMaster,COLUMN(StockCode!$G$4),0)) -> Bought-In | L7: Y | M7: =IF($K7="Manufactured",0,IF(ISNA(VLOOKUP($B7,StockMaster,COLUMN(StockCode!$D$4),0))=TRUE,0,VLOOKUP($B7,StockMaster,COLUMN(StockCode!$D$4),0))) -> 30 | N7: 3.333333333 | O7: 0 | P7: 0 | Q7: 3.333333333 | R7: =IF($K7="Manufactured",0,IF(ISNA(VLOOKUP($B7,StockMaster,COLUMN(StockCode!$AA$4),0))=TRUE,0,VLOOKUP($B7,StockMaster,COLUMN(StockCode!$AA$4),0))) -> 30 | S7: 3.333333333 | T7: 0 | U7: 0 | V7: 3.333333333 | W7: =IF(ISNA(VLOOKUP($A7,StockMaster,COLUMN(StockCode!$P$4),0))=TRUE,0,IF($D7=0,0,(VLOOKUP($A7,StockMaster,COLUMN(StockCode!$P$4),0)*$C7/$D7))) -> 0 | X7: =IF($D7=0,0,SUMIFS(TLevel1,BOMComp,$A7,BOMLevel,"<>First")*$C7/$D7) -> 131.8888889 | Y7: =IF($D7=0,0,SUMIFS(TLevel2,BOMComp,$A7,BOMLevel,"<>First")*$C7/$D7) -> 0 | Z7: =IF($D7=0,0,SUMIFS(TLevel3,BOMComp,$A7,BOMLevel,"<>First")*$C7/$D7) -> 0 | AA7: =IF($D7=0,0,SUMIFS(TLevel4,BOMComp,$A7,BOMLevel,"<>First")*$C7/$D7) -> 0 | AB7: =IF($D7=0,0,SUMIFS(TLevel5,BOMComp,$A7,BOMLevel,"<>First")*$C7/$D7) -> 0 | AC7: =IF(ISNA(VLOOKUP($A7,JRCode,COLUMN(JReview!$D$4),0))=TRUE,0,IF($D7=0,0,VLOOKUP($A7,JRCode,COLUMN(JReview!$D$4),0)*$C7/$D7)) -> 0 | AD7: =IF($D7=0,0,SUMIFS(JLevel1,BOMComp,$A7,BOMLevel,"<>First")*$C7/$D7) -> 11.11111111 | AE7: =IF($D7=0,0,SUMIFS(JLevel2,BOMComp,$A7,BOMLevel,"<>First")*$C7/$D7) -> 0 | AF7: =IF($D7=0,0,SUMIFS(JLevel3,BOMComp,$A7,BOMLevel,"<>First")*$C7/$D7) -> 0 | AG7: =IF($D7=0,0,SUMIFS(JLevel4,BOMComp,$A7,BOMLevel,"<>First")*$C7/$D7) -> 0 | AH7: =IF($D7=0,0,SUMIFS(JLevel5,BOMComp,$A7,BOMLevel,"<>First")*$C7/$D7) -> 0 | AI7: =IF(ISNA(VLOOKUP($A7,JRCode,COLUMN(JReview!$E$4),0))=TRUE,0,IF($D7=0,0,VLOOKUP($A7,JRCode,COLUMN(JReview!$E$4),0)*$C7/$D7)) -> 0 | AJ7: =IF($D7=0,0,SUMIFS(JRLevel1,BOMComp,$A7,BOMLevel,"<>First")*$C7/$D7) -> 11.66666667 | AK7: =IF($D7=0,0,SUMIFS(JRLevel2,BOMComp,$A7,BOMLevel,"<>First")*$C7/$D7) -> 0 | AL7: =IF($D7=0,0,SUMIFS(JRLevel3,BOMComp,$A7,BOMLevel,"<>First")*$C7/$D7) -> 0 | AM7: =IF($D7=0,0,SUMIFS(JRLevel4,BOMComp,$A7,BOMLevel,"<>First")*$C7/$D7) -> 0 | AN7: =IF($D7=0,0,SUMIFS(JRLevel5,BOMComp,$A7,BOMLevel,"<>First")*$C7/$D7) -> 0 | AO7: =IF(ISNA(VLOOKUP($A7,Require,COLUMN(ReqPlan!$E$6),0))=TRUE,0,IF($D7=0,0,VLOOKUP($A7,Require,COLUMN(ReqPlan!$E$6),0)*$C7/$D7)) -> 0 | AP7: =IF($D7=0,0,SUMIFS(RLevel1,BOMComp,$A7,BOMLevel,"<>First")*$C7/$D7) -> 61.11111111 | AQ7: =IF($D7=0,0,SUMIFS(RLevel2,BOMComp,$A7,BOMLevel,"<>First")*$C7/$D7) -> 0 | AR7: =IF($D7=0,0,SUMIFS(RLevel3,BOMComp,$A7,BOMLevel,"<>First")*$C7/$D7) -> 0 | AS7: =IF($D7=0,0,SUMIFS(RLevel4,BOMComp,$A7,BOMLevel,"<>First")*$C7/$D7) -> 0 | AT7: =IF($D7=0,0,SUMIFS(RLevel5,BOMComp,$A7,BOMLevel,"<>First")*$C7/$D7) -> 0
A8: SD18 | B8: RM75 | C8: 2 | D8: 1 | E8: - | F8: =IF(ISNA(VLOOKUP($A8,StockMaster,COLUMN(StockCode!$B$4),0))=TRUE,"does not exist",VLOOKUP($A8,StockMaster,COLUMN(StockCode!$B$4),0)) -> Door | G8: =IF(ISNA(VLOOKUP($A8,StockMaster,COLUMN(StockCode!$C$4),0))=TRUE,"error",VLOOKUP($A8,StockMaster,COLUMN(StockCode!$C$4),0)) -> Units | H8: =IF(ISNA(VLOOKUP($A8,StockMaster,COLUMN(StockCode!$E$4),0))=TRUE,"All",VLOOKUP($A8,StockMaster,COLUMN(StockCode!$E$4),0)) -> All | I8: =IF(ISNA(VLOOKUP($B8,StockMaster,COLUMN(StockCode!$B$4),0))=TRUE,"does not exist",VLOOKUP($B8,StockMaster,COLUMN(StockCode!$B$4),0)) -> Swivel | J8: =IF(ISNA(VLOOKUP($B8,StockMaster,COLUMN(StockCode!$C$4),0))=TRUE,"error",VLOOKUP($B8,StockMaster,COLUMN(StockCode!$C$4),0)) -> Units | K8: =IF(ISNA(VLOOKUP($B8,StockMaster,COLUMN(StockCode!$G$4),0))=TRUE,0,VLOOKUP($B8,StockMaster,COLUMN(StockCode!$G$4),0)) -> Bought-In | L8: Y | M8: =IF($K8="Manufactured",0,IF(ISNA(VLOOKUP($B8,StockMaster,COLUMN(StockCode!$D$4),0))=TRUE,0,VLOOKUP($B8,StockMaster,COLUMN(StockCode!$D$4),0))) -> 3.5 | N8: 7 | O8: 0 | P8: 0 | Q8: 7 | R8: =IF($K8="Manufactured",0,IF(ISNA(VLOOKUP($B8,StockMaster,COLUMN(StockCode!$AA$4),0))=TRUE,0,VLOOKUP($B8,StockMaster,COLUMN(StockCode!$AA$4),0))) -> 3.5 | S8: 7 | T8: 0 | U8: 0 | V8: 7 | W8: =IF(ISNA(VLOOKUP($A8,StockMaster,COLUMN(StockCode!$P$4),0))=TRUE,0,IF($D8=0,0,(VLOOKUP($A8,StockMaster,COLUMN(StockCode!$P$4),0)*$C8/$D8))) -> 0 | X8: =IF($D8=0,0,SUMIFS(TLevel1,BOMComp,$A8,BOMLevel,"<>First")*$C8/$D8) -> 2374 | Y8: =IF($D8=0,0,SUMIFS(TLevel2,BOMComp,$A8,BOMLevel,"<>First")*$C8/$D8) -> 0 | Z8: =IF($D8=0,0,SUMIFS(TLevel3,BOMComp,$A8,BOMLevel,"<>First")*$C8/$D8) -> 0 | AA8: =IF($D8=0,0,SUMIFS(TLevel4,BOMComp,$A8,BOMLevel,"<>First")*$C8/$D8) -> 0 | AB8: =IF($D8=0,0,SUMIFS(TLevel5,BOMComp,$A8,BOMLevel,"<>First")*$C8/$D8) -> 0 | AC8: =IF(ISNA(VLOOKUP($A8,JRCode,COLUMN(JReview!$D$4),0))=TRUE,0,IF($D8=0,0,VLOOKUP($A8,JRCode,COLUMN(JReview!$D$4),0)*$C8/$D8)) -> 0 | AD8: =IF($D8=0,0,SUMIFS(JLevel1,BOMComp,$A8,BOMLevel,"<>First")*$C8/$D8) -> 200 | AE8: =IF($D8=0,0,SUMIFS(JLevel2,BOMComp,$A8,BOMLevel,"<>First")*$C8/$D8) -> 0 | AF8: =IF($D8=0,0,SUMIFS(JLevel3,BOMComp,$A8,BOMLevel,"<>First")*$C8/$D8) -> 0 | AG8: =IF($D8=0,0,SUMIFS(JLevel4,BOMComp,$A8,BOMLevel,"<>First")*$C8/$D8) -> 0 | AH8: =IF($D8=0,0,SUMIFS(JLevel5,BOMComp,$A8,BOMLevel,"<>First")*$C8/$D8) -> 0 | AI8: =IF(ISNA(VLOOKUP($A8,JRCode,COLUMN(JReview!$E$4),0))=TRUE,0,IF($D8=0,0,VLOOKUP($A8,JRCode,COLUMN(JReview!$E$4),0)*$C8/$D8)) -> 0 | AJ8: =IF($D8=0,0,SUMIFS(JRLevel1,BOMComp,$A8,BOMLevel,"<>First")*$C8/$D8) -> 210 | AK8: =IF($D8=0,0,SUMIFS(JRLevel2,BOMComp,$A8,BOMLevel,"<>First")*$C8/$D8) -> 0 | AL8: =IF($D8=0,0,SUMIFS(JRLevel3,BOMComp,$A8,BOMLevel,"<>First")*$C8/$D8) -> 0 | AM8: =IF($D8=0,0,SUMIFS(JRLevel4,BOMComp,$A8,BOMLevel,"<>First")*$C8/$D8) -> 0 | AN8: =IF($D8=0,0,SUMIFS(JRLevel5,BOMComp,$A8,BOMLevel,"<>First")*$C8/$D8) -> 0 | AO8: =IF(ISNA(VLOOKUP($A8,Require,COLUMN(ReqPlan!$E$6),0))=TRUE,0,IF($D8=0,0,VLOOKUP($A8,Require,COLUMN(ReqPlan!$E$6),0)*$C8/$D8)) -> 0 | AP8: =IF($D8=0,0,SUMIFS(RLevel1,BOMComp,$A8,BOMLevel,"<>First")*$C8/$D8) -> 1100 | AQ8: =IF($D8=0,0,SUMIFS(RLevel2,BOMComp,$A8,BOMLevel,"<>First")*$C8/$D8) -> 0 | AR8: =IF($D8=0,0,SUMIFS(RLevel3,BOMComp,$A8,BOMLevel,"<>First")*$C8/$D8) -> 0 | AS8: =IF($D8=0,0,SUMIFS(RLevel4,BOMComp,$A8,BOMLevel,"<>First")*$C8/$D8) -> 0 | AT8: =IF($D8=0,0,SUMIFS(RLevel5,BOMComp,$A8,BOMLevel,"<>First")*$C8/$D8) -> 0
A9: SD18 | B9: LB10 | C9: 1 | D9: 1 | E9: - | F9: =IF(ISNA(VLOOKUP($A9,StockMaster,COLUMN(StockCode!$B$4),0))=TRUE,"does not exist",VLOOKUP($A9,StockMaster,COLUMN(StockCode!$B$4),0)) -> Door | G9: =IF(ISNA(VLOOKUP($A9,StockMaster,COLUMN(StockCode!$C$4),0))=TRUE,"error",VLOOKUP($A9,StockMaster,COLUMN(StockCode!$C$4),0)) -> Units | H9: =IF(ISNA(VLOOKUP($A9,StockMaster,COLUMN(StockCode!$E$4),0))=TRUE,"All",VLOOKUP($A9,StockMaster,COLUMN(StockCode!$E$4),0)) -> All | I9: =IF(ISNA(VLOOKUP($B9,StockMaster,COLUMN(StockCode!$B$4),0))=TRUE,"does not exist",VLOOKUP($B9,StockMaster,COLUMN(StockCode!$B$4),0)) -> Labour - Grade 1 | J9: =IF(ISNA(VLOOKUP($B9,StockMaster,COLUMN(StockCode!$C$4),0))=TRUE,"error",VLOOKUP($B9,StockMaster,COLUMN(StockCode!$C$4),0)) -> Hours | K9: =IF(ISNA(VLOOKUP($B9,StockMaster,COLUMN(StockCode!$G$4),0))=TRUE,0,VLOOKUP($B9,StockMaster,COLUMN(StockCode!$G$4),0)) -> Bought-In | L9: Y | M9: =IF($K9="Manufactured",0,IF(ISNA(VLOOKUP($B9,StockMaster,COLUMN(StockCode!$D$4),0))=TRUE,0,VLOOKUP($B9,StockMaster,COLUMN(StockCode!$D$4),0))) -> 20 | N9: 20 | O9: 0 | P9: 0 | Q9: 20 | R9: =IF($K9="Manufactured",0,IF(ISNA(VLOOKUP($B9,StockMaster,COLUMN(StockCode!$AA$4),0))=TRUE,0,VLOOKUP($B9,StockMaster,COLUMN(StockCode!$AA$4),0))) -> 20.33077475 | S9: 20.33077475 | T9: 0 | U9: 0 | V9: 20.33077475 | W9: =IF(ISNA(VLOOKUP($A9,StockMaster,COLUMN(StockCode!$P$4),0))=TRUE,0,IF($D9=0,0,(VLOOKUP($A9,StockMaster,COLUMN(StockCode!$P$4),0)*$C9/$D9))) -> 0 | X9: =IF($D9=0,0,SUMIFS(TLevel1,BOMComp,$A9,BOMLevel,"<>First")*$C9/$D9) -> 1187 | Y9: =IF($D9=0,0,SUMIFS(TLevel2,BOMComp,$A9,BOMLevel,"<>First")*$C9/$D9) -> 0 | Z9: =IF($D9=0,0,SUMIFS(TLevel3,BOMComp,$A9,BOMLevel,"<>First")*$C9/$D9) -> 0 | AA9: =IF($D9=0,0,SUMIFS(TLevel4,BOMComp,$A9,BOMLevel,"<>First")*$C9/$D9) -> 0 | AB9: =IF($D9=0,0,SUMIFS(TLevel5,BOMComp,$A9,BOMLevel,"<>First")*$C9/$D9) -> 0 | AC9: =IF(ISNA(VLOOKUP($A9,JRCode,COLUMN(JReview!$D$4),0))=TRUE,0,IF($D9=0,0,VLOOKUP($A9,JRCode,COLUMN(JReview!$D$4),0)*$C9/$D9)) -> 0 | AD9: =IF($D9=0,0,SUMIFS(JLevel1,BOMComp,$A9,BOMLevel,"<>First")*$C9/$D9) -> 100 | AE9: =IF($D9=0,0,SUMIFS(JLevel2,BOMComp,$A9,BOMLevel,"<>First")*$C9/$D9) -> 0 | AF9: =IF($D9=0,0,SUMIFS(JLevel3,BOMComp,$A9,BOMLevel,"<>First")*$C9/$D9) -> 0 | AG9: =IF($D9=0,0,SUMIFS(JLevel4,BOMComp,$A9,BOMLevel,"<>First")*$C9/$D9) -> 0 | AH9: =IF($D9=0,0,SUMIFS(JLevel5,BOMComp,$A9,BOMLevel,"<>First")*$C9/$D9) -> 0 | AI9: =IF(ISNA(VLOOKUP($A9,JRCode,COLUMN(JReview!$E$4),0))=TRUE,0,IF($D9=0,0,VLOOKUP($A9,JRCode,COLUMN(JReview!$E$4),0)*$C9/$D9)) -> 0 | AJ9: =IF($D9=0,0,SUMIFS(JRLevel1,BOMComp,$A9,BOMLevel,"<>First")*$C9/$D9) -> 105 | AK9: =IF($D9=0,0,SUMIFS(JRLevel2,BOMComp,$A9,BOMLevel,"<>First")*$C9/$D9) -> 0 | AL9: =IF($D9=0,0,SUMIFS(JRLevel3,BOMComp,$A9,BOMLevel,"<>First")*$C9/$D9) -> 0 | AM9: =IF($D9=0,0,SUMIFS(JRLevel4,BOMComp,$A9,BOMLevel,"<>First")*$C9/$D9) -> 0 | AN9: =IF($D9=0,0,SUMIFS(JRLevel5,BOMComp,$A9,BOMLevel,"<>First")*$C9/$D9) -> 0 | AO9: =IF(ISNA(VLOOKUP($A9,Require,COLUMN(ReqPlan!$E$6),0))=TRUE,0,IF($D9=0,0,VLOOKUP($A9,Require,COLUMN(ReqPlan!$E$6),0)*$C9/$D9)) -> 0 | AP9: =IF($D9=0,0,SUMIFS(RLevel1,BOMComp,$A9,BOMLevel,"<>First")*$C9/$D9) -> 550 | AQ9: =IF($D9=0,0,SUMIFS(RLevel2,BOMComp,$A9,BOMLevel,"<>First")*$C9/$D9) -> 0 | AR9: =IF($D9=0,0,SUMIFS(RLevel3,BOMComp,$A9,BOMLevel,"<>First")*$C9/$D9) -> 0 | AS9: =IF($D9=0,0,SUMIFS(RLevel4,BOMComp,$A9,BOMLevel,"<>First")*$C9/$D9) -> 0 | AT9: =IF($D9=0,0,SUMIFS(RLevel5,BOMComp,$A9,BOMLevel,"<>First")*$C9/$D9) -> 0
A10: SD20 | B10: RM60 | C10: 0.25 | D10: 0.85 | E10: - | F10: =IF(ISNA(VLOOKUP($A10,StockMaster,COLUMN(StockCode!$B$4),0))=TRUE,"does not exist",VLOOKUP($A10,StockMaster,COLUMN(StockCode!$B$4),0)) -> Window | G10: =IF(ISNA(VLOOKUP($A10,StockMaster,COLUMN(StockCode!$C$4),0))=TRUE,"error",VLOOKUP($A10,StockMaster,COLUMN(StockCode!$C$4),0)) -> Units | H10: =IF(ISNA(VLOOKUP($A10,StockMaster,COLUMN(StockCode!$E$4),0))=TRUE,"All",VLOOKUP($A10,StockMaster,COLUMN(StockCode!$E$4),0)) -> All | I10: =IF(ISNA(VLOOKUP($B10,StockMaster,COLUMN(StockCode!$B$4),0))=TRUE,"does not exist",VLOOKUP($B10,StockMaster,COLUMN(StockCode!$B$4),0)) -> Glass | J10: =IF(ISNA(VLOOKUP($B10,StockMaster,COLUMN(StockCode!$C$4),0))=TRUE,"error",VLOOKUP($B10,StockMaster,COLUMN(StockCode!$C$4),0)) -> M2 | K10: =IF(ISNA(VLOOKUP($B10,StockMaster,COLUMN(StockCode!$G$4),0))=TRUE,0,VLOOKUP($B10,StockMaster,COLUMN(StockCode!$G$4),0)) -> Bought-In | L10: Y | M10: =IF($K10="Manufactured",0,IF(ISNA(VLOOKUP($B10,StockMaster,COLUMN(StockCode!$D$4),0))=TRUE,0,VLOOKUP($B10,StockMaster,COLUMN(StockCode!$D$4),0))) -> 80 | N10: 23.52941176 | O10: 0 | P10: 0 | Q10: 23.52941176 | R10: =IF($K10="Manufactured",0,IF(ISNA(VLOOKUP($B10,StockMaster,COLUMN(StockCode!$AA$4),0))=TRUE,0,VLOOKUP($B10,StockMaster,COLUMN(StockCode!$AA$4),0))) -> 81.87211648 | S10: 24.08003426 | T10: 0 | U10: 0 | V10: 24.08003426 | W10: =IF(ISNA(VLOOKUP($A10,StockMaster,COLUMN(StockCode!$P$4),0))=TRUE,0,IF($D10=0,0,(VLOOKUP($A10,StockMaster,COLUMN(StockCode!$P$4),0)*$C10/$D10))) -> 0 | X10: =IF($D10=0,0,SUMIFS(TLevel1,BOMComp,$A10,BOMLevel,"<>First")*$C10/$D10) -> 0 | Y10: =IF($D10=0,0,SUMIFS(TLevel2,BOMComp,$A10,BOMLevel,"<>First")*$C10/$D10) -> 2501.547988 | Z10: =IF($D10=0,0,SUMIFS(TLevel3,BOMComp,$A10,BOMLevel,"<>First")*$C10/$D10) -> 122.3529412 | AA10: =IF($D10=0,0,SUMIFS(TLevel4,BOMComp,$A10,BOMLevel,"<>First")*$C10/$D10) -> 0 | AB10: =IF($D10=0,0,SUMIFS(TLevel5,BOMComp,$A10,BOMLevel,"<>First")*$C10/$D10) -> 0 | AC10: =IF(ISNA(VLOOKUP($A10,JRCode,COLUMN(JReview!$D$4),0))=TRUE,0,IF($D10=0,0,VLOOKUP($A10,JRCode,COLUMN(JReview!$D$4),0)*$C10/$D10)) -> 0 | AD10: =IF($D10=0,0,SUMIFS(JLevel1,BOMComp,$A10,BOMLevel,"<>First")*$C10/$D10) -> 0 | AE10: =IF($D10=0,0,SUMIFS(JLevel2,BOMComp,$A10,BOMLevel,"<>First")*$C10/$D10) -> 247.6780186 | AF10: =IF($D10=0,0,SUMIFS(JLevel3,BOMComp,$A10,BOMLevel,"<>First")*$C10/$D10) -> 0 | AG10: =IF($D10=0,0,SUMIFS(JLevel4,BOMComp,$A10,BOMLevel,"<>First")*$C10/$D10) -> 0 | AH10: =IF($D10=0,0,SUMIFS(JLevel5,BOMComp,$A10,BOMLevel,"<>First")*$C10/$D10) -> 0 | AI10: =IF(ISNA(VLOOKUP($A10,JRCode,COLUMN(JReview!$E$4),0))=TRUE,0,IF($D10=0,0,VLOOKUP($A10,JRCode,COLUMN(JReview!$E$4),0)*$C10/$D10)) -> 0 | AJ10: =IF($D10=0,0,SUMIFS(JRLevel1,BOMComp,$A10,BOMLevel,"<>First")*$C10/$D10) -> 0 | AK10: =IF($D10=0,0,SUMIFS(JRLevel2,BOMComp,$A10,BOMLevel,"<>First")*$C10/$D10) -> 260.0619195 | AL10: =IF($D10=0,0,SUMIFS(JRLevel3,BOMComp,$A10,BOMLevel,"<>First")*$C10/$D10) -> 0 | AM10: =IF($D10=0,0,SUMIFS(JRLevel4,BOMComp,$A10,BOMLevel,"<>First")*$C10/$D10) -> 0 | AN10: =IF($D10=0,0,SUMIFS(JRLevel5,BOMComp,$A10,BOMLevel,"<>First")*$C10/$D10) -> 0 | AO10: =IF(ISNA(VLOOKUP($A10,Require,COLUMN(ReqPlan!$E$6),0))=TRUE,0,IF($D10=0,0,VLOOKUP($A10,Require,COLUMN(ReqPlan!$E$6),0)*$C10/$D10)) -> 0 | AP10: =IF($D10=0,0,SUMIFS(RLevel1,BOMComp,$A10,BOMLevel,"<>First")*$C10/$D10) -> 0 | AQ10: =IF($D10=0,0,SUMIFS(RLevel2,BOMComp,$A10,BOMLevel,"<>First")*$C10/$D10) -> 1238.390093 | AR10: =IF($D10=0,0,SUMIFS(RLevel3,BOMComp,$A10,BOMLevel,"<>First")*$C10/$D10) -> 0 | AS10: =IF($D10=0,0,SUMIFS(RLevel4,BOMComp,$A10,BOMLevel,"<>First")*$C10/$D10) -> 0 | AT10: =IF($D10=0,0,SUMIFS(RLevel5,BOMComp,$A10,BOMLevel,"<>First")*$C10/$D10) -> 0
A11: SD20 | B11: LB10 | C11: 0.3 | D11: 1 | E11: - | F11: =IF(ISNA(VLOOKUP($A11,StockMaster,COLUMN(StockCode!$B$4),0))=TRUE,"does not exist",VLOOKUP($A11,StockMaster,COLUMN(StockCode!$B$4),0)) -> Window | G11: =IF(ISNA(VLOOKUP($A11,StockMaster,COLUMN(StockCode!$C$4),0))=TRUE,"error",VLOOKUP($A11,StockMaster,COLUMN(StockCode!$C$4),0)) -> Units | H11: =IF(ISNA(VLOOKUP($A11,StockMaster,COLUMN(StockCode!$E$4),0))=TRUE,"All",VLOOKUP($A11,StockMaster,COLUMN(StockCode!$E$4),0)) -> All | I11: =IF(ISNA(VLOOKUP($B11,StockMaster,COLUMN(StockCode!$B$4),0))=TRUE,"does not exist",VLOOKUP($B11,StockMaster,COLUMN(StockCode!$B$4),0)) -> Labour - Grade 1 | J11: =IF(ISNA(VLOOKUP($B11,StockMaster,COLUMN(StockCode!$C$4),0))=TRUE,"error",VLOOKUP($B11,StockMaster,COLUMN(StockCode!$C$4),0)) -> Hours | K11: =IF(ISNA(VLOOKUP($B11,StockMaster,COLUMN(StockCode!$G$4),0))=TRUE,0,VLOOKUP($B11,StockMaster,COLUMN(StockCode!$G$4),0)) -> Bought-In | L11: Y | M11: =IF($K11="Manufactured",0,IF(ISNA(VLOOKUP($B11,StockMaster,COLUMN(StockCode!$D$4),0))=TRUE,0,VLOOKUP($B11,StockMaster,COLUMN(StockCode!$D$4),0))) -> 20 | N11: 6 | O11: 0 | P11: 0 | Q11: 6 | R11: =IF($K11="Manufactured",0,IF(ISNA(VLOOKUP($B11,StockMaster,COLUMN(StockCode!$AA$4),0))=TRUE,0,VLOOKUP($B11,StockMaster,COLUMN(StockCode!$AA$4),0))) -> 20.33077475 | S11: 6.099232425 | T11: 0 | U11: 0 | V11: 6.099232425 | W11: =IF(ISNA(VLOOKUP($A11,StockMaster,COLUMN(StockCode!$P$4),0))=TRUE,0,IF($D11=0,0,(VLOOKUP($A11,StockMaster,COLUMN(StockCode!$P$4),0)*$C11/$D11))) -> 0 | X11: =IF($D11=0,0,SUMIFS(TLevel1,BOMComp,$A11,BOMLevel,"<>First")*$C11/$D11) -> 0 | Y11: =IF($D11=0,0,SUMIFS(TLevel2,BOMComp,$A11,BOMLevel,"<>First")*$C11/$D11) -> 2551.578947 | Z11: =IF($D11=0,0,SUMIFS(TLevel3,BOMComp,$A11,BOMLevel,"<>First")*$C11/$D11) -> 124.8 | AA11: =IF($D11=0,0,SUMIFS(TLevel4,BOMComp,$A11,BOMLevel,"<>First")*$C11/$D11) -> 0 | AB11: =IF($D11=0,0,SUMIFS(TLevel5,BOMComp,$A11,BOMLevel,"<>First")*$C11/$D11) -> 0 | AC11: =IF(ISNA(VLOOKUP($A11,JRCode,COLUMN(JReview!$D$4),0))=TRUE,0,IF($D11=0,0,VLOOKUP($A11,JRCode,COLUMN(JReview!$D$4),0)*$C11/$D11)) -> 0 | AD11: =IF($D11=0,0,SUMIFS(JLevel1,BOMComp,$A11,BOMLevel,"<>First")*$C11/$D11) -> 0 | AE11: =IF($D11=0,0,SUMIFS(JLevel2,BOMComp,$A11,BOMLevel,"<>First")*$C11/$D11) -> 252.6315789 | AF11: =IF($D11=0,0,SUMIFS(JLevel3,BOMComp,$A11,BOMLevel,"<>First")*$C11/$D11) -> 0 | AG11: =IF($D11=0,0,SUMIFS(JLevel4,BOMComp,$A11,BOMLevel,"<>First")*$C11/$D11) -> 0 | AH11: =IF($D11=0,0,SUMIFS(JLevel5,BOMComp,$A11,BOMLevel,"<>First")*$C11/$D11) -> 0 | AI11: =IF(ISNA(VLOOKUP($A11,JRCode,COLUMN(JReview!$E$4),0))=TRUE,0,IF($D11=0,0,VLOOKUP($A11,JRCode,COLUMN(JReview!$E$4),0)*$C11/$D11)) -> 0 | AJ11: =IF($D11=0,0,SUMIFS(JRLevel1,BOMComp,$A11,BOMLevel,"<>First")*$C11/$D11) -> 0 | AK11: =IF($D11=0,0,SUMIFS(JRLevel2,BOMComp,$A11,BOMLevel,"<>First")*$C11/$D11) -> 265.2631579 | AL11: =IF($D11=0,0,SUMIFS(JRLevel3,BOMComp,$A11,BOMLevel,"<>First")*$C11/$D11) -> 0 | AM11: =IF($D11=0,0,SUMIFS(JRLevel4,BOMComp,$A11,BOMLevel,"<>First")*$C11/$D11) -> 0 | AN11: =IF($D11=0,0,SUMIFS(JRLevel5,BOMComp,$A11,BOMLevel,"<>First")*$C11/$D11) -> 0 | AO11: =IF(ISNA(VLOOKUP($A11,Require,COLUMN(ReqPlan!$E$6),0))=TRUE,0,IF($D11=0,0,VLOOKUP($A11,Require,COLUMN(ReqPlan!$E$6),0)*$C11/$D11)) -> 0 | AP11: =IF($D11=0,0,SUMIFS(RLevel1,BOMComp,$A11,BOMLevel,"<>First")*$C11/$D11) -> 0 | AQ11: =IF($D11=0,0,SUMIFS(RLevel2,BOMComp,$A11,BOMLevel,"<>First")*$C11/$D11) -> 1263.157895 | AR11: =IF($D11=0,0,SUMIFS(RLevel3,BOMComp,$A11,BOMLevel,"<>First")*$C11/$D11) -> 0 | AS11: =IF($D11=0,0,SUMIFS(RLevel4,BOMComp,$A11,BOMLevel,"<>First")*$C11/$D11) -> 0 | AT11: =IF($D11=0,0,SUMIFS(RLevel5,BOMComp,$A11,BOMLevel,"<>First")*$C11/$D11) -> 0
A12: SD25 | B12: RM10 | C12: 10 | D12: 0.9 | E12: - | F12: =IF(ISNA(VLOOKUP($A12,StockMaster,COLUMN(StockCode!$B$4),0))=TRUE,"does not exist",VLOOKUP($A12,StockMaster,COLUMN(StockCode!$B$4),0)) -> Roof | G12: =IF(ISNA(VLOOKUP($A12,StockMaster,COLUMN(StockCode!$C$4),0))=TRUE,"error",VLOOKUP($A12,StockMaster,COLUMN(StockCode!$C$4),0)) -> Units | H12: =IF(ISNA(VLOOKUP($A12,StockMaster,COLUMN(StockCode!$E$4),0))=TRUE,"All",VLOOKUP($A12,StockMaster,COLUMN(StockCode!$E$4),0)) -> All | I12: =IF(ISNA(VLOOKUP($B12,StockMaster,COLUMN(StockCode!$B$4),0))=TRUE,"does not exist",VLOOKUP($B12,StockMaster,COLUMN(StockCode!$B$4),0)) -> Steel Plates | J12: =IF(ISNA(VLOOKUP($B12,StockMaster,COLUMN(StockCode!$C$4),0))=TRUE,"error",VLOOKUP($B12,StockMaster,COLUMN(StockCode!$C$4),0)) -> M2 | K12: =IF(ISNA(VLOOKUP($B12,StockMaster,COLUMN(StockCode!$G$4),0))=TRUE,0,VLOOKUP($B12,StockMaster,COLUMN(StockCode!$G$4),0)) -> Bought-In | L12: Y | M12: =IF($K12="Manufactured",0,IF(ISNA(VLOOKUP($B12,StockMaster,COLUMN(StockCode!$D$4),0))=TRUE,0,VLOOKUP($B12,StockMaster,COLUMN(StockCode!$D$4),0))) -> 140 | N12: 1555.555556 | O12: 0 | P12: 0 | Q12: 1555.555556 | R12: =IF($K12="Manufactured",0,IF(ISNA(VLOOKUP($B12,StockMaster,COLUMN(StockCode!$AA$4),0))=TRUE,0,VLOOKUP($B12,StockMaster,COLUMN(StockCode!$AA$4),0))) -> 140 | S12: 1555.555556 | T12: 0 | U12: 0 | V12: 1555.555556 | W12: =IF(ISNA(VLOOKUP($A12,StockMaster,COLUMN(StockCode!$P$4),0))=TRUE,0,IF($D12=0,0,(VLOOKUP($A12,StockMaster,COLUMN(StockCode!$P$4),0)*$C12/$D12))) -> 0 | X12: =IF($D12=0,0,SUMIFS(TLevel1,BOMComp,$A12,BOMLevel,"<>First")*$C12/$D12) -> 13188.88889 | Y12: =IF($D12=0,0,SUMIFS(TLevel2,BOMComp,$A12,BOMLevel,"<>First")*$C12/$D12) -> 0 | Z12: =IF($D12=0,0,SUMIFS(TLevel3,BOMComp,$A12,BOMLevel,"<>First")*$C12/$D12) -> 0 | AA12: =IF($D12=0,0,SUMIFS(TLevel4,BOMComp,$A12,BOMLevel,"<>First")*$C12/$D12) -> 0 | AB12: =IF($D12=0,0,SUMIFS(TLevel5,BOMComp,$A12,BOMLevel,"<>First")*$C12/$D12) -> 0 | AC12: =IF(ISNA(VLOOKUP($A12,JRCode,COLUMN(JReview!$D$4),0))=TRUE,0,IF($D12=0,0,VLOOKUP($A12,JRCode,COLUMN(JReview!$D$4),0)*$C12/$D12)) -> 0 | AD12: =IF($D12=0,0,SUMIFS(JLevel1,BOMComp,$A12,BOMLevel,"<>First")*$C12/$D12) -> 1111.111111 | AE12: =IF($D12=0,0,SUMIFS(JLevel2,BOMComp,$A12,BOMLevel,"<>First")*$C12/$D12) -> 0 | AF12: =IF($D12=0,0,SUMIFS(JLevel3,BOMComp,$A12,BOMLevel,"<>First")*$C12/$D12) -> 0 | AG12: =IF($D12=0,0,SUMIFS(JLevel4,BOMComp,$A12,BOMLevel,"<>First")*$C12/$D12) -> 0 | AH12: =IF($D12=0,0,SUMIFS(JLevel5,BOMComp,$A12,BOMLevel,"<>First")*$C12/$D12) -> 0 | AI12: =IF(ISNA(VLOOKUP($A12,JRCode,COLUMN(JReview!$E$4),0))=TRUE,0,IF($D12=0,0,VLOOKUP($A12,JRCode,COLUMN(JReview!$E$4),0)*$C12/$D12)) -> 0 | AJ12: =IF($D12=0,0,SUMIFS(JRLevel1,BOMComp,$A12,BOMLevel,"<>First")*$C12/$D12) -> 1166.666667 | AK12: =IF($D12=0,0,SUMIFS(JRLevel2,BOMComp,$A12,BOMLevel,"<>First")*$C12/$D12) -> 0 | AL12: =IF($D12=0,0,SUMIFS(JRLevel3,BOMComp,$A12,BOMLevel,"<>First")*$C12/$D12) -> 0 | AM12: =IF($D12=0,0,SUMIFS(JRLevel4,BOMComp,$A12,BOMLevel,"<>First")*$C12/$D12) -> 0 | AN12: =IF($D12=0,0,SUMIFS(JRLevel5,BOMComp,$A12,BOMLevel,"<>First")*$C12/$D12) -> 0 | AO12: =IF(ISNA(VLOOKUP($A12,Require,COLUMN(ReqPlan!$E$6),0))=TRUE,0,IF($D12=0,0,VLOOKUP($A12,Require,COLUMN(ReqPlan!$E$6),0)*$C12/$D12)) -> 0 | AP12: =IF($D12=0,0,SUMIFS(RLevel1,BOMComp,$A12,BOMLevel,"<>First")*$C12/$D12) -> 6111.111111 | AQ12: =IF($D12=0,0,SUMIFS(RLevel2,BOMComp,$A12,BOMLevel,"<>First")*$C12/$D12) -> 0 | AR12: =IF($D12=0,0,SUMIFS(RLevel3,BOMComp,$A12,BOMLevel,"<>First")*$C12/$D12) -> 0 | AS12: =IF($D12=0,0,SUMIFS(RLevel4,BOMComp,$A12,BOMLevel,"<>First")*$C12/$D12) -> 0 | AT12: =IF($D12=0,0,SUMIFS(RLevel5,BOMComp,$A12,BOMLevel,"<>First")*$C12/$D12) -> 0
A13: SD25 | B13: RM30 | C13: 1 | D13: 0.9 | E13: - | F13: =IF(ISNA(VLOOKUP($A13,StockMaster,COLUMN(StockCode!$B$4),0))=TRUE,"does not exist",VLOOKUP($A13,StockMaster,COLUMN(StockCode!$B$4),0)) -> Roof | G13: =IF(ISNA(VLOOKUP($A13,StockMaster,COLUMN(StockCode!$C$4),0))=TRUE,"error",VLOOKUP($A13,StockMaster,COLUMN(StockCode!$C$4),0)) -> Units | H13: =IF(ISNA(VLOOKUP($A13,StockMaster,COLUMN(StockCode!$E$4),0))=TRUE,"All",VLOOKUP($A13,StockMaster,COLUMN(StockCode!$E$4),0)) -> All | I13: =IF(ISNA(VLOOKUP($B13,StockMaster,COLUMN(StockCode!$B$4),0))=TRUE,"does not exist",VLOOKUP($B13,StockMaster,COLUMN(StockCode!$B$4),0)) -> Wood | J13: =IF(ISNA(VLOOKUP($B13,StockMaster,COLUMN(StockCode!$C$4),0))=TRUE,"error",VLOOKUP($B13,StockMaster,COLUMN(StockCode!$C$4),0)) -> M2 | K13: =IF(ISNA(VLOOKUP($B13,StockMaster,COLUMN(StockCode!$G$4),0))=TRUE,0,VLOOKUP($B13,StockMaster,COLUMN(StockCode!$G$4),0)) -> Bought-In | L13: Y | M13: =IF($K13="Manufactured",0,IF(ISNA(VLOOKUP($B13,StockMaster,COLUMN(StockCode!$D$4),0))=TRUE,0,VLOOKUP($B13,StockMaster,COLUMN(StockCode!$D$4),0))) -> 120 | N13: 133.3333333 | O13: 0 | P13: 0 | Q13: 133.3333333 | R13: =IF($K13="Manufactured",0,IF(ISNA(VLOOKUP($B13,StockMaster,COLUMN(StockCode!$AA$4),0))=TRUE,0,VLOOKUP($B13,StockMaster,COLUMN(StockCode!$AA$4),0))) -> 124.2132226 | S13: 138.0146918 | T13: 0 | U13: 0 | V13: 138.0146918 | W13: =IF(ISNA(VLOOKUP($A13,StockMaster,COLUMN(StockCode!$P$4),0))=TRUE,0,IF($D13=0,0,(VLOOKUP($A13,StockMaster,COLUMN(StockCode!$P$4),0)*$C13/$D13))) -> 0 | X13: =IF($D13=0,0,SUMIFS(TLevel1,BOMComp,$A13,BOMLevel,"<>First")*$C13/$D13) -> 1318.888889 | Y13: =IF($D13=0,0,SUMIFS(TLevel2,BOMComp,$A13,BOMLevel,"<>First")*$C13/$D13) -> 0 | Z13: =IF($D13=0,0,SUMIFS(TLevel3,BOMComp,$A13,BOMLevel,"<>First")*$C13/$D13) -> 0 | AA13: =IF($D13=0,0,SUMIFS(TLevel4,BOMComp,$A13,BOMLevel,"<>First")*$C13/$D13) -> 0 | AB13: =IF($D13=0,0,SUMIFS(TLevel5,BOMComp,$A13,BOMLevel,"<>First")*$C13/$D13) -> 0 | AC13: =IF(ISNA(VLOOKUP($A13,JRCode,COLUMN(JReview!$D$4),0))=TRUE,0,IF($D13=0,0,VLOOKUP($A13,JRCode,COLUMN(JReview!$D$4),0)*$C13/$D13)) -> 0 | AD13: =IF($D13=0,0,SUMIFS(JLevel1,BOMComp,$A13,BOMLevel,"<>First")*$C13/$D13) -> 111.1111111 | AE13: =IF($D13=0,0,SUMIFS(JLevel2,BOMComp,$A13,BOMLevel,"<>First")*$C13/$D13) -> 0 | AF13: =IF($D13=0,0,SUMIFS(JLevel3,BOMComp,$A13,BOMLevel,"<>First")*$C13/$D13) -> 0 | AG13: =IF($D13=0,0,SUMIFS(JLevel4,BOMComp,$A13,BOMLevel,"<>First")*$C13/$D13) -> 0 | AH13: =IF($D13=0,0,SUMIFS(JLevel5,BOMComp,$A13,BOMLevel,"<>First")*$C13/$D13) -> 0 | AI13: =IF(ISNA(VLOOKUP($A13,JRCode,COLUMN(JReview!$E$4),0))=TRUE,0,IF($D13=0,0,VLOOKUP($A13,JRCode,COLUMN(JReview!$E$4),0)*$C13/$D13)) -> 0 | AJ13: =IF($D13=0,0,SUMIFS(JRLevel1,BOMComp,$A13,BOMLevel,"<>First")*$C13/$D13) -> 116.6666667 | AK13: =IF($D13=0,0,SUMIFS(JRLevel2,BOMComp,$A13,BOMLevel,"<>First")*$C13/$D13) -> 0 | AL13: =IF($D13=0,0,SUMIFS(JRLevel3,BOMComp,$A13,BOMLevel,"<>First")*$C13/$D13) -> 0 | AM13: =IF($D13=0,0,SUMIFS(JRLevel4,BOMComp,$A13,BOMLevel,"<>First")*$C13/$D13) -> 0 | AN13: =IF($D13=0,0,SUMIFS(JRLevel5,BOMComp,$A13,BOMLevel,"<>First")*$C13/$D13) -> 0 | AO13: =IF(ISNA(VLOOKUP($A13,Require,COLUMN(ReqPlan!$E$6),0))=TRUE,0,IF($D13=0,0,VLOOKUP($A13,Require,COLUMN(ReqPlan!$E$6),0)*$C13/$D13)) -> 0 | AP13: =IF($D13=0,0,SUMIFS(RLevel1,BOMComp,$A13,BOMLevel,"<>First")*$C13/$D13) -> 611.1111111 | AQ13: =IF($D13=0,0,SUMIFS(RLevel2,BOMComp,$A13,BOMLevel,"<>First")*$C13/$D13) -> 0 | AR13: =IF($D13=0,0,SUMIFS(RLevel3,BOMComp,$A13,BOMLevel,"<>First")*$C13/$D13) -> 0 | AS13: =IF($D13=0,0,SUMIFS(RLevel4,BOMComp,$A13,BOMLevel,"<>First")*$C13/$D13) -> 0 | AT13: =IF($D13=0,0,SUMIFS(RLevel5,BOMComp,$A13,BOMLevel,"<>First")*$C13/$D13) -> 0
A14: SD25 | B14: RM55 | C14: 1 | D14: 0.9 | E14: - | F14: =IF(ISNA(VLOOKUP($A14,StockMaster,COLUMN(StockCode!$B$4),0))=TRUE,"does not exist",VLOOKUP($A14,StockMaster,COLUMN(StockCode!$B$4),0)) -> Roof | G14: =IF(ISNA(VLOOKUP($A14,StockMaster,COLUMN(StockCode!$C$4),0))=TRUE,"error",VLOOKUP($A14,StockMaster,COLUMN(StockCode!$C$4),0)) -> Units | H14: =IF(ISNA(VLOOKUP($A14,StockMaster,COLUMN(StockCode!$E$4),0))=TRUE,"All",VLOOKUP($A14,StockMaster,COLUMN(StockCode!$E$4),0)) -> All | I14: =IF(ISNA(VLOOKUP($B14,StockMaster,COLUMN(StockCode!$B$4),0))=TRUE,"does not exist",VLOOKUP($B14,StockMaster,COLUMN(StockCode!$B$4),0)) -> 2 Inch Screws | J14: =IF(ISNA(VLOOKUP($B14,StockMaster,COLUMN(StockCode!$C$4),0))=TRUE,"error",VLOOKUP($B14,StockMaster,COLUMN(StockCode!$C$4),0)) -> Bag | K14: =IF(ISNA(VLOOKUP($B14,StockMaster,COLUMN(StockCode!$G$4),0))=TRUE,0,VLOOKUP($B14,StockMaster,COLUMN(StockCode!$G$4),0)) -> Bought-In | L14: Y | M14: =IF($K14="Manufactured",0,IF(ISNA(VLOOKUP($B14,StockMaster,COLUMN(StockCode!$D$4),0))=TRUE,0,VLOOKUP($B14,StockMaster,COLUMN(StockCode!$D$4),0))) -> 50 | N14: 55.55555556 | O14: 0 | P14: 0 | Q14: 55.55555556 | R14: =IF($K14="Manufactured",0,IF(ISNA(VLOOKUP($B14,StockMaster,COLUMN(StockCode!$AA$4),0))=TRUE,0,VLOOKUP($B14,StockMaster,COLUMN(StockCode!$AA$4),0))) -> 48.74351225 | S14: 54.15945806 | T14: 0 | U14: 0 | V14: 54.15945806 | W14: =IF(ISNA(VLOOKUP($A14,StockMaster,COLUMN(StockCode!$P$4),0))=TRUE,0,IF($D14=0,0,(VLOOKUP($A14,StockMaster,COLUMN(StockCode!$P$4),0)*$C14/$D14))) -> 0 | X14: =IF($D14=0,0,SUMIFS(TLevel1,BOMComp,$A14,BOMLevel,"<>First")*$C14/$D14) -> 1318.888889 | Y14: =IF($D14=0,0,SUMIFS(TLevel2,BOMComp,$A14,BOMLevel,"<>First")*$C14/$D14) -> 0 | Z14: =IF($D14=0,0,SUMIFS(TLevel3,BOMComp,$A14,BOMLevel,"<>First")*$C14/$D14) -> 0 | AA14: =IF($D14=0,0,SUMIFS(TLevel4,BOMComp,$A14,BOMLevel,"<>First")*$C14/$D14) -> 0 | AB14: =IF($D14=0,0,SUMIFS(TLevel5,BOMComp,$A14,BOMLevel,"<>First")*$C14/$D14) -> 0 | AC14: =IF(ISNA(VLOOKUP($A14,JRCode,COLUMN(JReview!$D$4),0))=TRUE,0,IF($D14=0,0,VLOOKUP($A14,JRCode,COLUMN(JReview!$D$4),0)*$C14/$D14)) -> 0 | AD14: =IF($D14=0,0,SUMIFS(JLevel1,BOMComp,$A14,BOMLevel,"<>First")*$C14/$D14) -> 111.1111111 | AE14: =IF($D14=0,0,SUMIFS(JLevel2,BOMComp,$A14,BOMLevel,"<>First")*$C14/$D14) -> 0 | AF14: =IF($D14=0,0,SUMIFS(JLevel3,BOMComp,$A14,BOMLevel,"<>First")*$C14/$D14) -> 0 | AG14: =IF($D14=0,0,SUMIFS(JLevel4,BOMComp,$A14,BOMLevel,"<>First")*$C14/$D14) -> 0 | AH14: =IF($D14=0,0,SUMIFS(JLevel5,BOMComp,$A14,BOMLevel,"<>First")*$C14/$D14) -> 0 | AI14: =IF(ISNA(VLOOKUP($A14,JRCode,COLUMN(JReview!$E$4),0))=TRUE,0,IF($D14=0,0,VLOOKUP($A14,JRCode,COLUMN(JReview!$E$4),0)*$C14/$D14)) -> 0 | AJ14: =IF($D14=0,0,SUMIFS(JRLevel1,BOMComp,$A14,BOMLevel,"<>First")*$C14/$D14) -> 116.6666667 | AK14: =IF($D14=0,0,SUMIFS(JRLevel2,BOMComp,$A14,BOMLevel,"<>First")*$C14/$D14) -> 0 | AL14: =IF($D14=0,0,SUMIFS(JRLevel3,BOMComp,$A14,BOMLevel,"<>First")*$C14/$D14) -> 0 | AM14: =IF($D14=0,0,SUMIFS(JRLevel4,BOMComp,$A14,BOMLevel,"<>First")*$C14/$D14) -> 0 | AN14: =IF($D14=0,0,SUMIFS(JRLevel5,BOMComp,$A14,BOMLevel,"<>First")*$C14/$D14) -> 0 | AO14: =IF(ISNA(VLOOKUP($A14,Require,COLUMN(ReqPlan!$E$6),0))=TRUE,0,IF($D14=0,0,VLOOKUP($A14,Require,COLUMN(ReqPlan!$E$6),0)*$C14/$D14)) -> 0 | AP14: =IF($D14=0,0,SUMIFS(RLevel1,BOMComp,$A14,BOMLevel,"<>First")*$C14/$D14) -> 611.1111111 | AQ14: =IF($D14=0,0,SUMIFS(RLevel2,BOMComp,$A14,BOMLevel,"<>First")*$C14/$D14) -> 0 | AR14: =IF($D14=0,0,SUMIFS(RLevel3,BOMComp,$A14,BOMLevel,"<>First")*$C14/$D14) -> 0 | AS14: =IF($D14=0,0,SUMIFS(RLevel4,BOMComp,$A14,BOMLevel,"<>First")*$C14/$D14) -> 0 | AT14: =IF($D14=0,0,SUMIFS(RLevel5,BOMComp,$A14,BOMLevel,"<>First")*$C14/$D14) -> 0
A15: SD25 | B15: LB10 | C15: 1 | D15: 0.9 | E15: - | F15: =IF(ISNA(VLOOKUP($A15,StockMaster,COLUMN(StockCode!$B$4),0))=TRUE,"does not exist",VLOOKUP($A15,StockMaster,COLUMN(StockCode!$B$4),0)) -> Roof | G15: =IF(ISNA(VLOOKUP($A15,StockMaster,COLUMN(StockCode!$C$4),0))=TRUE,"error",VLOOKUP($A15,StockMaster,COLUMN(StockCode!$C$4),0)) -> Units | H15: =IF(ISNA(VLOOKUP($A15,StockMaster,COLUMN(StockCode!$E$4),0))=TRUE,"All",VLOOKUP($A15,StockMaster,COLUMN(StockCode!$E$4),0)) -> All | I15: =IF(ISNA(VLOOKUP($B15,StockMaster,COLUMN(StockCode!$B$4),0))=TRUE,"does not exist",VLOOKUP($B15,StockMaster,COLUMN(StockCode!$B$4),0)) -> Labour - Grade 1 | J15: =IF(ISNA(VLOOKUP($B15,StockMaster,COLUMN(StockCode!$C$4),0))=TRUE,"error",VLOOKUP($B15,StockMaster,COLUMN(StockCode!$C$4),0)) -> Hours | K15: =IF(ISNA(VLOOKUP($B15,StockMaster,COLUMN(StockCode!$G$4),0))=TRUE,0,VLOOKUP($B15,StockMaster,COLUMN(StockCode!$G$4),0)) -> Bought-In | L15: Y | M15: =IF($K15="Manufactured",0,IF(ISNA(VLOOKUP($B15,StockMaster,COLUMN(StockCode!$D$4),0))=TRUE,0,VLOOKUP($B15,StockMaster,COLUMN(StockCode!$D$4),0))) -> 20 | N15: 22.22222222 | O15: 0 | P15: 0 | Q15: 22.22222222 | R15: =IF($K15="Manufactured",0,IF(ISNA(VLOOKUP($B15,StockMaster,COLUMN(StockCode!$AA$4),0))=TRUE,0,VLOOKUP($B15,StockMaster,COLUMN(StockCode!$AA$4),0))) -> 20.33077475 | S15: 22.58974972 | T15: 0 | U15: 0 | V15: 22.58974972 | W15: =IF(ISNA(VLOOKUP($A15,StockMaster,COLUMN(StockCode!$P$4),0))=TRUE,0,IF($D15=0,0,(VLOOKUP($A15,StockMaster,COLUMN(StockCode!$P$4),0)*$C15/$D15))) -> 0 | X15: =IF($D15=0,0,SUMIFS(TLevel1,BOMComp,$A15,BOMLevel,"<>First")*$C15/$D15) -> 1318.888889 | Y15: =IF($D15=0,0,SUMIFS(TLevel2,BOMComp,$A15,BOMLevel,"<>First")*$C15/$D15) -> 0 | Z15: =IF($D15=0,0,SUMIFS(TLevel3,BOMComp,$A15,BOMLevel,"<>First")*$C15/$D15) -> 0 | AA15: =IF($D15=0,0,SUMIFS(TLevel4,BOMComp,$A15,BOMLevel,"<>First")*$C15/$D15) -> 0 | AB15: =IF($D15=0,0,SUMIFS(TLevel5,BOMComp,$A15,BOMLevel,"<>First")*$C15/$D15) -> 0 | AC15: =IF(ISNA(VLOOKUP($A15,JRCode,COLUMN(JReview!$D$4),0))=TRUE,0,IF($D15=0,0,VLOOKUP($A15,JRCode,COLUMN(JReview!$D$4),0)*$C15/$D15)) -> 0 | AD15: =IF($D15=0,0,SUMIFS(JLevel1,BOMComp,$A15,BOMLevel,"<>First")*$C15/$D15) -> 111.1111111 | AE15: =IF($D15=0,0,SUMIFS(JLevel2,BOMComp,$A15,BOMLevel,"<>First")*$C15/$D15) -> 0 | AF15: =IF($D15=0,0,SUMIFS(JLevel3,BOMComp,$A15,BOMLevel,"<>First")*$C15/$D15) -> 0 | AG15: =IF($D15=0,0,SUMIFS(JLevel4,BOMComp,$A15,BOMLevel,"<>First")*$C15/$D15) -> 0 | AH15: =IF($D15=0,0,SUMIFS(JLevel5,BOMComp,$A15,BOMLevel,"<>First")*$C15/$D15) -> 0 | AI15: =IF(ISNA(VLOOKUP($A15,JRCode,COLUMN(JReview!$E$4),0))=TRUE,0,IF($D15=0,0,VLOOKUP($A15,JRCode,COLUMN(JReview!$E$4),0)*$C15/$D15)) -> 0 | AJ15: =IF($D15=0,0,SUMIFS(JRLevel1,BOMComp,$A15,BOMLevel,"<>First")*$C15/$D15) -> 116.6666667 | AK15: =IF($D15=0,0,SUMIFS(JRLevel2,BOMComp,$A15,BOMLevel,"<>First")*$C15/$D15) -> 0 | AL15: =IF($D15=0,0,SUMIFS(JRLevel3,BOMComp,$A15,BOMLevel,"<>First")*$C15/$D15) -> 0 | AM15: =IF($D15=0,0,SUMIFS(JRLevel4,BOMComp,$A15,BOMLevel,"<>First")*$C15/$D15) -> 0 | AN15: =IF($D15=0,0,SUMIFS(JRLevel5,BOMComp,$A15,BOMLevel,"<>First")*$C15/$D15) -> 0 | AO15: =IF(ISNA(VLOOKUP($A15,Require,COLUMN(ReqPlan!$E$6),0))=TRUE,0,IF($D15=0,0,VLOOKUP($A15,Require,COLUMN(ReqPlan!$E$6),0)*$C15/$D15)) -> 0 | AP15: =IF($D15=0,0,SUMIFS(RLevel1,BOMComp,$A15,BOMLevel,"<>First")*$C15/$D15) -> 611.1111111 | AQ15: =IF($D15=0,0,SUMIFS(RLevel2,BOMComp,$A15,BOMLevel,"<>First")*$C15/$D15) -> 0 | AR15: =IF($D15=0,0,SUMIFS(RLevel3,BOMComp,$A15,BOMLevel,"<>First")*$C15/$D15) -> 0 | AS15: =IF($D15=0,0,SUMIFS(RLevel4,BOMComp,$A15,BOMLevel,"<>First")*$C15/$D15) -> 0 | AT15: =IF($D15=0,0,SUMIFS(RLevel5,BOMComp,$A15,BOMLevel,"<>First")*$C15/$D15) -> 0
A16: SD30 | B16: SD20 | C16: 4 | D16: 1 | E16: - | F16: =IF(ISNA(VLOOKUP($A16,StockMaster,COLUMN(StockCode!$B$4),0))=TRUE,"does not exist",VLOOKUP($A16,StockMaster,COLUMN(StockCode!$B$4),0)) -> Window Frame | G16: =IF(ISNA(VLOOKUP($A16,StockMaster,COLUMN(StockCode!$C$4),0))=TRUE,"error",VLOOKUP($A16,StockMaster,COLUMN(StockCode!$C$4),0)) -> Units | H16: =IF(ISNA(VLOOKUP($A16,StockMaster,COLUMN(StockCode!$E$4),0))=TRUE,"All",VLOOKUP($A16,StockMaster,COLUMN(StockCode!$E$4),0)) -> All | I16: =IF(ISNA(VLOOKUP($B16,StockMaster,COLUMN(StockCode!$B$4),0))=TRUE,"does not exist",VLOOKUP($B16,StockMaster,COLUMN(StockCode!$B$4),0)) -> Window | J16: =IF(ISNA(VLOOKUP($B16,StockMaster,COLUMN(StockCode!$C$4),0))=TRUE,"error",VLOOKUP($B16,StockMaster,COLUMN(StockCode!$C$4),0)) -> Units | K16: =IF(ISNA(VLOOKUP($B16,StockMaster,COLUMN(StockCode!$G$4),0))=TRUE,0,VLOOKUP($B16,StockMaster,COLUMN(StockCode!$G$4),0)) -> Manufactured | L16: N | M16: =IF($K16="Manufactured",0,IF(ISNA(VLOOKUP($B16,StockMaster,COLUMN(StockCode!$D$4),0))=TRUE,0,VLOOKUP($B16,StockMaster,COLUMN(StockCode!$D$4),0))) -> 0 | N16: 0 | O16: 29.52941176 | P16: 118.1176471 | Q16: 118.1176471 | R16: =IF($K16="Manufactured",0,IF(ISNA(VLOOKUP($B16,StockMaster,COLUMN(StockCode!$AA$4),0))=TRUE,0,VLOOKUP($B16,StockMaster,COLUMN(StockCode!$AA$4),0))) -> 0 | S16: 0 | T16: 30.17926668 | U16: 120.7170667 | V16: 120.7170667 | W16: =IF(ISNA(VLOOKUP($A16,StockMaster,COLUMN(StockCode!$P$4),0))=TRUE,0,IF($D16=0,0,(VLOOKUP($A16,StockMaster,COLUMN(StockCode!$P$4),0)*$C16/$D16))) -> 0 | X16: =IF($D16=0,0,SUMIFS(TLevel1,BOMComp,$A16,BOMLevel,"<>First")*$C16/$D16) -> 8505.263158 | Y16: =IF($D16=0,0,SUMIFS(TLevel2,BOMComp,$A16,BOMLevel,"<>First")*$C16/$D16) -> 0 | Z16: =IF($D16=0,0,SUMIFS(TLevel3,BOMComp,$A16,BOMLevel,"<>First")*$C16/$D16) -> 0 | AA16: =IF($D16=0,0,SUMIFS(TLevel4,BOMComp,$A16,BOMLevel,"<>First")*$C16/$D16) -> 0 | AB16: =IF($D16=0,0,SUMIFS(TLevel5,BOMComp,$A16,BOMLevel,"<>First")*$C16/$D16) -> 0 | AC16: =IF(ISNA(VLOOKUP($A16,JRCode,COLUMN(JReview!$D$4),0))=TRUE,0,IF($D16=0,0,VLOOKUP($A16,JRCode,COLUMN(JReview!$D$4),0)*$C16/$D16)) -> 0 | AD16: =IF($D16=0,0,SUMIFS(JLevel1,BOMComp,$A16,BOMLevel,"<>First")*$C16/$D16) -> 842.1052632 | AE16: =IF($D16=0,0,SUMIFS(JLevel2,BOMComp,$A16,BOMLevel,"<>First")*$C16/$D16) -> 0 | AF16: =IF($D16=0,0,SUMIFS(JLevel3,BOMComp,$A16,BOMLevel,"<>First")*$C16/$D16) -> 0 | AG16: =IF($D16=0,0,SUMIFS(JLevel4,BOMComp,$A16,BOMLevel,"<>First")*$C16/$D16) -> 0 | AH16: =IF($D16=0,0,SUMIFS(JLevel5,BOMComp,$A16,BOMLevel,"<>First")*$C16/$D16) -> 0 | AI16: =IF(ISNA(VLOOKUP($A16,JRCode,COLUMN(JReview!$E$4),0))=TRUE,0,IF($D16=0,0,VLOOKUP($A16,JRCode,COLUMN(JReview!$E$4),0)*$C16/$D16)) -> 0 | AJ16: =IF($D16=0,0,SUMIFS(JRLevel1,BOMComp,$A16,BOMLevel,"<>First")*$C16/$D16) -> 884.2105263 | AK16: =IF($D16=0,0,SUMIFS(JRLevel2,BOMComp,$A16,BOMLevel,"<>First")*$C16/$D16) -> 0 | AL16: =IF($D16=0,0,SUMIFS(JRLevel3,BOMComp,$A16,BOMLevel,"<>First")*$C16/$D16) -> 0 | AM16: =IF($D16=0,0,SUMIFS(JRLevel4,BOMComp,$A16,BOMLevel,"<>First")*$C16/$D16) -> 0 | AN16: =IF($D16=0,0,SUMIFS(JRLevel5,BOMComp,$A16,BOMLevel,"<>First")*$C16/$D16) -> 0 | AO16: =IF(ISNA(VLOOKUP($A16,Require,COLUMN(ReqPlan!$E$6),0))=TRUE,0,IF($D16=0,0,VLOOKUP($A16,Require,COLUMN(ReqPlan!$E$6),0)*$C16/$D16)) -> 0 | AP16: =IF($D16=0,0,SUMIFS(RLevel1,BOMComp,$A16,BOMLevel,"<>First")*$C16/$D16) -> 4210.526316 | AQ16: =IF($D16=0,0,SUMIFS(RLevel2,BOMComp,$A16,BOMLevel,"<>First")*$C16/$D16) -> 0 | AR16: =IF($D16=0,0,SUMIFS(RLevel3,BOMComp,$A16,BOMLevel,"<>First")*$C16/$D16) -> 0 | AS16: =IF($D16=0,0,SUMIFS(RLevel4,BOMComp,$A16,BOMLevel,"<>First")*$C16/$D16) -> 0 | AT16: =IF($D16=0,0,SUMIFS(RLevel5,BOMComp,$A16,BOMLevel,"<>First")*$C16/$D16) -> 0
A17: SD30 | B17: RM70 | C17: 0.5 | D17: 0.9 | E17: - | F17: =IF(ISNA(VLOOKUP($A17,StockMaster,COLUMN(StockCode!$B$4),0))=TRUE,"does not exist",VLOOKUP($A17,StockMaster,COLUMN(StockCode!$B$4),0)) -> Window Frame | G17: =IF(ISNA(VLOOKUP($A17,StockMaster,COLUMN(StockCode!$C$4),0))=TRUE,"error",VLOOKUP($A17,StockMaster,COLUMN(StockCode!$C$4),0)) -> Units | H17: =IF(ISNA(VLOOKUP($A17,StockMaster,COLUMN(StockCode!$E$4),0))=TRUE,"All",VLOOKUP($A17,StockMaster,COLUMN(StockCode!$E$4),0)) -> All | I17: =IF(ISNA(VLOOKUP($B17,StockMaster,COLUMN(StockCode!$B$4),0))=TRUE,"does not exist",VLOOKUP($B17,StockMaster,COLUMN(StockCode!$B$4),0)) -> Filler | J17: =IF(ISNA(VLOOKUP($B17,StockMaster,COLUMN(StockCode!$C$4),0))=TRUE,"error",VLOOKUP($B17,StockMaster,COLUMN(StockCode!$C$4),0)) -> Bag | K17: =IF(ISNA(VLOOKUP($B17,StockMaster,COLUMN(StockCode!$G$4),0))=TRUE,0,VLOOKUP($B17,StockMaster,COLUMN(StockCode!$G$4),0)) -> Bought-In | L17: Y | M17: =IF($K17="Manufactured",0,IF(ISNA(VLOOKUP($B17,StockMaster,COLUMN(StockCode!$D$4),0))=TRUE,0,VLOOKUP($B17,StockMaster,COLUMN(StockCode!$D$4),0))) -> 60 | N17: 33.33333333 | O17: 0 | P17: 0 | Q17: 33.33333333 | R17: =IF($K17="Manufactured",0,IF(ISNA(VLOOKUP($B17,StockMaster,COLUMN(StockCode!$AA$4),0))=TRUE,0,VLOOKUP($B17,StockMaster,COLUMN(StockCode!$AA$4),0))) -> 60 | S17: 33.33333333 | T17: 0 | U17: 0 | V17: 33.33333333 | W17: =IF(ISNA(VLOOKUP($A17,StockMaster,COLUMN(StockCode!$P$4),0))=TRUE,0,IF($D17=0,0,(VLOOKUP($A17,StockMaster,COLUMN(StockCode!$P$4),0)*$C17/$D17))) -> 0 | X17: =IF($D17=0,0,SUMIFS(TLevel1,BOMComp,$A17,BOMLevel,"<>First")*$C17/$D17) -> 1181.28655 | Y17: =IF($D17=0,0,SUMIFS(TLevel2,BOMComp,$A17,BOMLevel,"<>First")*$C17/$D17) -> 0 | Z17: =IF($D17=0,0,SUMIFS(TLevel3,BOMComp,$A17,BOMLevel,"<>First")*$C17/$D17) -> 0 | AA17: =IF($D17=0,0,SUMIFS(TLevel4,BOMComp,$A17,BOMLevel,"<>First")*$C17/$D17) -> 0 | AB17: =IF($D17=0,0,SUMIFS(TLevel5,BOMComp,$A17,BOMLevel,"<>First")*$C17/$D17) -> 0 | AC17: =IF(ISNA(VLOOKUP($A17,JRCode,COLUMN(JReview!$D$4),0))=TRUE,0,IF($D17=0,0,VLOOKUP($A17,JRCode,COLUMN(JReview!$D$4),0)*$C17/$D17)) -> 0 | AD17: =IF($D17=0,0,SUMIFS(JLevel1,BOMComp,$A17,BOMLevel,"<>First")*$C17/$D17) -> 116.9590643 | AE17: =IF($D17=0,0,SUMIFS(JLevel2,BOMComp,$A17,BOMLevel,"<>First")*$C17/$D17) -> 0 | AF17: =IF($D17=0,0,SUMIFS(JLevel3,BOMComp,$A17,BOMLevel,"<>First")*$C17/$D17) -> 0 | AG17: =IF($D17=0,0,SUMIFS(JLevel4,BOMComp,$A17,BOMLevel,"<>First")*$C17/$D17) -> 0 | AH17: =IF($D17=0,0,SUMIFS(JLevel5,BOMComp,$A17,BOMLevel,"<>First")*$C17/$D17) -> 0 | AI17: =IF(ISNA(VLOOKUP($A17,JRCode,COLUMN(JReview!$E$4),0))=TRUE,0,IF($D17=0,0,VLOOKUP($A17,JRCode,COLUMN(JReview!$E$4),0)*$C17/$D17)) -> 0 | AJ17: =IF($D17=0,0,SUMIFS(JRLevel1,BOMComp,$A17,BOMLevel,"<>First")*$C17/$D17) -> 122.8070175 | AK17: =IF($D17=0,0,SUMIFS(JRLevel2,BOMComp,$A17,BOMLevel,"<>First")*$C17/$D17) -> 0 | AL17: =IF($D17=0,0,SUMIFS(JRLevel3,BOMComp,$A17,BOMLevel,"<>First")*$C17/$D17) -> 0 | AM17: =IF($D17=0,0,SUMIFS(JRLevel4,BOMComp,$A17,BOMLevel,"<>First")*$C17/$D17) -> 0 | AN17: =IF($D17=0,0,SUMIFS(JRLevel5,BOMComp,$A17,BOMLevel,"<>First")*$C17/$D17) -> 0 | AO17: =IF(ISNA(VLOOKUP($A17,Require,COLUMN(ReqPlan!$E$6),0))=TRUE,0,IF($D17=0,0,VLOOKUP($A17,Require,COLUMN(ReqPlan!$E$6),0)*$C17/$D17)) -> 0 | AP17: =IF($D17=0,0,SUMIFS(RLevel1,BOMComp,$A17,BOMLevel,"<>First")*$C17/$D17) -> 584.7953216 | AQ17: =IF($D17=0,0,SUMIFS(RLevel2,BOMComp,$A17,BOMLevel,"<>First")*$C17/$D17) -> 0 | AR17: =IF($D17=0,0,SUMIFS(RLevel3,BOMComp,$A17,BOMLevel,"<>First")*$C17/$D17) -> 0 | AS17: =IF($D17=0,0,SUMIFS(RLevel4,BOMComp,$A17,BOMLevel,"<>First")*$C17/$D17) -> 0 | AT17: =IF($D17=0,0,SUMIFS(RLevel5,BOMComp,$A17,BOMLevel,"<>First")*$C17/$D17) -> 0
A18: SD30 | B18: RM30 | C18: 1 | D18: 0.8 | E18: - | F18: =IF(ISNA(VLOOKUP($A18,StockMaster,COLUMN(StockCode!$B$4),0))=TRUE,"does not exist",VLOOKUP($A18,StockMaster,COLUMN(StockCode!$B$4),0)) -> Window Frame | G18: =IF(ISNA(VLOOKUP($A18,StockMaster,COLUMN(StockCode!$C$4),0))=TRUE,"error",VLOOKUP($A18,StockMaster,COLUMN(StockCode!$C$4),0)) -> Units | H18: =IF(ISNA(VLOOKUP($A18,StockMaster,COLUMN(StockCode!$E$4),0))=TRUE,"All",VLOOKUP($A18,StockMaster,COLUMN(StockCode!$E$4),0)) -> All | I18: =IF(ISNA(VLOOKUP($B18,StockMaster,COLUMN(StockCode!$B$4),0))=TRUE,"does not exist",VLOOKUP($B18,StockMaster,COLUMN(StockCode!$B$4),0)) -> Wood | J18: =IF(ISNA(VLOOKUP($B18,StockMaster,COLUMN(StockCode!$C$4),0))=TRUE,"error",VLOOKUP($B18,StockMaster,COLUMN(StockCode!$C$4),0)) -> M2 | K18: =IF(ISNA(VLOOKUP($B18,StockMaster,COLUMN(StockCode!$G$4),0))=TRUE,0,VLOOKUP($B18,StockMaster,COLUMN(StockCode!$G$4),0)) -> Bought-In | L18: Y | M18: =IF($K18="Manufactured",0,IF(ISNA(VLOOKUP($B18,StockMaster,COLUMN(StockCode!$D$4),0))=TRUE,0,VLOOKUP($B18,StockMaster,COLUMN(StockCode!$D$4),0))) -> 120 | N18: 150 | O18: 0 | P18: 0 | Q18: 150 | R18: =IF($K18="Manufactured",0,IF(ISNA(VLOOKUP($B18,StockMaster,COLUMN(StockCode!$AA$4),0))=TRUE,0,VLOOKUP($B18,StockMaster,COLUMN(StockCode!$AA$4),0))) -> 124.2132226 | S18: 155.2665283 | T18: 0 | U18: 0 | V18: 155.2665283 | W18: =IF(ISNA(VLOOKUP($A18,StockMaster,COLUMN(StockCode!$P$4),0))=TRUE,0,IF($D18=0,0,(VLOOKUP($A18,StockMaster,COLUMN(StockCode!$P$4),0)*$C18/$D18))) -> 0 | X18: =IF($D18=0,0,SUMIFS(TLevel1,BOMComp,$A18,BOMLevel,"<>First")*$C18/$D18) -> 2657.894737 | Y18: =IF($D18=0,0,SUMIFS(TLevel2,BOMComp,$A18,BOMLevel,"<>First")*$C18/$D18) -> 0 | Z18: =IF($D18=0,0,SUMIFS(TLevel3,BOMComp,$A18,BOMLevel,"<>First")*$C18/$D18) -> 0 | AA18: =IF($D18=0,0,SUMIFS(TLevel4,BOMComp,$A18,BOMLevel,"<>First")*$C18/$D18) -> 0 | AB18: =IF($D18=0,0,SUMIFS(TLevel5,BOMComp,$A18,BOMLevel,"<>First")*$C18/$D18) -> 0 | AC18: =IF(ISNA(VLOOKUP($A18,JRCode,COLUMN(JReview!$D$4),0))=TRUE,0,IF($D18=0,0,VLOOKUP($A18,JRCode,COLUMN(JReview!$D$4),0)*$C18/$D18)) -> 0 | AD18: =IF($D18=0,0,SUMIFS(JLevel1,BOMComp,$A18,BOMLevel,"<>First")*$C18/$D18) -> 263.1578947 | AE18: =IF($D18=0,0,SUMIFS(JLevel2,BOMComp,$A18,BOMLevel,"<>First")*$C18/$D18) -> 0 | AF18: =IF($D18=0,0,SUMIFS(JLevel3,BOMComp,$A18,BOMLevel,"<>First")*$C18/$D18) -> 0 | AG18: =IF($D18=0,0,SUMIFS(JLevel4,BOMComp,$A18,BOMLevel,"<>First")*$C18/$D18) -> 0 | AH18: =IF($D18=0,0,SUMIFS(JLevel5,BOMComp,$A18,BOMLevel,"<>First")*$C18/$D18) -> 0 | AI18: =IF(ISNA(VLOOKUP($A18,JRCode,COLUMN(JReview!$E$4),0))=TRUE,0,IF($D18=0,0,VLOOKUP($A18,JRCode,COLUMN(JReview!$E$4),0)*$C18/$D18)) -> 0 | AJ18: =IF($D18=0,0,SUMIFS(JRLevel1,BOMComp,$A18,BOMLevel,"<>First")*$C18/$D18) -> 276.3157895 | AK18: =IF($D18=0,0,SUMIFS(JRLevel2,BOMComp,$A18,BOMLevel,"<>First")*$C18/$D18) -> 0 | AL18: =IF($D18=0,0,SUMIFS(JRLevel3,BOMComp,$A18,BOMLevel,"<>First")*$C18/$D18) -> 0 | AM18: =IF($D18=0,0,SUMIFS(JRLevel4,BOMComp,$A18,BOMLevel,"<>First")*$C18/$D18) -> 0 | AN18: =IF($D18=0,0,SUMIFS(JRLevel5,BOMComp,$A18,BOMLevel,"<>First")*$C18/$D18) -> 0 | AO18: =IF(ISNA(VLOOKUP($A18,Require,COLUMN(ReqPlan!$E$6),0))=TRUE,0,IF($D18=0,0,VLOOKUP($A18,Require,COLUMN(ReqPlan!$E$6),0)*$C18/$D18)) -> 0 | AP18: =IF($D18=0,0,SUMIFS(RLevel1,BOMComp,$A18,BOMLevel,"<>First")*$C18/$D18) -> 1315.789474 | AQ18: =IF($D18=0,0,SUMIFS(RLevel2,BOMComp,$A18,BOMLevel,"<>First")*$C18/$D18) -> 0 | AR18: =IF($D18=0,0,SUMIFS(RLevel3,BOMComp,$A18,BOMLevel,"<>First")*$C18/$D18) -> 0 | AS18: =IF($D18=0,0,SUMIFS(RLevel4,BOMComp,$A18,BOMLevel,"<>First")*$C18/$D18) -> 0 | AT18: =IF($D18=0,0,SUMIFS(RLevel5,BOMComp,$A18,BOMLevel,"<>First")*$C18/$D18) -> 0
A19: SD30 | B19: LB10 | C19: 1 | D19: 1 | E19: - | F19: =IF(ISNA(VLOOKUP($A19,StockMaster,COLUMN(StockCode!$B$4),0))=TRUE,"does not exist",VLOOKUP($A19,StockMaster,COLUMN(StockCode!$B$4),0)) -> Window Frame | G19: =IF(ISNA(VLOOKUP($A19,StockMaster,COLUMN(StockCode!$C$4),0))=TRUE,"error",VLOOKUP($A19,StockMaster,COLUMN(StockCode!$C$4),0)) -> Units | H19: =IF(ISNA(VLOOKUP($A19,StockMaster,COLUMN(StockCode!$E$4),0))=TRUE,"All",VLOOKUP($A19,StockMaster,COLUMN(StockCode!$E$4),0)) -> All | I19: =IF(ISNA(VLOOKUP($B19,StockMaster,COLUMN(StockCode!$B$4),0))=TRUE,"does not exist",VLOOKUP($B19,StockMaster,COLUMN(StockCode!$B$4),0)) -> Labour - Grade 1 | J19: =IF(ISNA(VLOOKUP($B19,StockMaster,COLUMN(StockCode!$C$4),0))=TRUE,"error",VLOOKUP($B19,StockMaster,COLUMN(StockCode!$C$4),0)) -> Hours | K19: =IF(ISNA(VLOOKUP($B19,StockMaster,COLUMN(StockCode!$G$4),0))=TRUE,0,VLOOKUP($B19,StockMaster,COLUMN(StockCode!$G$4),0)) -> Bought-In | L19: Y | M19: =IF($K19="Manufactured",0,IF(ISNA(VLOOKUP($B19,StockMaster,COLUMN(StockCode!$D$4),0))=TRUE,0,VLOOKUP($B19,StockMaster,COLUMN(StockCode!$D$4),0))) -> 20 | N19: =IF($D19=0,0,$C19/$D19*$M19) -> 20 | O19: 0 | P19: =IF($D19=0,0,$C19/$D19*$O19) -> 0 | Q19: =SUM(N19,P19) -> 20 | R19: =IF($K19="Manufactured",0,IF(ISNA(VLOOKUP($B19,StockMaster,COLUMN(StockCode!$AA$4),0))=TRUE,0,VLOOKUP($B19,StockMaster,COLUMN(StockCode!$AA$4),0))) -> 20.33077475 | S19: 20.33077475 | T19: 0 | U19: 0 | V19: 20.33077475 | W19: =IF(ISNA(VLOOKUP($A19,StockMaster,COLUMN(StockCode!$P$4),0))=TRUE,0,IF($D19=0,0,(VLOOKUP($A19,StockMaster,COLUMN(StockCode!$P$4),0)*$C19/$D19))) -> 0 | X19: =IF($D19=0,0,SUMIFS(TLevel1,BOMComp,$A19,BOMLevel,"<>First")*$C19/$D19) -> 2126.315789 | Y19: =IF($D19=0,0,SUMIFS(TLevel2,BOMComp,$A19,BOMLevel,"<>First")*$C19/$D19) -> 0 | Z19: =IF($D19=0,0,SUMIFS(TLevel3,BOMComp,$A19,BOMLevel,"<>First")*$C19/$D19) -> 0 | AA19: =IF($D19=0,0,SUMIFS(TLevel4,BOMComp,$A19,BOMLevel,"<>First")*$C19/$D19) -> 0 | AB19: =IF($D19=0,0,SUMIFS(TLevel5,BOMComp,$A19,BOMLevel,"<>First")*$C19/$D19) -> 0 | AC19: =IF(ISNA(VLOOKUP($A19,JRCode,COLUMN(JReview!$D$4),0))=TRUE,0,IF($D19=0,0,VLOOKUP($A19,JRCode,COLUMN(JReview!$D$4),0)*$C19/$D19)) -> 0 | AD19: =IF($D19=0,0,SUMIFS(JLevel1,BOMComp,$A19,BOMLevel,"<>First")*$C19/$D19) -> 210.5263158 | AE19: =IF($D19=0,0,SUMIFS(JLevel2,BOMComp,$A19,BOMLevel,"<>First")*$C19/$D19) -> 0 | AF19: =IF($D19=0,0,SUMIFS(JLevel3,BOMComp,$A19,BOMLevel,"<>First")*$C19/$D19) -> 0 | AG19: =IF($D19=0,0,SUMIFS(JLevel4,BOMComp,$A19,BOMLevel,"<>First")*$C19/$D19) -> 0 | AH19: =IF($D19=0,0,SUMIFS(JLevel5,BOMComp,$A19,BOMLevel,"<>First")*$C19/$D19) -> 0 | AI19: =IF(ISNA(VLOOKUP($A19,JRCode,COLUMN(JReview!$E$4),0))=TRUE,0,IF($D19=0,0,VLOOKUP($A19,JRCode,COLUMN(JReview!$E$4),0)*$C19/$D19)) -> 0 | AJ19: =IF($D19=0,0,SUMIFS(JRLevel1,BOMComp,$A19,BOMLevel,"<>First")*$C19/$D19) -> 221.0526316 | AK19: =IF($D19=0,0,SUMIFS(JRLevel2,BOMComp,$A19,BOMLevel,"<>First")*$C19/$D19) -> 0 | AL19: =IF($D19=0,0,SUMIFS(JRLevel3,BOMComp,$A19,BOMLevel,"<>First")*$C19/$D19) -> 0 | AM19: =IF($D19=0,0,SUMIFS(JRLevel4,BOMComp,$A19,BOMLevel,"<>First")*$C19/$D19) -> 0 | AN19: =IF($D19=0,0,SUMIFS(JRLevel5,BOMComp,$A19,BOMLevel,"<>First")*$C19/$D19) -> 0 | AO19: =IF(ISNA(VLOOKUP($A19,Require,COLUMN(ReqPlan!$E$6),0))=TRUE,0,IF($D19=0,0,VLOOKUP($A19,Require,COLUMN(ReqPlan!$E$6),0)*$C19/$D19)) -> 0 | AP19: =IF($D19=0,0,SUMIFS(RLevel1,BOMComp,$A19,BOMLevel,"<>First")*$C19/$D19) -> 1052.631579 | AQ19: =IF($D19=0,0,SUMIFS(RLevel2,BOMComp,$A19,BOMLevel,"<>First")*$C19/$D19) -> 0 | AR19: =IF($D19=0,0,SUMIFS(RLevel3,BOMComp,$A19,BOMLevel,"<>First")*$C19/$D19) -> 0 | AS19: =IF($D19=0,0,SUMIFS(RLevel4,BOMComp,$A19,BOMLevel,"<>First")*$C19/$D19) -> 0 | AT19: =IF($D19=0,0,SUMIFS(RLevel5,BOMComp,$A19,BOMLevel,"<>First")*$C19/$D19) -> 0
A20: SD35 | B20: SD20 | C20: 1 | D20: 1 | E20: - | F20: =IF(ISNA(VLOOKUP($A20,StockMaster,COLUMN(StockCode!$B$4),0))=TRUE,"does not exist",VLOOKUP($A20,StockMaster,COLUMN(StockCode!$B$4),0)) -> Glazed Window | G20: =IF(ISNA(VLOOKUP($A20,StockMaster,COLUMN(StockCode!$C$4),0))=TRUE,"error",VLOOKUP($A20,StockMaster,COLUMN(StockCode!$C$4),0)) -> Units | H20: =IF(ISNA(VLOOKUP($A20,StockMaster,COLUMN(StockCode!$E$4),0))=TRUE,"All",VLOOKUP($A20,StockMaster,COLUMN(StockCode!$E$4),0)) -> All | I20: =IF(ISNA(VLOOKUP($B20,StockMaster,COLUMN(StockCode!$B$4),0))=TRUE,"does not exist",VLOOKUP($B20,StockMaster,COLUMN(StockCode!$B$4),0)) -> Window | J20: =IF(ISNA(VLOOKUP($B20,StockMaster,COLUMN(StockCode!$C$4),0))=TRUE,"error",VLOOKUP($B20,StockMaster,COLUMN(StockCode!$C$4),0)) -> Units | K20: =IF(ISNA(VLOOKUP($B20,StockMaster,COLUMN(StockCode!$G$4),0))=TRUE,0,VLOOKUP($B20,StockMaster,COLUMN(StockCode!$G$4),0)) -> Manufactured | L20: N | M20: =IF($K20="Manufactured",0,IF(ISNA(VLOOKUP($B20,StockMaster,COLUMN(StockCode!$D$4),0))=TRUE,0,VLOOKUP($B20,StockMaster,COLUMN(StockCode!$D$4),0))) -> 0 | N20: 0 | O20: 29.52941176 | P20: 29.52941176 | Q20: 29.52941176 | R20: =IF($K20="Manufactured",0,IF(ISNA(VLOOKUP($B20,StockMaster,COLUMN(StockCode!$AA$4),0))=TRUE,0,VLOOKUP($B20,StockMaster,COLUMN(StockCode!$AA$4),0))) -> 0 | S20: 0 | T20: 30.17926668 | U20: 30.17926668 | V20: 30.17926668 | W20: =IF(ISNA(VLOOKUP($A20,StockMaster,COLUMN(StockCode!$P$4),0))=TRUE,0,IF($D20=0,0,(VLOOKUP($A20,StockMaster,COLUMN(StockCode!$P$4),0)*$C20/$D20))) -> 0 | X20: =IF($D20=0,0,SUMIFS(TLevel1,BOMComp,$A20,BOMLevel,"<>First")*$C20/$D20) -> 0 | Y20: =IF($D20=0,0,SUMIFS(TLevel2,BOMComp,$A20,BOMLevel,"<>First")*$C20/$D20) -> 416 | Z20: =IF($D20=0,0,SUMIFS(TLevel3,BOMComp,$A20,BOMLevel,"<>First")*$C20/$D20) -> 0 | AA20: =IF($D20=0,0,SUMIFS(TLevel4,BOMComp,$A20,BOMLevel,"<>First")*$C20/$D20) -> 0 | AB20: =IF($D20=0,0,SUMIFS(TLevel5,BOMComp,$A20,BOMLevel,"<>First")*$C20/$D20) -> 0 | AC20: =IF(ISNA(VLOOKUP($A20,JRCode,COLUMN(JReview!$D$4),0))=TRUE,0,IF($D20=0,0,VLOOKUP($A20,JRCode,COLUMN(JReview!$D$4),0)*$C20/$D20)) -> 0 | AD20: =IF($D20=0,0,SUMIFS(JLevel1,BOMComp,$A20,BOMLevel,"<>First")*$C20/$D20) -> 0 | AE20: =IF($D20=0,0,SUMIFS(JLevel2,BOMComp,$A20,BOMLevel,"<>First")*$C20/$D20) -> 0 | AF20: =IF($D20=0,0,SUMIFS(JLevel3,BOMComp,$A20,BOMLevel,"<>First")*$C20/$D20) -> 0 | AG20: =IF($D20=0,0,SUMIFS(JLevel4,BOMComp,$A20,BOMLevel,"<>First")*$C20/$D20) -> 0 | AH20: =IF($D20=0,0,SUMIFS(JLevel5,BOMComp,$A20,BOMLevel,"<>First")*$C20/$D20) -> 0 | AI20: =IF(ISNA(VLOOKUP($A20,JRCode,COLUMN(JReview!$E$4),0))=TRUE,0,IF($D20=0,0,VLOOKUP($A20,JRCode,COLUMN(JReview!$E$4),0)*$C20/$D20)) -> 0 | AJ20: =IF($D20=0,0,SUMIFS(JRLevel1,BOMComp,$A20,BOMLevel,"<>First")*$C20/$D20) -> 0 | AK20: =IF($D20=0,0,SUMIFS(JRLevel2,BOMComp,$A20,BOMLevel,"<>First")*$C20/$D20) -> 0 | AL20: =IF($D20=0,0,SUMIFS(JRLevel3,BOMComp,$A20,BOMLevel,"<>First")*$C20/$D20) -> 0 | AM20: =IF($D20=0,0,SUMIFS(JRLevel4,BOMComp,$A20,BOMLevel,"<>First")*$C20/$D20) -> 0 | AN20: =IF($D20=0,0,SUMIFS(JRLevel5,BOMComp,$A20,BOMLevel,"<>First")*$C20/$D20) -> 0 | AO20: =IF(ISNA(VLOOKUP($A20,Require,COLUMN(ReqPlan!$E$6),0))=TRUE,0,IF($D20=0,0,VLOOKUP($A20,Require,COLUMN(ReqPlan!$E$6),0)*$C20/$D20)) -> 0 | AP20: =IF($D20=0,0,SUMIFS(RLevel1,BOMComp,$A20,BOMLevel,"<>First")*$C20/$D20) -> 0 | AQ20: =IF($D20=0,0,SUMIFS(RLevel2,BOMComp,$A20,BOMLevel,"<>First")*$C20/$D20) -> 0 | AR20: =IF($D20=0,0,SUMIFS(RLevel3,BOMComp,$A20,BOMLevel,"<>First")*$C20/$D20) -> 0 | AS20: =IF($D20=0,0,SUMIFS(RLevel4,BOMComp,$A20,BOMLevel,"<>First")*$C20/$D20) -> 0 | AT20: =IF($D20=0,0,SUMIFS(RLevel5,BOMComp,$A20,BOMLevel,"<>First")*$C20/$D20) -> 0
A21: SD35 | B21: LB10 | C21: 0.5 | D21: 1 | E21: - | F21: =IF(ISNA(VLOOKUP($A21,StockMaster,COLUMN(StockCode!$B$4),0))=TRUE,"does not exist",VLOOKUP($A21,StockMaster,COLUMN(StockCode!$B$4),0)) -> Glazed Window | G21: =IF(ISNA(VLOOKUP($A21,StockMaster,COLUMN(StockCode!$C$4),0))=TRUE,"error",VLOOKUP($A21,StockMaster,COLUMN(StockCode!$C$4),0)) -> Units | H21: =IF(ISNA(VLOOKUP($A21,StockMaster,COLUMN(StockCode!$E$4),0))=TRUE,"All",VLOOKUP($A21,StockMaster,COLUMN(StockCode!$E$4),0)) -> All | I21: =IF(ISNA(VLOOKUP($B21,StockMaster,COLUMN(StockCode!$B$4),0))=TRUE,"does not exist",VLOOKUP($B21,StockMaster,COLUMN(StockCode!$B$4),0)) -> Labour - Grade 1 | J21: =IF(ISNA(VLOOKUP($B21,StockMaster,COLUMN(StockCode!$C$4),0))=TRUE,"error",VLOOKUP($B21,StockMaster,COLUMN(StockCode!$C$4),0)) -> Hours | K21: =IF(ISNA(VLOOKUP($B21,StockMaster,COLUMN(StockCode!$G$4),0))=TRUE,0,VLOOKUP($B21,StockMaster,COLUMN(StockCode!$G$4),0)) -> Bought-In | L21: Y | M21: =IF($K21="Manufactured",0,IF(ISNA(VLOOKUP($B21,StockMaster,COLUMN(StockCode!$D$4),0))=TRUE,0,VLOOKUP($B21,StockMaster,COLUMN(StockCode!$D$4),0))) -> 20 | N21: 10 | O21: 0 | P21: 0 | Q21: 10 | R21: =IF($K21="Manufactured",0,IF(ISNA(VLOOKUP($B21,StockMaster,COLUMN(StockCode!$AA$4),0))=TRUE,0,VLOOKUP($B21,StockMaster,COLUMN(StockCode!$AA$4),0))) -> 20.33077475 | S21: 10.16538738 | T21: 0 | U21: 0 | V21: 10.16538738 | W21: =IF(ISNA(VLOOKUP($A21,StockMaster,COLUMN(StockCode!$P$4),0))=TRUE,0,IF($D21=0,0,(VLOOKUP($A21,StockMaster,COLUMN(StockCode!$P$4),0)*$C21/$D21))) -> 0 | X21: =IF($D21=0,0,SUMIFS(TLevel1,BOMComp,$A21,BOMLevel,"<>First")*$C21/$D21) -> 0 | Y21: =IF($D21=0,0,SUMIFS(TLevel2,BOMComp,$A21,BOMLevel,"<>First")*$C21/$D21) -> 208 | Z21: =IF($D21=0,0,SUMIFS(TLevel3,BOMComp,$A21,BOMLevel,"<>First")*$C21/$D21) -> 0 | AA21: =IF($D21=0,0,SUMIFS(TLevel4,BOMComp,$A21,BOMLevel,"<>First")*$C21/$D21) -> 0 | AB21: =IF($D21=0,0,SUMIFS(TLevel5,BOMComp,$A21,BOMLevel,"<>First")*$C21/$D21) -> 0 | AC21: =IF(ISNA(VLOOKUP($A21,JRCode,COLUMN(JReview!$D$4),0))=TRUE,0,IF($D21=0,0,VLOOKUP($A21,JRCode,COLUMN(JReview!$D$4),0)*$C21/$D21)) -> 0 | AD21: =IF($D21=0,0,SUMIFS(JLevel1,BOMComp,$A21,BOMLevel,"<>First")*$C21/$D21) -> 0 | AE21: =IF($D21=0,0,SUMIFS(JLevel2,BOMComp,$A21,BOMLevel,"<>First")*$C21/$D21) -> 0 | AF21: =IF($D21=0,0,SUMIFS(JLevel3,BOMComp,$A21,BOMLevel,"<>First")*$C21/$D21) -> 0 | AG21: =IF($D21=0,0,SUMIFS(JLevel4,BOMComp,$A21,BOMLevel,"<>First")*$C21/$D21) -> 0 | AH21: =IF($D21=0,0,SUMIFS(JLevel5,BOMComp,$A21,BOMLevel,"<>First")*$C21/$D21) -> 0 | AI21: =IF(ISNA(VLOOKUP($A21,JRCode,COLUMN(JReview!$E$4),0))=TRUE,0,IF($D21=0,0,VLOOKUP($A21,JRCode,COLUMN(JReview!$E$4),0)*$C21/$D21)) -> 0 | AJ21: =IF($D21=0,0,SUMIFS(JRLevel1,BOMComp,$A21,BOMLevel,"<>First")*$C21/$D21) -> 0 | AK21: =IF($D21=0,0,SUMIFS(JRLevel2,BOMComp,$A21,BOMLevel,"<>First")*$C21/$D21) -> 0 | AL21: =IF($D21=0,0,SUMIFS(JRLevel3,BOMComp,$A21,BOMLevel,"<>First")*$C21/$D21) -> 0 | AM21: =IF($D21=0,0,SUMIFS(JRLevel4,BOMComp,$A21,BOMLevel,"<>First")*$C21/$D21) -> 0 | AN21: =IF($D21=0,0,SUMIFS(JRLevel5,BOMComp,$A21,BOMLevel,"<>First")*$C21/$D21) -> 0 | AO21: =IF(ISNA(VLOOKUP($A21,Require,COLUMN(ReqPlan!$E$6),0))=TRUE,0,IF($D21=0,0,VLOOKUP($A21,Require,COLUMN(ReqPlan!$E$6),0)*$C21/$D21)) -> 0 | AP21: =IF($D21=0,0,SUMIFS(RLevel1,BOMComp,$A21,BOMLevel,"<>First")*$C21/$D21) -> 0 | AQ21: =IF($D21=0,0,SUMIFS(RLevel2,BOMComp,$A21,BOMLevel,"<>First")*$C21/$D21) -> 0 | AR21: =IF($D21=0,0,SUMIFS(RLevel3,BOMComp,$A21,BOMLevel,"<>First")*$C21/$D21) -> 0 | AS21: =IF($D21=0,0,SUMIFS(RLevel4,BOMComp,$A21,BOMLevel,"<>First")*$C21/$D21) -> 0 | AT21: =IF($D21=0,0,SUMIFS(RLevel5,BOMComp,$A21,BOMLevel,"<>First")*$C21/$D21) -> 0
A22: SD40 | B22: SD35 | C22: 4 | D22: 1 | E22: - | F22: =IF(ISNA(VLOOKUP($A22,StockMaster,COLUMN(StockCode!$B$4),0))=TRUE,"does not exist",VLOOKUP($A22,StockMaster,COLUMN(StockCode!$B$4),0)) -> Glazed Window Frame | G22: =IF(ISNA(VLOOKUP($A22,StockMaster,COLUMN(StockCode!$C$4),0))=TRUE,"error",VLOOKUP($A22,StockMaster,COLUMN(StockCode!$C$4),0)) -> Units | H22: =IF(ISNA(VLOOKUP($A22,StockMaster,COLUMN(StockCode!$E$4),0))=TRUE,"All",VLOOKUP($A22,StockMaster,COLUMN(StockCode!$E$4),0)) -> All | I22: =IF(ISNA(VLOOKUP($B22,StockMaster,COLUMN(StockCode!$B$4),0))=TRUE,"does not exist",VLOOKUP($B22,StockMaster,COLUMN(StockCode!$B$4),0)) -> Glazed Window | J22: =IF(ISNA(VLOOKUP($B22,StockMaster,COLUMN(StockCode!$C$4),0))=TRUE,"error",VLOOKUP($B22,StockMaster,COLUMN(StockCode!$C$4),0)) -> Units | K22: =IF(ISNA(VLOOKUP($B22,StockMaster,COLUMN(StockCode!$G$4),0))=TRUE,0,VLOOKUP($B22,StockMaster,COLUMN(StockCode!$G$4),0)) -> Manufactured | L22: N | M22: =IF($K22="Manufactured",0,IF(ISNA(VLOOKUP($B22,StockMaster,COLUMN(StockCode!$D$4),0))=TRUE,0,VLOOKUP($B22,StockMaster,COLUMN(StockCode!$D$4),0))) -> 0 | N22: 0 | O22: 39.52941176 | P22: 158.1176471 | Q22: 158.1176471 | R22: =IF($K22="Manufactured",0,IF(ISNA(VLOOKUP($B22,StockMaster,COLUMN(StockCode!$AA$4),0))=TRUE,0,VLOOKUP($B22,StockMaster,COLUMN(StockCode!$AA$4),0))) -> 0 | S22: 0 | T22: 40.34465406 | U22: 161.3786162 | V22: 161.3786162 | W22: =IF(ISNA(VLOOKUP($A22,StockMaster,COLUMN(StockCode!$P$4),0))=TRUE,0,IF($D22=0,0,(VLOOKUP($A22,StockMaster,COLUMN(StockCode!$P$4),0)*$C22/$D22))) -> 0 | X22: =IF($D22=0,0,SUMIFS(TLevel1,BOMComp,$A22,BOMLevel,"<>First")*$C22/$D22) -> 416 | Y22: =IF($D22=0,0,SUMIFS(TLevel2,BOMComp,$A22,BOMLevel,"<>First")*$C22/$D22) -> 0 | Z22: =IF($D22=0,0,SUMIFS(TLevel3,BOMComp,$A22,BOMLevel,"<>First")*$C22/$D22) -> 0 | AA22: =IF($D22=0,0,SUMIFS(TLevel4,BOMComp,$A22,BOMLevel,"<>First")*$C22/$D22) -> 0 | AB22: =IF($D22=0,0,SUMIFS(TLevel5,BOMComp,$A22,BOMLevel,"<>First")*$C22/$D22) -> 0 | AC22: =IF(ISNA(VLOOKUP($A22,JRCode,COLUMN(JReview!$D$4),0))=TRUE,0,IF($D22=0,0,VLOOKUP($A22,JRCode,COLUMN(JReview!$D$4),0)*$C22/$D22)) -> 0 | AD22: =IF($D22=0,0,SUMIFS(JLevel1,BOMComp,$A22,BOMLevel,"<>First")*$C22/$D22) -> 0 | AE22: =IF($D22=0,0,SUMIFS(JLevel2,BOMComp,$A22,BOMLevel,"<>First")*$C22/$D22) -> 0 | AF22: =IF($D22=0,0,SUMIFS(JLevel3,BOMComp,$A22,BOMLevel,"<>First")*$C22/$D22) -> 0 | AG22: =IF($D22=0,0,SUMIFS(JLevel4,BOMComp,$A22,BOMLevel,"<>First")*$C22/$D22) -> 0 | AH22: =IF($D22=0,0,SUMIFS(JLevel5,BOMComp,$A22,BOMLevel,"<>First")*$C22/$D22) -> 0 | AI22: =IF(ISNA(VLOOKUP($A22,JRCode,COLUMN(JReview!$E$4),0))=TRUE,0,IF($D22=0,0,VLOOKUP($A22,JRCode,COLUMN(JReview!$E$4),0)*$C22/$D22)) -> 0 | AJ22: =IF($D22=0,0,SUMIFS(JRLevel1,BOMComp,$A22,BOMLevel,"<>First")*$C22/$D22) -> 0 | AK22: =IF($D22=0,0,SUMIFS(JRLevel2,BOMComp,$A22,BOMLevel,"<>First")*$C22/$D22) -> 0 | AL22: =IF($D22=0,0,SUMIFS(JRLevel3,BOMComp,$A22,BOMLevel,"<>First")*$C22/$D22) -> 0 | AM22: =IF($D22=0,0,SUMIFS(JRLevel4,BOMComp,$A22,BOMLevel,"<>First")*$C22/$D22) -> 0 | AN22: =IF($D22=0,0,SUMIFS(JRLevel5,BOMComp,$A22,BOMLevel,"<>First")*$C22/$D22) -> 0 | AO22: =IF(ISNA(VLOOKUP($A22,Require,COLUMN(ReqPlan!$E$6),0))=TRUE,0,IF($D22=0,0,VLOOKUP($A22,Require,COLUMN(ReqPlan!$E$6),0)*$C22/$D22)) -> 0 | AP22: =IF($D22=0,0,SUMIFS(RLevel1,BOMComp,$A22,BOMLevel,"<>First")*$C22/$D22) -> 0 | AQ22: =IF($D22=0,0,SUMIFS(RLevel2,BOMComp,$A22,BOMLevel,"<>First")*$C22/$D22) -> 0 | AR22: =IF($D22=0,0,SUMIFS(RLevel3,BOMComp,$A22,BOMLevel,"<>First")*$C22/$D22) -> 0 | AS22: =IF($D22=0,0,SUMIFS(RLevel4,BOMComp,$A22,BOMLevel,"<>First")*$C22/$D22) -> 0 | AT22: =IF($D22=0,0,SUMIFS(RLevel5,BOMComp,$A22,BOMLevel,"<>First")*$C22/$D22) -> 0
A23: SD40 | B23: RM70 | C23: 0.5 | D23: 0.9 | E23: - | F23: =IF(ISNA(VLOOKUP($A23,StockMaster,COLUMN(StockCode!$B$4),0))=TRUE,"does not exist",VLOOKUP($A23,StockMaster,COLUMN(StockCode!$B$4),0)) -> Glazed Window Frame | G23: =IF(ISNA(VLOOKUP($A23,StockMaster,COLUMN(StockCode!$C$4),0))=TRUE,"error",VLOOKUP($A23,StockMaster,COLUMN(StockCode!$C$4),0)) -> Units | H23: =IF(ISNA(VLOOKUP($A23,StockMaster,COLUMN(StockCode!$E$4),0))=TRUE,"All",VLOOKUP($A23,StockMaster,COLUMN(StockCode!$E$4),0)) -> All | I23: =IF(ISNA(VLOOKUP($B23,StockMaster,COLUMN(StockCode!$B$4),0))=TRUE,"does not exist",VLOOKUP($B23,StockMaster,COLUMN(StockCode!$B$4),0)) -> Filler | J23: =IF(ISNA(VLOOKUP($B23,StockMaster,COLUMN(StockCode!$C$4),0))=TRUE,"error",VLOOKUP($B23,StockMaster,COLUMN(StockCode!$C$4),0)) -> Bag | K23: =IF(ISNA(VLOOKUP($B23,StockMaster,COLUMN(StockCode!$G$4),0))=TRUE,0,VLOOKUP($B23,StockMaster,COLUMN(StockCode!$G$4),0)) -> Bought-In | L23: Y | M23: =IF($K23="Manufactured",0,IF(ISNA(VLOOKUP($B23,StockMaster,COLUMN(StockCode!$D$4),0))=TRUE,0,VLOOKUP($B23,StockMaster,COLUMN(StockCode!$D$4),0))) -> 60 | N23: 33.33333333 | O23: 0 | P23: 0 | Q23: 33.33333333 | R23: =IF($K23="Manufactured",0,IF(ISNA(VLOOKUP($B23,StockMaster,COLUMN(StockCode!$AA$4),0))=TRUE,0,VLOOKUP($B23,StockMaster,COLUMN(StockCode!$AA$4),0))) -> 60 | S23: 33.33333333 | T23: 0 | U23: 0 | V23: 33.33333333 | W23: =IF(ISNA(VLOOKUP($A23,StockMaster,COLUMN(StockCode!$P$4),0))=TRUE,0,IF($D23=0,0,(VLOOKUP($A23,StockMaster,COLUMN(StockCode!$P$4),0)*$C23/$D23))) -> 0 | X23: =IF($D23=0,0,SUMIFS(TLevel1,BOMComp,$A23,BOMLevel,"<>First")*$C23/$D23) -> 57.77777778 | Y23: =IF($D23=0,0,SUMIFS(TLevel2,BOMComp,$A23,BOMLevel,"<>First")*$C23/$D23) -> 0 | Z23: =IF($D23=0,0,SUMIFS(TLevel3,BOMComp,$A23,BOMLevel,"<>First")*$C23/$D23) -> 0 | AA23: =IF($D23=0,0,SUMIFS(TLevel4,BOMComp,$A23,BOMLevel,"<>First")*$C23/$D23) -> 0 | AB23: =IF($D23=0,0,SUMIFS(TLevel5,BOMComp,$A23,BOMLevel,"<>First")*$C23/$D23) -> 0 | AC23: =IF(ISNA(VLOOKUP($A23,JRCode,COLUMN(JReview!$D$4),0))=TRUE,0,IF($D23=0,0,VLOOKUP($A23,JRCode,COLUMN(JReview!$D$4),0)*$C23/$D23)) -> 0 | AD23: =IF($D23=0,0,SUMIFS(JLevel1,BOMComp,$A23,BOMLevel,"<>First")*$C23/$D23) -> 0 | AE23: =IF($D23=0,0,SUMIFS(JLevel2,BOMComp,$A23,BOMLevel,"<>First")*$C23/$D23) -> 0 | AF23: =IF($D23=0,0,SUMIFS(JLevel3,BOMComp,$A23,BOMLevel,"<>First")*$C23/$D23) -> 0 | AG23: =IF($D23=0,0,SUMIFS(JLevel4,BOMComp,$A23,BOMLevel,"<>First")*$C23/$D23) -> 0 | AH23: =IF($D23=0,0,SUMIFS(JLevel5,BOMComp,$A23,BOMLevel,"<>First")*$C23/$D23) -> 0 | AI23: =IF(ISNA(VLOOKUP($A23,JRCode,COLUMN(JReview!$E$4),0))=TRUE,0,IF($D23=0,0,VLOOKUP($A23,JRCode,COLUMN(JReview!$E$4),0)*$C23/$D23)) -> 0 | AJ23: =IF($D23=0,0,SUMIFS(JRLevel1,BOMComp,$A23,BOMLevel,"<>First")*$C23/$D23) -> 0 | AK23: =IF($D23=0,0,SUMIFS(JRLevel2,BOMComp,$A23,BOMLevel,"<>First")*$C23/$D23) -> 0 | AL23: =IF($D23=0,0,SUMIFS(JRLevel3,BOMComp,$A23,BOMLevel,"<>First")*$C23/$D23) -> 0 | AM23: =IF($D23=0,0,SUMIFS(JRLevel4,BOMComp,$A23,BOMLevel,"<>First")*$C23/$D23) -> 0 | AN23: =IF($D23=0,0,SUMIFS(JRLevel5,BOMComp,$A23,BOMLevel,"<>First")*$C23/$D23) -> 0 | AO23: =IF(ISNA(VLOOKUP($A23,Require,COLUMN(ReqPlan!$E$6),0))=TRUE,0,IF($D23=0,0,VLOOKUP($A23,Require,COLUMN(ReqPlan!$E$6),0)*$C23/$D23)) -> 0 | AP23: =IF($D23=0,0,SUMIFS(RLevel1,BOMComp,$A23,BOMLevel,"<>First")*$C23/$D23) -> 0 | AQ23: =IF($D23=0,0,SUMIFS(RLevel2,BOMComp,$A23,BOMLevel,"<>First")*$C23/$D23) -> 0 | AR23: =IF($D23=0,0,SUMIFS(RLevel3,BOMComp,$A23,BOMLevel,"<>First")*$C23/$D23) -> 0 | AS23: =IF($D23=0,0,SUMIFS(RLevel4,BOMComp,$A23,BOMLevel,"<>First")*$C23/$D23) -> 0 | AT23: =IF($D23=0,0,SUMIFS(RLevel5,BOMComp,$A23,BOMLevel,"<>First")*$C23/$D23) -> 0
A24: SD40 | B24: RM30 | C24: 1 | D24: 0.8 | E24: - | F24: =IF(ISNA(VLOOKUP($A24,StockMaster,COLUMN(StockCode!$B$4),0))=TRUE,"does not exist",VLOOKUP($A24,StockMaster,COLUMN(StockCode!$B$4),0)) -> Glazed Window Frame | G24: =IF(ISNA(VLOOKUP($A24,StockMaster,COLUMN(StockCode!$C$4),0))=TRUE,"error",VLOOKUP($A24,StockMaster,COLUMN(StockCode!$C$4),0)) -> Units | H24: =IF(ISNA(VLOOKUP($A24,StockMaster,COLUMN(StockCode!$E$4),0))=TRUE,"All",VLOOKUP($A24,StockMaster,COLUMN(StockCode!$E$4),0)) -> All | I24: =IF(ISNA(VLOOKUP($B24,StockMaster,COLUMN(StockCode!$B$4),0))=TRUE,"does not exist",VLOOKUP($B24,StockMaster,COLUMN(StockCode!$B$4),0)) -> Wood | J24: =IF(ISNA(VLOOKUP($B24,StockMaster,COLUMN(StockCode!$C$4),0))=TRUE,"error",VLOOKUP($B24,StockMaster,COLUMN(StockCode!$C$4),0)) -> M2 | K24: =IF(ISNA(VLOOKUP($B24,StockMaster,COLUMN(StockCode!$G$4),0))=TRUE,0,VLOOKUP($B24,StockMaster,COLUMN(StockCode!$G$4),0)) -> Bought-In | L24: Y | M24: =IF($K24="Manufactured",0,IF(ISNA(VLOOKUP($B24,StockMaster,COLUMN(StockCode!$D$4),0))=TRUE,0,VLOOKUP($B24,StockMaster,COLUMN(StockCode!$D$4),0))) -> 120 | N24: 150 | O24: 0 | P24: 0 | Q24: 150 | R24: =IF($K24="Manufactured",0,IF(ISNA(VLOOKUP($B24,StockMaster,COLUMN(StockCode!$AA$4),0))=TRUE,0,VLOOKUP($B24,StockMaster,COLUMN(StockCode!$AA$4),0))) -> 124.2132226 | S24: 155.2665283 | T24: 0 | U24: 0 | V24: 155.2665283 | W24: =IF(ISNA(VLOOKUP($A24,StockMaster,COLUMN(StockCode!$P$4),0))=TRUE,0,IF($D24=0,0,(VLOOKUP($A24,StockMaster,COLUMN(StockCode!$P$4),0)*$C24/$D24))) -> 0 | X24: =IF($D24=0,0,SUMIFS(TLevel1,BOMComp,$A24,BOMLevel,"<>First")*$C24/$D24) -> 130 | Y24: =IF($D24=0,0,SUMIFS(TLevel2,BOMComp,$A24,BOMLevel,"<>First")*$C24/$D24) -> 0 | Z24: =IF($D24=0,0,SUMIFS(TLevel3,BOMComp,$A24,BOMLevel,"<>First")*$C24/$D24) -> 0 | AA24: =IF($D24=0,0,SUMIFS(TLevel4,BOMComp,$A24,BOMLevel,"<>First")*$C24/$D24) -> 0 | AB24: =IF($D24=0,0,SUMIFS(TLevel5,BOMComp,$A24,BOMLevel,"<>First")*$C24/$D24) -> 0 | AC24: =IF(ISNA(VLOOKUP($A24,JRCode,COLUMN(JReview!$D$4),0))=TRUE,0,IF($D24=0,0,VLOOKUP($A24,JRCode,COLUMN(JReview!$D$4),0)*$C24/$D24)) -> 0 | AD24: =IF($D24=0,0,SUMIFS(JLevel1,BOMComp,$A24,BOMLevel,"<>First")*$C24/$D24) -> 0 | AE24: =IF($D24=0,0,SUMIFS(JLevel2,BOMComp,$A24,BOMLevel,"<>First")*$C24/$D24) -> 0 | AF24: =IF($D24=0,0,SUMIFS(JLevel3,BOMComp,$A24,BOMLevel,"<>First")*$C24/$D24) -> 0 | AG24: =IF($D24=0,0,SUMIFS(JLevel4,BOMComp,$A24,BOMLevel,"<>First")*$C24/$D24) -> 0 | AH24: =IF($D24=0,0,SUMIFS(JLevel5,BOMComp,$A24,BOMLevel,"<>First")*$C24/$D24) -> 0 | AI24: =IF(ISNA(VLOOKUP($A24,JRCode,COLUMN(JReview!$E$4),0))=TRUE,0,IF($D24=0,0,VLOOKUP($A24,JRCode,COLUMN(JReview!$E$4),0)*$C24/$D24)) -> 0 | AJ24: =IF($D24=0,0,SUMIFS(JRLevel1,BOMComp,$A24,BOMLevel,"<>First")*$C24/$D24) -> 0 | AK24: =IF($D24=0,0,SUMIFS(JRLevel2,BOMComp,$A24,BOMLevel,"<>First")*$C24/$D24) -> 0 | AL24: =IF($D24=0,0,SUMIFS(JRLevel3,BOMComp,$A24,BOMLevel,"<>First")*$C24/$D24) -> 0 | AM24: =IF($D24=0,0,SUMIFS(JRLevel4,BOMComp,$A24,BOMLevel,"<>First")*$C24/$D24) -> 0 | AN24: =IF($D24=0,0,SUMIFS(JRLevel5,BOMComp,$A24,BOMLevel,"<>First")*$C24/$D24) -> 0 | AO24: =IF(ISNA(VLOOKUP($A24,Require,COLUMN(ReqPlan!$E$6),0))=TRUE,0,IF($D24=0,0,VLOOKUP($A24,Require,COLUMN(ReqPlan!$E$6),0)*$C24/$D24)) -> 0 | AP24: =IF($D24=0,0,SUMIFS(RLevel1,BOMComp,$A24,BOMLevel,"<>First")*$C24/$D24) -> 0 | AQ24: =IF($D24=0,0,SUMIFS(RLevel2,BOMComp,$A24,BOMLevel,"<>First")*$C24/$D24) -> 0 | AR24: =IF($D24=0,0,SUMIFS(RLevel3,BOMComp,$A24,BOMLevel,"<>First")*$C24/$D24) -> 0 | AS24: =IF($D24=0,0,SUMIFS(RLevel4,BOMComp,$A24,BOMLevel,"<>First")*$C24/$D24) -> 0 | AT24: =IF($D24=0,0,SUMIFS(RLevel5,BOMComp,$A24,BOMLevel,"<>First")*$C24/$D24) -> 0
A25: SD40 | B25: LB10 | C25: 1 | D25: 1 | E25: - | F25: =IF(ISNA(VLOOKUP($A25,StockMaster,COLUMN(StockCode!$B$4),0))=TRUE,"does not exist",VLOOKUP($A25,StockMaster,COLUMN(StockCode!$B$4),0)) -> Glazed Window Frame | G25: =IF(ISNA(VLOOKUP($A25,StockMaster,COLUMN(StockCode!$C$4),0))=TRUE,"error",VLOOKUP($A25,StockMaster,COLUMN(StockCode!$C$4),0)) -> Units | H25: =IF(ISNA(VLOOKUP($A25,StockMaster,COLUMN(StockCode!$E$4),0))=TRUE,"All",VLOOKUP($A25,StockMaster,COLUMN(StockCode!$E$4),0)) -> All | I25: =IF(ISNA(VLOOKUP($B25,StockMaster,COLUMN(StockCode!$B$4),0))=TRUE,"does not exist",VLOOKUP($B25,StockMaster,COLUMN(StockCode!$B$4),0)) -> Labour - Grade 1 | J25: =IF(ISNA(VLOOKUP($B25,StockMaster,COLUMN(StockCode!$C$4),0))=TRUE,"error",VLOOKUP($B25,StockMaster,COLUMN(StockCode!$C$4),0)) -> Hours | K25: =IF(ISNA(VLOOKUP($B25,StockMaster,COLUMN(StockCode!$G$4),0))=TRUE,0,VLOOKUP($B25,StockMaster,COLUMN(StockCode!$G$4),0)) -> Bought-In | L25: Y | M25: =IF($K25="Manufactured",0,IF(ISNA(VLOOKUP($B25,StockMaster,COLUMN(StockCode!$D$4),0))=TRUE,0,VLOOKUP($B25,StockMaster,COLUMN(StockCode!$D$4),0))) -> 20 | N25: 20 | O25: 0 | P25: 0 | Q25: 20 | R25: =IF($K25="Manufactured",0,IF(ISNA(VLOOKUP($B25,StockMaster,COLUMN(StockCode!$AA$4),0))=TRUE,0,VLOOKUP($B25,StockMaster,COLUMN(StockCode!$AA$4),0))) -> 20.33077475 | S25: 20.33077475 | T25: 0 | U25: 0 | V25: 20.33077475 | W25: =IF(ISNA(VLOOKUP($A25,StockMaster,COLUMN(StockCode!$P$4),0))=TRUE,0,IF($D25=0,0,(VLOOKUP($A25,StockMaster,COLUMN(StockCode!$P$4),0)*$C25/$D25))) -> 0 | X25: =IF($D25=0,0,SUMIFS(TLevel1,BOMComp,$A25,BOMLevel,"<>First")*$C25/$D25) -> 104 | Y25: =IF($D25=0,0,SUMIFS(TLevel2,BOMComp,$A25,BOMLevel,"<>First")*$C25/$D25) -> 0 | Z25: =IF($D25=0,0,SUMIFS(TLevel3,BOMComp,$A25,BOMLevel,"<>First")*$C25/$D25) -> 0 | AA25: =IF($D25=0,0,SUMIFS(TLevel4,BOMComp,$A25,BOMLevel,"<>First")*$C25/$D25) -> 0 | AB25: =IF($D25=0,0,SUMIFS(TLevel5,BOMComp,$A25,BOMLevel,"<>First")*$C25/$D25) -> 0 | AC25: =IF(ISNA(VLOOKUP($A25,JRCode,COLUMN(JReview!$D$4),0))=TRUE,0,IF($D25=0,0,VLOOKUP($A25,JRCode,COLUMN(JReview!$D$4),0)*$C25/$D25)) -> 0 | AD25: =IF($D25=0,0,SUMIFS(JLevel1,BOMComp,$A25,BOMLevel,"<>First")*$C25/$D25) -> 0 | AE25: =IF($D25=0,0,SUMIFS(JLevel2,BOMComp,$A25,BOMLevel,"<>First")*$C25/$D25) -> 0 | AF25: =IF($D25=0,0,SUMIFS(JLevel3,BOMComp,$A25,BOMLevel,"<>First")*$C25/$D25) -> 0 | AG25: =IF($D25=0,0,SUMIFS(JLevel4,BOMComp,$A25,BOMLevel,"<>First")*$C25/$D25) -> 0 | AH25: =IF($D25=0,0,SUMIFS(JLevel5,BOMComp,$A25,BOMLevel,"<>First")*$C25/$D25) -> 0 | AI25: =IF(ISNA(VLOOKUP($A25,JRCode,COLUMN(JReview!$E$4),0))=TRUE,0,IF($D25=0,0,VLOOKUP($A25,JRCode,COLUMN(JReview!$E$4),0)*$C25/$D25)) -> 0 | AJ25: =IF($D25=0,0,SUMIFS(JRLevel1,BOMComp,$A25,BOMLevel,"<>First")*$C25/$D25) -> 0 | AK25: =IF($D25=0,0,SUMIFS(JRLevel2,BOMComp,$A25,BOMLevel,"<>First")*$C25/$D25) -> 0 | AL25: =IF($D25=0,0,SUMIFS(JRLevel3,BOMComp,$A25,BOMLevel,"<>First")*$C25/$D25) -> 0 | AM25: =IF($D25=0,0,SUMIFS(JRLevel4,BOMComp,$A25,BOMLevel,"<>First")*$C25/$D25) -> 0 | AN25: =IF($D25=0,0,SUMIFS(JRLevel5,BOMComp,$A25,BOMLevel,"<>First")*$C25/$D25) -> 0 | AO25: =IF(ISNA(VLOOKUP($A25,Require,COLUMN(ReqPlan!$E$6),0))=TRUE,0,IF($D25=0,0,VLOOKUP($A25,Require,COLUMN(ReqPlan!$E$6),0)*$C25/$D25)) -> 0 | AP25: =IF($D25=0,0,SUMIFS(RLevel1,BOMComp,$A25,BOMLevel,"<>First")*$C25/$D25) -> 0 | AQ25: =IF($D25=0,0,SUMIFS(RLevel2,BOMComp,$A25,BOMLevel,"<>First")*$C25/$D25) -> 0 | AR25: =IF($D25=0,0,SUMIFS(RLevel3,BOMComp,$A25,BOMLevel,"<>First")*$C25/$D25) -> 0 | AS25: =IF($D25=0,0,SUMIFS(RLevel4,BOMComp,$A25,BOMLevel,"<>First")*$C25/$D25) -> 0 | AT25: =IF($D25=0,0,SUMIFS(RLevel5,BOMComp,$A25,BOMLevel,"<>First")*$C25/$D25) -> 0
A26: 1212GHG | B26: SD25 | C26: 1 | D26: 1 | E26: - | F26: =IF(ISNA(VLOOKUP($A26,StockMaster,COLUMN(StockCode!$B$4),0))=TRUE,"does not exist",VLOOKUP($A26,StockMaster,COLUMN(StockCode!$B$4),0)) -> Garden Shed | G26: =IF(ISNA(VLOOKUP($A26,StockMaster,COLUMN(StockCode!$C$4),0))=TRUE,"error",VLOOKUP($A26,StockMaster,COLUMN(StockCode!$C$4),0)) -> Units | H26: =IF(ISNA(VLOOKUP($A26,StockMaster,COLUMN(StockCode!$E$4),0))=TRUE,"All",VLOOKUP($A26,StockMaster,COLUMN(StockCode!$E$4),0)) -> All | I26: =IF(ISNA(VLOOKUP($B26,StockMaster,COLUMN(StockCode!$B$4),0))=TRUE,"does not exist",VLOOKUP($B26,StockMaster,COLUMN(StockCode!$B$4),0)) -> Roof | J26: =IF(ISNA(VLOOKUP($B26,StockMaster,COLUMN(StockCode!$C$4),0))=TRUE,"error",VLOOKUP($B26,StockMaster,COLUMN(StockCode!$C$4),0)) -> Units | K26: =IF(ISNA(VLOOKUP($B26,StockMaster,COLUMN(StockCode!$G$4),0))=TRUE,0,VLOOKUP($B26,StockMaster,COLUMN(StockCode!$G$4),0)) -> Manufactured | L26: N | M26: =IF($K26="Manufactured",0,IF(ISNA(VLOOKUP($B26,StockMaster,COLUMN(StockCode!$D$4),0))=TRUE,0,VLOOKUP($B26,StockMaster,COLUMN(StockCode!$D$4),0))) -> 0 | N26: 0 | O26: 1766.666667 | P26: 1766.666667 | Q26: 1766.666667 | R26: =IF($K26="Manufactured",0,IF(ISNA(VLOOKUP($B26,StockMaster,COLUMN(StockCode!$AA$4),0))=TRUE,0,VLOOKUP($B26,StockMaster,COLUMN(StockCode!$AA$4),0))) -> 0 | S26: 0 | T26: 1770.319455 | U26: 1770.319455 | V26: 1770.319455 | W26: =IF(ISNA(VLOOKUP($A26,StockMaster,COLUMN(StockCode!$P$4),0))=TRUE,0,IF($D26=0,0,(VLOOKUP($A26,StockMaster,COLUMN(StockCode!$P$4),0)*$C26/$D26))) -> 1010 | X26: =IF($D26=0,0,SUMIFS(TLevel1,BOMComp,$A26,BOMLevel,"<>First")*$C26/$D26) -> 0 | Y26: =IF($D26=0,0,SUMIFS(TLevel2,BOMComp,$A26,BOMLevel,"<>First")*$C26/$D26) -> 0 | Z26: =IF($D26=0,0,SUMIFS(TLevel3,BOMComp,$A26,BOMLevel,"<>First")*$C26/$D26) -> 0 | AA26: =IF($D26=0,0,SUMIFS(TLevel4,BOMComp,$A26,BOMLevel,"<>First")*$C26/$D26) -> 0 | AB26: =IF($D26=0,0,SUMIFS(TLevel5,BOMComp,$A26,BOMLevel,"<>First")*$C26/$D26) -> 0 | AC26: =IF(ISNA(VLOOKUP($A26,JRCode,COLUMN(JReview!$D$4),0))=TRUE,0,IF($D26=0,0,VLOOKUP($A26,JRCode,COLUMN(JReview!$D$4),0)*$C26/$D26)) -> 100 | AD26: =IF($D26=0,0,SUMIFS(JLevel1,BOMComp,$A26,BOMLevel,"<>First")*$C26/$D26) -> 0 | AE26: =IF($D26=0,0,SUMIFS(JLevel2,BOMComp,$A26,BOMLevel,"<>First")*$C26/$D26) -> 0 | AF26: =IF($D26=0,0,SUMIFS(JLevel3,BOMComp,$A26,BOMLevel,"<>First")*$C26/$D26) -> 0 | AG26: =IF($D26=0,0,SUMIFS(JLevel4,BOMComp,$A26,BOMLevel,"<>First")*$C26/$D26) -> 0 | AH26: =IF($D26=0,0,SUMIFS(JLevel5,BOMComp,$A26,BOMLevel,"<>First")*$C26/$D26) -> 0 | AI26: =IF(ISNA(VLOOKUP($A26,JRCode,COLUMN(JReview!$E$4),0))=TRUE,0,IF($D26=0,0,VLOOKUP($A26,JRCode,COLUMN(JReview!$E$4),0)*$C26/$D26)) -> 105 | AJ26: =IF($D26=0,0,SUMIFS(JRLevel1,BOMComp,$A26,BOMLevel,"<>First")*$C26/$D26) -> 0 | AK26: =IF($D26=0,0,SUMIFS(JRLevel2,BOMComp,$A26,BOMLevel,"<>First")*$C26/$D26) -> 0 | AL26: =IF($D26=0,0,SUMIFS(JRLevel3,BOMComp,$A26,BOMLevel,"<>First")*$C26/$D26) -> 0 | AM26: =IF($D26=0,0,SUMIFS(JRLevel4,BOMComp,$A26,BOMLevel,"<>First")*$C26/$D26) -> 0 | AN26: =IF($D26=0,0,SUMIFS(JRLevel5,BOMComp,$A26,BOMLevel,"<>First")*$C26/$D26) -> 0 | AO26: =IF(ISNA(VLOOKUP($A26,Require,COLUMN(ReqPlan!$E$6),0))=TRUE,0,IF($D26=0,0,VLOOKUP($A26,Require,COLUMN(ReqPlan!$E$6),0)*$C26/$D26)) -> 500 | AP26: =IF($D26=0,0,SUMIFS(RLevel1,BOMComp,$A26,BOMLevel,"<>First")*$C26/$D26) -> 0 | AQ26: =IF($D26=0,0,SUMIFS(RLevel2,BOMComp,$A26,BOMLevel,"<>First")*$C26/$D26) -> 0 | AR26: =IF($D26=0,0,SUMIFS(RLevel3,BOMComp,$A26,BOMLevel,"<>First")*$C26/$D26) -> 0 | AS26: =IF($D26=0,0,SUMIFS(RLevel4,BOMComp,$A26,BOMLevel,"<>First")*$C26/$D26) -> 0 | AT26: =IF($D26=0,0,SUMIFS(RLevel5,BOMComp,$A26,BOMLevel,"<>First")*$C26/$D26) -> 0
A27: 1212GHG | B27: SD30 | C27: 2 | D27: 0.95 | E27: - | F27: =IF(ISNA(VLOOKUP($A27,StockMaster,COLUMN(StockCode!$B$4),0))=TRUE,"does not exist",VLOOKUP($A27,StockMaster,COLUMN(StockCode!$B$4),0)) -> Garden Shed | G27: =IF(ISNA(VLOOKUP($A27,StockMaster,COLUMN(StockCode!$C$4),0))=TRUE,"error",VLOOKUP($A27,StockMaster,COLUMN(StockCode!$C$4),0)) -> Units | H27: =IF(ISNA(VLOOKUP($A27,StockMaster,COLUMN(StockCode!$E$4),0))=TRUE,"All",VLOOKUP($A27,StockMaster,COLUMN(StockCode!$E$4),0)) -> All | I27: =IF(ISNA(VLOOKUP($B27,StockMaster,COLUMN(StockCode!$B$4),0))=TRUE,"does not exist",VLOOKUP($B27,StockMaster,COLUMN(StockCode!$B$4),0)) -> Window Frame | J27: =IF(ISNA(VLOOKUP($B27,StockMaster,COLUMN(StockCode!$C$4),0))=TRUE,"error",VLOOKUP($B27,StockMaster,COLUMN(StockCode!$C$4),0)) -> Units | K27: =IF(ISNA(VLOOKUP($B27,StockMaster,COLUMN(StockCode!$G$4),0))=TRUE,0,VLOOKUP($B27,StockMaster,COLUMN(StockCode!$G$4),0)) -> Manufactured | L27: N | M27: =IF($K27="Manufactured",0,IF(ISNA(VLOOKUP($B27,StockMaster,COLUMN(StockCode!$D$4),0))=TRUE,0,VLOOKUP($B27,StockMaster,COLUMN(StockCode!$D$4),0))) -> 0 | N27: 0 | O27: 321.4509804 | P27: 676.7389061 | Q27: 676.7389061 | R27: =IF($K27="Manufactured",0,IF(ISNA(VLOOKUP($B27,StockMaster,COLUMN(StockCode!$AA$4),0))=TRUE,0,VLOOKUP($B27,StockMaster,COLUMN(StockCode!$AA$4),0))) -> 0 | S27: 0 | T27: 329.6477031 | U27: 693.9951644 | V27: 693.9951644 | W27: =IF(ISNA(VLOOKUP($A27,StockMaster,COLUMN(StockCode!$P$4),0))=TRUE,0,IF($D27=0,0,(VLOOKUP($A27,StockMaster,COLUMN(StockCode!$P$4),0)*$C27/$D27))) -> 2126.315789 | X27: =IF($D27=0,0,SUMIFS(TLevel1,BOMComp,$A27,BOMLevel,"<>First")*$C27/$D27) -> 0 | Y27: =IF($D27=0,0,SUMIFS(TLevel2,BOMComp,$A27,BOMLevel,"<>First")*$C27/$D27) -> 0 | Z27: =IF($D27=0,0,SUMIFS(TLevel3,BOMComp,$A27,BOMLevel,"<>First")*$C27/$D27) -> 0 | AA27: =IF($D27=0,0,SUMIFS(TLevel4,BOMComp,$A27,BOMLevel,"<>First")*$C27/$D27) -> 0 | AB27: =IF($D27=0,0,SUMIFS(TLevel5,BOMComp,$A27,BOMLevel,"<>First")*$C27/$D27) -> 0 | AC27: =IF(ISNA(VLOOKUP($A27,JRCode,COLUMN(JReview!$D$4),0))=TRUE,0,IF($D27=0,0,VLOOKUP($A27,JRCode,COLUMN(JReview!$D$4),0)*$C27/$D27)) -> 210.5263158 | AD27: =IF($D27=0,0,SUMIFS(JLevel1,BOMComp,$A27,BOMLevel,"<>First")*$C27/$D27) -> 0 | AE27: =IF($D27=0,0,SUMIFS(JLevel2,BOMComp,$A27,BOMLevel,"<>First")*$C27/$D27) -> 0 | AF27: =IF($D27=0,0,SUMIFS(JLevel3,BOMComp,$A27,BOMLevel,"<>First")*$C27/$D27) -> 0 | AG27: =IF($D27=0,0,SUMIFS(JLevel4,BOMComp,$A27,BOMLevel,"<>First")*$C27/$D27) -> 0 | AH27: =IF($D27=0,0,SUMIFS(JLevel5,BOMComp,$A27,BOMLevel,"<>First")*$C27/$D27) -> 0 | AI27: =IF(ISNA(VLOOKUP($A27,JRCode,COLUMN(JReview!$E$4),0))=TRUE,0,IF($D27=0,0,VLOOKUP($A27,JRCode,COLUMN(JReview!$E$4),0)*$C27/$D27)) -> 221.0526316 | AJ27: =IF($D27=0,0,SUMIFS(JRLevel1,BOMComp,$A27,BOMLevel,"<>First")*$C27/$D27) -> 0 | AK27: =IF($D27=0,0,SUMIFS(JRLevel2,BOMComp,$A27,BOMLevel,"<>First")*$C27/$D27) -> 0 | AL27: =IF($D27=0,0,SUMIFS(JRLevel3,BOMComp,$A27,BOMLevel,"<>First")*$C27/$D27) -> 0 | AM27: =IF($D27=0,0,SUMIFS(JRLevel4,BOMComp,$A27,BOMLevel,"<>First")*$C27/$D27) -> 0 | AN27: =IF($D27=0,0,SUMIFS(JRLevel5,BOMComp,$A27,BOMLevel,"<>First")*$C27/$D27) -> 0 | AO27: =IF(ISNA(VLOOKUP($A27,Require,COLUMN(ReqPlan!$E$6),0))=TRUE,0,IF($D27=0,0,VLOOKUP($A27,Require,COLUMN(ReqPlan!$E$6),0)*$C27/$D27)) -> 1052.631579 | AP27: =IF($D27=0,0,SUMIFS(RLevel1,BOMComp,$A27,BOMLevel,"<>First")*$C27/$D27) -> 0 | AQ27: =IF($D27=0,0,SUMIFS(RLevel2,BOMComp,$A27,BOMLevel,"<>First")*$C27/$D27) -> 0 | AR27: =IF($D27=0,0,SUMIFS(RLevel3,BOMComp,$A27,BOMLevel,"<>First")*$C27/$D27) -> 0 | AS27: =IF($D27=0,0,SUMIFS(RLevel4,BOMComp,$A27,BOMLevel,"<>First")*$C27/$D27) -> 0 | AT27: =IF($D27=0,0,SUMIFS(RLevel5,BOMComp,$A27,BOMLevel,"<>First")*$C27/$D27) -> 0
A28: 1212GHG | B28: SD18 | C28: 1 | D28: 1 | E28: - | F28: =IF(ISNA(VLOOKUP($A28,StockMaster,COLUMN(StockCode!$B$4),0))=TRUE,"does not exist",VLOOKUP($A28,StockMaster,COLUMN(StockCode!$B$4),0)) -> Garden Shed | G28: =IF(ISNA(VLOOKUP($A28,StockMaster,COLUMN(StockCode!$C$4),0))=TRUE,"error",VLOOKUP($A28,StockMaster,COLUMN(StockCode!$C$4),0)) -> Units | H28: =IF(ISNA(VLOOKUP($A28,StockMaster,COLUMN(StockCode!$E$4),0))=TRUE,"All",VLOOKUP($A28,StockMaster,COLUMN(StockCode!$E$4),0)) -> All | I28: =IF(ISNA(VLOOKUP($B28,StockMaster,COLUMN(StockCode!$B$4),0))=TRUE,"does not exist",VLOOKUP($B28,StockMaster,COLUMN(StockCode!$B$4),0)) -> Door | J28: =IF(ISNA(VLOOKUP($B28,StockMaster,COLUMN(StockCode!$C$4),0))=TRUE,"error",VLOOKUP($B28,StockMaster,COLUMN(StockCode!$C$4),0)) -> Units | K28: =IF(ISNA(VLOOKUP($B28,StockMaster,COLUMN(StockCode!$G$4),0))=TRUE,0,VLOOKUP($B28,StockMaster,COLUMN(StockCode!$G$4),0)) -> Manufactured | L28: N | M28: =IF($K28="Manufactured",0,IF(ISNA(VLOOKUP($B28,StockMaster,COLUMN(StockCode!$D$4),0))=TRUE,0,VLOOKUP($B28,StockMaster,COLUMN(StockCode!$D$4),0))) -> 0 | N28: 0 | O28: 313.6666667 | P28: 313.6666667 | Q28: 313.6666667 | R28: =IF($K28="Manufactured",0,IF(ISNA(VLOOKUP($B28,StockMaster,COLUMN(StockCode!$AA$4),0))=TRUE,0,VLOOKUP($B28,StockMaster,COLUMN(StockCode!$AA$4),0))) -> 0 | S28: 0 | T28: 318.6787999 | U28: 318.6787999 | V28: 318.6787999 | W28: =IF(ISNA(VLOOKUP($A28,StockMaster,COLUMN(StockCode!$P$4),0))=TRUE,0,IF($D28=0,0,(VLOOKUP($A28,StockMaster,COLUMN(StockCode!$P$4),0)*$C28/$D28))) -> 1010 | X28: =IF($D28=0,0,SUMIFS(TLevel1,BOMComp,$A28,BOMLevel,"<>First")*$C28/$D28) -> 0 | Y28: =IF($D28=0,0,SUMIFS(TLevel2,BOMComp,$A28,BOMLevel,"<>First")*$C28/$D28) -> 0 | Z28: =IF($D28=0,0,SUMIFS(TLevel3,BOMComp,$A28,BOMLevel,"<>First")*$C28/$D28) -> 0 | AA28: =IF($D28=0,0,SUMIFS(TLevel4,BOMComp,$A28,BOMLevel,"<>First")*$C28/$D28) -> 0 | AB28: =IF($D28=0,0,SUMIFS(TLevel5,BOMComp,$A28,BOMLevel,"<>First")*$C28/$D28) -> 0 | AC28: =IF(ISNA(VLOOKUP($A28,JRCode,COLUMN(JReview!$D$4),0))=TRUE,0,IF($D28=0,0,VLOOKUP($A28,JRCode,COLUMN(JReview!$D$4),0)*$C28/$D28)) -> 100 | AD28: =IF($D28=0,0,SUMIFS(JLevel1,BOMComp,$A28,BOMLevel,"<>First")*$C28/$D28) -> 0 | AE28: =IF($D28=0,0,SUMIFS(JLevel2,BOMComp,$A28,BOMLevel,"<>First")*$C28/$D28) -> 0 | AF28: =IF($D28=0,0,SUMIFS(JLevel3,BOMComp,$A28,BOMLevel,"<>First")*$C28/$D28) -> 0 | AG28: =IF($D28=0,0,SUMIFS(JLevel4,BOMComp,$A28,BOMLevel,"<>First")*$C28/$D28) -> 0 | AH28: =IF($D28=0,0,SUMIFS(JLevel5,BOMComp,$A28,BOMLevel,"<>First")*$C28/$D28) -> 0 | AI28: =IF(ISNA(VLOOKUP($A28,JRCode,COLUMN(JReview!$E$4),0))=TRUE,0,IF($D28=0,0,VLOOKUP($A28,JRCode,COLUMN(JReview!$E$4),0)*$C28/$D28)) -> 105 | AJ28: =IF($D28=0,0,SUMIFS(JRLevel1,BOMComp,$A28,BOMLevel,"<>First")*$C28/$D28) -> 0 | AK28: =IF($D28=0,0,SUMIFS(JRLevel2,BOMComp,$A28,BOMLevel,"<>First")*$C28/$D28) -> 0 | AL28: =IF($D28=0,0,SUMIFS(JRLevel3,BOMComp,$A28,BOMLevel,"<>First")*$C28/$D28) -> 0 | AM28: =IF($D28=0,0,SUMIFS(JRLevel4,BOMComp,$A28,BOMLevel,"<>First")*$C28/$D28) -> 0 | AN28: =IF($D28=0,0,SUMIFS(JRLevel5,BOMComp,$A28,BOMLevel,"<>First")*$C28/$D28) -> 0 | AO28: =IF(ISNA(VLOOKUP($A28,Require,COLUMN(ReqPlan!$E$6),0))=TRUE,0,IF($D28=0,0,VLOOKUP($A28,Require,COLUMN(ReqPlan!$E$6),0)*$C28/$D28)) -> 500 | AP28: =IF($D28=0,0,SUMIFS(RLevel1,BOMComp,$A28,BOMLevel,"<>First")*$C28/$D28) -> 0 | AQ28: =IF($D28=0,0,SUMIFS(RLevel2,BOMComp,$A28,BOMLevel,"<>First")*$C28/$D28) -> 0 | AR28: =IF($D28=0,0,SUMIFS(RLevel3,BOMComp,$A28,BOMLevel,"<>First")*$C28/$D28) -> 0 | AS28: =IF($D28=0,0,SUMIFS(RLevel4,BOMComp,$A28,BOMLevel,"<>First")*$C28/$D28) -> 0 | AT28: =IF($D28=0,0,SUMIFS(RLevel5,BOMComp,$A28,BOMLevel,"<>First")*$C28/$D28) -> 0
A29: 1212GHG | B29: RM30 | C29: 9 | D29: 0.9 | E29: - | F29: =IF(ISNA(VLOOKUP($A29,StockMaster,COLUMN(StockCode!$B$4),0))=TRUE,"does not exist",VLOOKUP($A29,StockMaster,COLUMN(StockCode!$B$4),0)) -> Garden Shed | G29: =IF(ISNA(VLOOKUP($A29,StockMaster,COLUMN(StockCode!$C$4),0))=TRUE,"error",VLOOKUP($A29,StockMaster,COLUMN(StockCode!$C$4),0)) -> Units | H29: =IF(ISNA(VLOOKUP($A29,StockMaster,COLUMN(StockCode!$E$4),0))=TRUE,"All",VLOOKUP($A29,StockMaster,COLUMN(StockCode!$E$4),0)) -> All | I29: =IF(ISNA(VLOOKUP($B29,StockMaster,COLUMN(StockCode!$B$4),0))=TRUE,"does not exist",VLOOKUP($B29,StockMaster,COLUMN(StockCode!$B$4),0)) -> Wood | J29: =IF(ISNA(VLOOKUP($B29,StockMaster,COLUMN(StockCode!$C$4),0))=TRUE,"error",VLOOKUP($B29,StockMaster,COLUMN(StockCode!$C$4),0)) -> M2 | K29: =IF(ISNA(VLOOKUP($B29,StockMaster,COLUMN(StockCode!$G$4),0))=TRUE,0,VLOOKUP($B29,StockMaster,COLUMN(StockCode!$G$4),0)) -> Bought-In | L29: Y | M29: =IF($K29="Manufactured",0,IF(ISNA(VLOOKUP($B29,StockMaster,COLUMN(StockCode!$D$4),0))=TRUE,0,VLOOKUP($B29,StockMaster,COLUMN(StockCode!$D$4),0))) -> 120 | N29: 1200 | O29: 0 | P29: 0 | Q29: 1200 | R29: =IF($K29="Manufactured",0,IF(ISNA(VLOOKUP($B29,StockMaster,COLUMN(StockCode!$AA$4),0))=TRUE,0,VLOOKUP($B29,StockMaster,COLUMN(StockCode!$AA$4),0))) -> 124.2132226 | S29: 1242.132226 | T29: 0 | U29: 0 | V29: 1242.132226 | W29: =IF(ISNA(VLOOKUP($A29,StockMaster,COLUMN(StockCode!$P$4),0))=TRUE,0,IF($D29=0,0,(VLOOKUP($A29,StockMaster,COLUMN(StockCode!$P$4),0)*$C29/$D29))) -> 10100 | X29: =IF($D29=0,0,SUMIFS(TLevel1,BOMComp,$A29,BOMLevel,"<>First")*$C29/$D29) -> 0 | Y29: =IF($D29=0,0,SUMIFS(TLevel2,BOMComp,$A29,BOMLevel,"<>First")*$C29/$D29) -> 0 | Z29: =IF($D29=0,0,SUMIFS(TLevel3,BOMComp,$A29,BOMLevel,"<>First")*$C29/$D29) -> 0 | AA29: =IF($D29=0,0,SUMIFS(TLevel4,BOMComp,$A29,BOMLevel,"<>First")*$C29/$D29) -> 0 | AB29: =IF($D29=0,0,SUMIFS(TLevel5,BOMComp,$A29,BOMLevel,"<>First")*$C29/$D29) -> 0 | AC29: =IF(ISNA(VLOOKUP($A29,JRCode,COLUMN(JReview!$D$4),0))=TRUE,0,IF($D29=0,0,VLOOKUP($A29,JRCode,COLUMN(JReview!$D$4),0)*$C29/$D29)) -> 1000 | AD29: =IF($D29=0,0,SUMIFS(JLevel1,BOMComp,$A29,BOMLevel,"<>First")*$C29/$D29) -> 0 | AE29: =IF($D29=0,0,SUMIFS(JLevel2,BOMComp,$A29,BOMLevel,"<>First")*$C29/$D29) -> 0 | AF29: =IF($D29=0,0,SUMIFS(JLevel3,BOMComp,$A29,BOMLevel,"<>First")*$C29/$D29) -> 0 | AG29: =IF($D29=0,0,SUMIFS(JLevel4,BOMComp,$A29,BOMLevel,"<>First")*$C29/$D29) -> 0 | AH29: =IF($D29=0,0,SUMIFS(JLevel5,BOMComp,$A29,BOMLevel,"<>First")*$C29/$D29) -> 0 | AI29: =IF(ISNA(VLOOKUP($A29,JRCode,COLUMN(JReview!$E$4),0))=TRUE,0,IF($D29=0,0,VLOOKUP($A29,JRCode,COLUMN(JReview!$E$4),0)*$C29/$D29)) -> 1050 | AJ29: =IF($D29=0,0,SUMIFS(JRLevel1,BOMComp,$A29,BOMLevel,"<>First")*$C29/$D29) -> 0 | AK29: =IF($D29=0,0,SUMIFS(JRLevel2,BOMComp,$A29,BOMLevel,"<>First")*$C29/$D29) -> 0 | AL29: =IF($D29=0,0,SUMIFS(JRLevel3,BOMComp,$A29,BOMLevel,"<>First")*$C29/$D29) -> 0 | AM29: =IF($D29=0,0,SUMIFS(JRLevel4,BOMComp,$A29,BOMLevel,"<>First")*$C29/$D29) -> 0 | AN29: =IF($D29=0,0,SUMIFS(JRLevel5,BOMComp,$A29,BOMLevel,"<>First")*$C29/$D29) -> 0 | AO29: =IF(ISNA(VLOOKUP($A29,Require,COLUMN(ReqPlan!$E$6),0))=TRUE,0,IF($D29=0,0,VLOOKUP($A29,Require,COLUMN(ReqPlan!$E$6),0)*$C29/$D29)) -> 5000 | AP29: =IF($D29=0,0,SUMIFS(RLevel1,BOMComp,$A29,BOMLevel,"<>First")*$C29/$D29) -> 0 | AQ29: =IF($D29=0,0,SUMIFS(RLevel2,BOMComp,$A29,BOMLevel,"<>First")*$C29/$D29) -> 0 | AR29: =IF($D29=0,0,SUMIFS(RLevel3,BOMComp,$A29,BOMLevel,"<>First")*$C29/$D29) -> 0 | AS29: =IF($D29=0,0,SUMIFS(RLevel4,BOMComp,$A29,BOMLevel,"<>First")*$C29/$D29) -> 0 | AT29: =IF($D29=0,0,SUMIFS(RLevel5,BOMComp,$A29,BOMLevel,"<>First")*$C29/$D29) -> 0
A30: 1212GHG | B30: RM55 | C30: 2 | D30: 0.85 | E30: - | F30: =IF(ISNA(VLOOKUP($A30,StockMaster,COLUMN(StockCode!$B$4),0))=TRUE,"does not exist",VLOOKUP($A30,StockMaster,COLUMN(StockCode!$B$4),0)) -> Garden Shed | G30: =IF(ISNA(VLOOKUP($A30,StockMaster,COLUMN(StockCode!$C$4),0))=TRUE,"error",VLOOKUP($A30,StockMaster,COLUMN(StockCode!$C$4),0)) -> Units | H30: =IF(ISNA(VLOOKUP($A30,StockMaster,COLUMN(StockCode!$E$4),0))=TRUE,"All",VLOOKUP($A30,StockMaster,COLUMN(StockCode!$E$4),0)) -> All | I30: =IF(ISNA(VLOOKUP($B30,StockMaster,COLUMN(StockCode!$B$4),0))=TRUE,"does not exist",VLOOKUP($B30,StockMaster,COLUMN(StockCode!$B$4),0)) -> 2 Inch Screws | J30: =IF(ISNA(VLOOKUP($B30,StockMaster,COLUMN(StockCode!$C$4),0))=TRUE,"error",VLOOKUP($B30,StockMaster,COLUMN(StockCode!$C$4),0)) -> Bag | K30: =IF(ISNA(VLOOKUP($B30,StockMaster,COLUMN(StockCode!$G$4),0))=TRUE,0,VLOOKUP($B30,StockMaster,COLUMN(StockCode!$G$4),0)) -> Bought-In | L30: Y | M30: =IF($K30="Manufactured",0,IF(ISNA(VLOOKUP($B30,StockMaster,COLUMN(StockCode!$D$4),0))=TRUE,0,VLOOKUP($B30,StockMaster,COLUMN(StockCode!$D$4),0))) -> 50 | N30: 117.6470588 | O30: 0 | P30: 0 | Q30: 117.6470588 | R30: =IF($K30="Manufactured",0,IF(ISNA(VLOOKUP($B30,StockMaster,COLUMN(StockCode!$AA$4),0))=TRUE,0,VLOOKUP($B30,StockMaster,COLUMN(StockCode!$AA$4),0))) -> 48.74351225 | S30: 114.6906171 | T30: 0 | U30: 0 | V30: 114.6906171 | W30: =IF(ISNA(VLOOKUP($A30,StockMaster,COLUMN(StockCode!$P$4),0))=TRUE,0,IF($D30=0,0,(VLOOKUP($A30,StockMaster,COLUMN(StockCode!$P$4),0)*$C30/$D30))) -> 2376.470588 | X30: =IF($D30=0,0,SUMIFS(TLevel1,BOMComp,$A30,BOMLevel,"<>First")*$C30/$D30) -> 0 | Y30: =IF($D30=0,0,SUMIFS(TLevel2,BOMComp,$A30,BOMLevel,"<>First")*$C30/$D30) -> 0 | Z30: =IF($D30=0,0,SUMIFS(TLevel3,BOMComp,$A30,BOMLevel,"<>First")*$C30/$D30) -> 0 | AA30: =IF($D30=0,0,SUMIFS(TLevel4,BOMComp,$A30,BOMLevel,"<>First")*$C30/$D30) -> 0 | AB30: =IF($D30=0,0,SUMIFS(TLevel5,BOMComp,$A30,BOMLevel,"<>First")*$C30/$D30) -> 0 | AC30: =IF(ISNA(VLOOKUP($A30,JRCode,COLUMN(JReview!$D$4),0))=TRUE,0,IF($D30=0,0,VLOOKUP($A30,JRCode,COLUMN(JReview!$D$4),0)*$C30/$D30)) -> 235.2941176 | AD30: =IF($D30=0,0,SUMIFS(JLevel1,BOMComp,$A30,BOMLevel,"<>First")*$C30/$D30) -> 0 | AE30: =IF($D30=0,0,SUMIFS(JLevel2,BOMComp,$A30,BOMLevel,"<>First")*$C30/$D30) -> 0 | AF30: =IF($D30=0,0,SUMIFS(JLevel3,BOMComp,$A30,BOMLevel,"<>First")*$C30/$D30) -> 0 | AG30: =IF($D30=0,0,SUMIFS(JLevel4,BOMComp,$A30,BOMLevel,"<>First")*$C30/$D30) -> 0 | AH30: =IF($D30=0,0,SUMIFS(JLevel5,BOMComp,$A30,BOMLevel,"<>First")*$C30/$D30) -> 0 | AI30: =IF(ISNA(VLOOKUP($A30,JRCode,COLUMN(JReview!$E$4),0))=TRUE,0,IF($D30=0,0,VLOOKUP($A30,JRCode,COLUMN(JReview!$E$4),0)*$C30/$D30)) -> 247.0588235 | AJ30: =IF($D30=0,0,SUMIFS(JRLevel1,BOMComp,$A30,BOMLevel,"<>First")*$C30/$D30) -> 0 | AK30: =IF($D30=0,0,SUMIFS(JRLevel2,BOMComp,$A30,BOMLevel,"<>First")*$C30/$D30) -> 0 | AL30: =IF($D30=0,0,SUMIFS(JRLevel3,BOMComp,$A30,BOMLevel,"<>First")*$C30/$D30) -> 0 | AM30: =IF($D30=0,0,SUMIFS(JRLevel4,BOMComp,$A30,BOMLevel,"<>First")*$C30/$D30) -> 0 | AN30: =IF($D30=0,0,SUMIFS(JRLevel5,BOMComp,$A30,BOMLevel,"<>First")*$C30/$D30) -> 0 | AO30: =IF(ISNA(VLOOKUP($A30,Require,COLUMN(ReqPlan!$E$6),0))=TRUE,0,IF($D30=0,0,VLOOKUP($A30,Require,COLUMN(ReqPlan!$E$6),0)*$C30/$D30)) -> 1176.470588 | AP30: =IF($D30=0,0,SUMIFS(RLevel1,BOMComp,$A30,BOMLevel,"<>First")*$C30/$D30) -> 0 | AQ30: =IF($D30=0,0,SUMIFS(RLevel2,BOMComp,$A30,BOMLevel,"<>First")*$C30/$D30) -> 0 | AR30: =IF($D30=0,0,SUMIFS(RLevel3,BOMComp,$A30,BOMLevel,"<>First")*$C30/$D30) -> 0 | AS30: =IF($D30=0,0,SUMIFS(RLevel4,BOMComp,$A30,BOMLevel,"<>First")*$C30/$D30) -> 0 | AT30: =IF($D30=0,0,SUMIFS(RLevel5,BOMComp,$A30,BOMLevel,"<>First")*$C30/$D30) -> 0
A31: 1212GHG | B31: LB10 | C31: 3 | D31: 1 | E31: - | F31: =IF(ISNA(VLOOKUP($A31,StockMaster,COLUMN(StockCode!$B$4),0))=TRUE,"does not exist",VLOOKUP($A31,StockMaster,COLUMN(StockCode!$B$4),0)) -> Garden Shed | G31: =IF(ISNA(VLOOKUP($A31,StockMaster,COLUMN(StockCode!$C$4),0))=TRUE,"error",VLOOKUP($A31,StockMaster,COLUMN(StockCode!$C$4),0)) -> Units | H31: =IF(ISNA(VLOOKUP($A31,StockMaster,COLUMN(StockCode!$E$4),0))=TRUE,"All",VLOOKUP($A31,StockMaster,COLUMN(StockCode!$E$4),0)) -> All | I31: =IF(ISNA(VLOOKUP($B31,StockMaster,COLUMN(StockCode!$B$4),0))=TRUE,"does not exist",VLOOKUP($B31,StockMaster,COLUMN(StockCode!$B$4),0)) -> Labour - Grade 1 | J31: =IF(ISNA(VLOOKUP($B31,StockMaster,COLUMN(StockCode!$C$4),0))=TRUE,"error",VLOOKUP($B31,StockMaster,COLUMN(StockCode!$C$4),0)) -> Hours | K31: =IF(ISNA(VLOOKUP($B31,StockMaster,COLUMN(StockCode!$G$4),0))=TRUE,0,VLOOKUP($B31,StockMaster,COLUMN(StockCode!$G$4),0)) -> Bought-In | L31: Y | M31: =IF($K31="Manufactured",0,IF(ISNA(VLOOKUP($B31,StockMaster,COLUMN(StockCode!$D$4),0))=TRUE,0,VLOOKUP($B31,StockMaster,COLUMN(StockCode!$D$4),0))) -> 20 | N31: 60 | O31: 0 | P31: 0 | Q31: 60 | R31: =IF($K31="Manufactured",0,IF(ISNA(VLOOKUP($B31,StockMaster,COLUMN(StockCode!$AA$4),0))=TRUE,0,VLOOKUP($B31,StockMaster,COLUMN(StockCode!$AA$4),0))) -> 20.33077475 | S31: 60.99232425 | T31: 0 | U31: 0 | V31: 60.99232425 | W31: =IF(ISNA(VLOOKUP($A31,StockMaster,COLUMN(StockCode!$P$4),0))=TRUE,0,IF($D31=0,0,(VLOOKUP($A31,StockMaster,COLUMN(StockCode!$P$4),0)*$C31/$D31))) -> 3030 | X31: =IF($D31=0,0,SUMIFS(TLevel1,BOMComp,$A31,BOMLevel,"<>First")*$C31/$D31) -> 0 | Y31: =IF($D31=0,0,SUMIFS(TLevel2,BOMComp,$A31,BOMLevel,"<>First")*$C31/$D31) -> 0 | Z31: =IF($D31=0,0,SUMIFS(TLevel3,BOMComp,$A31,BOMLevel,"<>First")*$C31/$D31) -> 0 | AA31: =IF($D31=0,0,SUMIFS(TLevel4,BOMComp,$A31,BOMLevel,"<>First")*$C31/$D31) -> 0 | AB31: =IF($D31=0,0,SUMIFS(TLevel5,BOMComp,$A31,BOMLevel,"<>First")*$C31/$D31) -> 0 | AC31: =IF(ISNA(VLOOKUP($A31,JRCode,COLUMN(JReview!$D$4),0))=TRUE,0,IF($D31=0,0,VLOOKUP($A31,JRCode,COLUMN(JReview!$D$4),0)*$C31/$D31)) -> 300 | AD31: =IF($D31=0,0,SUMIFS(JLevel1,BOMComp,$A31,BOMLevel,"<>First")*$C31/$D31) -> 0 | AE31: =IF($D31=0,0,SUMIFS(JLevel2,BOMComp,$A31,BOMLevel,"<>First")*$C31/$D31) -> 0 | AF31: =IF($D31=0,0,SUMIFS(JLevel3,BOMComp,$A31,BOMLevel,"<>First")*$C31/$D31) -> 0 | AG31: =IF($D31=0,0,SUMIFS(JLevel4,BOMComp,$A31,BOMLevel,"<>First")*$C31/$D31) -> 0 | AH31: =IF($D31=0,0,SUMIFS(JLevel5,BOMComp,$A31,BOMLevel,"<>First")*$C31/$D31) -> 0 | AI31: =IF(ISNA(VLOOKUP($A31,JRCode,COLUMN(JReview!$E$4),0))=TRUE,0,IF($D31=0,0,VLOOKUP($A31,JRCode,COLUMN(JReview!$E$4),0)*$C31/$D31)) -> 315 | AJ31: =IF($D31=0,0,SUMIFS(JRLevel1,BOMComp,$A31,BOMLevel,"<>First")*$C31/$D31) -> 0 | AK31: =IF($D31=0,0,SUMIFS(JRLevel2,BOMComp,$A31,BOMLevel,"<>First")*$C31/$D31) -> 0 | AL31: =IF($D31=0,0,SUMIFS(JRLevel3,BOMComp,$A31,BOMLevel,"<>First")*$C31/$D31) -> 0 | AM31: =IF($D31=0,0,SUMIFS(JRLevel4,BOMComp,$A31,BOMLevel,"<>First")*$C31/$D31) -> 0 | AN31: =IF($D31=0,0,SUMIFS(JRLevel5,BOMComp,$A31,BOMLevel,"<>First")*$C31/$D31) -> 0 | AO31: =IF(ISNA(VLOOKUP($A31,Require,COLUMN(ReqPlan!$E$6),0))=TRUE,0,IF($D31=0,0,VLOOKUP($A31,Require,COLUMN(ReqPlan!$E$6),0)*$C31/$D31)) -> 1500 | AP31: =IF($D31=0,0,SUMIFS(RLevel1,BOMComp,$A31,BOMLevel,"<>First")*$C31/$D31) -> 0 | AQ31: =IF($D31=0,0,SUMIFS(RLevel2,BOMComp,$A31,BOMLevel,"<>First")*$C31/$D31) -> 0 | AR31: =IF($D31=0,0,SUMIFS(RLevel3,BOMComp,$A31,BOMLevel,"<>First")*$C31/$D31) -> 0 | AS31: =IF($D31=0,0,SUMIFS(RLevel4,BOMComp,$A31,BOMLevel,"<>First")*$C31/$D31) -> 0 | AT31: =IF($D31=0,0,SUMIFS(RLevel5,BOMComp,$A31,BOMLevel,"<>First")*$C31/$D31) -> 0
A32: 1212GHG | B32: LB15 | C32: 1 | D32: 1 | E32: - | F32: =IF(ISNA(VLOOKUP($A32,StockMaster,COLUMN(StockCode!$B$4),0))=TRUE,"does not exist",VLOOKUP($A32,StockMaster,COLUMN(StockCode!$B$4),0)) -> Garden Shed | G32: =IF(ISNA(VLOOKUP($A32,StockMaster,COLUMN(StockCode!$C$4),0))=TRUE,"error",VLOOKUP($A32,StockMaster,COLUMN(StockCode!$C$4),0)) -> Units | H32: =IF(ISNA(VLOOKUP($A32,StockMaster,COLUMN(StockCode!$E$4),0))=TRUE,"All",VLOOKUP($A32,StockMaster,COLUMN(StockCode!$E$4),0)) -> All | I32: =IF(ISNA(VLOOKUP($B32,StockMaster,COLUMN(StockCode!$B$4),0))=TRUE,"does not exist",VLOOKUP($B32,StockMaster,COLUMN(StockCode!$B$4),0)) -> Labour - Grade 2 | J32: =IF(ISNA(VLOOKUP($B32,StockMaster,COLUMN(StockCode!$C$4),0))=TRUE,"error",VLOOKUP($B32,StockMaster,COLUMN(StockCode!$C$4),0)) -> Hours | K32: =IF(ISNA(VLOOKUP($B32,StockMaster,COLUMN(StockCode!$G$4),0))=TRUE,0,VLOOKUP($B32,StockMaster,COLUMN(StockCode!$G$4),0)) -> Bought-In | L32: Y | M32: =IF($K32="Manufactured",0,IF(ISNA(VLOOKUP($B32,StockMaster,COLUMN(StockCode!$D$4),0))=TRUE,0,VLOOKUP($B32,StockMaster,COLUMN(StockCode!$D$4),0))) -> 30 | N32: 30 | O32: 0 | P32: 0 | Q32: 30 | R32: =IF($K32="Manufactured",0,IF(ISNA(VLOOKUP($B32,StockMaster,COLUMN(StockCode!$AA$4),0))=TRUE,0,VLOOKUP($B32,StockMaster,COLUMN(StockCode!$AA$4),0))) -> 30 | S32: 30 | T32: 0 | U32: 0 | V32: 30 | W32: =IF(ISNA(VLOOKUP($A32,StockMaster,COLUMN(StockCode!$P$4),0))=TRUE,0,IF($D32=0,0,(VLOOKUP($A32,StockMaster,COLUMN(StockCode!$P$4),0)*$C32/$D32))) -> 1010 | X32: =IF($D32=0,0,SUMIFS(TLevel1,BOMComp,$A32,BOMLevel,"<>First")*$C32/$D32) -> 0 | Y32: =IF($D32=0,0,SUMIFS(TLevel2,BOMComp,$A32,BOMLevel,"<>First")*$C32/$D32) -> 0 | Z32: =IF($D32=0,0,SUMIFS(TLevel3,BOMComp,$A32,BOMLevel,"<>First")*$C32/$D32) -> 0 | AA32: =IF($D32=0,0,SUMIFS(TLevel4,BOMComp,$A32,BOMLevel,"<>First")*$C32/$D32) -> 0 | AB32: =IF($D32=0,0,SUMIFS(TLevel5,BOMComp,$A32,BOMLevel,"<>First")*$C32/$D32) -> 0 | AC32: =IF(ISNA(VLOOKUP($A32,JRCode,COLUMN(JReview!$D$4),0))=TRUE,0,IF($D32=0,0,VLOOKUP($A32,JRCode,COLUMN(JReview!$D$4),0)*$C32/$D32)) -> 100 | AD32: =IF($D32=0,0,SUMIFS(JLevel1,BOMComp,$A32,BOMLevel,"<>First")*$C32/$D32) -> 0 | AE32: =IF($D32=0,0,SUMIFS(JLevel2,BOMComp,$A32,BOMLevel,"<>First")*$C32/$D32) -> 0 | AF32: =IF($D32=0,0,SUMIFS(JLevel3,BOMComp,$A32,BOMLevel,"<>First")*$C32/$D32) -> 0 | AG32: =IF($D32=0,0,SUMIFS(JLevel4,BOMComp,$A32,BOMLevel,"<>First")*$C32/$D32) -> 0 | AH32: =IF($D32=0,0,SUMIFS(JLevel5,BOMComp,$A32,BOMLevel,"<>First")*$C32/$D32) -> 0 | AI32: =IF(ISNA(VLOOKUP($A32,JRCode,COLUMN(JReview!$E$4),0))=TRUE,0,IF($D32=0,0,VLOOKUP($A32,JRCode,COLUMN(JReview!$E$4),0)*$C32/$D32)) -> 105 | AJ32: =IF($D32=0,0,SUMIFS(JRLevel1,BOMComp,$A32,BOMLevel,"<>First")*$C32/$D32) -> 0 | AK32: =IF($D32=0,0,SUMIFS(JRLevel2,BOMComp,$A32,BOMLevel,"<>First")*$C32/$D32) -> 0 | AL32: =IF($D32=0,0,SUMIFS(JRLevel3,BOMComp,$A32,BOMLevel,"<>First")*$C32/$D32) -> 0 | AM32: =IF($D32=0,0,SUMIFS(JRLevel4,BOMComp,$A32,BOMLevel,"<>First")*$C32/$D32) -> 0 | AN32: =IF($D32=0,0,SUMIFS(JRLevel5,BOMComp,$A32,BOMLevel,"<>First")*$C32/$D32) -> 0 | AO32: =IF(ISNA(VLOOKUP($A32,Require,COLUMN(ReqPlan!$E$6),0))=TRUE,0,IF($D32=0,0,VLOOKUP($A32,Require,COLUMN(ReqPlan!$E$6),0)*$C32/$D32)) -> 500 | AP32: =IF($D32=0,0,SUMIFS(RLevel1,BOMComp,$A32,BOMLevel,"<>First")*$C32/$D32) -> 0 | AQ32: =IF($D32=0,0,SUMIFS(RLevel2,BOMComp,$A32,BOMLevel,"<>First")*$C32/$D32) -> 0 | AR32: =IF($D32=0,0,SUMIFS(RLevel3,BOMComp,$A32,BOMLevel,"<>First")*$C32/$D32) -> 0 | AS32: =IF($D32=0,0,SUMIFS(RLevel4,BOMComp,$A32,BOMLevel,"<>First")*$C32/$D32) -> 0 | AT32: =IF($D32=0,0,SUMIFS(RLevel5,BOMComp,$A32,BOMLevel,"<>First")*$C32/$D32) -> 0
A33: 1212PHP | B33: SD25 | C33: 1 | D33: 1 | E33: - | F33: =IF(ISNA(VLOOKUP($A33,StockMaster,COLUMN(StockCode!$B$4),0))=TRUE,"does not exist",VLOOKUP($A33,StockMaster,COLUMN(StockCode!$B$4),0)) -> Painted Garden Shed | G33: =IF(ISNA(VLOOKUP($A33,StockMaster,COLUMN(StockCode!$C$4),0))=TRUE,"error",VLOOKUP($A33,StockMaster,COLUMN(StockCode!$C$4),0)) -> Units | H33: =IF(ISNA(VLOOKUP($A33,StockMaster,COLUMN(StockCode!$E$4),0))=TRUE,"All",VLOOKUP($A33,StockMaster,COLUMN(StockCode!$E$4),0)) -> All | I33: =IF(ISNA(VLOOKUP($B33,StockMaster,COLUMN(StockCode!$B$4),0))=TRUE,"does not exist",VLOOKUP($B33,StockMaster,COLUMN(StockCode!$B$4),0)) -> Roof | J33: =IF(ISNA(VLOOKUP($B33,StockMaster,COLUMN(StockCode!$C$4),0))=TRUE,"error",VLOOKUP($B33,StockMaster,COLUMN(StockCode!$C$4),0)) -> Units | K33: =IF(ISNA(VLOOKUP($B33,StockMaster,COLUMN(StockCode!$G$4),0))=TRUE,0,VLOOKUP($B33,StockMaster,COLUMN(StockCode!$G$4),0)) -> Manufactured | L33: N | M33: =IF($K33="Manufactured",0,IF(ISNA(VLOOKUP($B33,StockMaster,COLUMN(StockCode!$D$4),0))=TRUE,0,VLOOKUP($B33,StockMaster,COLUMN(StockCode!$D$4),0))) -> 0 | N33: 0 | O33: 1766.666667 | P33: 1766.666667 | Q33: 1766.666667 | R33: =IF($K33="Manufactured",0,IF(ISNA(VLOOKUP($B33,StockMaster,COLUMN(StockCode!$AA$4),0))=TRUE,0,VLOOKUP($B33,StockMaster,COLUMN(StockCode!$AA$4),0))) -> 0 | S33: 0 | T33: 1770.319455 | U33: 1770.319455 | V33: 1770.319455 | W33: =IF(ISNA(VLOOKUP($A33,StockMaster,COLUMN(StockCode!$P$4),0))=TRUE,0,IF($D33=0,0,(VLOOKUP($A33,StockMaster,COLUMN(StockCode!$P$4),0)*$C33/$D33))) -> 52 | X33: =IF($D33=0,0,SUMIFS(TLevel1,BOMComp,$A33,BOMLevel,"<>First")*$C33/$D33) -> 0 | Y33: =IF($D33=0,0,SUMIFS(TLevel2,BOMComp,$A33,BOMLevel,"<>First")*$C33/$D33) -> 0 | Z33: =IF($D33=0,0,SUMIFS(TLevel3,BOMComp,$A33,BOMLevel,"<>First")*$C33/$D33) -> 0 | AA33: =IF($D33=0,0,SUMIFS(TLevel4,BOMComp,$A33,BOMLevel,"<>First")*$C33/$D33) -> 0 | AB33: =IF($D33=0,0,SUMIFS(TLevel5,BOMComp,$A33,BOMLevel,"<>First")*$C33/$D33) -> 0 | AC33: =IF(ISNA(VLOOKUP($A33,JRCode,COLUMN(JReview!$D$4),0))=TRUE,0,IF($D33=0,0,VLOOKUP($A33,JRCode,COLUMN(JReview!$D$4),0)*$C33/$D33)) -> 0 | AD33: =IF($D33=0,0,SUMIFS(JLevel1,BOMComp,$A33,BOMLevel,"<>First")*$C33/$D33) -> 0 | AE33: =IF($D33=0,0,SUMIFS(JLevel2,BOMComp,$A33,BOMLevel,"<>First")*$C33/$D33) -> 0 | AF33: =IF($D33=0,0,SUMIFS(JLevel3,BOMComp,$A33,BOMLevel,"<>First")*$C33/$D33) -> 0 | AG33: =IF($D33=0,0,SUMIFS(JLevel4,BOMComp,$A33,BOMLevel,"<>First")*$C33/$D33) -> 0 | AH33: =IF($D33=0,0,SUMIFS(JLevel5,BOMComp,$A33,BOMLevel,"<>First")*$C33/$D33) -> 0 | AI33: =IF(ISNA(VLOOKUP($A33,JRCode,COLUMN(JReview!$E$4),0))=TRUE,0,IF($D33=0,0,VLOOKUP($A33,JRCode,COLUMN(JReview!$E$4),0)*$C33/$D33)) -> 0 | AJ33: =IF($D33=0,0,SUMIFS(JRLevel1,BOMComp,$A33,BOMLevel,"<>First")*$C33/$D33) -> 0 | AK33: =IF($D33=0,0,SUMIFS(JRLevel2,BOMComp,$A33,BOMLevel,"<>First")*$C33/$D33) -> 0 | AL33: =IF($D33=0,0,SUMIFS(JRLevel3,BOMComp,$A33,BOMLevel,"<>First")*$C33/$D33) -> 0 | AM33: =IF($D33=0,0,SUMIFS(JRLevel4,BOMComp,$A33,BOMLevel,"<>First")*$C33/$D33) -> 0 | AN33: =IF($D33=0,0,SUMIFS(JRLevel5,BOMComp,$A33,BOMLevel,"<>First")*$C33/$D33) -> 0 | AO33: =IF(ISNA(VLOOKUP($A33,Require,COLUMN(ReqPlan!$E$6),0))=TRUE,0,IF($D33=0,0,VLOOKUP($A33,Require,COLUMN(ReqPlan!$E$6),0)*$C33/$D33)) -> 0 | AP33: =IF($D33=0,0,SUMIFS(RLevel1,BOMComp,$A33,BOMLevel,"<>First")*$C33/$D33) -> 0 | AQ33: =IF($D33=0,0,SUMIFS(RLevel2,BOMComp,$A33,BOMLevel,"<>First")*$C33/$D33) -> 0 | AR33: =IF($D33=0,0,SUMIFS(RLevel3,BOMComp,$A33,BOMLevel,"<>First")*$C33/$D33) -> 0 | AS33: =IF($D33=0,0,SUMIFS(RLevel4,BOMComp,$A33,BOMLevel,"<>First")*$C33/$D33) -> 0 | AT33: =IF($D33=0,0,SUMIFS(RLevel5,BOMComp,$A33,BOMLevel,"<>First")*$C33/$D33) -> 0
A34: 1212PHP | B34: SD40 | C34: 2 | D34: 1 | E34: - | F34: =IF(ISNA(VLOOKUP($A34,StockMaster,COLUMN(StockCode!$B$4),0))=TRUE,"does not exist",VLOOKUP($A34,StockMaster,COLUMN(StockCode!$B$4),0)) -> Painted Garden Shed | G34: =IF(ISNA(VLOOKUP($A34,StockMaster,COLUMN(StockCode!$C$4),0))=TRUE,"error",VLOOKUP($A34,StockMaster,COLUMN(StockCode!$C$4),0)) -> Units | H34: =IF(ISNA(VLOOKUP($A34,StockMaster,COLUMN(StockCode!$E$4),0))=TRUE,"All",VLOOKUP($A34,StockMaster,COLUMN(StockCode!$E$4),0)) -> All | I34: =IF(ISNA(VLOOKUP($B34,StockMaster,COLUMN(StockCode!$B$4),0))=TRUE,"does not exist",VLOOKUP($B34,StockMaster,COLUMN(StockCode!$B$4),0)) -> Glazed Window Frame | J34: =IF(ISNA(VLOOKUP($B34,StockMaster,COLUMN(StockCode!$C$4),0))=TRUE,"error",VLOOKUP($B34,StockMaster,COLUMN(StockCode!$C$4),0)) -> Units | K34: =IF(ISNA(VLOOKUP($B34,StockMaster,COLUMN(StockCode!$G$4),0))=TRUE,0,VLOOKUP($B34,StockMaster,COLUMN(StockCode!$G$4),0)) -> Manufactured | L34: N | M34: =IF($K34="Manufactured",0,IF(ISNA(VLOOKUP($B34,StockMaster,COLUMN(StockCode!$D$4),0))=TRUE,0,VLOOKUP($B34,StockMaster,COLUMN(StockCode!$D$4),0))) -> 0 | N34: 0 | O34: 361.4509804 | P34: 722.9019608 | Q34: 722.9019608 | R34: =IF($K34="Manufactured",0,IF(ISNA(VLOOKUP($B34,StockMaster,COLUMN(StockCode!$AA$4),0))=TRUE,0,VLOOKUP($B34,StockMaster,COLUMN(StockCode!$AA$4),0))) -> 0 | S34: 0 | T34: 370.3092526 | U34: 740.6185052 | V34: 740.6185052 | W34: =IF(ISNA(VLOOKUP($A34,StockMaster,COLUMN(StockCode!$P$4),0))=TRUE,0,IF($D34=0,0,(VLOOKUP($A34,StockMaster,COLUMN(StockCode!$P$4),0)*$C34/$D34))) -> 104 | X34: =IF($D34=0,0,SUMIFS(TLevel1,BOMComp,$A34,BOMLevel,"<>First")*$C34/$D34) -> 0 | Y34: =IF($D34=0,0,SUMIFS(TLevel2,BOMComp,$A34,BOMLevel,"<>First")*$C34/$D34) -> 0 | Z34: =IF($D34=0,0,SUMIFS(TLevel3,BOMComp,$A34,BOMLevel,"<>First")*$C34/$D34) -> 0 | AA34: =IF($D34=0,0,SUMIFS(TLevel4,BOMComp,$A34,BOMLevel,"<>First")*$C34/$D34) -> 0 | AB34: =IF($D34=0,0,SUMIFS(TLevel5,BOMComp,$A34,BOMLevel,"<>First")*$C34/$D34) -> 0 | AC34: =IF(ISNA(VLOOKUP($A34,JRCode,COLUMN(JReview!$D$4),0))=TRUE,0,IF($D34=0,0,VLOOKUP($A34,JRCode,COLUMN(JReview!$D$4),0)*$C34/$D34)) -> 0 | AD34: =IF($D34=0,0,SUMIFS(JLevel1,BOMComp,$A34,BOMLevel,"<>First")*$C34/$D34) -> 0 | AE34: =IF($D34=0,0,SUMIFS(JLevel2,BOMComp,$A34,BOMLevel,"<>First")*$C34/$D34) -> 0 | AF34: =IF($D34=0,0,SUMIFS(JLevel3,BOMComp,$A34,BOMLevel,"<>First")*$C34/$D34) -> 0 | AG34: =IF($D34=0,0,SUMIFS(JLevel4,BOMComp,$A34,BOMLevel,"<>First")*$C34/$D34) -> 0 | AH34: =IF($D34=0,0,SUMIFS(JLevel5,BOMComp,$A34,BOMLevel,"<>First")*$C34/$D34) -> 0 | AI34: =IF(ISNA(VLOOKUP($A34,JRCode,COLUMN(JReview!$E$4),0))=TRUE,0,IF($D34=0,0,VLOOKUP($A34,JRCode,COLUMN(JReview!$E$4),0)*$C34/$D34)) -> 0 | AJ34: =IF($D34=0,0,SUMIFS(JRLevel1,BOMComp,$A34,BOMLevel,"<>First")*$C34/$D34) -> 0 | AK34: =IF($D34=0,0,SUMIFS(JRLevel2,BOMComp,$A34,BOMLevel,"<>First")*$C34/$D34) -> 0 | AL34: =IF($D34=0,0,SUMIFS(JRLevel3,BOMComp,$A34,BOMLevel,"<>First")*$C34/$D34) -> 0 | AM34: =IF($D34=0,0,SUMIFS(JRLevel4,BOMComp,$A34,BOMLevel,"<>First")*$C34/$D34) -> 0 | AN34: =IF($D34=0,0,SUMIFS(JRLevel5,BOMComp,$A34,BOMLevel,"<>First")*$C34/$D34) -> 0 | AO34: =IF(ISNA(VLOOKUP($A34,Require,COLUMN(ReqPlan!$E$6),0))=TRUE,0,IF($D34=0,0,VLOOKUP($A34,Require,COLUMN(ReqPlan!$E$6),0)*$C34/$D34)) -> 0 | AP34: =IF($D34=0,0,SUMIFS(RLevel1,BOMComp,$A34,BOMLevel,"<>First")*$C34/$D34) -> 0 | AQ34: =IF($D34=0,0,SUMIFS(RLevel2,BOMComp,$A34,BOMLevel,"<>First")*$C34/$D34) -> 0 | AR34: =IF($D34=0,0,SUMIFS(RLevel3,BOMComp,$A34,BOMLevel,"<>First")*$C34/$D34) -> 0 | AS34: =IF($D34=0,0,SUMIFS(RLevel4,BOMComp,$A34,BOMLevel,"<>First")*$C34/$D34) -> 0 | AT34: =IF($D34=0,0,SUMIFS(RLevel5,BOMComp,$A34,BOMLevel,"<>First")*$C34/$D34) -> 0
A35: 1212PHP | B35: SD18 | C35: 1 | D35: 1 | E35: - | F35: =IF(ISNA(VLOOKUP($A35,StockMaster,COLUMN(StockCode!$B$4),0))=TRUE,"does not exist",VLOOKUP($A35,StockMaster,COLUMN(StockCode!$B$4),0)) -> Painted Garden Shed | G35: =IF(ISNA(VLOOKUP($A35,StockMaster,COLUMN(StockCode!$C$4),0))=TRUE,"error",VLOOKUP($A35,StockMaster,COLUMN(StockCode!$C$4),0)) -> Units | H35: =IF(ISNA(VLOOKUP($A35,StockMaster,COLUMN(StockCode!$E$4),0))=TRUE,"All",VLOOKUP($A35,StockMaster,COLUMN(StockCode!$E$4),0)) -> All | I35: =IF(ISNA(VLOOKUP($B35,StockMaster,COLUMN(StockCode!$B$4),0))=TRUE,"does not exist",VLOOKUP($B35,StockMaster,COLUMN(StockCode!$B$4),0)) -> Door | J35: =IF(ISNA(VLOOKUP($B35,StockMaster,COLUMN(StockCode!$C$4),0))=TRUE,"error",VLOOKUP($B35,StockMaster,COLUMN(StockCode!$C$4),0)) -> Units | K35: =IF(ISNA(VLOOKUP($B35,StockMaster,COLUMN(StockCode!$G$4),0))=TRUE,0,VLOOKUP($B35,StockMaster,COLUMN(StockCode!$G$4),0)) -> Manufactured | L35: N | M35: =IF($K35="Manufactured",0,IF(ISNA(VLOOKUP($B35,StockMaster,COLUMN(StockCode!$D$4),0))=TRUE,0,VLOOKUP($B35,StockMaster,COLUMN(StockCode!$D$4),0))) -> 0 | N35: 0 | O35: 313.6666667 | P35: 313.6666667 | Q35: 313.6666667 | R35: =IF($K35="Manufactured",0,IF(ISNA(VLOOKUP($B35,StockMaster,COLUMN(StockCode!$AA$4),0))=TRUE,0,VLOOKUP($B35,StockMaster,COLUMN(StockCode!$AA$4),0))) -> 0 | S35: 0 | T35: 318.6787999 | U35: 318.6787999 | V35: 318.6787999 | W35: =IF(ISNA(VLOOKUP($A35,StockMaster,COLUMN(StockCode!$P$4),0))=TRUE,0,IF($D35=0,0,(VLOOKUP($A35,StockMaster,COLUMN(StockCode!$P$4),0)*$C35/$D35))) -> 52 | X35: =IF($D35=0,0,SUMIFS(TLevel1,BOMComp,$A35,BOMLevel,"<>First")*$C35/$D35) -> 0 | Y35: =IF($D35=0,0,SUMIFS(TLevel2,BOMComp,$A35,BOMLevel,"<>First")*$C35/$D35) -> 0 | Z35: =IF($D35=0,0,SUMIFS(TLevel3,BOMComp,$A35,BOMLevel,"<>First")*$C35/$D35) -> 0 | AA35: =IF($D35=0,0,SUMIFS(TLevel4,BOMComp,$A35,BOMLevel,"<>First")*$C35/$D35) -> 0 | AB35: =IF($D35=0,0,SUMIFS(TLevel5,BOMComp,$A35,BOMLevel,"<>First")*$C35/$D35) -> 0 | AC35: =IF(ISNA(VLOOKUP($A35,JRCode,COLUMN(JReview!$D$4),0))=TRUE,0,IF($D35=0,0,VLOOKUP($A35,JRCode,COLUMN(JReview!$D$4),0)*$C35/$D35)) -> 0 | AD35: =IF($D35=0,0,SUMIFS(JLevel1,BOMComp,$A35,BOMLevel,"<>First")*$C35/$D35) -> 0 | AE35: =IF($D35=0,0,SUMIFS(JLevel2,BOMComp,$A35,BOMLevel,"<>First")*$C35/$D35) -> 0 | AF35: =IF($D35=0,0,SUMIFS(JLevel3,BOMComp,$A35,BOMLevel,"<>First")*$C35/$D35) -> 0 | AG35: =IF($D35=0,0,SUMIFS(JLevel4,BOMComp,$A35,BOMLevel,"<>First")*$C35/$D35) -> 0 | AH35: =IF($D35=0,0,SUMIFS(JLevel5,BOMComp,$A35,BOMLevel,"<>First")*$C35/$D35) -> 0 | AI35: =IF(ISNA(VLOOKUP($A35,JRCode,COLUMN(JReview!$E$4),0))=TRUE,0,IF($D35=0,0,VLOOKUP($A35,JRCode,COLUMN(JReview!$E$4),0)*$C35/$D35)) -> 0 | AJ35: =IF($D35=0,0,SUMIFS(JRLevel1,BOMComp,$A35,BOMLevel,"<>First")*$C35/$D35) -> 0 | AK35: =IF($D35=0,0,SUMIFS(JRLevel2,BOMComp,$A35,BOMLevel,"<>First")*$C35/$D35) -> 0 | AL35: =IF($D35=0,0,SUMIFS(JRLevel3,BOMComp,$A35,BOMLevel,"<>First")*$C35/$D35) -> 0 | AM35: =IF($D35=0,0,SUMIFS(JRLevel4,BOMComp,$A35,BOMLevel,"<>First")*$C35/$D35) -> 0 | AN35: =IF($D35=0,0,SUMIFS(JRLevel5,BOMComp,$A35,BOMLevel,"<>First")*$C35/$D35) -> 0 | AO35: =IF(ISNA(VLOOKUP($A35,Require,COLUMN(ReqPlan!$E$6),0))=TRUE,0,IF($D35=0,0,VLOOKUP($A35,Require,COLUMN(ReqPlan!$E$6),0)*$C35/$D35)) -> 0 | AP35: =IF($D35=0,0,SUMIFS(RLevel1,BOMComp,$A35,BOMLevel,"<>First")*$C35/$D35) -> 0 | AQ35: =IF($D35=0,0,SUMIFS(RLevel2,BOMComp,$A35,BOMLevel,"<>First")*$C35/$D35) -> 0 | AR35: =IF($D35=0,0,SUMIFS(RLevel3,BOMComp,$A35,BOMLevel,"<>First")*$C35/$D35) -> 0 | AS35: =IF($D35=0,0,SUMIFS(RLevel4,BOMComp,$A35,BOMLevel,"<>First")*$C35/$D35) -> 0 | AT35: =IF($D35=0,0,SUMIFS(RLevel5,BOMComp,$A35,BOMLevel,"<>First")*$C35/$D35) -> 0
A36: 1212PHP | B36: RM30 | C36: 9 | D36: 0.9 | E36: - | F36: =IF(ISNA(VLOOKUP($A36,StockMaster,COLUMN(StockCode!$B$4),0))=TRUE,"does not exist",VLOOKUP($A36,StockMaster,COLUMN(StockCode!$B$4),0)) -> Painted Garden Shed | G36: =IF(ISNA(VLOOKUP($A36,StockMaster,COLUMN(StockCode!$C$4),0))=TRUE,"error",VLOOKUP($A36,StockMaster,COLUMN(StockCode!$C$4),0)) -> Units | H36: =IF(ISNA(VLOOKUP($A36,StockMaster,COLUMN(StockCode!$E$4),0))=TRUE,"All",VLOOKUP($A36,StockMaster,COLUMN(StockCode!$E$4),0)) -> All | I36: =IF(ISNA(VLOOKUP($B36,StockMaster,COLUMN(StockCode!$B$4),0))=TRUE,"does not exist",VLOOKUP($B36,StockMaster,COLUMN(StockCode!$B$4),0)) -> Wood | J36: =IF(ISNA(VLOOKUP($B36,StockMaster,COLUMN(StockCode!$C$4),0))=TRUE,"error",VLOOKUP($B36,StockMaster,COLUMN(StockCode!$C$4),0)) -> M2 | K36: =IF(ISNA(VLOOKUP($B36,StockMaster,COLUMN(StockCode!$G$4),0))=TRUE,0,VLOOKUP($B36,StockMaster,COLUMN(StockCode!$G$4),0)) -> Bought-In | L36: Y | M36: =IF($K36="Manufactured",0,IF(ISNA(VLOOKUP($B36,StockMaster,COLUMN(StockCode!$D$4),0))=TRUE,0,VLOOKUP($B36,StockMaster,COLUMN(StockCode!$D$4),0))) -> 120 | N36: 1200 | O36: 0 | P36: 0 | Q36: 1200 | R36: =IF($K36="Manufactured",0,IF(ISNA(VLOOKUP($B36,StockMaster,COLUMN(StockCode!$AA$4),0))=TRUE,0,VLOOKUP($B36,StockMaster,COLUMN(StockCode!$AA$4),0))) -> 124.2132226 | S36: 1242.132226 | T36: 0 | U36: 0 | V36: 1242.132226 | W36: =IF(ISNA(VLOOKUP($A36,StockMaster,COLUMN(StockCode!$P$4),0))=TRUE,0,IF($D36=0,0,(VLOOKUP($A36,StockMaster,COLUMN(StockCode!$P$4),0)*$C36/$D36))) -> 520 | X36: =IF($D36=0,0,SUMIFS(TLevel1,BOMComp,$A36,BOMLevel,"<>First")*$C36/$D36) -> 0 | Y36: =IF($D36=0,0,SUMIFS(TLevel2,BOMComp,$A36,BOMLevel,"<>First")*$C36/$D36) -> 0 | Z36: =IF($D36=0,0,SUMIFS(TLevel3,BOMComp,$A36,BOMLevel,"<>First")*$C36/$D36) -> 0 | AA36: =IF($D36=0,0,SUMIFS(TLevel4,BOMComp,$A36,BOMLevel,"<>First")*$C36/$D36) -> 0 | AB36: =IF($D36=0,0,SUMIFS(TLevel5,BOMComp,$A36,BOMLevel,"<>First")*$C36/$D36) -> 0 | AC36: =IF(ISNA(VLOOKUP($A36,JRCode,COLUMN(JReview!$D$4),0))=TRUE,0,IF($D36=0,0,VLOOKUP($A36,JRCode,COLUMN(JReview!$D$4),0)*$C36/$D36)) -> 0 | AD36: =IF($D36=0,0,SUMIFS(JLevel1,BOMComp,$A36,BOMLevel,"<>First")*$C36/$D36) -> 0 | AE36: =IF($D36=0,0,SUMIFS(JLevel2,BOMComp,$A36,BOMLevel,"<>First")*$C36/$D36) -> 0 | AF36: =IF($D36=0,0,SUMIFS(JLevel3,BOMComp,$A36,BOMLevel,"<>First")*$C36/$D36) -> 0 | AG36: =IF($D36=0,0,SUMIFS(JLevel4,BOMComp,$A36,BOMLevel,"<>First")*$C36/$D36) -> 0 | AH36: =IF($D36=0,0,SUMIFS(JLevel5,BOMComp,$A36,BOMLevel,"<>First")*$C36/$D36) -> 0 | AI36: =IF(ISNA(VLOOKUP($A36,JRCode,COLUMN(JReview!$E$4),0))=TRUE,0,IF($D36=0,0,VLOOKUP($A36,JRCode,COLUMN(JReview!$E$4),0)*$C36/$D36)) -> 0 | AJ36: =IF($D36=0,0,SUMIFS(JRLevel1,BOMComp,$A36,BOMLevel,"<>First")*$C36/$D36) -> 0 | AK36: =IF($D36=0,0,SUMIFS(JRLevel2,BOMComp,$A36,BOMLevel,"<>First")*$C36/$D36) -> 0 | AL36: =IF($D36=0,0,SUMIFS(JRLevel3,BOMComp,$A36,BOMLevel,"<>First")*$C36/$D36) -> 0 | AM36: =IF($D36=0,0,SUMIFS(JRLevel4,BOMComp,$A36,BOMLevel,"<>First")*$C36/$D36) -> 0 | AN36: =IF($D36=0,0,SUMIFS(JRLevel5,BOMComp,$A36,BOMLevel,"<>First")*$C36/$D36) -> 0 | AO36: =IF(ISNA(VLOOKUP($A36,Require,COLUMN(ReqPlan!$E$6),0))=TRUE,0,IF($D36=0,0,VLOOKUP($A36,Require,COLUMN(ReqPlan!$E$6),0)*$C36/$D36)) -> 0 | AP36: =IF($D36=0,0,SUMIFS(RLevel1,BOMComp,$A36,BOMLevel,"<>First")*$C36/$D36) -> 0 | AQ36: =IF($D36=0,0,SUMIFS(RLevel2,BOMComp,$A36,BOMLevel,"<>First")*$C36/$D36) -> 0 | AR36: =IF($D36=0,0,SUMIFS(RLevel3,BOMComp,$A36,BOMLevel,"<>First")*$C36/$D36) -> 0 | AS36: =IF($D36=0,0,SUMIFS(RLevel4,BOMComp,$A36,BOMLevel,"<>First")*$C36/$D36) -> 0 | AT36: =IF($D36=0,0,SUMIFS(RLevel5,BOMComp,$A36,BOMLevel,"<>First")*$C36/$D36) -> 0
A37: 1212PHP | B37: RM55 | C37: 2 | D37: 0.85 | E37: - | F37: =IF(ISNA(VLOOKUP($A37,StockMaster,COLUMN(StockCode!$B$4),0))=TRUE,"does not exist",VLOOKUP($A37,StockMaster,COLUMN(StockCode!$B$4),0)) -> Painted Garden Shed | G37: =IF(ISNA(VLOOKUP($A37,StockMaster,COLUMN(StockCode!$C$4),0))=TRUE,"error",VLOOKUP($A37,StockMaster,COLUMN(StockCode!$C$4),0)) -> Units | H37: =IF(ISNA(VLOOKUP($A37,StockMaster,COLUMN(StockCode!$E$4),0))=TRUE,"All",VLOOKUP($A37,StockMaster,COLUMN(StockCode!$E$4),0)) -> All | I37: =IF(ISNA(VLOOKUP($B37,StockMaster,COLUMN(StockCode!$B$4),0))=TRUE,"does not exist",VLOOKUP($B37,StockMaster,COLUMN(StockCode!$B$4),0)) -> 2 Inch Screws | J37: =IF(ISNA(VLOOKUP($B37,StockMaster,COLUMN(StockCode!$C$4),0))=TRUE,"error",VLOOKUP($B37,StockMaster,COLUMN(StockCode!$C$4),0)) -> Bag | K37: =IF(ISNA(VLOOKUP($B37,StockMaster,COLUMN(StockCode!$G$4),0))=TRUE,0,VLOOKUP($B37,StockMaster,COLUMN(StockCode!$G$4),0)) -> Bought-In | L37: Y | M37: =IF($K37="Manufactured",0,IF(ISNA(VLOOKUP($B37,StockMaster,COLUMN(StockCode!$D$4),0))=TRUE,0,VLOOKUP($B37,StockMaster,COLUMN(StockCode!$D$4),0))) -> 50 | N37: 117.6470588 | O37: 0 | P37: 0 | Q37: 117.6470588 | R37: =IF($K37="Manufactured",0,IF(ISNA(VLOOKUP($B37,StockMaster,COLUMN(StockCode!$AA$4),0))=TRUE,0,VLOOKUP($B37,StockMaster,COLUMN(StockCode!$AA$4),0))) -> 48.74351225 | S37: 114.6906171 | T37: 0 | U37: 0 | V37: 114.6906171 | W37: =IF(ISNA(VLOOKUP($A37,StockMaster,COLUMN(StockCode!$P$4),0))=TRUE,0,IF($D37=0,0,(VLOOKUP($A37,StockMaster,COLUMN(StockCode!$P$4),0)*$C37/$D37))) -> 122.3529412 | X37: =IF($D37=0,0,SUMIFS(TLevel1,BOMComp,$A37,BOMLevel,"<>First")*$C37/$D37) -> 0 | Y37: =IF($D37=0,0,SUMIFS(TLevel2,BOMComp,$A37,BOMLevel,"<>First")*$C37/$D37) -> 0 | Z37: =IF($D37=0,0,SUMIFS(TLevel3,BOMComp,$A37,BOMLevel,"<>First")*$C37/$D37) -> 0 | AA37: =IF($D37=0,0,SUMIFS(TLevel4,BOMComp,$A37,BOMLevel,"<>First")*$C37/$D37) -> 0 | AB37: =IF($D37=0,0,SUMIFS(TLevel5,BOMComp,$A37,BOMLevel,"<>First")*$C37/$D37) -> 0 | AC37: =IF(ISNA(VLOOKUP($A37,JRCode,COLUMN(JReview!$D$4),0))=TRUE,0,IF($D37=0,0,VLOOKUP($A37,JRCode,COLUMN(JReview!$D$4),0)*$C37/$D37)) -> 0 | AD37: =IF($D37=0,0,SUMIFS(JLevel1,BOMComp,$A37,BOMLevel,"<>First")*$C37/$D37) -> 0 | AE37: =IF($D37=0,0,SUMIFS(JLevel2,BOMComp,$A37,BOMLevel,"<>First")*$C37/$D37) -> 0 | AF37: =IF($D37=0,0,SUMIFS(JLevel3,BOMComp,$A37,BOMLevel,"<>First")*$C37/$D37) -> 0 | AG37: =IF($D37=0,0,SUMIFS(JLevel4,BOMComp,$A37,BOMLevel,"<>First")*$C37/$D37) -> 0 | AH37: =IF($D37=0,0,SUMIFS(JLevel5,BOMComp,$A37,BOMLevel,"<>First")*$C37/$D37) -> 0 | AI37: =IF(ISNA(VLOOKUP($A37,JRCode,COLUMN(JReview!$E$4),0))=TRUE,0,IF($D37=0,0,VLOOKUP($A37,JRCode,COLUMN(JReview!$E$4),0)*$C37/$D37)) -> 0 | AJ37: =IF($D37=0,0,SUMIFS(JRLevel1,BOMComp,$A37,BOMLevel,"<>First")*$C37/$D37) -> 0 | AK37: =IF($D37=0,0,SUMIFS(JRLevel2,BOMComp,$A37,BOMLevel,"<>First")*$C37/$D37) -> 0 | AL37: =IF($D37=0,0,SUMIFS(JRLevel3,BOMComp,$A37,BOMLevel,"<>First")*$C37/$D37) -> 0 | AM37: =IF($D37=0,0,SUMIFS(JRLevel4,BOMComp,$A37,BOMLevel,"<>First")*$C37/$D37) -> 0 | AN37: =IF($D37=0,0,SUMIFS(JRLevel5,BOMComp,$A37,BOMLevel,"<>First")*$C37/$D37) -> 0 | AO37: =IF(ISNA(VLOOKUP($A37,Require,COLUMN(ReqPlan!$E$6),0))=TRUE,0,IF($D37=0,0,VLOOKUP($A37,Require,COLUMN(ReqPlan!$E$6),0)*$C37/$D37)) -> 0 | AP37: =IF($D37=0,0,SUMIFS(RLevel1,BOMComp,$A37,BOMLevel,"<>First")*$C37/$D37) -> 0 | AQ37: =IF($D37=0,0,SUMIFS(RLevel2,BOMComp,$A37,BOMLevel,"<>First")*$C37/$D37) -> 0 | AR37: =IF($D37=0,0,SUMIFS(RLevel3,BOMComp,$A37,BOMLevel,"<>First")*$C37/$D37) -> 0 | AS37: =IF($D37=0,0,SUMIFS(RLevel4,BOMComp,$A37,BOMLevel,"<>First")*$C37/$D37) -> 0 | AT37: =IF($D37=0,0,SUMIFS(RLevel5,BOMComp,$A37,BOMLevel,"<>First")*$C37/$D37) -> 0
A38: 1212PHP | B38: RM80 | C38: 2 | D38: 0.95 | E38: - | F38: =IF(ISNA(VLOOKUP($A38,StockMaster,COLUMN(StockCode!$B$4),0))=TRUE,"does not exist",VLOOKUP($A38,StockMaster,COLUMN(StockCode!$B$4),0)) -> Painted Garden Shed | G38: =IF(ISNA(VLOOKUP($A38,StockMaster,COLUMN(StockCode!$C$4),0))=TRUE,"error",VLOOKUP($A38,StockMaster,COLUMN(StockCode!$C$4),0)) -> Units | H38: =IF(ISNA(VLOOKUP($A38,StockMaster,COLUMN(StockCode!$E$4),0))=TRUE,"All",VLOOKUP($A38,StockMaster,COLUMN(StockCode!$E$4),0)) -> All | I38: =IF(ISNA(VLOOKUP($B38,StockMaster,COLUMN(StockCode!$B$4),0))=TRUE,"does not exist",VLOOKUP($B38,StockMaster,COLUMN(StockCode!$B$4),0)) -> Paint - White | J38: =IF(ISNA(VLOOKUP($B38,StockMaster,COLUMN(StockCode!$C$4),0))=TRUE,"error",VLOOKUP($B38,StockMaster,COLUMN(StockCode!$C$4),0)) -> Drum | K38: =IF(ISNA(VLOOKUP($B38,StockMaster,COLUMN(StockCode!$G$4),0))=TRUE,0,VLOOKUP($B38,StockMaster,COLUMN(StockCode!$G$4),0)) -> Bought-In | L38: Y | M38: =IF($K38="Manufactured",0,IF(ISNA(VLOOKUP($B38,StockMaster,COLUMN(StockCode!$D$4),0))=TRUE,0,VLOOKUP($B38,StockMaster,COLUMN(StockCode!$D$4),0))) -> 220 | N38: 463.1578947 | O38: 0 | P38: 0 | Q38: 463.1578947 | R38: =IF($K38="Manufactured",0,IF(ISNA(VLOOKUP($B38,StockMaster,COLUMN(StockCode!$AA$4),0))=TRUE,0,VLOOKUP($B38,StockMaster,COLUMN(StockCode!$AA$4),0))) -> 250 | S38: 526.3157895 | T38: 0 | U38: 0 | V38: 526.3157895 | W38: =IF(ISNA(VLOOKUP($A38,StockMaster,COLUMN(StockCode!$P$4),0))=TRUE,0,IF($D38=0,0,(VLOOKUP($A38,StockMaster,COLUMN(StockCode!$P$4),0)*$C38/$D38))) -> 109.4736842 | X38: =IF($D38=0,0,SUMIFS(TLevel1,BOMComp,$A38,BOMLevel,"<>First")*$C38/$D38) -> 0 | Y38: =IF($D38=0,0,SUMIFS(TLevel2,BOMComp,$A38,BOMLevel,"<>First")*$C38/$D38) -> 0 | Z38: =IF($D38=0,0,SUMIFS(TLevel3,BOMComp,$A38,BOMLevel,"<>First")*$C38/$D38) -> 0 | AA38: =IF($D38=0,0,SUMIFS(TLevel4,BOMComp,$A38,BOMLevel,"<>First")*$C38/$D38) -> 0 | AB38: =IF($D38=0,0,SUMIFS(TLevel5,BOMComp,$A38,BOMLevel,"<>First")*$C38/$D38) -> 0 | AC38: =IF(ISNA(VLOOKUP($A38,JRCode,COLUMN(JReview!$D$4),0))=TRUE,0,IF($D38=0,0,VLOOKUP($A38,JRCode,COLUMN(JReview!$D$4),0)*$C38/$D38)) -> 0 | AD38: =IF($D38=0,0,SUMIFS(JLevel1,BOMComp,$A38,BOMLevel,"<>First")*$C38/$D38) -> 0 | AE38: =IF($D38=0,0,SUMIFS(JLevel2,BOMComp,$A38,BOMLevel,"<>First")*$C38/$D38) -> 0 | AF38: =IF($D38=0,0,SUMIFS(JLevel3,BOMComp,$A38,BOMLevel,"<>First")*$C38/$D38) -> 0 | AG38: =IF($D38=0,0,SUMIFS(JLevel4,BOMComp,$A38,BOMLevel,"<>First")*$C38/$D38) -> 0 | AH38: =IF($D38=0,0,SUMIFS(JLevel5,BOMComp,$A38,BOMLevel,"<>First")*$C38/$D38) -> 0 | AI38: =IF(ISNA(VLOOKUP($A38,JRCode,COLUMN(JReview!$E$4),0))=TRUE,0,IF($D38=0,0,VLOOKUP($A38,JRCode,COLUMN(JReview!$E$4),0)*$C38/$D38)) -> 0 | AJ38: =IF($D38=0,0,SUMIFS(JRLevel1,BOMComp,$A38,BOMLevel,"<>First")*$C38/$D38) -> 0 | AK38: =IF($D38=0,0,SUMIFS(JRLevel2,BOMComp,$A38,BOMLevel,"<>First")*$C38/$D38) -> 0 | AL38: =IF($D38=0,0,SUMIFS(JRLevel3,BOMComp,$A38,BOMLevel,"<>First")*$C38/$D38) -> 0 | AM38: =IF($D38=0,0,SUMIFS(JRLevel4,BOMComp,$A38,BOMLevel,"<>First")*$C38/$D38) -> 0 | AN38: =IF($D38=0,0,SUMIFS(JRLevel5,BOMComp,$A38,BOMLevel,"<>First")*$C38/$D38) -> 0 | AO38: =IF(ISNA(VLOOKUP($A38,Require,COLUMN(ReqPlan!$E$6),0))=TRUE,0,IF($D38=0,0,VLOOKUP($A38,Require,COLUMN(ReqPlan!$E$6),0)*$C38/$D38)) -> 0 | AP38: =IF($D38=0,0,SUMIFS(RLevel1,BOMComp,$A38,BOMLevel,"<>First")*$C38/$D38) -> 0 | AQ38: =IF($D38=0,0,SUMIFS(RLevel2,BOMComp,$A38,BOMLevel,"<>First")*$C38/$D38) -> 0 | AR38: =IF($D38=0,0,SUMIFS(RLevel3,BOMComp,$A38,BOMLevel,"<>First")*$C38/$D38) -> 0 | AS38: =IF($D38=0,0,SUMIFS(RLevel4,BOMComp,$A38,BOMLevel,"<>First")*$C38/$D38) -> 0 | AT38: =IF($D38=0,0,SUMIFS(RLevel5,BOMComp,$A38,BOMLevel,"<>First")*$C38/$D38) -> 0
A39: 1212PHP | B39: RM85 | C39: 1 | D39: 0.85 | E39: - | F39: =IF(ISNA(VLOOKUP($A39,StockMaster,COLUMN(StockCode!$B$4),0))=TRUE,"does not exist",VLOOKUP($A39,StockMaster,COLUMN(StockCode!$B$4),0)) -> Painted Garden Shed | G39: =IF(ISNA(VLOOKUP($A39,StockMaster,COLUMN(StockCode!$C$4),0))=TRUE,"error",VLOOKUP($A39,StockMaster,COLUMN(StockCode!$C$4),0)) -> Units | H39: =IF(ISNA(VLOOKUP($A39,StockMaster,COLUMN(StockCode!$E$4),0))=TRUE,"All",VLOOKUP($A39,StockMaster,COLUMN(StockCode!$E$4),0)) -> All | I39: =IF(ISNA(VLOOKUP($B39,StockMaster,COLUMN(StockCode!$B$4),0))=TRUE,"does not exist",VLOOKUP($B39,StockMaster,COLUMN(StockCode!$B$4),0)) -> Paint - Green | J39: =IF(ISNA(VLOOKUP($B39,StockMaster,COLUMN(StockCode!$C$4),0))=TRUE,"error",VLOOKUP($B39,StockMaster,COLUMN(StockCode!$C$4),0)) -> Drum | K39: =IF(ISNA(VLOOKUP($B39,StockMaster,COLUMN(StockCode!$G$4),0))=TRUE,0,VLOOKUP($B39,StockMaster,COLUMN(StockCode!$G$4),0)) -> Bought-In | L39: Y | M39: =IF($K39="Manufactured",0,IF(ISNA(VLOOKUP($B39,StockMaster,COLUMN(StockCode!$D$4),0))=TRUE,0,VLOOKUP($B39,StockMaster,COLUMN(StockCode!$D$4),0))) -> 240 | N39: 282.3529412 | O39: 0 | P39: 0 | Q39: 282.3529412 | R39: =IF($K39="Manufactured",0,IF(ISNA(VLOOKUP($B39,StockMaster,COLUMN(StockCode!$AA$4),0))=TRUE,0,VLOOKUP($B39,StockMaster,COLUMN(StockCode!$AA$4),0))) -> 260 | S39: 305.8823529 | T39: 0 | U39: 0 | V39: 305.8823529 | W39: =IF(ISNA(VLOOKUP($A39,StockMaster,COLUMN(StockCode!$P$4),0))=TRUE,0,IF($D39=0,0,(VLOOKUP($A39,StockMaster,COLUMN(StockCode!$P$4),0)*$C39/$D39))) -> 61.17647059 | X39: =IF($D39=0,0,SUMIFS(TLevel1,BOMComp,$A39,BOMLevel,"<>First")*$C39/$D39) -> 0 | Y39: =IF($D39=0,0,SUMIFS(TLevel2,BOMComp,$A39,BOMLevel,"<>First")*$C39/$D39) -> 0 | Z39: =IF($D39=0,0,SUMIFS(TLevel3,BOMComp,$A39,BOMLevel,"<>First")*$C39/$D39) -> 0 | AA39: =IF($D39=0,0,SUMIFS(TLevel4,BOMComp,$A39,BOMLevel,"<>First")*$C39/$D39) -> 0 | AB39: =IF($D39=0,0,SUMIFS(TLevel5,BOMComp,$A39,BOMLevel,"<>First")*$C39/$D39) -> 0 | AC39: =IF(ISNA(VLOOKUP($A39,JRCode,COLUMN(JReview!$D$4),0))=TRUE,0,IF($D39=0,0,VLOOKUP($A39,JRCode,COLUMN(JReview!$D$4),0)*$C39/$D39)) -> 0 | AD39: =IF($D39=0,0,SUMIFS(JLevel1,BOMComp,$A39,BOMLevel,"<>First")*$C39/$D39) -> 0 | AE39: =IF($D39=0,0,SUMIFS(JLevel2,BOMComp,$A39,BOMLevel,"<>First")*$C39/$D39) -> 0 | AF39: =IF($D39=0,0,SUMIFS(JLevel3,BOMComp,$A39,BOMLevel,"<>First")*$C39/$D39) -> 0 | AG39: =IF($D39=0,0,SUMIFS(JLevel4,BOMComp,$A39,BOMLevel,"<>First")*$C39/$D39) -> 0 | AH39: =IF($D39=0,0,SUMIFS(JLevel5,BOMComp,$A39,BOMLevel,"<>First")*$C39/$D39) -> 0 | AI39: =IF(ISNA(VLOOKUP($A39,JRCode,COLUMN(JReview!$E$4),0))=TRUE,0,IF($D39=0,0,VLOOKUP($A39,JRCode,COLUMN(JReview!$E$4),0)*$C39/$D39)) -> 0 | AJ39: =IF($D39=0,0,SUMIFS(JRLevel1,BOMComp,$A39,BOMLevel,"<>First")*$C39/$D39) -> 0 | AK39: =IF($D39=0,0,SUMIFS(JRLevel2,BOMComp,$A39,BOMLevel,"<>First")*$C39/$D39) -> 0 | AL39: =IF($D39=0,0,SUMIFS(JRLevel3,BOMComp,$A39,BOMLevel,"<>First")*$C39/$D39) -> 0 | AM39: =IF($D39=0,0,SUMIFS(JRLevel4,BOMComp,$A39,BOMLevel,"<>First")*$C39/$D39) -> 0 | AN39: =IF($D39=0,0,SUMIFS(JRLevel5,BOMComp,$A39,BOMLevel,"<>First")*$C39/$D39) -> 0 | AO39: =IF(ISNA(VLOOKUP($A39,Require,COLUMN(ReqPlan!$E$6),0))=TRUE,0,IF($D39=0,0,VLOOKUP($A39,Require,COLUMN(ReqPlan!$E$6),0)*$C39/$D39)) -> 0 | AP39: =IF($D39=0,0,SUMIFS(RLevel1,BOMComp,$A39,BOMLevel,"<>First")*$C39/$D39) -> 0 | AQ39: =IF($D39=0,0,SUMIFS(RLevel2,BOMComp,$A39,BOMLevel,"<>First")*$C39/$D39) -> 0 | AR39: =IF($D39=0,0,SUMIFS(RLevel3,BOMComp,$A39,BOMLevel,"<>First")*$C39/$D39) -> 0 | AS39: =IF($D39=0,0,SUMIFS(RLevel4,BOMComp,$A39,BOMLevel,"<>First")*$C39/$D39) -> 0 | AT39: =IF($D39=0,0,SUMIFS(RLevel5,BOMComp,$A39,BOMLevel,"<>First")*$C39/$D39) -> 0
A40: 1212PHP | B40: LB10 | C40: 3 | D40: 1 | E40: - | F40: =IF(ISNA(VLOOKUP($A40,StockMaster,COLUMN(StockCode!$B$4),0))=TRUE,"does not exist",VLOOKUP($A40,StockMaster,COLUMN(StockCode!$B$4),0)) -> Painted Garden Shed | G40: =IF(ISNA(VLOOKUP($A40,StockMaster,COLUMN(StockCode!$C$4),0))=TRUE,"error",VLOOKUP($A40,StockMaster,COLUMN(StockCode!$C$4),0)) -> Units | H40: =IF(ISNA(VLOOKUP($A40,StockMaster,COLUMN(StockCode!$E$4),0))=TRUE,"All",VLOOKUP($A40,StockMaster,COLUMN(StockCode!$E$4),0)) -> All | I40: =IF(ISNA(VLOOKUP($B40,StockMaster,COLUMN(StockCode!$B$4),0))=TRUE,"does not exist",VLOOKUP($B40,StockMaster,COLUMN(StockCode!$B$4),0)) -> Labour - Grade 1 | J40: =IF(ISNA(VLOOKUP($B40,StockMaster,COLUMN(StockCode!$C$4),0))=TRUE,"error",VLOOKUP($B40,StockMaster,COLUMN(StockCode!$C$4),0)) -> Hours | K40: =IF(ISNA(VLOOKUP($B40,StockMaster,COLUMN(StockCode!$G$4),0))=TRUE,0,VLOOKUP($B40,StockMaster,COLUMN(StockCode!$G$4),0)) -> Bought-In | L40: Y | M40: =IF($K40="Manufactured",0,IF(ISNA(VLOOKUP($B40,StockMaster,COLUMN(StockCode!$D$4),0))=TRUE,0,VLOOKUP($B40,StockMaster,COLUMN(StockCode!$D$4),0))) -> 20 | N40: 60 | O40: 0 | P40: 0 | Q40: 60 | R40: =IF($K40="Manufactured",0,IF(ISNA(VLOOKUP($B40,StockMaster,COLUMN(StockCode!$AA$4),0))=TRUE,0,VLOOKUP($B40,StockMaster,COLUMN(StockCode!$AA$4),0))) -> 20.33077475 | S40: 60.99232425 | T40: 0 | U40: 0 | V40: 60.99232425 | W40: =IF(ISNA(VLOOKUP($A40,StockMaster,COLUMN(StockCode!$P$4),0))=TRUE,0,IF($D40=0,0,(VLOOKUP($A40,StockMaster,COLUMN(StockCode!$P$4),0)*$C40/$D40))) -> 156 | X40: =IF($D40=0,0,SUMIFS(TLevel1,BOMComp,$A40,BOMLevel,"<>First")*$C40/$D40) -> 0 | Y40: =IF($D40=0,0,SUMIFS(TLevel2,BOMComp,$A40,BOMLevel,"<>First")*$C40/$D40) -> 0 | Z40: =IF($D40=0,0,SUMIFS(TLevel3,BOMComp,$A40,BOMLevel,"<>First")*$C40/$D40) -> 0 | AA40: =IF($D40=0,0,SUMIFS(TLevel4,BOMComp,$A40,BOMLevel,"<>First")*$C40/$D40) -> 0 | AB40: =IF($D40=0,0,SUMIFS(TLevel5,BOMComp,$A40,BOMLevel,"<>First")*$C40/$D40) -> 0 | AC40: =IF(ISNA(VLOOKUP($A40,JRCode,COLUMN(JReview!$D$4),0))=TRUE,0,IF($D40=0,0,VLOOKUP($A40,JRCode,COLUMN(JReview!$D$4),0)*$C40/$D40)) -> 0 | AD40: =IF($D40=0,0,SUMIFS(JLevel1,BOMComp,$A40,BOMLevel,"<>First")*$C40/$D40) -> 0 | AE40: =IF($D40=0,0,SUMIFS(JLevel2,BOMComp,$A40,BOMLevel,"<>First")*$C40/$D40) -> 0 | AF40: =IF($D40=0,0,SUMIFS(JLevel3,BOMComp,$A40,BOMLevel,"<>First")*$C40/$D40) -> 0 | AG40: =IF($D40=0,0,SUMIFS(JLevel4,BOMComp,$A40,BOMLevel,"<>First")*$C40/$D40) -> 0 | AH40: =IF($D40=0,0,SUMIFS(JLevel5,BOMComp,$A40,BOMLevel,"<>First")*$C40/$D40) -> 0 | AI40: =IF(ISNA(VLOOKUP($A40,JRCode,COLUMN(JReview!$E$4),0))=TRUE,0,IF($D40=0,0,VLOOKUP($A40,JRCode,COLUMN(JReview!$E$4),0)*$C40/$D40)) -> 0 | AJ40: =IF($D40=0,0,SUMIFS(JRLevel1,BOMComp,$A40,BOMLevel,"<>First")*$C40/$D40) -> 0 | AK40: =IF($D40=0,0,SUMIFS(JRLevel2,BOMComp,$A40,BOMLevel,"<>First")*$C40/$D40) -> 0 | AL40: =IF($D40=0,0,SUMIFS(JRLevel3,BOMComp,$A40,BOMLevel,"<>First")*$C40/$D40) -> 0 | AM40: =IF($D40=0,0,SUMIFS(JRLevel4,BOMComp,$A40,BOMLevel,"<>First")*$C40/$D40) -> 0 | AN40: =IF($D40=0,0,SUMIFS(JRLevel5,BOMComp,$A40,BOMLevel,"<>First")*$C40/$D40) -> 0 | AO40: =IF(ISNA(VLOOKUP($A40,Require,COLUMN(ReqPlan!$E$6),0))=TRUE,0,IF($D40=0,0,VLOOKUP($A40,Require,COLUMN(ReqPlan!$E$6),0)*$C40/$D40)) -> 0 | AP40: =IF($D40=0,0,SUMIFS(RLevel1,BOMComp,$A40,BOMLevel,"<>First")*$C40/$D40) -> 0 | AQ40: =IF($D40=0,0,SUMIFS(RLevel2,BOMComp,$A40,BOMLevel,"<>First")*$C40/$D40) -> 0 | AR40: =IF($D40=0,0,SUMIFS(RLevel3,BOMComp,$A40,BOMLevel,"<>First")*$C40/$D40) -> 0 | AS40: =IF($D40=0,0,SUMIFS(RLevel4,BOMComp,$A40,BOMLevel,"<>First")*$C40/$D40) -> 0 | AT40: =IF($D40=0,0,SUMIFS(RLevel5,BOMComp,$A40,BOMLevel,"<>First")*$C40/$D40) -> 0
A41: 1212PHP | B41: LB15 | C41: 1 | D41: 1 | E41: - | F41: =IF(ISNA(VLOOKUP($A41,StockMaster,COLUMN(StockCode!$B$4),0))=TRUE,"does not exist",VLOOKUP($A41,StockMaster,COLUMN(StockCode!$B$4),0)) -> Painted Garden Shed | G41: =IF(ISNA(VLOOKUP($A41,StockMaster,COLUMN(StockCode!$C$4),0))=TRUE,"error",VLOOKUP($A41,StockMaster,COLUMN(StockCode!$C$4),0)) -> Units | H41: =IF(ISNA(VLOOKUP($A41,StockMaster,COLUMN(StockCode!$E$4),0))=TRUE,"All",VLOOKUP($A41,StockMaster,COLUMN(StockCode!$E$4),0)) -> All | I41: =IF(ISNA(VLOOKUP($B41,StockMaster,COLUMN(StockCode!$B$4),0))=TRUE,"does not exist",VLOOKUP($B41,StockMaster,COLUMN(StockCode!$B$4),0)) -> Labour - Grade 2 | J41: =IF(ISNA(VLOOKUP($B41,StockMaster,COLUMN(StockCode!$C$4),0))=TRUE,"error",VLOOKUP($B41,StockMaster,COLUMN(StockCode!$C$4),0)) -> Hours | K41: =IF(ISNA(VLOOKUP($B41,StockMaster,COLUMN(StockCode!$G$4),0))=TRUE,0,VLOOKUP($B41,StockMaster,COLUMN(StockCode!$G$4),0)) -> Bought-In | L41: Y | M41: =IF($K41="Manufactured",0,IF(ISNA(VLOOKUP($B41,StockMaster,COLUMN(StockCode!$D$4),0))=TRUE,0,VLOOKUP($B41,StockMaster,COLUMN(StockCode!$D$4),0))) -> 30 | N41: 30 | O41: 0 | P41: 0 | Q41: 30 | R41: =IF($K41="Manufactured",0,IF(ISNA(VLOOKUP($B41,StockMaster,COLUMN(StockCode!$AA$4),0))=TRUE,0,VLOOKUP($B41,StockMaster,COLUMN(StockCode!$AA$4),0))) -> 30 | S41: 30 | T41: 0 | U41: 0 | V41: 30 | W41: =IF(ISNA(VLOOKUP($A41,StockMaster,COLUMN(StockCode!$P$4),0))=TRUE,0,IF($D41=0,0,(VLOOKUP($A41,StockMaster,COLUMN(StockCode!$P$4),0)*$C41/$D41))) -> 52 | X41: =IF($D41=0,0,SUMIFS(TLevel1,BOMComp,$A41,BOMLevel,"<>First")*$C41/$D41) -> 0 | Y41: =IF($D41=0,0,SUMIFS(TLevel2,BOMComp,$A41,BOMLevel,"<>First")*$C41/$D41) -> 0 | Z41: =IF($D41=0,0,SUMIFS(TLevel3,BOMComp,$A41,BOMLevel,"<>First")*$C41/$D41) -> 0 | AA41: =IF($D41=0,0,SUMIFS(TLevel4,BOMComp,$A41,BOMLevel,"<>First")*$C41/$D41) -> 0 | AB41: =IF($D41=0,0,SUMIFS(TLevel5,BOMComp,$A41,BOMLevel,"<>First")*$C41/$D41) -> 0 | AC41: =IF(ISNA(VLOOKUP($A41,JRCode,COLUMN(JReview!$D$4),0))=TRUE,0,IF($D41=0,0,VLOOKUP($A41,JRCode,COLUMN(JReview!$D$4),0)*$C41/$D41)) -> 0 | AD41: =IF($D41=0,0,SUMIFS(JLevel1,BOMComp,$A41,BOMLevel,"<>First")*$C41/$D41) -> 0 | AE41: =IF($D41=0,0,SUMIFS(JLevel2,BOMComp,$A41,BOMLevel,"<>First")*$C41/$D41) -> 0 | AF41: =IF($D41=0,0,SUMIFS(JLevel3,BOMComp,$A41,BOMLevel,"<>First")*$C41/$D41) -> 0 | AG41: =IF($D41=0,0,SUMIFS(JLevel4,BOMComp,$A41,BOMLevel,"<>First")*$C41/$D41) -> 0 | AH41: =IF($D41=0,0,SUMIFS(JLevel5,BOMComp,$A41,BOMLevel,"<>First")*$C41/$D41) -> 0 | AI41: =IF(ISNA(VLOOKUP($A41,JRCode,COLUMN(JReview!$E$4),0))=TRUE,0,IF($D41=0,0,VLOOKUP($A41,JRCode,COLUMN(JReview!$E$4),0)*$C41/$D41)) -> 0 | AJ41: =IF($D41=0,0,SUMIFS(JRLevel1,BOMComp,$A41,BOMLevel,"<>First")*$C41/$D41) -> 0 | AK41: =IF($D41=0,0,SUMIFS(JRLevel2,BOMComp,$A41,BOMLevel,"<>First")*$C41/$D41) -> 0 | AL41: =IF($D41=0,0,SUMIFS(JRLevel3,BOMComp,$A41,BOMLevel,"<>First")*$C41/$D41) -> 0 | AM41: =IF($D41=0,0,SUMIFS(JRLevel4,BOMComp,$A41,BOMLevel,"<>First")*$C41/$D41) -> 0 | AN41: =IF($D41=0,0,SUMIFS(JRLevel5,BOMComp,$A41,BOMLevel,"<>First")*$C41/$D41) -> 0 | AO41: =IF(ISNA(VLOOKUP($A41,Require,COLUMN(ReqPlan!$E$6),0))=TRUE,0,IF($D41=0,0,VLOOKUP($A41,Require,COLUMN(ReqPlan!$E$6),0)*$C41/$D41)) -> 0 | AP41: =IF($D41=0,0,SUMIFS(RLevel1,BOMComp,$A41,BOMLevel,"<>First")*$C41/$D41) -> 0 | AQ41: =IF($D41=0,0,SUMIFS(RLevel2,BOMComp,$A41,BOMLevel,"<>First")*$C41/$D41) -> 0 | AR41: =IF($D41=0,0,SUMIFS(RLevel3,BOMComp,$A41,BOMLevel,"<>First")*$C41/$D41) -> 0 | AS41: =IF($D41=0,0,SUMIFS(RLevel4,BOMComp,$A41,BOMLevel,"<>First")*$C41/$D41) -> 0 | AT41: =IF($D41=0,0,SUMIFS(RLevel5,BOMComp,$A41,BOMLevel,"<>First")*$C41/$D41) -> 0
A42: 1212THT | B42: SD25 | C42: 1 | D42: 1 | E42: - | F42: =IF(ISNA(VLOOKUP($A42,StockMaster,COLUMN(StockCode!$B$4),0))=TRUE,"does not exist",VLOOKUP($A42,StockMaster,COLUMN(StockCode!$B$4),0)) -> Tools Shed | G42: =IF(ISNA(VLOOKUP($A42,StockMaster,COLUMN(StockCode!$C$4),0))=TRUE,"error",VLOOKUP($A42,StockMaster,COLUMN(StockCode!$C$4),0)) -> Units | H42: =IF(ISNA(VLOOKUP($A42,StockMaster,COLUMN(StockCode!$E$4),0))=TRUE,"All",VLOOKUP($A42,StockMaster,COLUMN(StockCode!$E$4),0)) -> All | I42: =IF(ISNA(VLOOKUP($B42,StockMaster,COLUMN(StockCode!$B$4),0))=TRUE,"does not exist",VLOOKUP($B42,StockMaster,COLUMN(StockCode!$B$4),0)) -> Roof | J42: =IF(ISNA(VLOOKUP($B42,StockMaster,COLUMN(StockCode!$C$4),0))=TRUE,"error",VLOOKUP($B42,StockMaster,COLUMN(StockCode!$C$4),0)) -> Units | K42: =IF(ISNA(VLOOKUP($B42,StockMaster,COLUMN(StockCode!$G$4),0))=TRUE,0,VLOOKUP($B42,StockMaster,COLUMN(StockCode!$G$4),0)) -> Manufactured | L42: N | M42: =IF($K42="Manufactured",0,IF(ISNA(VLOOKUP($B42,StockMaster,COLUMN(StockCode!$D$4),0))=TRUE,0,VLOOKUP($B42,StockMaster,COLUMN(StockCode!$D$4),0))) -> 0 | N42: 0 | O42: 1766.666667 | P42: 1766.666667 | Q42: 1766.666667 | R42: =IF($K42="Manufactured",0,IF(ISNA(VLOOKUP($B42,StockMaster,COLUMN(StockCode!$AA$4),0))=TRUE,0,VLOOKUP($B42,StockMaster,COLUMN(StockCode!$AA$4),0))) -> 0 | S42: 0 | T42: 1770.319455 | U42: 1770.319455 | V42: 1770.319455 | W42: =IF(ISNA(VLOOKUP($A42,StockMaster,COLUMN(StockCode!$P$4),0))=TRUE,0,IF($D42=0,0,(VLOOKUP($A42,StockMaster,COLUMN(StockCode!$P$4),0)*$C42/$D42))) -> 125 | X42: =IF($D42=0,0,SUMIFS(TLevel1,BOMComp,$A42,BOMLevel,"<>First")*$C42/$D42) -> 0 | Y42: =IF($D42=0,0,SUMIFS(TLevel2,BOMComp,$A42,BOMLevel,"<>First")*$C42/$D42) -> 0 | Z42: =IF($D42=0,0,SUMIFS(TLevel3,BOMComp,$A42,BOMLevel,"<>First")*$C42/$D42) -> 0 | AA42: =IF($D42=0,0,SUMIFS(TLevel4,BOMComp,$A42,BOMLevel,"<>First")*$C42/$D42) -> 0 | AB42: =IF($D42=0,0,SUMIFS(TLevel5,BOMComp,$A42,BOMLevel,"<>First")*$C42/$D42) -> 0 | AC42: =IF(ISNA(VLOOKUP($A42,JRCode,COLUMN(JReview!$D$4),0))=TRUE,0,IF($D42=0,0,VLOOKUP($A42,JRCode,COLUMN(JReview!$D$4),0)*$C42/$D42)) -> 0 | AD42: =IF($D42=0,0,SUMIFS(JLevel1,BOMComp,$A42,BOMLevel,"<>First")*$C42/$D42) -> 0 | AE42: =IF($D42=0,0,SUMIFS(JLevel2,BOMComp,$A42,BOMLevel,"<>First")*$C42/$D42) -> 0 | AF42: =IF($D42=0,0,SUMIFS(JLevel3,BOMComp,$A42,BOMLevel,"<>First")*$C42/$D42) -> 0 | AG42: =IF($D42=0,0,SUMIFS(JLevel4,BOMComp,$A42,BOMLevel,"<>First")*$C42/$D42) -> 0 | AH42: =IF($D42=0,0,SUMIFS(JLevel5,BOMComp,$A42,BOMLevel,"<>First")*$C42/$D42) -> 0 | AI42: =IF(ISNA(VLOOKUP($A42,JRCode,COLUMN(JReview!$E$4),0))=TRUE,0,IF($D42=0,0,VLOOKUP($A42,JRCode,COLUMN(JReview!$E$4),0)*$C42/$D42)) -> 0 | AJ42: =IF($D42=0,0,SUMIFS(JRLevel1,BOMComp,$A42,BOMLevel,"<>First")*$C42/$D42) -> 0 | AK42: =IF($D42=0,0,SUMIFS(JRLevel2,BOMComp,$A42,BOMLevel,"<>First")*$C42/$D42) -> 0 | AL42: =IF($D42=0,0,SUMIFS(JRLevel3,BOMComp,$A42,BOMLevel,"<>First")*$C42/$D42) -> 0 | AM42: =IF($D42=0,0,SUMIFS(JRLevel4,BOMComp,$A42,BOMLevel,"<>First")*$C42/$D42) -> 0 | AN42: =IF($D42=0,0,SUMIFS(JRLevel5,BOMComp,$A42,BOMLevel,"<>First")*$C42/$D42) -> 0 | AO42: =IF(ISNA(VLOOKUP($A42,Require,COLUMN(ReqPlan!$E$6),0))=TRUE,0,IF($D42=0,0,VLOOKUP($A42,Require,COLUMN(ReqPlan!$E$6),0)*$C42/$D42)) -> 50 | AP42: =IF($D42=0,0,SUMIFS(RLevel1,BOMComp,$A42,BOMLevel,"<>First")*$C42/$D42) -> 0 | AQ42: =IF($D42=0,0,SUMIFS(RLevel2,BOMComp,$A42,BOMLevel,"<>First")*$C42/$D42) -> 0 | AR42: =IF($D42=0,0,SUMIFS(RLevel3,BOMComp,$A42,BOMLevel,"<>First")*$C42/$D42) -> 0 | AS42: =IF($D42=0,0,SUMIFS(RLevel4,BOMComp,$A42,BOMLevel,"<>First")*$C42/$D42) -> 0 | AT42: =IF($D42=0,0,SUMIFS(RLevel5,BOMComp,$A42,BOMLevel,"<>First")*$C42/$D42) -> 0
A43: 1212THT | B43: SD18 | C43: 1 | D43: 1 | E43: - | F43: =IF(ISNA(VLOOKUP($A43,StockMaster,COLUMN(StockCode!$B$4),0))=TRUE,"does not exist",VLOOKUP($A43,StockMaster,COLUMN(StockCode!$B$4),0)) -> Tools Shed | G43: =IF(ISNA(VLOOKUP($A43,StockMaster,COLUMN(StockCode!$C$4),0))=TRUE,"error",VLOOKUP($A43,StockMaster,COLUMN(StockCode!$C$4),0)) -> Units | H43: =IF(ISNA(VLOOKUP($A43,StockMaster,COLUMN(StockCode!$E$4),0))=TRUE,"All",VLOOKUP($A43,StockMaster,COLUMN(StockCode!$E$4),0)) -> All | I43: =IF(ISNA(VLOOKUP($B43,StockMaster,COLUMN(StockCode!$B$4),0))=TRUE,"does not exist",VLOOKUP($B43,StockMaster,COLUMN(StockCode!$B$4),0)) -> Door | J43: =IF(ISNA(VLOOKUP($B43,StockMaster,COLUMN(StockCode!$C$4),0))=TRUE,"error",VLOOKUP($B43,StockMaster,COLUMN(StockCode!$C$4),0)) -> Units | K43: =IF(ISNA(VLOOKUP($B43,StockMaster,COLUMN(StockCode!$G$4),0))=TRUE,0,VLOOKUP($B43,StockMaster,COLUMN(StockCode!$G$4),0)) -> Manufactured | L43: N | M43: =IF($K43="Manufactured",0,IF(ISNA(VLOOKUP($B43,StockMaster,COLUMN(StockCode!$D$4),0))=TRUE,0,VLOOKUP($B43,StockMaster,COLUMN(StockCode!$D$4),0))) -> 0 | N43: 0 | O43: 313.6666667 | P43: 313.6666667 | Q43: 313.6666667 | R43: =IF($K43="Manufactured",0,IF(ISNA(VLOOKUP($B43,StockMaster,COLUMN(StockCode!$AA$4),0))=TRUE,0,VLOOKUP($B43,StockMaster,COLUMN(StockCode!$AA$4),0))) -> 0 | S43: 0 | T43: 318.6787999 | U43: 318.6787999 | V43: 318.6787999 | W43: =IF(ISNA(VLOOKUP($A43,StockMaster,COLUMN(StockCode!$P$4),0))=TRUE,0,IF($D43=0,0,(VLOOKUP($A43,StockMaster,COLUMN(StockCode!$P$4),0)*$C43/$D43))) -> 125 | X43: =IF($D43=0,0,SUMIFS(TLevel1,BOMComp,$A43,BOMLevel,"<>First")*$C43/$D43) -> 0 | Y43: =IF($D43=0,0,SUMIFS(TLevel2,BOMComp,$A43,BOMLevel,"<>First")*$C43/$D43) -> 0 | Z43: =IF($D43=0,0,SUMIFS(TLevel3,BOMComp,$A43,BOMLevel,"<>First")*$C43/$D43) -> 0 | AA43: =IF($D43=0,0,SUMIFS(TLevel4,BOMComp,$A43,BOMLevel,"<>First")*$C43/$D43) -> 0 | AB43: =IF($D43=0,0,SUMIFS(TLevel5,BOMComp,$A43,BOMLevel,"<>First")*$C43/$D43) -> 0 | AC43: =IF(ISNA(VLOOKUP($A43,JRCode,COLUMN(JReview!$D$4),0))=TRUE,0,IF($D43=0,0,VLOOKUP($A43,JRCode,COLUMN(JReview!$D$4),0)*$C43/$D43)) -> 0 | AD43: =IF($D43=0,0,SUMIFS(JLevel1,BOMComp,$A43,BOMLevel,"<>First")*$C43/$D43) -> 0 | AE43: =IF($D43=0,0,SUMIFS(JLevel2,BOMComp,$A43,BOMLevel,"<>First")*$C43/$D43) -> 0 | AF43: =IF($D43=0,0,SUMIFS(JLevel3,BOMComp,$A43,BOMLevel,"<>First")*$C43/$D43) -> 0 | AG43: =IF($D43=0,0,SUMIFS(JLevel4,BOMComp,$A43,BOMLevel,"<>First")*$C43/$D43) -> 0 | AH43: =IF($D43=0,0,SUMIFS(JLevel5,BOMComp,$A43,BOMLevel,"<>First")*$C43/$D43) -> 0 | AI43: =IF(ISNA(VLOOKUP($A43,JRCode,COLUMN(JReview!$E$4),0))=TRUE,0,IF($D43=0,0,VLOOKUP($A43,JRCode,COLUMN(JReview!$E$4),0)*$C43/$D43)) -> 0 | AJ43: =IF($D43=0,0,SUMIFS(JRLevel1,BOMComp,$A43,BOMLevel,"<>First")*$C43/$D43) -> 0 | AK43: =IF($D43=0,0,SUMIFS(JRLevel2,BOMComp,$A43,BOMLevel,"<>First")*$C43/$D43) -> 0 | AL43: =IF($D43=0,0,SUMIFS(JRLevel3,BOMComp,$A43,BOMLevel,"<>First")*$C43/$D43) -> 0 | AM43: =IF($D43=0,0,SUMIFS(JRLevel4,BOMComp,$A43,BOMLevel,"<>First")*$C43/$D43) -> 0 | AN43: =IF($D43=0,0,SUMIFS(JRLevel5,BOMComp,$A43,BOMLevel,"<>First")*$C43/$D43) -> 0 | AO43: =IF(ISNA(VLOOKUP($A43,Require,COLUMN(ReqPlan!$E$6),0))=TRUE,0,IF($D43=0,0,VLOOKUP($A43,Require,COLUMN(ReqPlan!$E$6),0)*$C43/$D43)) -> 50 | AP43: =IF($D43=0,0,SUMIFS(RLevel1,BOMComp,$A43,BOMLevel,"<>First")*$C43/$D43) -> 0 | AQ43: =IF($D43=0,0,SUMIFS(RLevel2,BOMComp,$A43,BOMLevel,"<>First")*$C43/$D43) -> 0 | AR43: =IF($D43=0,0,SUMIFS(RLevel3,BOMComp,$A43,BOMLevel,"<>First")*$C43/$D43) -> 0 | AS43: =IF($D43=0,0,SUMIFS(RLevel4,BOMComp,$A43,BOMLevel,"<>First")*$C43/$D43) -> 0 | AT43: =IF($D43=0,0,SUMIFS(RLevel5,BOMComp,$A43,BOMLevel,"<>First")*$C43/$D43) -> 0
A44: 1212THT | B44: RM30 | C44: 10 | D44: 0.9 | E44: - | F44: =IF(ISNA(VLOOKUP($A44,StockMaster,COLUMN(StockCode!$B$4),0))=TRUE,"does not exist",VLOOKUP($A44,StockMaster,COLUMN(StockCode!$B$4),0)) -> Tools Shed | G44: =IF(ISNA(VLOOKUP($A44,StockMaster,COLUMN(StockCode!$C$4),0))=TRUE,"error",VLOOKUP($A44,StockMaster,COLUMN(StockCode!$C$4),0)) -> Units | H44: =IF(ISNA(VLOOKUP($A44,StockMaster,COLUMN(StockCode!$E$4),0))=TRUE,"All",VLOOKUP($A44,StockMaster,COLUMN(StockCode!$E$4),0)) -> All | I44: =IF(ISNA(VLOOKUP($B44,StockMaster,COLUMN(StockCode!$B$4),0))=TRUE,"does not exist",VLOOKUP($B44,StockMaster,COLUMN(StockCode!$B$4),0)) -> Wood | J44: =IF(ISNA(VLOOKUP($B44,StockMaster,COLUMN(StockCode!$C$4),0))=TRUE,"error",VLOOKUP($B44,StockMaster,COLUMN(StockCode!$C$4),0)) -> M2 | K44: =IF(ISNA(VLOOKUP($B44,StockMaster,COLUMN(StockCode!$G$4),0))=TRUE,0,VLOOKUP($B44,StockMaster,COLUMN(StockCode!$G$4),0)) -> Bought-In | L44: Y | M44: =IF($K44="Manufactured",0,IF(ISNA(VLOOKUP($B44,StockMaster,COLUMN(StockCode!$D$4),0))=TRUE,0,VLOOKUP($B44,StockMaster,COLUMN(StockCode!$D$4),0))) -> 120 | N44: 1333.333333 | O44: 0 | P44: 0 | Q44: 1333.333333 | R44: =IF($K44="Manufactured",0,IF(ISNA(VLOOKUP($B44,StockMaster,COLUMN(StockCode!$AA$4),0))=TRUE,0,VLOOKUP($B44,StockMaster,COLUMN(StockCode!$AA$4),0))) -> 124.2132226 | S44: 1380.146918 | T44: 0 | U44: 0 | V44: 1380.146918 | W44: =IF(ISNA(VLOOKUP($A44,StockMaster,COLUMN(StockCode!$P$4),0))=TRUE,0,IF($D44=0,0,(VLOOKUP($A44,StockMaster,COLUMN(StockCode!$P$4),0)*$C44/$D44))) -> 1388.888889 | X44: =IF($D44=0,0,SUMIFS(TLevel1,BOMComp,$A44,BOMLevel,"<>First")*$C44/$D44) -> 0 | Y44: =IF($D44=0,0,SUMIFS(TLevel2,BOMComp,$A44,BOMLevel,"<>First")*$C44/$D44) -> 0 | Z44: =IF($D44=0,0,SUMIFS(TLevel3,BOMComp,$A44,BOMLevel,"<>First")*$C44/$D44) -> 0 | AA44: =IF($D44=0,0,SUMIFS(TLevel4,BOMComp,$A44,BOMLevel,"<>First")*$C44/$D44) -> 0 | AB44: =IF($D44=0,0,SUMIFS(TLevel5,BOMComp,$A44,BOMLevel,"<>First")*$C44/$D44) -> 0 | AC44: =IF(ISNA(VLOOKUP($A44,JRCode,COLUMN(JReview!$D$4),0))=TRUE,0,IF($D44=0,0,VLOOKUP($A44,JRCode,COLUMN(JReview!$D$4),0)*$C44/$D44)) -> 0 | AD44: =IF($D44=0,0,SUMIFS(JLevel1,BOMComp,$A44,BOMLevel,"<>First")*$C44/$D44) -> 0 | AE44: =IF($D44=0,0,SUMIFS(JLevel2,BOMComp,$A44,BOMLevel,"<>First")*$C44/$D44) -> 0 | AF44: =IF($D44=0,0,SUMIFS(JLevel3,BOMComp,$A44,BOMLevel,"<>First")*$C44/$D44) -> 0 | AG44: =IF($D44=0,0,SUMIFS(JLevel4,BOMComp,$A44,BOMLevel,"<>First")*$C44/$D44) -> 0 | AH44: =IF($D44=0,0,SUMIFS(JLevel5,BOMComp,$A44,BOMLevel,"<>First")*$C44/$D44) -> 0 | AI44: =IF(ISNA(VLOOKUP($A44,JRCode,COLUMN(JReview!$E$4),0))=TRUE,0,IF($D44=0,0,VLOOKUP($A44,JRCode,COLUMN(JReview!$E$4),0)*$C44/$D44)) -> 0 | AJ44: =IF($D44=0,0,SUMIFS(JRLevel1,BOMComp,$A44,BOMLevel,"<>First")*$C44/$D44) -> 0 | AK44: =IF($D44=0,0,SUMIFS(JRLevel2,BOMComp,$A44,BOMLevel,"<>First")*$C44/$D44) -> 0 | AL44: =IF($D44=0,0,SUMIFS(JRLevel3,BOMComp,$A44,BOMLevel,"<>First")*$C44/$D44) -> 0 | AM44: =IF($D44=0,0,SUMIFS(JRLevel4,BOMComp,$A44,BOMLevel,"<>First")*$C44/$D44) -> 0 | AN44: =IF($D44=0,0,SUMIFS(JRLevel5,BOMComp,$A44,BOMLevel,"<>First")*$C44/$D44) -> 0 | AO44: =IF(ISNA(VLOOKUP($A44,Require,COLUMN(ReqPlan!$E$6),0))=TRUE,0,IF($D44=0,0,VLOOKUP($A44,Require,COLUMN(ReqPlan!$E$6),0)*$C44/$D44)) -> 555.5555556 | AP44: =IF($D44=0,0,SUMIFS(RLevel1,BOMComp,$A44,BOMLevel,"<>First")*$C44/$D44) -> 0 | AQ44: =IF($D44=0,0,SUMIFS(RLevel2,BOMComp,$A44,BOMLevel,"<>First")*$C44/$D44) -> 0 | AR44: =IF($D44=0,0,SUMIFS(RLevel3,BOMComp,$A44,BOMLevel,"<>First")*$C44/$D44) -> 0 | AS44: =IF($D44=0,0,SUMIFS(RLevel4,BOMComp,$A44,BOMLevel,"<>First")*$C44/$D44) -> 0 | AT44: =IF($D44=0,0,SUMIFS(RLevel5,BOMComp,$A44,BOMLevel,"<>First")*$C44/$D44) -> 0
A45: 1212THT | B45: RM55 | C45: 2 | D45: 0.85 | E45: - | F45: =IF(ISNA(VLOOKUP($A45,StockMaster,COLUMN(StockCode!$B$4),0))=TRUE,"does not exist",VLOOKUP($A45,StockMaster,COLUMN(StockCode!$B$4),0)) -> Tools Shed | G45: =IF(ISNA(VLOOKUP($A45,StockMaster,COLUMN(StockCode!$C$4),0))=TRUE,"error",VLOOKUP($A45,StockMaster,COLUMN(StockCode!$C$4),0)) -> Units | H45: =IF(ISNA(VLOOKUP($A45,StockMaster,COLUMN(StockCode!$E$4),0))=TRUE,"All",VLOOKUP($A45,StockMaster,COLUMN(StockCode!$E$4),0)) -> All | I45: =IF(ISNA(VLOOKUP($B45,StockMaster,COLUMN(StockCode!$B$4),0))=TRUE,"does not exist",VLOOKUP($B45,StockMaster,COLUMN(StockCode!$B$4),0)) -> 2 Inch Screws | J45: =IF(ISNA(VLOOKUP($B45,StockMaster,COLUMN(StockCode!$C$4),0))=TRUE,"error",VLOOKUP($B45,StockMaster,COLUMN(StockCode!$C$4),0)) -> Bag | K45: =IF(ISNA(VLOOKUP($B45,StockMaster,COLUMN(StockCode!$G$4),0))=TRUE,0,VLOOKUP($B45,StockMaster,COLUMN(StockCode!$G$4),0)) -> Bought-In | L45: Y | M45: =IF($K45="Manufactured",0,IF(ISNA(VLOOKUP($B45,StockMaster,COLUMN(StockCode!$D$4),0))=TRUE,0,VLOOKUP($B45,StockMaster,COLUMN(StockCode!$D$4),0))) -> 50 | N45: 117.6470588 | O45: 0 | P45: 0 | Q45: 117.6470588 | R45: =IF($K45="Manufactured",0,IF(ISNA(VLOOKUP($B45,StockMaster,COLUMN(StockCode!$AA$4),0))=TRUE,0,VLOOKUP($B45,StockMaster,COLUMN(StockCode!$AA$4),0))) -> 48.74351225 | S45: 114.6906171 | T45: 0 | U45: 0 | V45: 114.6906171 | W45: =IF(ISNA(VLOOKUP($A45,StockMaster,COLUMN(StockCode!$P$4),0))=TRUE,0,IF($D45=0,0,(VLOOKUP($A45,StockMaster,COLUMN(StockCode!$P$4),0)*$C45/$D45))) -> 294.1176471 | X45: =IF($D45=0,0,SUMIFS(TLevel1,BOMComp,$A45,BOMLevel,"<>First")*$C45/$D45) -> 0 | Y45: =IF($D45=0,0,SUMIFS(TLevel2,BOMComp,$A45,BOMLevel,"<>First")*$C45/$D45) -> 0 | Z45: =IF($D45=0,0,SUMIFS(TLevel3,BOMComp,$A45,BOMLevel,"<>First")*$C45/$D45) -> 0 | AA45: =IF($D45=0,0,SUMIFS(TLevel4,BOMComp,$A45,BOMLevel,"<>First")*$C45/$D45) -> 0 | AB45: =IF($D45=0,0,SUMIFS(TLevel5,BOMComp,$A45,BOMLevel,"<>First")*$C45/$D45) -> 0 | AC45: =IF(ISNA(VLOOKUP($A45,JRCode,COLUMN(JReview!$D$4),0))=TRUE,0,IF($D45=0,0,VLOOKUP($A45,JRCode,COLUMN(JReview!$D$4),0)*$C45/$D45)) -> 0 | AD45: =IF($D45=0,0,SUMIFS(JLevel1,BOMComp,$A45,BOMLevel,"<>First")*$C45/$D45) -> 0 | AE45: =IF($D45=0,0,SUMIFS(JLevel2,BOMComp,$A45,BOMLevel,"<>First")*$C45/$D45) -> 0 | AF45: =IF($D45=0,0,SUMIFS(JLevel3,BOMComp,$A45,BOMLevel,"<>First")*$C45/$D45) -> 0 | AG45: =IF($D45=0,0,SUMIFS(JLevel4,BOMComp,$A45,BOMLevel,"<>First")*$C45/$D45) -> 0 | AH45: =IF($D45=0,0,SUMIFS(JLevel5,BOMComp,$A45,BOMLevel,"<>First")*$C45/$D45) -> 0 | AI45: =IF(ISNA(VLOOKUP($A45,JRCode,COLUMN(JReview!$E$4),0))=TRUE,0,IF($D45=0,0,VLOOKUP($A45,JRCode,COLUMN(JReview!$E$4),0)*$C45/$D45)) -> 0 | AJ45: =IF($D45=0,0,SUMIFS(JRLevel1,BOMComp,$A45,BOMLevel,"<>First")*$C45/$D45) -> 0 | AK45: =IF($D45=0,0,SUMIFS(JRLevel2,BOMComp,$A45,BOMLevel,"<>First")*$C45/$D45) -> 0 | AL45: =IF($D45=0,0,SUMIFS(JRLevel3,BOMComp,$A45,BOMLevel,"<>First")*$C45/$D45) -> 0 | AM45: =IF($D45=0,0,SUMIFS(JRLevel4,BOMComp,$A45,BOMLevel,"<>First")*$C45/$D45) -> 0 | AN45: =IF($D45=0,0,SUMIFS(JRLevel5,BOMComp,$A45,BOMLevel,"<>First")*$C45/$D45) -> 0 | AO45: =IF(ISNA(VLOOKUP($A45,Require,COLUMN(ReqPlan!$E$6),0))=TRUE,0,IF($D45=0,0,VLOOKUP($A45,Require,COLUMN(ReqPlan!$E$6),0)*$C45/$D45)) -> 117.6470588 | AP45: =IF($D45=0,0,SUMIFS(RLevel1,BOMComp,$A45,BOMLevel,"<>First")*$C45/$D45) -> 0 | AQ45: =IF($D45=0,0,SUMIFS(RLevel2,BOMComp,$A45,BOMLevel,"<>First")*$C45/$D45) -> 0 | AR45: =IF($D45=0,0,SUMIFS(RLevel3,BOMComp,$A45,BOMLevel,"<>First")*$C45/$D45) -> 0 | AS45: =IF($D45=0,0,SUMIFS(RLevel4,BOMComp,$A45,BOMLevel,"<>First")*$C45/$D45) -> 0 | AT45: =IF($D45=0,0,SUMIFS(RLevel5,BOMComp,$A45,BOMLevel,"<>First")*$C45/$D45) -> 0
A46: 1212THT | B46: LB10 | C46: 3 | D46: 1 | E46: - | F46: =IF(ISNA(VLOOKUP($A46,StockMaster,COLUMN(StockCode!$B$4),0))=TRUE,"does not exist",VLOOKUP($A46,StockMaster,COLUMN(StockCode!$B$4),0)) -> Tools Shed | G46: =IF(ISNA(VLOOKUP($A46,StockMaster,COLUMN(StockCode!$C$4),0))=TRUE,"error",VLOOKUP($A46,StockMaster,COLUMN(StockCode!$C$4),0)) -> Units | H46: =IF(ISNA(VLOOKUP($A46,StockMaster,COLUMN(StockCode!$E$4),0))=TRUE,"All",VLOOKUP($A46,StockMaster,COLUMN(StockCode!$E$4),0)) -> All | I46: =IF(ISNA(VLOOKUP($B46,StockMaster,COLUMN(StockCode!$B$4),0))=TRUE,"does not exist",VLOOKUP($B46,StockMaster,COLUMN(StockCode!$B$4),0)) -> Labour - Grade 1 | J46: =IF(ISNA(VLOOKUP($B46,StockMaster,COLUMN(StockCode!$C$4),0))=TRUE,"error",VLOOKUP($B46,StockMaster,COLUMN(StockCode!$C$4),0)) -> Hours | K46: =IF(ISNA(VLOOKUP($B46,StockMaster,COLUMN(StockCode!$G$4),0))=TRUE,0,VLOOKUP($B46,StockMaster,COLUMN(StockCode!$G$4),0)) -> Bought-In | L46: Y | M46: =IF($K46="Manufactured",0,IF(ISNA(VLOOKUP($B46,StockMaster,COLUMN(StockCode!$D$4),0))=TRUE,0,VLOOKUP($B46,StockMaster,COLUMN(StockCode!$D$4),0))) -> 20 | N46: 60 | O46: 0 | P46: 0 | Q46: 60 | R46: =IF($K46="Manufactured",0,IF(ISNA(VLOOKUP($B46,StockMaster,COLUMN(StockCode!$AA$4),0))=TRUE,0,VLOOKUP($B46,StockMaster,COLUMN(StockCode!$AA$4),0))) -> 20.33077475 | S46: 60.99232425 | T46: 0 | U46: 0 | V46: 60.99232425 | W46: =IF(ISNA(VLOOKUP($A46,StockMaster,COLUMN(StockCode!$P$4),0))=TRUE,0,IF($D46=0,0,(VLOOKUP($A46,StockMaster,COLUMN(StockCode!$P$4),0)*$C46/$D46))) -> 375 | X46: =IF($D46=0,0,SUMIFS(TLevel1,BOMComp,$A46,BOMLevel,"<>First")*$C46/$D46) -> 0 | Y46: =IF($D46=0,0,SUMIFS(TLevel2,BOMComp,$A46,BOMLevel,"<>First")*$C46/$D46) -> 0 | Z46: =IF($D46=0,0,SUMIFS(TLevel3,BOMComp,$A46,BOMLevel,"<>First")*$C46/$D46) -> 0 | AA46: =IF($D46=0,0,SUMIFS(TLevel4,BOMComp,$A46,BOMLevel,"<>First")*$C46/$D46) -> 0 | AB46: =IF($D46=0,0,SUMIFS(TLevel5,BOMComp,$A46,BOMLevel,"<>First")*$C46/$D46) -> 0 | AC46: =IF(ISNA(VLOOKUP($A46,JRCode,COLUMN(JReview!$D$4),0))=TRUE,0,IF($D46=0,0,VLOOKUP($A46,JRCode,COLUMN(JReview!$D$4),0)*$C46/$D46)) -> 0 | AD46: =IF($D46=0,0,SUMIFS(JLevel1,BOMComp,$A46,BOMLevel,"<>First")*$C46/$D46) -> 0 | AE46: =IF($D46=0,0,SUMIFS(JLevel2,BOMComp,$A46,BOMLevel,"<>First")*$C46/$D46) -> 0 | AF46: =IF($D46=0,0,SUMIFS(JLevel3,BOMComp,$A46,BOMLevel,"<>First")*$C46/$D46) -> 0 | AG46: =IF($D46=0,0,SUMIFS(JLevel4,BOMComp,$A46,BOMLevel,"<>First")*$C46/$D46) -> 0 | AH46: =IF($D46=0,0,SUMIFS(JLevel5,BOMComp,$A46,BOMLevel,"<>First")*$C46/$D46) -> 0 | AI46: =IF(ISNA(VLOOKUP($A46,JRCode,COLUMN(JReview!$E$4),0))=TRUE,0,IF($D46=0,0,VLOOKUP($A46,JRCode,COLUMN(JReview!$E$4),0)*$C46/$D46)) -> 0 | AJ46: =IF($D46=0,0,SUMIFS(JRLevel1,BOMComp,$A46,BOMLevel,"<>First")*$C46/$D46) -> 0 | AK46: =IF($D46=0,0,SUMIFS(JRLevel2,BOMComp,$A46,BOMLevel,"<>First")*$C46/$D46) -> 0 | AL46: =IF($D46=0,0,SUMIFS(JRLevel3,BOMComp,$A46,BOMLevel,"<>First")*$C46/$D46) -> 0 | AM46: =IF($D46=0,0,SUMIFS(JRLevel4,BOMComp,$A46,BOMLevel,"<>First")*$C46/$D46) -> 0 | AN46: =IF($D46=0,0,SUMIFS(JRLevel5,BOMComp,$A46,BOMLevel,"<>First")*$C46/$D46) -> 0 | AO46: =IF(ISNA(VLOOKUP($A46,Require,COLUMN(ReqPlan!$E$6),0))=TRUE,0,IF($D46=0,0,VLOOKUP($A46,Require,COLUMN(ReqPlan!$E$6),0)*$C46/$D46)) -> 150 | AP46: =IF($D46=0,0,SUMIFS(RLevel1,BOMComp,$A46,BOMLevel,"<>First")*$C46/$D46) -> 0 | AQ46: =IF($D46=0,0,SUMIFS(RLevel2,BOMComp,$A46,BOMLevel,"<>First")*$C46/$D46) -> 0 | AR46: =IF($D46=0,0,SUMIFS(RLevel3,BOMComp,$A46,BOMLevel,"<>First")*$C46/$D46) -> 0 | AS46: =IF($D46=0,0,SUMIFS(RLevel4,BOMComp,$A46,BOMLevel,"<>First")*$C46/$D46) -> 0 | AT46: =IF($D46=0,0,SUMIFS(RLevel5,BOMComp,$A46,BOMLevel,"<>First")*$C46/$D46) -> 0
A47: 1212THT | B47: LB15 | C47: 1 | D47: 1 | E47: - | F47: =IF(ISNA(VLOOKUP($A47,StockMaster,COLUMN(StockCode!$B$4),0))=TRUE,"does not exist",VLOOKUP($A47,StockMaster,COLUMN(StockCode!$B$4),0)) -> Tools Shed | G47: =IF(ISNA(VLOOKUP($A47,StockMaster,COLUMN(StockCode!$C$4),0))=TRUE,"error",VLOOKUP($A47,StockMaster,COLUMN(StockCode!$C$4),0)) -> Units | H47: =IF(ISNA(VLOOKUP($A47,StockMaster,COLUMN(StockCode!$E$4),0))=TRUE,"All",VLOOKUP($A47,StockMaster,COLUMN(StockCode!$E$4),0)) -> All | I47: =IF(ISNA(VLOOKUP($B47,StockMaster,COLUMN(StockCode!$B$4),0))=TRUE,"does not exist",VLOOKUP($B47,StockMaster,COLUMN(StockCode!$B$4),0)) -> Labour - Grade 2 | J47: =IF(ISNA(VLOOKUP($B47,StockMaster,COLUMN(StockCode!$C$4),0))=TRUE,"error",VLOOKUP($B47,StockMaster,COLUMN(StockCode!$C$4),0)) -> Hours | K47: =IF(ISNA(VLOOKUP($B47,StockMaster,COLUMN(StockCode!$G$4),0))=TRUE,0,VLOOKUP($B47,StockMaster,COLUMN(StockCode!$G$4),0)) -> Bought-In | L47: Y | M47: =IF($K47="Manufactured",0,IF(ISNA(VLOOKUP($B47,StockMaster,COLUMN(StockCode!$D$4),0))=TRUE,0,VLOOKUP($B47,StockMaster,COLUMN(StockCode!$D$4),0))) -> 30 | N47: 30 | O47: 0 | P47: 0 | Q47: 30 | R47: =IF($K47="Manufactured",0,IF(ISNA(VLOOKUP($B47,StockMaster,COLUMN(StockCode!$AA$4),0))=TRUE,0,VLOOKUP($B47,StockMaster,COLUMN(StockCode!$AA$4),0))) -> 30 | S47: 30 | T47: 0 | U47: 0 | V47: 30 | W47: =IF(ISNA(VLOOKUP($A47,StockMaster,COLUMN(StockCode!$P$4),0))=TRUE,0,IF($D47=0,0,(VLOOKUP($A47,StockMaster,COLUMN(StockCode!$P$4),0)*$C47/$D47))) -> 125 | X47: =IF($D47=0,0,SUMIFS(TLevel1,BOMComp,$A47,BOMLevel,"<>First")*$C47/$D47) -> 0 | Y47: =IF($D47=0,0,SUMIFS(TLevel2,BOMComp,$A47,BOMLevel,"<>First")*$C47/$D47) -> 0 | Z47: =IF($D47=0,0,SUMIFS(TLevel3,BOMComp,$A47,BOMLevel,"<>First")*$C47/$D47) -> 0 | AA47: =IF($D47=0,0,SUMIFS(TLevel4,BOMComp,$A47,BOMLevel,"<>First")*$C47/$D47) -> 0 | AB47: =IF($D47=0,0,SUMIFS(TLevel5,BOMComp,$A47,BOMLevel,"<>First")*$C47/$D47) -> 0 | AC47: =IF(ISNA(VLOOKUP($A47,JRCode,COLUMN(JReview!$D$4),0))=TRUE,0,IF($D47=0,0,VLOOKUP($A47,JRCode,COLUMN(JReview!$D$4),0)*$C47/$D47)) -> 0 | AD47: =IF($D47=0,0,SUMIFS(JLevel1,BOMComp,$A47,BOMLevel,"<>First")*$C47/$D47) -> 0 | AE47: =IF($D47=0,0,SUMIFS(JLevel2,BOMComp,$A47,BOMLevel,"<>First")*$C47/$D47) -> 0 | AF47: =IF($D47=0,0,SUMIFS(JLevel3,BOMComp,$A47,BOMLevel,"<>First")*$C47/$D47) -> 0 | AG47: =IF($D47=0,0,SUMIFS(JLevel4,BOMComp,$A47,BOMLevel,"<>First")*$C47/$D47) -> 0 | AH47: =IF($D47=0,0,SUMIFS(JLevel5,BOMComp,$A47,BOMLevel,"<>First")*$C47/$D47) -> 0 | AI47: =IF(ISNA(VLOOKUP($A47,JRCode,COLUMN(JReview!$E$4),0))=TRUE,0,IF($D47=0,0,VLOOKUP($A47,JRCode,COLUMN(JReview!$E$4),0)*$C47/$D47)) -> 0 | AJ47: =IF($D47=0,0,SUMIFS(JRLevel1,BOMComp,$A47,BOMLevel,"<>First")*$C47/$D47) -> 0 | AK47: =IF($D47=0,0,SUMIFS(JRLevel2,BOMComp,$A47,BOMLevel,"<>First")*$C47/$D47) -> 0 | AL47: =IF($D47=0,0,SUMIFS(JRLevel3,BOMComp,$A47,BOMLevel,"<>First")*$C47/$D47) -> 0 | AM47: =IF($D47=0,0,SUMIFS(JRLevel4,BOMComp,$A47,BOMLevel,"<>First")*$C47/$D47) -> 0 | AN47: =IF($D47=0,0,SUMIFS(JRLevel5,BOMComp,$A47,BOMLevel,"<>First")*$C47/$D47) -> 0 | AO47: =IF(ISNA(VLOOKUP($A47,Require,COLUMN(ReqPlan!$E$6),0))=TRUE,0,IF($D47=0,0,VLOOKUP($A47,Require,COLUMN(ReqPlan!$E$6),0)*$C47/$D47)) -> 50 | AP47: =IF($D47=0,0,SUMIFS(RLevel1,BOMComp,$A47,BOMLevel,"<>First")*$C47/$D47) -> 0 | AQ47: =IF($D47=0,0,SUMIFS(RLevel2,BOMComp,$A47,BOMLevel,"<>First")*$C47/$D47) -> 0 | AR47: =IF($D47=0,0,SUMIFS(RLevel3,BOMComp,$A47,BOMLevel,"<>First")*$C47/$D47) -> 0 | AS47: =IF($D47=0,0,SUMIFS(RLevel4,BOMComp,$A47,BOMLevel,"<>First")*$C47/$D47) -> 0 | AT47: =IF($D47=0,0,SUMIFS(RLevel5,BOMComp,$A47,BOMLevel,"<>First")*$C47/$D47) -> 0

Sheet JSetup (hidden)
A1: Jobs | T1: Basis | U1: =IF(COUNTIF(JSUnique,0)>0,"Multiple","Single") -> Single
A2: Set-up
A3: © www.excel-skills.com | N3: =SUBTOTAL(109,JSStd) -> 4916763.153 | O3: =SUBTOTAL(109,JSJStd) -> 4916763.153 | P3: =SUBTOTAL(109,JSJActual) -> 4921339.942 | Q3: =SUBTOTAL(109,JSJVar) -> -4576.788786 | R3: =SUBTOTAL(109,JSJUsage) -> 75634.90712 | S3: =SUBTOTAL(109,JSJPrice) -> -80211.69591
A4: Job No | B4: Date | C4: Stock Code | D4: Qty Required | E4: Error Code | F4: Stock Description | G4: Product Type | H4: BOM Type | I4: Qty Received | J4: Job Balance | K4: STD UCost | L4: Actual UCost | M4: UCost Diff% | N4: STD Value | O4: Job STD | P4: Job Actual | Q4: Job Var | R4: Job Usage | S4: Job Price | T4: Job Date | U4: JUnique
A5: J00001 | B5: 2020-07-03 | C5: 1212GHG | D5: 100 | E5: =IF(AND(ISBLANK(C5)=FALSE,ISNA(MATCH(C5,StockCodes,0))=TRUE)=TRUE,"E3",IF(AND(G5<>"-",G5<>"Manufactured"),"E6","-")) -> - | F5: =IF(ISNA(VLOOKUP($C5,StockMaster,COLUMN(StockCode!$B$4),0))=TRUE,"-",VLOOKUP($C5,StockMaster,COLUMN(StockCode!$B$4),0)) -> Garden Shed | G5: =IF(ISNA(VLOOKUP($C5,StockMaster,COLUMN(StockCode!$G$4),0))=TRUE,"-",VLOOKUP($C5,StockMaster,COLUMN(StockCode!$G$4),0)) -> Manufactured | H5: =IF(ISNA(VLOOKUP(C5,BOMParents,1,0))=TRUE,"None",IF(ISNA(VLOOKUP(C5,BOMComp,1,0))=TRUE,"FG","IM")) -> FG | I5: =SUMIFS(JTQty,JTJob,$A5,JTStockCode,C5,JTType,"Receipt") -> 105 | J5: =I5-D5 -> 5 | K5: =IF(ISNA(VLOOKUP($C5,StockMaster,COLUMN(StockCode!$I$4),0))=TRUE,0,VLOOKUP($C5,StockMaster,COLUMN(StockCode!$I$4),0)) -> 4164.719298 | L5: =IF(JSetup!$U$1="Single",IF(F5="Bought-In",0,IF(I5=0,0,-SUMIFS(JTValue,JTJob,$A5,JTFGCode,$C5,JTType,"Issue")/I5)),"n/a") -> 3747.714286 | M5: =IF($U$1="Multiple","n/a",IF(AND(JSetup!$U$1="Single",I5=0,G5="Manufactured"),0,IF(K5=0,0,(K5-L5)/K5))) -> 0.1001279997 | N5: =I5*K5 -> 437295.5263 | O5: =IF($U5=1,SUMIFS(JSStd,JSJob,$A5),0) -> 437295.5263 | P5: =IF($U5=1,-SUMIFS(JTValue,JTJob,$A5,JTType,"Issue"),0) -> 393510 | Q5: =IF($U5=1,O5-P5,0) -> 43785.52632 | R5: =IF($U5=1,Q5-S5,0) -> 18785.52632 | S5: =IF($U5=1,SUMIFS(JTPrice,JTJob,$A5,JTType,"Issue"),0) -> 25000 | T5: =IF(ISBLANK($B5)=TRUE,TODAY(),$B5) -> 2020-07-03 | U5: =IF(ISBLANK(A5)=TRUE,"-",IF(COUNTIF(JSJob,$A5)>1,IF(COUNTIF(OFFSET($A5,ROW($A$4)-ROW($A5),0,ROW($A5)-ROW($A$4),1),$A5)>0,0,1),COUNTIF(JSJob,$A5))) -> 1
A6: J00002 | B6: 2020-07-04 | C6: 1212PHP | D6: 50 | E6: =IF(AND(ISBLANK(C6)=FALSE,ISNA(MATCH(C6,StockCodes,0))=TRUE)=TRUE,"E3",IF(AND(G6<>"-",G6<>"Manufactured"),"E6","-")) -> - | F6: =IF(ISNA(VLOOKUP($C6,StockMaster,COLUMN(StockCode!$B$4),0))=TRUE,"-",VLOOKUP($C6,StockMaster,COLUMN(StockCode!$B$4),0)) -> Painted Garden Shed | G6: =IF(ISNA(VLOOKUP($C6,StockMaster,COLUMN(StockCode!$G$4),0))=TRUE,"-",VLOOKUP($C6,StockMaster,COLUMN(StockCode!$G$4),0)) -> Manufactured | H6: =IF(ISNA(VLOOKUP(C6,BOMParents,1,0))=TRUE,"None",IF(ISNA(VLOOKUP(C6,BOMComp,1,0))=TRUE,"FG","IM")) -> FG | I6: =SUMIFS(JTQty,JTJob,$A6,JTStockCode,C6,JTType,"Receipt") -> 52 | J6: =I6-D6 -> 2 | K6: =IF(ISNA(VLOOKUP($C6,StockMaster,COLUMN(StockCode!$I$4),0))=TRUE,0,VLOOKUP($C6,StockMaster,COLUMN(StockCode!$I$4),0)) -> 4956.393189 | L6: =IF(JSetup!$U$1="Single",IF(F6="Bought-In",0,IF(I6=0,0,-SUMIFS(JTValue,JTJob,$A6,JTFGCode,$C6,JTType,"Issue")/I6)),"n/a") -> 4903.461538 | M6: =IF($U$1="Multiple","n/a",IF(AND(JSetup!$U$1="Single",I6=0,G6="Manufactured"),0,IF(K6=0,0,(K6-L6)/K6))) -> 0.0106794696 | N6: =I6*K6 -> 257732.4458 | O6: =IF($U6=1,SUMIFS(JSStd,JSJob,$A6),0) -> 257732.4458 | P6: =IF($U6=1,-SUMIFS(JTValue,JTJob,$A6,JTType,"Issue"),0) -> 254980 | Q6: =IF($U6=1,O6-P6,0) -> 2752.44582 | R6: =IF($U6=1,Q6-S6,0) -> 3202.44582 | S6: =IF($U6=1,SUMIFS(JTPrice,JTJob,$A6,JTType,"Issue"),0) -> -450 | T6: =IF(ISBLANK($B6)=TRUE,TODAY(),$B6) -> 2020-07-04 | U6: =IF(ISBLANK(A6)=TRUE,"-",IF(COUNTIF(JSJob,$A6)>1,IF(COUNTIF(OFFSET($A6,ROW($A$4)-ROW($A6),0,ROW($A6)-ROW($A$4),1),$A6)>0,0,1),COUNTIF(JSJob,$A6))) -> 1
A7: J00003 | B7: 2020-07-05 | C7: 1212THT | D7: 75 | E7: =IF(AND(ISBLANK(C7)=FALSE,ISNA(MATCH(C7,StockCodes,0))=TRUE)=TRUE,"E3",IF(AND(G7<>"-",G7<>"Manufactured"),"E6","-")) -> - | F7: =IF(ISNA(VLOOKUP($C7,StockMaster,COLUMN(StockCode!$B$4),0))=TRUE,"-",VLOOKUP($C7,StockMaster,COLUMN(StockCode!$B$4),0)) -> Tools Shed | G7: =IF(ISNA(VLOOKUP($C7,StockMaster,COLUMN(StockCode!$G$4),0))=TRUE,"-",VLOOKUP($C7,StockMaster,COLUMN(StockCode!$G$4),0)) -> Manufactured | H7: =IF(ISNA(VLOOKUP(C7,BOMParents,1,0))=TRUE,"None",IF(ISNA(VLOOKUP(C7,BOMComp,1,0))=TRUE,"FG","IM")) -> FG | I7: =SUMIFS(JTQty,JTJob,$A7,JTStockCode,C7,JTType,"Receipt") -> 75 | J7: =I7-D7 -> 0 | K7: =IF(ISNA(VLOOKUP($C7,StockMaster,COLUMN(StockCode!$I$4),0))=TRUE,0,VLOOKUP($C7,StockMaster,COLUMN(StockCode!$I$4),0)) -> 3621.313725 | L7: =IF(JSetup!$U$1="Single",IF(F7="Bought-In",0,IF(I7=0,0,-SUMIFS(JTValue,JTJob,$A7,JTFGCode,$C7,JTType,"Issue")/I7)),"n/a") -> 3191.933333 | M7: =IF($U$1="Multiple","n/a",IF(AND(JSetup!$U$1="Single",I7=0,G7="Manufactured"),0,IF(K7=0,0,(K7-L7)/K7))) -> 0.1185703379 | N7: =I7*K7 -> 271598.5294 | O7: =IF($U7=1,SUMIFS(JSStd,JSJob,$A7),0) -> 271598.5294 | P7: =IF($U7=1,-SUMIFS(JTValue,JTJob,$A7,JTType,"Issue"),0) -> 239395 | Q7: 32203.52941 | R7: 23703.52941 | S7: =IF($U7=1,SUMIFS(JTPrice,JTJob,$A7,JTType,"Issue"),0) -> 8500 | T7: 2020-07-05 | U7: =IF(ISBLANK(A7)=TRUE,"-",IF(COUNTIF(JSJob,$A7)>1,IF(COUNTIF(OFFSET($A7,ROW($A$4)-ROW($A7),0,ROW($A7)-ROW($A$4),1),$A7)>0,0,1),COUNTIF(JSJob,$A7))) -> 1
A8: J00004 | B8: 2020-07-06 | C8: 1212GHG | D8: 100 | E8: =IF(AND(ISBLANK(C8)=FALSE,ISNA(MATCH(C8,StockCodes,0))=TRUE)=TRUE,"E3",IF(AND(G8<>"-",G8<>"Manufactured"),"E6","-")) -> - | F8: =IF(ISNA(VLOOKUP($C8,StockMaster,COLUMN(StockCode!$B$4),0))=TRUE,"-",VLOOKUP($C8,StockMaster,COLUMN(StockCode!$B$4),0)) -> Garden Shed | G8: =IF(ISNA(VLOOKUP($C8,StockMaster,COLUMN(StockCode!$G$4),0))=TRUE,"-",VLOOKUP($C8,StockMaster,COLUMN(StockCode!$G$4),0)) -> Manufactured | H8: =IF(ISNA(VLOOKUP(C8,BOMParents,1,0))=TRUE,"None",IF(ISNA(VLOOKUP(C8,BOMComp,1,0))=TRUE,"FG","IM")) -> FG | I8: =SUMIFS(JTQty,JTJob,$A8,JTStockCode,C8,JTType,"Receipt") -> 100 | J8: =I8-D8 -> 0 | K8: =IF(ISNA(VLOOKUP($C8,StockMaster,COLUMN(StockCode!$I$4),0))=TRUE,0,VLOOKUP($C8,StockMaster,COLUMN(StockCode!$I$4),0)) -> 4164.719298 | L8: =IF(JSetup!$U$1="Single",IF(F8="Bought-In",0,IF(I8=0,0,-SUMIFS(JTValue,JTJob,$A8,JTFGCode,$C8,JTType,"Issue")/I8)),"n/a") -> 4163.7 | M8: =IF($U$1="Multiple","n/a",IF(AND(JSetup!$U$1="Single",I8=0,G8="Manufactured"),0,IF(K8=0,0,(K8-L8)/K8))) -> 0.0002447459655 | N8: =I8*K8 -> 416471.9298 | O8: =IF($U8=1,SUMIFS(JSStd,JSJob,$A8),0) -> 416471.9298 | P8: =IF($U8=1,-SUMIFS(JTValue,JTJob,$A8,JTType,"Issue"),0) -> 416370 | Q8: 101.9298246 | R8: 28101.92982 | S8: =IF($U8=1,SUMIFS(JTPrice,JTJob,$A8,JTType,"Issue"),0) -> -28000 | T8: 2020-07-06 | U8: =IF(ISBLANK(A8)=TRUE,"-",IF(COUNTIF(JSJob,$A8)>1,IF(COUNTIF(OFFSET($A8,ROW($A$4)-ROW($A8),0,ROW($A8)-ROW($A$4),1),$A8)>0,0,1),COUNTIF(JSJob,$A8))) -> 1
A9: J00005 | B9: 2020-07-07 | C9: 1212GHG | D9: 300 | E9: =IF(AND(ISBLANK(C9)=FALSE,ISNA(MATCH(C9,StockCodes,0))=TRUE)=TRUE,"E3",IF(AND(G9<>"-",G9<>"Manufactured"),"E6","-")) -> - | F9: =IF(ISNA(VLOOKUP($C9,StockMaster,COLUMN(StockCode!$B$4),0))=TRUE,"-",VLOOKUP($C9,StockMaster,COLUMN(StockCode!$B$4),0)) -> Garden Shed | G9: =IF(ISNA(VLOOKUP($C9,StockMaster,COLUMN(StockCode!$G$4),0))=TRUE,"-",VLOOKUP($C9,StockMaster,COLUMN(StockCode!$G$4),0)) -> Manufactured | H9: =IF(ISNA(VLOOKUP(C9,BOMParents,1,0))=TRUE,"None",IF(ISNA(VLOOKUP(C9,BOMComp,1,0))=TRUE,"FG","IM")) -> FG | I9: =SUMIFS(JTQty,JTJob,$A9,JTStockCode,C9,JTType,"Receipt") -> 300 | J9: =I9-D9 -> 0 | K9: =IF(ISNA(VLOOKUP($C9,StockMaster,COLUMN(StockCode!$I$4),0))=TRUE,0,VLOOKUP($C9,StockMaster,COLUMN(StockCode!$I$4),0)) -> 4164.719298 | L9: =IF(JSetup!$U$1="Single",IF(F9="Bought-In",0,IF(I9=0,0,-SUMIFS(JTValue,JTJob,$A9,JTFGCode,$C9,JTType,"Issue")/I9)),"n/a") -> 4203.75 | M9: =IF($U$1="Multiple","n/a",IF(AND(JSetup!$U$1="Single",I9=0,G9="Manufactured"),0,IF(K9=0,0,(K9-L9)/K9))) -> -0.00937174848 | N9: =I9*K9 -> 1249415.789 | O9: =IF($U9=1,SUMIFS(JSStd,JSJob,$A9),0) -> 1249415.789 | P9: =IF($U9=1,-SUMIFS(JTValue,JTJob,$A9,JTType,"Issue"),0) -> 1261125 | Q9: -11709.21053 | R9: 5540.789474 | S9: =IF($U9=1,SUMIFS(JTPrice,JTJob,$A9,JTType,"Issue"),0) -> -17250 | T9: 2020-07-07 | U9: =IF(ISBLANK(A9)=TRUE,"-",IF(COUNTIF(JSJob,$A9)>1,IF(COUNTIF(OFFSET($A9,ROW($A$4)-ROW($A9),0,ROW($A9)-ROW($A$4),1),$A9)>0,0,1),COUNTIF(JSJob,$A9))) -> 1
A10: J00006 | B10: 2020-07-10 | C10: 1212THT | D10: 50 | E10: - | F10: =IF(ISNA(VLOOKUP($C10,StockMaster,COLUMN(StockCode!$B$4),0))=TRUE,"-",VLOOKUP($C10,StockMaster,COLUMN(StockCode!$B$4),0)) -> Tools Shed | G10: =IF(ISNA(VLOOKUP($C10,StockMaster,COLUMN(StockCode!$G$4),0))=TRUE,"-",VLOOKUP($C10,StockMaster,COLUMN(StockCode!$G$4),0)) -> Manufactured | H10: FG | I10: 50 | J10: 0 | K10: =IF(ISNA(VLOOKUP($C10,StockMaster,COLUMN(StockCode!$I$4),0))=TRUE,0,VLOOKUP($C10,StockMaster,COLUMN(StockCode!$I$4),0)) -> 3621.313725 | L10: =IF(JSetup!$U$1="Single",IF(F10="Bought-In",0,IF(I10=0,0,-SUMIFS(JTValue,JTJob,$A10,JTFGCode,$C10,JTType,"Issue")/I10)),"n/a") -> 3555.3 | M10: =IF($U$1="Multiple","n/a",IF(AND(JSetup!$U$1="Single",I10=0,G10="Manufactured"),0,IF(K10=0,0,(K10-L10)/K10))) -> 0.01822922025 | N10: 181065.6863 | O10: =IF($U10=1,SUMIFS(JSStd,JSJob,$A10),0) -> 181065.6863 | P10: =IF($U10=1,-SUMIFS(JTValue,JTJob,$A10,JTType,"Issue"),0) -> 177765 | Q10: 3300.686275 | R10: -3699.313725 | S10: =IF($U10=1,SUMIFS(JTPrice,JTJob,$A10,JTType,"Issue"),0) -> 7000 | T10: 2020-07-10 | U10: =IF(ISBLANK(A10)=TRUE,"-",IF(COUNTIF(JSJob,$A10)>1,IF(COUNTIF(OFFSET($A10,ROW($A$4)-ROW($A10),0,ROW($A10)-ROW($A$4),1),$A10)>0,0,1),COUNTIF(JSJob,$A10))) -> 1
A11: J00007 | B11: 2020-07-15 | C11: 1212GHG | D11: 500 | E11: - | F11: =IF(ISNA(VLOOKUP($C11,StockMaster,COLUMN(StockCode!$B$4),0))=TRUE,"-",VLOOKUP($C11,StockMaster,COLUMN(StockCode!$B$4),0)) -> Garden Shed | G11: =IF(ISNA(VLOOKUP($C11,StockMaster,COLUMN(StockCode!$G$4),0))=TRUE,"-",VLOOKUP($C11,StockMaster,COLUMN(StockCode!$G$4),0)) -> Manufactured | H11: FG | I11: 505 | J11: 5 | K11: =IF(ISNA(VLOOKUP($C11,StockMaster,COLUMN(StockCode!$I$4),0))=TRUE,0,VLOOKUP($C11,StockMaster,COLUMN(StockCode!$I$4),0)) -> 4164.719298 | L11: =IF(JSetup!$U$1="Single",IF(F11="Bought-In",0,IF(I11=0,0,-SUMIFS(JTValue,JTJob,$A11,JTFGCode,$C11,JTType,"Issue")/I11)),"n/a") -> 4313.25731 | M11: =IF($U$1="Multiple","n/a",IF(AND(JSetup!$U$1="Single",I11=0,G11="Manufactured"),0,IF(K11=0,0,(K11-L11)/K11))) -> -0.03566579187 | N11: 2103183.246 | O11: =IF($U11=1,SUMIFS(JSStd,JSJob,$A11),0) -> 2103183.246 | P11: =IF($U11=1,-SUMIFS(JTValue,JTJob,$A11,JTType,"Issue"),0) -> 2178194.942 | Q11: -75011.69591 | R11: 3.492459655e-10 | S11: =IF($U11=1,SUMIFS(JTPrice,JTJob,$A11,JTType,"Issue"),0) -> -75011.69591 | T11: 2020-07-15 | U11: =IF(ISBLANK(A11)=TRUE,"-",IF(COUNTIF(JSJob,$A11)>1,IF(COUNTIF(OFFSET($A11,ROW($A$4)-ROW($A11),0,ROW($A11)-ROW($A$4),1),$A11)>0,0,1),COUNTIF(JSJob,$A11))) -> 1

Sheet JDetails (hidden)
A1: Jobs
A2: Job Costing Transactions
A3: © www.excel-skills.com | N3: =SUBTOTAL(109,JTValue) -> -4576.788786 | O3: =SUBTOTAL(109,JTPrice) -> -80211.69591
A4: Job No | B4: Type | C4: Stock Code | D4: Quantity | E4: Cost PU | F4: Override? | G4: Job Link | H4: Error Code | I4: Description | J4: Product Type | K4: UOM | L4: STD Cost | M4: Unit Price | N4: TrnValue | O4: Price Var | P4: Job Date | Q4: JobLink Cost | R4: Avg Actual | S4: FG Code
A5: J00001 | B5: Receipt | C5: 1212GHG | D5: 105 | H5: =IF(AND(ISBLANK(C5)=FALSE,ISNA(MATCH(C5,StockCodes,0))=TRUE)=TRUE,"E3",IF(AND(J5<>"-",J5<>"Manufactured",B5="Receipt"),"E7",IF(AND(ISBLANK(A5)=FALSE,ISNA(MATCH(A5,JSJob,0))=TRUE),"E8",IF(AND(ISBLANK(A5)=FALSE,B5<>"Receipt",B5<>"Issue"),"E9",IF(AND(ISBLANK(G5)=FALSE,ISNA(MATCH(G5,JSJob,0))=TRUE),"E10",IF(AND(ISBLANK(C5)=FALSE,SUMPRODUCT((JSJob=A5)*(JSCode=C5)*(1))<>1,B5="Receipt"),"E11","-")))))) -> - | I5: =IF(ISNA(VLOOKUP($C5,StockMaster,COLUMN(StockCode!$B$4),0))=TRUE,"-",VLOOKUP($C5,StockMaster,COLUMN(StockCode!$B$4),0)) -> Garden Shed | J5: =IF(ISNA(VLOOKUP($C5,StockMaster,COLUMN(StockCode!$G$4),0))=TRUE,"-",VLOOKUP($C5,StockMaster,COLUMN(StockCode!$G$4),0)) -> Manufactured | K5: =IF(ISNA(VLOOKUP($C5,StockMaster,COLUMN(StockCode!$C$4),0))=TRUE,"-",VLOOKUP($C5,StockMaster,COLUMN(StockCode!$C$4),0)) -> Units | L5: =IF(ISNA(VLOOKUP($C5,StockMaster,COLUMN(StockCode!$I$4),0))=TRUE,0,VLOOKUP($C5,StockMaster,COLUMN(StockCode!$I$4),0)) -> 4164.719298 | M5: =IF(B5="Receipt",L5,IF(J5="Manufactured",IF(Q5<>0,Q5,IF(R5<>0,R5,L5)),IF(F5="Yes",E5,L5))) -> 4164.719298 | N5: =D5*M5 -> 437295.5263 | O5: =-(L5-M5)*D5 -> 0 | P5: =IF(ISNA(VLOOKUP($A5,JSetup[],COLUMN(JSetup!$T$4),0))=TRUE,"-",VLOOKUP($A5,JSetup[],COLUMN(JSetup!$T$4),0)) -> 2020-07-03 | Q5: =IF(ISNA(VLOOKUP(G5,JSetup[],COLUMN(JSetup!$L$4),0))=TRUE,0,IF(ISNUMBER(VLOOKUP(G5,JSetup[],COLUMN(JSetup!$L$4),0))=FALSE,0,IF(VLOOKUP(G5,JSetup[],COLUMN(JSetup!$C$4),0)<>C5,0,VLOOKUP(G5,JSetup[],COLUMN(JSetup!$L$4),0)))) -> 0 | R5: =IF(J5="Bought-In",0,IF(B5="Receipt",0,IF(ISNA(VLOOKUP(C5,StockMaster,COLUMN(StockCode!$AA$4),0))=TRUE,0,VLOOKUP(C5,StockMaster,COLUMN(StockCode!$AA$4),0)))) -> 0 | S5: =IF(JSetup!$U$1="Single",IF(ISNA(VLOOKUP($A5,JSetup[],COLUMN(JSetup!$C$4),0))=TRUE,"-",VLOOKUP($A5,JSetup[],COLUMN(JSetup!$C$4),0)),"-") -> 1212GHG
A6: J00001 | B6: Issue | C6: RM30 | D6: -1500 | E6: 100 | F6: Yes | H6: - | I6: =IF(ISNA(VLOOKUP($C6,StockMaster,COLUMN(StockCode!$B$4),0))=TRUE,"-",VLOOKUP($C6,StockMaster,COLUMN(StockCode!$B$4),0)) -> Wood | J6: =IF(ISNA(VLOOKUP($C6,StockMaster,COLUMN(StockCode!$G$4),0))=TRUE,"-",VLOOKUP($C6,StockMaster,COLUMN(StockCode!$G$4),0)) -> Bought-In | K6: =IF(ISNA(VLOOKUP($C6,StockMaster,COLUMN(StockCode!$C$4),0))=TRUE,"-",VLOOKUP($C6,StockMaster,COLUMN(StockCode!$C$4),0)) -> M2 | L6: =IF(ISNA(VLOOKUP($C6,StockMaster,COLUMN(StockCode!$I$4),0))=TRUE,0,VLOOKUP($C6,StockMaster,COLUMN(StockCode!$I$4),0)) -> 120 | M6: =IF(B6="Receipt",L6,IF(J6="Manufactured",IF(Q6<>0,Q6,IF(R6<>0,R6,L6)),IF(F6="Yes",E6,L6))) -> 100 | N6: =D6*M6 -> -150000 | O6: =-(L6-M6)*D6 -> 30000 | P6: =IF(ISNA(VLOOKUP($A6,JSetup[],COLUMN(JSetup!$T$4),0))=TRUE,"-",VLOOKUP($A6,JSetup[],COLUMN(JSetup!$T$4),0)) -> 2020-07-03 | Q6: =IF(ISNA(VLOOKUP(G6,JSetup[],COLUMN(JSetup!$L$4),0))=TRUE,0,IF(ISNUMBER(VLOOKUP(G6,JSetup[],COLUMN(JSetup!$L$4),0))=FALSE,0,IF(VLOOKUP(G6,JSetup[],COLUMN(JSetup!$C$4),0)<>C6,0,VLOOKUP(G6,JSetup[],COLUMN(JSetup!$L$4),0)))) -> 0 | R6: =IF(J6="Bought-In",0,IF(B6="Receipt",0,IF(ISNA(VLOOKUP(C6,StockMaster,COLUMN(StockCode!$AA$4),0))=TRUE,0,VLOOKUP(C6,StockMaster,COLUMN(StockCode!$AA$4),0)))) -> 0 | S6: =IF(JSetup!$U$1="Single",IF(ISNA(VLOOKUP($A6,JSetup[],COLUMN(JSetup!$C$4),0))=TRUE,"-",VLOOKUP($A6,JSetup[],COLUMN(JSetup!$C$4),0)),"-") -> 1212GHG
A7: J00001 | B7: Issue | C7: RM55 | D7: -350 | H7: - | I7: =IF(ISNA(VLOOKUP($C7,StockMaster,COLUMN(StockCode!$B$4),0))=TRUE,"-",VLOOKUP($C7,StockMaster,COLUMN(StockCode!$B$4),0)) -> 2 Inch Screws | J7: =IF(ISNA(VLOOKUP($C7,StockMaster,COLUMN(StockCode!$G$4),0))=TRUE,"-",VLOOKUP($C7,StockMaster,COLUMN(StockCode!$G$4),0)) -> Bought-In | K7: =IF(ISNA(VLOOKUP($C7,StockMaster,COLUMN(StockCode!$C$4),0))=TRUE,"-",VLOOKUP($C7,StockMaster,COLUMN(StockCode!$C$4),0)) -> Bag | L7: =IF(ISNA(VLOOKUP($C7,StockMaster,COLUMN(StockCode!$I$4),0))=TRUE,0,VLOOKUP($C7,StockMaster,COLUMN(StockCode!$I$4),0)) -> 50 | M7: 50 | N7: -17500 | O7: 0 | P7: =IF(ISNA(VLOOKUP($A7,JSetup[],COLUMN(JSetup!$T$4),0))=TRUE,"-",VLOOKUP($A7,JSetup[],COLUMN(JSetup!$T$4),0)) -> 2020-07-03 | Q7: =IF(ISNA(VLOOKUP(G7,JSetup[],COLUMN(JSetup!$L$4),0))=TRUE,0,IF(ISNUMBER(VLOOKUP(G7,JSetup[],COLUMN(JSetup!$L$4),0))=FALSE,0,IF(VLOOKUP(G7,JSetup[],COLUMN(JSetup!$C$4),0)<>C7,0,VLOOKUP(G7,JSetup[],COLUMN(JSetup!$L$4),0)))) -> 0 | R7: =IF(J7="Bought-In",0,IF(B7="Receipt",0,IF(ISNA(VLOOKUP(C7,StockMaster,COLUMN(StockCode!$AA$4),0))=TRUE,0,VLOOKUP(C7,StockMaster,COLUMN(StockCode!$AA$4),0)))) -> 0 | S7: =IF(JSetup!$U$1="Single",IF(ISNA(VLOOKUP($A7,JSetup[],COLUMN(JSetup!$C$4),0))=TRUE,"-",VLOOKUP($A7,JSetup[],COLUMN(JSetup!$C$4),0)),"-") -> 1212GHG
A8: J00001 | B8: Issue | C8: RM10 | D8: -1200 | H8: - | I8: =IF(ISNA(VLOOKUP($C8,StockMaster,COLUMN(StockCode!$B$4),0))=TRUE,"-",VLOOKUP($C8,StockMaster,COLUMN(StockCode!$B$4),0)) -> Steel Plates | J8: =IF(ISNA(VLOOKUP($C8,StockMaster,COLUMN(StockCode!$G$4),0))=TRUE,"-",VLOOKUP($C8,StockMaster,COLUMN(StockCode!$G$4),0)) -> Bought-In | K8: =IF(ISNA(VLOOKUP($C8,StockMaster,COLUMN(StockCode!$C$4),0))=TRUE,"-",VLOOKUP($C8,StockMaster,COLUMN(StockCode!$C$4),0)) -> M2 | L8: =IF(ISNA(VLOOKUP($C8,StockMaster,COLUMN(StockCode!$I$4),0))=TRUE,0,VLOOKUP($C8,StockMaster,COLUMN(StockCode!$I$4),0)) -> 140 | M8: 140 | N8: -168000 | O8: 0 | P8: =IF(ISNA(VLOOKUP($A8,JSetup[],COLUMN(JSetup!$T$4),0))=TRUE,"-",VLOOKUP($A8,JSetup[],COLUMN(JSetup!$T$4),0)) -> 2020-07-03 | Q8: =IF(ISNA(VLOOKUP(G8,JSetup[],COLUMN(JSetup!$L$4),0))=TRUE,0,IF(ISNUMBER(VLOOKUP(G8,JSetup[],COLUMN(JSetup!$L$4),0))=FALSE,0,IF(VLOOKUP(G8,JSetup[],COLUMN(JSetup!$C$4),0)<>C8,0,VLOOKUP(G8,JSetup[],COLUMN(JSetup!$L$4),0)))) -> 0 | R8: =IF(J8="Bought-In",0,IF(B8="Receipt",0,IF(ISNA(VLOOKUP(C8,StockMaster,COLUMN(StockCode!$AA$4),0))=TRUE,0,VLOOKUP(C8,StockMaster,COLUMN(StockCode!$AA$4),0)))) -> 0 | S8: =IF(JSetup!$U$1="Single",IF(ISNA(VLOOKUP($A8,JSetup[],COLUMN(JSetup!$C$4),0))=TRUE,"-",VLOOKUP($A8,JSetup[],COLUMN(JSetup!$C$4),0)),"-") -> 1212GHG
A9: J00001 | B9: Issue | C9: RM25 | D9: -107 | H9: - | I9: =IF(ISNA(VLOOKUP($C9,StockMaster,COLUMN(StockCode!$B$4),0))=TRUE,"-",VLOOKUP($C9,StockMaster,COLUMN(StockCode!$B$4),0)) -> Door Handle | J9: =IF(ISNA(VLOOKUP($C9,StockMaster,COLUMN(StockCode!$G$4),0))=TRUE,"-",VLOOKUP($C9,StockMaster,COLUMN(StockCode!$G$4),0)) -> Bought-In | K9: =IF(ISNA(VLOOKUP($C9,StockMaster,COLUMN(StockCode!$C$4),0))=TRUE,"-",VLOOKUP($C9,StockMaster,COLUMN(StockCode!$C$4),0)) -> Units | L9: =IF(ISNA(VLOOKUP($C9,StockMaster,COLUMN(StockCode!$I$4),0))=TRUE,0,VLOOKUP($C9,StockMaster,COLUMN(StockCode!$I$4),0)) -> 150 | M9: 150 | N9: -16050 | O9: 0 | P9: =IF(ISNA(VLOOKUP($A9,JSetup[],COLUMN(JSetup!$T$4),0))=TRUE,"-",VLOOKUP($A9,JSetup[],COLUMN(JSetup!$T$4),0)) -> 2020-07-03 | Q9: =IF(ISNA(VLOOKUP(G9,JSetup[],COLUMN(JSetup!$L$4),0))=TRUE,0,IF(ISNUMBER(VLOOKUP(G9,JSetup[],COLUMN(JSetup!$L$4),0))=FALSE,0,IF(VLOOKUP(G9,JSetup[],COLUMN(JSetup!$C$4),0)<>C9,0,VLOOKUP(G9,JSetup[],COLUMN(JSetup!$L$4),0)))) -> 0 | R9: =IF(J9="Bought-In",0,IF(B9="Receipt",0,IF(ISNA(VLOOKUP(C9,StockMaster,COLUMN(StockCode!$AA$4),0))=TRUE,0,VLOOKUP(C9,StockMaster,COLUMN(StockCode!$AA$4),0)))) -> 0 | S9: =IF(JSetup!$U$1="Single",IF(ISNA(VLOOKUP($A9,JSetup[],COLUMN(JSetup!$C$4),0))=TRUE,"-",VLOOKUP($A9,JSetup[],COLUMN(JSetup!$C$4),0)),"-") -> 1212GHG
A10: J00001 | B10: Issue | C10: RM50 | D10: -12 | H10: - | I10: =IF(ISNA(VLOOKUP($C10,StockMaster,COLUMN(StockCode!$B$4),0))=TRUE,"-",VLOOKUP($C10,StockMaster,COLUMN(StockCode!$B$4),0)) -> 1 Inch Screws | J10: =IF(ISNA(VLOOKUP($C10,StockMaster,COLUMN(StockCode!$G$4),0))=TRUE,"-",VLOOKUP($C10,StockMaster,COLUMN(StockCode!$G$4),0)) -> Bought-In | K10: =IF(ISNA(VLOOKUP($C10,StockMaster,COLUMN(StockCode!$C$4),0))=TRUE,"-",VLOOKUP($C10,StockMaster,COLUMN(StockCode!$C$4),0)) -> Bag | L10: =IF(ISNA(VLOOKUP($C10,StockMaster,COLUMN(StockCode!$I$4),0))=TRUE,0,VLOOKUP($C10,StockMaster,COLUMN(StockCode!$I$4),0)) -> 30 | M10: =IF(B10="Receipt",L10,IF(J10="Manufactured",IF(Q10<>0,Q10,IF(R10<>0,R10,L10)),IF(F10="Yes",E10,L10))) -> 30 | N10: =D10*M10 -> -360 | O10: =-(L10-M10)*D10 -> 0 | P10: =IF(ISNA(VLOOKUP($A10,JSetup[],COLUMN(JSetup!$T$4),0))=TRUE,"-",VLOOKUP($A10,JSetup[],COLUMN(JSetup!$T$4),0)) -> 2020-07-03 | Q10: =IF(ISNA(VLOOKUP(G10,JSetup[],COLUMN(JSetup!$L$4),0))=TRUE,0,IF(ISNUMBER(VLOOKUP(G10,JSetup[],COLUMN(JSetup!$L$4),0))=FALSE,0,IF(VLOOKUP(G10,JSetup[],COLUMN(JSetup!$C$4),0)<>C10,0,VLOOKUP(G10,JSetup[],COLUMN(JSetup!$L$4),0)))) -> 0 | R10: =IF(J10="Bought-In",0,IF(B10="Receipt",0,IF(ISNA(VLOOKUP(C10,StockMaster,COLUMN(StockCode!$AA$4),0))=TRUE,0,VLOOKUP(C10,StockMaster,COLUMN(StockCode!$AA$4),0)))) -> 0 | S10: =IF(JSetup!$U$1="Single",IF(ISNA(VLOOKUP($A10,JSetup[],COLUMN(JSetup!$C$4),0))=TRUE,"-",VLOOKUP($A10,JSetup[],COLUMN(JSetup!$C$4),0)),"-") -> 1212GHG
A11: J00001 | B11: Issue | C11: RM60 | D11: -250 | E11: 100 | F11: Yes | H11: - | I11: =IF(ISNA(VLOOKUP($C11,StockMaster,COLUMN(StockCode!$B$4),0))=TRUE,"-",VLOOKUP($C11,StockMaster,COLUMN(StockCode!$B$4),0)) -> Glass | J11: =IF(ISNA(VLOOKUP($C11,StockMaster,COLUMN(StockCode!$G$4),0))=TRUE,"-",VLOOKUP($C11,StockMaster,COLUMN(StockCode!$G$4),0)) -> Bought-In | K11: =IF(ISNA(VLOOKUP($C11,StockMaster,COLUMN(StockCode!$C$4),0))=TRUE,"-",VLOOKUP($C11,StockMaster,COLUMN(StockCode!$C$4),0)) -> M2 | L11: =IF(ISNA(VLOOKUP($C11,StockMaster,COLUMN(StockCode!$I$4),0))=TRUE,0,VLOOKUP($C11,StockMaster,COLUMN(StockCode!$I$4),0)) -> 80 | M11: =IF(B11="Receipt",L11,IF(J11="Manufactured",IF(Q11<>0,Q11,IF(R11<>0,R11,L11)),IF(F11="Yes",E11,L11))) -> 100 | N11: =D11*M11 -> -25000 | O11: =-(L11-M11)*D11 -> -5000 | P11: =IF(ISNA(VLOOKUP($A11,JSetup[],COLUMN(JSetup!$T$4),0))=TRUE,"-",VLOOKUP($A11,JSetup[],COLUMN(JSetup!$T$4),0)) -> 2020-07-03 | Q11: =IF(ISNA(VLOOKUP(G11,JSetup[],COLUMN(JSetup!$L$4),0))=TRUE,0,IF(ISNUMBER(VLOOKUP(G11,JSetup[],COLUMN(JSetup!$L$4),0))=FALSE,0,IF(VLOOKUP(G11,JSetup[],COLUMN(JSetup!$C$4),0)<>C11,0,VLOOKUP(G11,JSetup[],COLUMN(JSetup!$L$4),0)))) -> 0 | R11: =IF(J11="Bought-In",0,IF(B11="Receipt",0,IF(ISNA(VLOOKUP(C11,StockMaster,COLUMN(StockCode!$AA$4),0))=TRUE,0,VLOOKUP(C11,StockMaster,COLUMN(StockCode!$AA$4),0)))) -> 0 | S11: =IF(JSetup!$U$1="Single",IF(ISNA(VLOOKUP($A11,JSetup[],COLUMN(JSetup!$C$4),0))=TRUE,"-",VLOOKUP($A11,JSetup[],COLUMN(JSetup!$C$4),0)),"-") -> 1212GHG
A12: J00001 | B12: Issue | C12: RM70 | D12: -120 | H12: - | I12: =IF(ISNA(VLOOKUP($C12,StockMaster,COLUMN(StockCode!$B$4),0))=TRUE,"-",VLOOKUP($C12,StockMaster,COLUMN(StockCode!$B$4),0)) -> Filler | J12: =IF(ISNA(VLOOKUP($C12,StockMaster,COLUMN(StockCode!$G$4),0))=TRUE,"-",VLOOKUP($C12,StockMaster,COLUMN(StockCode!$G$4),0)) -> Bought-In | K12: =IF(ISNA(VLOOKUP($C12,StockMaster,COLUMN(StockCode!$C$4),0))=TRUE,"-",VLOOKUP($C12,StockMaster,COLUMN(StockCode!$C$4),0)) -> Bag | L12: =IF(ISNA(VLOOKUP($C12,StockMaster,COLUMN(StockCode!$I$4),0))=TRUE,0,VLOOKUP($C12,StockMaster,COLUMN(StockCode!$I$4),0)) -> 60 | M12: =IF(B12="Receipt",L12,IF(J12="Manufactured",IF(Q12<>0,Q12,IF(R12<>0,R12,L12)),IF(F12="Yes",E12,L12))) -> 60 | N12: =D12*M12 -> -7200 | O12: =-(L12-M12)*D12 -> 0 | P12: =IF(ISNA(VLOOKUP($A12,JSetup[],COLUMN(JSetup!$T$4),0))=TRUE,"-",VLOOKUP($A12,JSetup[],COLUMN(JSetup!$T$4),0)) -> 2020-07-03 | Q12: =IF(ISNA(VLOOKUP(G12,JSetup[],COLUMN(JSetup!$L$4),0))=TRUE,0,IF(ISNUMBER(VLOOKUP(G12,JSetup[],COLUMN(JSetup!$L$4),0))=FALSE,0,IF(VLOOKUP(G12,JSetup[],COLUMN(JSetup!$C$4),0)<>C12,0,VLOOKUP(G12,JSetup[],COLUMN(JSetup!$L$4),0)))) -> 0 | R12: =IF(J12="Bought-In",0,IF(B12="Receipt",0,IF(ISNA(VLOOKUP(C12,StockMaster,COLUMN(StockCode!$AA$4),0))=TRUE,0,VLOOKUP(C12,StockMaster,COLUMN(StockCode!$AA$4),0)))) -> 0 | S12: =IF(JSetup!$U$1="Single",IF(ISNA(VLOOKUP($A12,JSetup[],COLUMN(JSetup!$C$4),0))=TRUE,"-",VLOOKUP($A12,JSetup[],COLUMN(JSetup!$C$4),0)),"-") -> 1212GHG
A13: J00001 | B13: Issue | C13: RM75 | D13: -200 | H13: - | I13: =IF(ISNA(VLOOKUP($C13,StockMaster,COLUMN(StockCode!$B$4),0))=TRUE,"-",VLOOKUP($C13,StockMaster,COLUMN(StockCode!$B$4),0)) -> Swivel | J13: =IF(ISNA(VLOOKUP($C13,StockMaster,COLUMN(StockCode!$G$4),0))=TRUE,"-",VLOOKUP($C13,StockMaster,COLUMN(StockCode!$G$4),0)) -> Bought-In | K13: =IF(ISNA(VLOOKUP($C13,StockMaster,COLUMN(StockCode!$C$4),0))=TRUE,"-",VLOOKUP($C13,StockMaster,COLUMN(StockCode!$C$4),0)) -> Units | L13: =IF(ISNA(VLOOKUP($C13,StockMaster,COLUMN(StockCode!$I$4),0))=TRUE,0,VLOOKUP($C13,StockMaster,COLUMN(StockCode!$I$4),0)) -> 3.5 | M13: 3.5 | N13: -700 | O13: 0 | P13: =IF(ISNA(VLOOKUP($A13,JSetup[],COLUMN(JSetup!$T$4),0))=TRUE,"-",VLOOKUP($A13,JSetup[],COLUMN(JSetup!$T$4),0)) -> 2020-07-03 | Q13: =IF(ISNA(VLOOKUP(G13,JSetup[],COLUMN(JSetup!$L$4),0))=TRUE,0,IF(ISNUMBER(VLOOKUP(G13,JSetup[],COLUMN(JSetup!$L$4),0))=FALSE,0,IF(VLOOKUP(G13,JSetup[],COLUMN(JSetup!$C$4),0)<>C13,0,VLOOKUP(G13,JSetup[],COLUMN(JSetup!$L$4),0)))) -> 0 | R13: =IF(J13="Bought-In",0,IF(B13="Receipt",0,IF(ISNA(VLOOKUP(C13,StockMaster,COLUMN(StockCode!$AA$4),0))=TRUE,0,VLOOKUP(C13,StockMaster,COLUMN(StockCode!$AA$4),0)))) -> 0 | S13: =IF(JSetup!$U$1="Single",IF(ISNA(VLOOKUP($A13,JSetup[],COLUMN(JSetup!$C$4),0))=TRUE,"-",VLOOKUP($A13,JSetup[],COLUMN(JSetup!$C$4),0)),"-") -> 1212GHG
A14: J00001 | B14: Issue | C14: LB10 | D14: -300 | H14: - | I14: =IF(ISNA(VLOOKUP($C14,StockMaster,COLUMN(StockCode!$B$4),0))=TRUE,"-",VLOOKUP($C14,StockMaster,COLUMN(StockCode!$B$4),0)) -> Labour - Grade 1 | J14: =IF(ISNA(VLOOKUP($C14,StockMaster,COLUMN(StockCode!$G$4),0))=TRUE,"-",VLOOKUP($C14,StockMaster,COLUMN(StockCode!$G$4),0)) -> Bought-In | K14: =IF(ISNA(VLOOKUP($C14,StockMaster,COLUMN(StockCode!$C$4),0))=TRUE,"-",VLOOKUP($C14,StockMaster,COLUMN(StockCode!$C$4),0)) -> Hours | L14: =IF(ISNA(VLOOKUP($C14,StockMaster,COLUMN(StockCode!$I$4),0))=TRUE,0,VLOOKUP($C14,StockMaster,COLUMN(StockCode!$I$4),0)) -> 20 | M14: 20 | N14: -6000 | O14: 0 | P14: =IF(ISNA(VLOOKUP($A14,JSetup[],COLUMN(JSetup!$T$4),0))=TRUE,"-",VLOOKUP($A14,JSetup[],COLUMN(JSetup!$T$4),0)) -> 2020-07-03 | Q14: =IF(ISNA(VLOOKUP(G14,JSetup[],COLUMN(JSetup!$L$4),0))=TRUE,0,IF(ISNUMBER(VLOOKUP(G14,JSetup[],COLUMN(JSetup!$L$4),0))=FALSE,0,IF(VLOOKUP(G14,JSetup[],COLUMN(JSetup!$C$4),0)<>C14,0,VLOOKUP(G14,JSetup[],COLUMN(JSetup!$L$4),0)))) -> 0 | R14: =IF(J14="Bought-In",0,IF(B14="Receipt",0,IF(ISNA(VLOOKUP(C14,StockMaster,COLUMN(StockCode!$AA$4),0))=TRUE,0,VLOOKUP(C14,StockMaster,COLUMN(StockCode!$AA$4),0)))) -> 0 | S14: =IF(JSetup!$U$1="Single",IF(ISNA(VLOOKUP($A14,JSetup[],COLUMN(JSetup!$C$4),0))=TRUE,"-",VLOOKUP($A14,JSetup[],COLUMN(JSetup!$C$4),0)),"-") -> 1212GHG
A15: J00001 | B15: Issue | C15: LB15 | D15: -90 | H15: - | I15: =IF(ISNA(VLOOKUP($C15,StockMaster,COLUMN(StockCode!$B$4),0))=TRUE,"-",VLOOKUP($C15,StockMaster,COLUMN(StockCode!$B$4),0)) -> Labour - Grade 2 | J15: =IF(ISNA(VLOOKUP($C15,StockMaster,COLUMN(StockCode!$G$4),0))=TRUE,"-",VLOOKUP($C15,StockMaster,COLUMN(StockCode!$G$4),0)) -> Bought-In | K15: =IF(ISNA(VLOOKUP($C15,StockMaster,COLUMN(StockCode!$C$4),0))=TRUE,"-",VLOOKUP($C15,StockMaster,COLUMN(StockCode!$C$4),0)) -> Hours | L15: =IF(ISNA(VLOOKUP($C15,StockMaster,COLUMN(StockCode!$I$4),0))=TRUE,0,VLOOKUP($C15,StockMaster,COLUMN(StockCode!$I$4),0)) -> 30 | M15: 30 | N15: -2700 | O15: 0 | P15: =IF(ISNA(VLOOKUP($A15,JSetup[],COLUMN(JSetup!$T$4),0))=TRUE,"-",VLOOKUP($A15,JSetup[],COLUMN(JSetup!$T$4),0)) -> 2020-07-03 | Q15: =IF(ISNA(VLOOKUP(G15,JSetup[],COLUMN(JSetup!$L$4),0))=TRUE,0,IF(ISNUMBER(VLOOKUP(G15,JSetup[],COLUMN(JSetup!$L$4),0))=FALSE,0,IF(VLOOKUP(G15,JSetup[],COLUMN(JSetup!$C$4),0)<>C15,0,VLOOKUP(G15,JSetup[],COLUMN(JSetup!$L$4),0)))) -> 0 | R15: =IF(J15="Bought-In",0,IF(B15="Receipt",0,IF(ISNA(VLOOKUP(C15,StockMaster,COLUMN(StockCode!$AA$4),0))=TRUE,0,VLOOKUP(C15,StockMaster,COLUMN(StockCode!$AA$4),0)))) -> 0 | S15: =IF(JSetup!$U$1="Single",IF(ISNA(VLOOKUP($A15,JSetup[],COLUMN(JSetup!$C$4),0))=TRUE,"-",VLOOKUP($A15,JSetup[],COLUMN(JSetup!$C$4),0)),"-") -> 1212GHG
A16: J00002 | B16: Receipt | C16: 1212PHP | D16: 52 | H16: - | I16: =IF(ISNA(VLOOKUP($C16,StockMaster,COLUMN(StockCode!$B$4),0))=TRUE,"-",VLOOKUP($C16,StockMaster,COLUMN(StockCode!$B$4),0)) -> Painted Garden Shed | J16: =IF(ISNA(VLOOKUP($C16,StockMaster,COLUMN(StockCode!$G$4),0))=TRUE,"-",VLOOKUP($C16,StockMaster,COLUMN(StockCode!$G$4),0)) -> Manufactured | K16: =IF(ISNA(VLOOKUP($C16,StockMaster,COLUMN(StockCode!$C$4),0))=TRUE,"-",VLOOKUP($C16,StockMaster,COLUMN(StockCode!$C$4),0)) -> Units | L16: =IF(ISNA(VLOOKUP($C16,StockMaster,COLUMN(StockCode!$I$4),0))=TRUE,0,VLOOKUP($C16,StockMaster,COLUMN(StockCode!$I$4),0)) -> 4956.393189 | M16: 4956.393189 | N16: 257732.4458 | O16: 0 | P16: =IF(ISNA(VLOOKUP($A16,JSetup[],COLUMN(JSetup!$T$4),0))=TRUE,"-",VLOOKUP($A16,JSetup[],COLUMN(JSetup!$T$4),0)) -> 2020-07-04 | Q16: =IF(ISNA(VLOOKUP(G16,JSetup[],COLUMN(JSetup!$L$4),0))=TRUE,0,IF(ISNUMBER(VLOOKUP(G16,JSetup[],COLUMN(JSetup!$L$4),0))=FALSE,0,IF(VLOOKUP(G16,JSetup[],COLUMN(JSetup!$C$4),0)<>C16,0,VLOOKUP(G16,JSetup[],COLUMN(JSetup!$L$4),0)))) -> 0 | R16: =IF(J16="Bought-In",0,IF(B16="Receipt",0,IF(ISNA(VLOOKUP(C16,StockMaster,COLUMN(StockCode!$AA$4),0))=TRUE,0,VLOOKUP(C16,StockMaster,COLUMN(StockCode!$AA$4),0)))) -> 0 | S16: =IF(JSetup!$U$1="Single",IF(ISNA(VLOOKUP($A16,JSetup[],COLUMN(JSetup!$C$4),0))=TRUE,"-",VLOOKUP($A16,JSetup[],COLUMN(JSetup!$C$4),0)),"-") -> 1212PHP
A17: J00002 | B17: Issue | C17: RM30 | D17: -750 | E17: 110 | F17: Yes | H17: - | I17: =IF(ISNA(VLOOKUP($C17,StockMaster,COLUMN(StockCode!$B$4),0))=TRUE,"-",VLOOKUP($C17,StockMaster,COLUMN(StockCode!$B$4),0)) -> Wood | J17: =IF(ISNA(VLOOKUP($C17,StockMaster,COLUMN(StockCode!$G$4),0))=TRUE,"-",VLOOKUP($C17,StockMaster,COLUMN(StockCode!$G$4),0)) -> Bought-In | K17: =IF(ISNA(VLOOKUP($C17,StockMaster,COLUMN(StockCode!$C$4),0))=TRUE,"-",VLOOKUP($C17,StockMaster,COLUMN(StockCode!$C$4),0)) -> M2 | L17: =IF(ISNA(VLOOKUP($C17,StockMaster,COLUMN(StockCode!$I$4),0))=TRUE,0,VLOOKUP($C17,StockMaster,COLUMN(StockCode!$I$4),0)) -> 120 | M17: 110 | N17: -82500 | O17: 7500 | P17: =IF(ISNA(VLOOKUP($A17,JSetup[],COLUMN(JSetup!$T$4),0))=TRUE,"-",VLOOKUP($A17,JSetup[],COLUMN(JSetup!$T$4),0)) -> 2020-07-04 | Q17: =IF(ISNA(VLOOKUP(G17,JSetup[],COLUMN(JSetup!$L$4),0))=TRUE,0,IF(ISNUMBER(VLOOKUP(G17,JSetup[],COLUMN(JSetup!$L$4),0))=FALSE,0,IF(VLOOKUP(G17,JSetup[],COLUMN(JSetup!$C$4),0)<>C17,0,VLOOKUP(G17,JSetup[],COLUMN(JSetup!$L$4),0)))) -> 0 | R17: =IF(J17="Bought-In",0,IF(B17="Receipt",0,IF(ISNA(VLOOKUP(C17,StockMaster,COLUMN(StockCode!$AA$4),0))=TRUE,0,VLOOKUP(C17,StockMaster,COLUMN(StockCode!$AA$4),0)))) -> 0 | S17: =IF(JSetup!$U$1="Single",IF(ISNA(VLOOKUP($A17,JSetup[],COLUMN(JSetup!$C$4),0))=TRUE,"-",VLOOKUP($A17,JSetup[],COLUMN(JSetup!$C$4),0)),"-") -> 1212PHP
A18: J00002 | B18: Issue | C18: RM55 | D18: -170 | H18: - | I18: =IF(ISNA(VLOOKUP($C18,StockMaster,COLUMN(StockCode!$B$4),0))=TRUE,"-",VLOOKUP($C18,StockMaster,COLUMN(StockCode!$B$4),0)) -> 2 Inch Screws | J18: =IF(ISNA(VLOOKUP($C18,StockMaster,COLUMN(StockCode!$G$4),0))=TRUE,"-",VLOOKUP($C18,StockMaster,COLUMN(StockCode!$G$4),0)) -> Bought-In | K18: =IF(ISNA(VLOOKUP($C18,StockMaster,COLUMN(StockCode!$C$4),0))=TRUE,"-",VLOOKUP($C18,StockMaster,COLUMN(StockCode!$C$4),0)) -> Bag | L18: =IF(ISNA(VLOOKUP($C18,StockMaster,COLUMN(StockCode!$I$4),0))=TRUE,0,VLOOKUP($C18,StockMaster,COLUMN(StockCode!$I$4),0)) -> 50 | M18: 50 | N18: -8500 | O18: 0 | P18: =IF(ISNA(VLOOKUP($A18,JSetup[],COLUMN(JSetup!$T$4),0))=TRUE,"-",VLOOKUP($A18,JSetup[],COLUMN(JSetup!$T$4),0)) -> 2020-07-04 | Q18: =IF(ISNA(VLOOKUP(G18,JSetup[],COLUMN(JSetup!$L$4),0))=TRUE,0,IF(ISNUMBER(VLOOKUP(G18,JSetup[],COLUMN(JSetup!$L$4),0))=FALSE,0,IF(VLOOKUP(G18,JSetup[],COLUMN(JSetup!$C$4),0)<>C18,0,VLOOKUP(G18,JSetup[],COLUMN(JSetup!$L$4),0)))) -> 0 | R18: =IF(J18="Bought-In",0,IF(B18="Receipt",0,IF(ISNA(VLOOKUP(C18,StockMaster,COLUMN(StockCode!$AA$4),0))=TRUE,0,VLOOKUP(C18,StockMaster,COLUMN(StockCode!$AA$4),0)))) -> 0 | S18: =IF(JSetup!$U$1="Single",IF(ISNA(VLOOKUP($A18,JSetup[],COLUMN(JSetup!$C$4),0))=TRUE,"-",VLOOKUP($A18,JSetup[],COLUMN(JSetup!$C$4),0)),"-") -> 1212PHP
A19: J00002 | B19: Issue | C19: RM80 | D19: -110 | E19: 250 | F19: Yes | H19: - | I19: =IF(ISNA(VLOOKUP($C19,StockMaster,COLUMN(StockCode!$B$4),0))=TRUE,"-",VLOOKUP($C19,StockMaster,COLUMN(StockCode!$B$4),0)) -> Paint - White | J19: =IF(ISNA(VLOOKUP($C19,StockMaster,COLUMN(StockCode!$G$4),0))=TRUE,"-",VLOOKUP($C19,StockMaster,COLUMN(StockCode!$G$4),0)) -> Bought-In | K19: =IF(ISNA(VLOOKUP($C19,StockMaster,COLUMN(StockCode!$C$4),0))=TRUE,"-",VLOOKUP($C19,StockMaster,COLUMN(StockCode!$C$4),0)) -> Drum | L19: =IF(ISNA(VLOOKUP($C19,StockMaster,COLUMN(StockCode!$I$4),0))=TRUE,0,VLOOKUP($C19,StockMaster,COLUMN(StockCode!$I$4),0)) -> 220 | M19: 250 | N19: -27500 | O19: -3300 | P19: =IF(ISNA(VLOOKUP($A19,JSetup[],COLUMN(JSetup!$T$4),0))=TRUE,"-",VLOOKUP($A19,JSetup[],COLUMN(JSetup!$T$4),0)) -> 2020-07-04 | Q19: =IF(ISNA(VLOOKUP(G19,JSetup[],COLUMN(JSetup!$L$4),0))=TRUE,0,IF(ISNUMBER(VLOOKUP(G19,JSetup[],COLUMN(JSetup!$L$4),0))=FALSE,0,IF(VLOOKUP(G19,JSetup[],COLUMN(JSetup!$C$4),0)<>C19,0,VLOOKUP(G19,JSetup[],COLUMN(JSetup!$L$4),0)))) -> 0 | R19: =IF(J19="Bought-In",0,IF(B19="Receipt",0,IF(ISNA(VLOOKUP(C19,StockMaster,COLUMN(StockCode!$AA$4),0))=TRUE,0,VLOOKUP(C19,StockMaster,COLUMN(StockCode!$AA$4),0)))) -> 0 | S19: =IF(JSetup!$U$1="Single",IF(ISNA(VLOOKUP($A19,JSetup[],COLUMN(JSetup!$C$4),0))=TRUE,"-",VLOOKUP($A19,JSetup[],COLUMN(JSetup!$C$4),0)),"-") -> 1212PHP
A20: J00002 | B20: Issue | C20: RM85 | D20: -60 | E20: 260 | F20: Yes | H20: - | I20: =IF(ISNA(VLOOKUP($C20,StockMaster,COLUMN(StockCode!$B$4),0))=TRUE,"-",VLOOKUP($C20,StockMaster,COLUMN(StockCode!$B$4),0)) -> Paint - Green | J20: =IF(ISNA(VLOOKUP($C20,StockMaster,COLUMN(StockCode!$G$4),0))=TRUE,"-",VLOOKUP($C20,StockMaster,COLUMN(StockCode!$G$4),0)) -> Bought-In | K20: =IF(ISNA(VLOOKUP($C20,StockMaster,COLUMN(StockCode!$C$4),0))=TRUE,"-",VLOOKUP($C20,StockMaster,COLUMN(StockCode!$C$4),0)) -> Drum | L20: =IF(ISNA(VLOOKUP($C20,StockMaster,COLUMN(StockCode!$I$4),0))=TRUE,0,VLOOKUP($C20,StockMaster,COLUMN(StockCode!$I$4),0)) -> 240 | M20: 260 | N20: -15600 | O20: -1200 | P20: =IF(ISNA(VLOOKUP($A20,JSetup[],COLUMN(JSetup!$T$4),0))=TRUE,"-",VLOOKUP($A20,JSetup[],COLUMN(JSetup!$T$4),0)) -> 2020-07-04 | Q20: =IF(ISNA(VLOOKUP(G20,JSetup[],COLUMN(JSetup!$L$4),0))=TRUE,0,IF(ISNUMBER(VLOOKUP(G20,JSetup[],COLUMN(JSetup!$L$4),0))=FALSE,0,IF(VLOOKUP(G20,JSetup[],COLUMN(JSetup!$C$4),0)<>C20,0,VLOOKUP(G20,JSetup[],COLUMN(JSetup!$L$4),0)))) -> 0 | R20: =IF(J20="Bought-In",0,IF(B20="Receipt",0,IF(ISNA(VLOOKUP(C20,StockMaster,COLUMN(StockCode!$AA$4),0))=TRUE,0,VLOOKUP(C20,StockMaster,COLUMN(StockCode!$AA$4),0)))) -> 0 | S20: =IF(JSetup!$U$1="Single",IF(ISNA(VLOOKUP($A20,JSetup[],COLUMN(JSetup!$C$4),0))=TRUE,"-",VLOOKUP($A20,JSetup[],COLUMN(JSetup!$C$4),0)),"-") -> 1212PHP
A21: J00002 | B21: Issue | C21: RM10 | D21: -580 | H21: - | I21: =IF(ISNA(VLOOKUP($C21,StockMaster,COLUMN(StockCode!$B$4),0))=TRUE,"-",VLOOKUP($C21,StockMaster,COLUMN(StockCode!$B$4),0)) -> Steel Plates | J21: =IF(ISNA(VLOOKUP($C21,StockMaster,COLUMN(StockCode!$G$4),0))=TRUE,"-",VLOOKUP($C21,StockMaster,COLUMN(StockCode!$G$4),0)) -> Bought-In | K21: =IF(ISNA(VLOOKUP($C21,StockMaster,COLUMN(StockCode!$C$4),0))=TRUE,"-",VLOOKUP($C21,StockMaster,COLUMN(StockCode!$C$4),0)) -> M2 | L21: =IF(ISNA(VLOOKUP($C21,StockMaster,COLUMN(StockCode!$I$4),0))=TRUE,0,VLOOKUP($C21,StockMaster,COLUMN(StockCode!$I$4),0)) -> 140 | M21: 140 | N21: -81200 | O21: 0 | P21: =IF(ISNA(VLOOKUP($A21,JSetup[],COLUMN(JSetup!$T$4),0))=TRUE,"-",VLOOKUP($A21,JSetup[],COLUMN(JSetup!$T$4),0)) -> 2020-07-04 | Q21: =IF(ISNA(VLOOKUP(G21,JSetup[],COLUMN(JSetup!$L$4),0))=TRUE,0,IF(ISNUMBER(VLOOKUP(G21,JSetup[],COLUMN(JSetup!$L$4),0))=FALSE,0,IF(VLOOKUP(G21,JSetup[],COLUMN(JSetup!$C$4),0)<>C21,0,VLOOKUP(G21,JSetup[],COLUMN(JSetup!$L$4),0)))) -> 0 | R21: =IF(J21="Bought-In",0,IF(B21="Receipt",0,IF(ISNA(VLOOKUP(C21,StockMaster,COLUMN(StockCode!$AA$4),0))=TRUE,0,VLOOKUP(C21,StockMaster,COLUMN(StockCode!$AA$4),0)))) -> 0 | S21: =IF(JSetup!$U$1="Single",IF(ISNA(VLOOKUP($A21,JSetup[],COLUMN(JSetup!$C$4),0))=TRUE,"-",VLOOKUP($A21,JSetup[],COLUMN(JSetup!$C$4),0)),"-") -> 1212PHP
A22: J00002 | B22: Issue | C22: RM25 | D22: -48 | H22: - | I22: =IF(ISNA(VLOOKUP($C22,StockMaster,COLUMN(StockCode!$B$4),0))=TRUE,"-",VLOOKUP($C22,StockMaster,COLUMN(StockCode!$B$4),0)) -> Door Handle | J22: =IF(ISNA(VLOOKUP($C22,StockMaster,COLUMN(StockCode!$G$4),0))=TRUE,"-",VLOOKUP($C22,StockMaster,COLUMN(StockCode!$G$4),0)) -> Bought-In | K22: =IF(ISNA(VLOOKUP($C22,StockMaster,COLUMN(StockCode!$C$4),0))=TRUE,"-",VLOOKUP($C22,StockMaster,COLUMN(StockCode!$C$4),0)) -> Units | L22: =IF(ISNA(VLOOKUP($C22,StockMaster,COLUMN(StockCode!$I$4),0))=TRUE,0,VLOOKUP($C22,StockMaster,COLUMN(StockCode!$I$4),0)) -> 150 | M22: 150 | N22: -7200 | O22: 0 | P22: =IF(ISNA(VLOOKUP($A22,JSetup[],COLUMN(JSetup!$T$4),0))=TRUE,"-",VLOOKUP($A22,JSetup[],COLUMN(JSetup!$T$4),0)) -> 2020-07-04 | Q22: =IF(ISNA(VLOOKUP(G22,JSetup[],COLUMN(JSetup!$L$4),0))=TRUE,0,IF(ISNUMBER(VLOOKUP(G22,JSetup[],COLUMN(JSetup!$L$4),0))=FALSE,0,IF(VLOOKUP(G22,JSetup[],COLUMN(JSetup!$C$4),0)<>C22,0,VLOOKUP(G22,JSetup[],COLUMN(JSetup!$L$4),0)))) -> 0 | R22: =IF(J22="Bought-In",0,IF(B22="Receipt",0,IF(ISNA(VLOOKUP(C22,StockMaster,COLUMN(StockCode!$AA$4),0))=TRUE,0,VLOOKUP(C22,StockMaster,COLUMN(StockCode!$AA$4),0)))) -> 0 | S22: =IF(JSetup!$U$1="Single",IF(ISNA(VLOOKUP($A22,JSetup[],COLUMN(JSetup!$C$4),0))=TRUE,"-",VLOOKUP($A22,JSetup[],COLUMN(JSetup!$C$4),0)),"-") -> 1212PHP
A23: J00002 | B23: Issue | C23: RM50 | D23: -6 | H23: - | I23: =IF(ISNA(VLOOKUP($C23,StockMaster,COLUMN(StockCode!$B$4),0))=TRUE,"-",VLOOKUP($C23,StockMaster,COLUMN(StockCode!$B$4),0)) -> 1 Inch Screws | J23: =IF(ISNA(VLOOKUP($C23,StockMaster,COLUMN(StockCode!$G$4),0))=TRUE,"-",VLOOKUP($C23,StockMaster,COLUMN(StockCode!$G$4),0)) -> Bought-In | K23: =IF(ISNA(VLOOKUP($C23,StockMaster,COLUMN(StockCode!$C$4),0))=TRUE,"-",VLOOKUP($C23,StockMaster,COLUMN(StockCode!$C$4),0)) -> Bag | L23: =IF(ISNA(VLOOKUP($C23,StockMaster,COLUMN(StockCode!$I$4),0))=TRUE,0,VLOOKUP($C23,StockMaster,COLUMN(StockCode!$I$4),0)) -> 30 | M23: 30 | N23: -180 | O23: 0 | P23: =IF(ISNA(VLOOKUP($A23,JSetup[],COLUMN(JSetup!$T$4),0))=TRUE,"-",VLOOKUP($A23,JSetup[],COLUMN(JSetup!$T$4),0)) -> 2020-07-04 | Q23: =IF(ISNA(VLOOKUP(G23,JSetup[],COLUMN(JSetup!$L$4),0))=TRUE,0,IF(ISNUMBER(VLOOKUP(G23,JSetup[],COLUMN(JSetup!$L$4),0))=FALSE,0,IF(VLOOKUP(G23,JSetup[],COLUMN(JSetup!$C$4),0)<>C23,0,VLOOKUP(G23,JSetup[],COLUMN(JSetup!$L$4),0)))) -> 0 | R23: =IF(J23="Bought-In",0,IF(B23="Receipt",0,IF(ISNA(VLOOKUP(C23,StockMaster,COLUMN(StockCode!$AA$4),0))=TRUE,0,VLOOKUP(C23,StockMaster,COLUMN(StockCode!$AA$4),0)))) -> 0 | S23: =IF(JSetup!$U$1="Single",IF(ISNA(VLOOKUP($A23,JSetup[],COLUMN(JSetup!$C$4),0))=TRUE,"-",VLOOKUP($A23,JSetup[],COLUMN(JSetup!$C$4),0)),"-") -> 1212PHP
A24: J00002 | B24: Issue | C24: RM60 | D24: -120 | H24: - | I24: =IF(ISNA(VLOOKUP($C24,StockMaster,COLUMN(StockCode!$B$4),0))=TRUE,"-",VLOOKUP($C24,StockMaster,COLUMN(StockCode!$B$4),0)) -> Glass | J24: =IF(ISNA(VLOOKUP($C24,StockMaster,COLUMN(StockCode!$G$4),0))=TRUE,"-",VLOOKUP($C24,StockMaster,COLUMN(StockCode!$G$4),0)) -> Bought-In | K24: =IF(ISNA(VLOOKUP($C24,StockMaster,COLUMN(StockCode!$C$4),0))=TRUE,"-",VLOOKUP($C24,StockMaster,COLUMN(StockCode!$C$4),0)) -> M2 | L24: =IF(ISNA(VLOOKUP($C24,StockMaster,COLUMN(StockCode!$I$4),0))=TRUE,0,VLOOKUP($C24,StockMaster,COLUMN(StockCode!$I$4),0)) -> 80 | M24: =IF(B24="Receipt",L24,IF(J24="Manufactured",IF(Q24<>0,Q24,IF(R24<>0,R24,L24)),IF(F24="Yes",E24,L24))) -> 80 | N24: =D24*M24 -> -9600 | O24: =-(L24-M24)*D24 -> 0 | P24: =IF(ISNA(VLOOKUP($A24,JSetup[],COLUMN(JSetup!$T$4),0))=TRUE,"-",VLOOKUP($A24,JSetup[],COLUMN(JSetup!$T$4),0)) -> 2020-07-04 | Q24: =IF(ISNA(VLOOKUP(G24,JSetup[],COLUMN(JSetup!$L$4),0))=TRUE,0,IF(ISNUMBER(VLOOKUP(G24,JSetup[],COLUMN(JSetup!$L$4),0))=FALSE,0,IF(VLOOKUP(G24,JSetup[],COLUMN(JSetup!$C$4),0)<>C24,0,VLOOKUP(G24,JSetup[],COLUMN(JSetup!$L$4),0)))) -> 0 | R24: =IF(J24="Bought-In",0,IF(B24="Receipt",0,IF(ISNA(VLOOKUP(C24,StockMaster,COLUMN(StockCode!$AA$4),0))=TRUE,0,VLOOKUP(C24,StockMaster,COLUMN(StockCode!$AA$4),0)))) -> 0 | S24: =IF(JSetup!$U$1="Single",IF(ISNA(VLOOKUP($A24,JSetup[],COLUMN(JSetup!$C$4),0))=TRUE,"-",VLOOKUP($A24,JSetup[],COLUMN(JSetup!$C$4),0)),"-") -> 1212PHP
A25: J00002 | B25: Issue | C25: RM70 | D25: -60 | H25: - | I25: =IF(ISNA(VLOOKUP($C25,StockMaster,COLUMN(StockCode!$B$4),0))=TRUE,"-",VLOOKUP($C25,StockMaster,COLUMN(StockCode!$B$4),0)) -> Filler | J25: =IF(ISNA(VLOOKUP($C25,StockMaster,COLUMN(StockCode!$G$4),0))=TRUE,"-",VLOOKUP($C25,StockMaster,COLUMN(StockCode!$G$4),0)) -> Bought-In | K25: =IF(ISNA(VLOOKUP($C25,StockMaster,COLUMN(StockCode!$C$4),0))=TRUE,"-",VLOOKUP($C25,StockMaster,COLUMN(StockCode!$C$4),0)) -> Bag | L25: =IF(ISNA(VLOOKUP($C25,StockMaster,COLUMN(StockCode!$I$4),0))=TRUE,0,VLOOKUP($C25,StockMaster,COLUMN(StockCode!$I$4),0)) -> 60 | M25: 60 | N25: -3600 | O25: 0 | P25: =IF(ISNA(VLOOKUP($A25,JSetup[],COLUMN(JSetup!$T$4),0))=TRUE,"-",VLOOKUP($A25,JSetup[],COLUMN(JSetup!$T$4),0)) -> 2020-07-04 | Q25: =IF(ISNA(VLOOKUP(G25,JSetup[],COLUMN(JSetup!$L$4),0))=TRUE,0,IF(ISNUMBER(VLOOKUP(G25,JSetup[],COLUMN(JSetup!$L$4),0))=FALSE,0,IF(VLOOKUP(G25,JSetup[],COLUMN(JSetup!$C$4),0)<>C25,0,VLOOKUP(G25,JSetup[],COLUMN(JSetup!$L$4),0)))) -> 0 | R25: =IF(J25="Bought-In",0,IF(B25="Receipt",0,IF(ISNA(VLOOKUP(C25,StockMaster,COLUMN(StockCode!$AA$4),0))=TRUE,0,VLOOKUP(C25,StockMaster,COLUMN(StockCode!$AA$4),0)))) -> 0 | S25: =IF(JSetup!$U$1="Single",IF(ISNA(VLOOKUP($A25,JSetup[],COLUMN(JSetup!$C$4),0))=TRUE,"-",VLOOKUP($A25,JSetup[],COLUMN(JSetup!$C$4),0)),"-") -> 1212PHP
A26: J00002 | B26: Issue | C26: RM75 | D26: -100 | H26: - | I26: =IF(ISNA(VLOOKUP($C26,StockMaster,COLUMN(StockCode!$B$4),0))=TRUE,"-",VLOOKUP($C26,StockMaster,COLUMN(StockCode!$B$4),0)) -> Swivel | J26: =IF(ISNA(VLOOKUP($C26,StockMaster,COLUMN(StockCode!$G$4),0))=TRUE,"-",VLOOKUP($C26,StockMaster,COLUMN(StockCode!$G$4),0)) -> Bought-In | K26: =IF(ISNA(VLOOKUP($C26,StockMaster,COLUMN(StockCode!$C$4),0))=TRUE,"-",VLOOKUP($C26,StockMaster,COLUMN(StockCode!$C$4),0)) -> Units | L26: =IF(ISNA(VLOOKUP($C26,StockMaster,COLUMN(StockCode!$I$4),0))=TRUE,0,VLOOKUP($C26,StockMaster,COLUMN(StockCode!$I$4),0)) -> 3.5 | M26: 3.5 | N26: -350 | O26: 0 | P26: =IF(ISNA(VLOOKUP($A26,JSetup[],COLUMN(JSetup!$T$4),0))=TRUE,"-",VLOOKUP($A26,JSetup[],COLUMN(JSetup!$T$4),0)) -> 2020-07-04 | Q26: =IF(ISNA(VLOOKUP(G26,JSetup[],COLUMN(JSetup!$L$4),0))=TRUE,0,IF(ISNUMBER(VLOOKUP(G26,JSetup[],COLUMN(JSetup!$L$4),0))=FALSE,0,IF(VLOOKUP(G26,JSetup[],COLUMN(JSetup!$C$4),0)<>C26,0,VLOOKUP(G26,JSetup[],COLUMN(JSetup!$L$4),0)))) -> 0 | R26: =IF(J26="Bought-In",0,IF(B26="Receipt",0,IF(ISNA(VLOOKUP(C26,StockMaster,COLUMN(StockCode!$AA$4),0))=TRUE,0,VLOOKUP(C26,StockMaster,COLUMN(StockCode!$AA$4),0)))) -> 0 | S26: =IF(JSetup!$U$1="Single",IF(ISNA(VLOOKUP($A26,JSetup[],COLUMN(JSetup!$C$4),0))=TRUE,"-",VLOOKUP($A26,JSetup[],COLUMN(JSetup!$C$4),0)),"-") -> 1212PHP
A27: J00002 | B27: Issue | C27: LB10 | D27: -690 | E27: 25 | F27: Yes | H27: - | I27: =IF(ISNA(VLOOKUP($C27,StockMaster,COLUMN(StockCode!$B$4),0))=TRUE,"-",VLOOKUP($C27,StockMaster,COLUMN(StockCode!$B$4),0)) -> Labour - Grade 1 | J27: =IF(ISNA(VLOOKUP($C27,StockMaster,COLUMN(StockCode!$G$4),0))=TRUE,"-",VLOOKUP($C27,StockMaster,COLUMN(StockCode!$G$4),0)) -> Bought-In | K27: =IF(ISNA(VLOOKUP($C27,StockMaster,COLUMN(StockCode!$C$4),0))=TRUE,"-",VLOOKUP($C27,StockMaster,COLUMN(StockCode!$C$4),0)) -> Hours | L27: =IF(ISNA(VLOOKUP($C27,StockMaster,COLUMN(StockCode!$I$4),0))=TRUE,0,VLOOKUP($C27,StockMaster,COLUMN(StockCode!$I$4),0)) -> 20 | M27: 25 | N27: -17250 | O27: -3450 | P27: =IF(ISNA(VLOOKUP($A27,JSetup[],COLUMN(JSetup!$T$4),0))=TRUE,"-",VLOOKUP($A27,JSetup[],COLUMN(JSetup!$T$4),0)) -> 2020-07-04 | Q27: =IF(ISNA(VLOOKUP(G27,JSetup[],COLUMN(JSetup!$L$4),0))=TRUE,0,IF(ISNUMBER(VLOOKUP(G27,JSetup[],COLUMN(JSetup!$L$4),0))=FALSE,0,IF(VLOOKUP(G27,JSetup[],COLUMN(JSetup!$C$4),0)<>C27,0,VLOOKUP(G27,JSetup[],COLUMN(JSetup!$L$4),0)))) -> 0 | R27: =IF(J27="Bought-In",0,IF(B27="Receipt",0,IF(ISNA(VLOOKUP(C27,StockMaster,COLUMN(StockCode!$AA$4),0))=TRUE,0,VLOOKUP(C27,StockMaster,COLUMN(StockCode!$AA$4),0)))) -> 0 | S27: =IF(JSetup!$U$1="Single",IF(ISNA(VLOOKUP($A27,JSetup[],COLUMN(JSetup!$C$4),0))=TRUE,"-",VLOOKUP($A27,JSetup[],COLUMN(JSetup!$C$4),0)),"-") -> 1212PHP
